Workbook

Sheet Disclaimer
A1: Disclaimer The National Renewable Energy Laboratory (NREL) is operated for the U.S. Department of Energy (DOE) by Alliance for Sustainable Energy, LLC ("Alliance"). Access to or use of any data or software made available on this server ("Data") shall impose the following obligations on the user, and use of the Data constitutes user's agreement to these terms. The user is granted the right, without any fee or cost, to use or copy the Data, provided that this entire notice appears in all copies of the Data. Further, the user agrees to credit DOE/NREL/ALLIANCE in any publication that results from the use of the Data. The names DOE/NREL/ALLIANCE, however, may not be used in any advertising or publicity to endorse or promote any products or commercial entities unless specific written permission is obtained from DOE/NREL/ ALLIANCE. The user also understands that DOE/NREL/ALLIANCE are not obligated to provide the user with any support, consulting, training or assistance of any kind with regard to the use of the Data or to provide the user with any updates, revisions or new versions thereof. DOE, NREL, and ALLIANCE do not guarantee or endorse any results generated by use of the Data, and user is entirely responsible for the results and any reliance on the results or the Data in general. USER AGREES TO INDEMNIFY DOE/NREL/ALLIANCE AND ITS SUBSIDIARIES, AFFILIATES, OFFICERS, AGENTS, AND EMPLOYEES AGAINST ANY CLAIM OR DEMAND, INCLUDING REASONABLE ATTORNEYS' FEES, RELATED TO USER'S USE OF THE DATA. THE DATA ARE PROVIDED BY DOE/NREL/ALLIANCE "AS IS," AND ANY EXPRESS OR IMPLIED WARRANTIES, INCLUDING BUT NOT LIMITED TO THE IMPLIED WARRANTIES OF MERCHANTABILITY AND FITNESS FOR A PARTICULAR PURPOSE ARE DISCLAIMED. DOE/NREL/ALLIANCE ASSUME NO LEGAL LIABILITY OR RESPONSIBILITY FOR THE ACCURACY, COMPLETENESS, OR USEFULNESS OF THE DATA, OR REPRESENT THAT ITS USE WOULD NOT INFRINGE PRIVATELY OWNED RIGHTS. IN NO EVENT SHALL DOE/NREL/ALLIANCE BE LIABLE FOR ANY SPECIAL, INDIRECT OR CONSEQUENTIAL DAMAGES OR ANY DAMAGES WHATSOEVER, INCLUDING BUT NOT LIMITED TO CLAIMS ASSOCIATED WITH THE LOSS OF DATA OR PROFITS, THAT MAY RESULT FROM AN ACTION IN CONTRACT, NEGLIGENCE OR OTHER TORTIOUS CLAIM THAT ARISES OUT OF OR IN CONNECTION WITH THE ACCESS, USE OR PERFORMANCE OF THE DATA.

Sheet Documentation
A1: Click "+" marks in left margin to expand/collapse sections
A4: Documentation
A5: Overview
A6: The primary objective of FASTSim is to estimate the fuel economy, cost, and performance of a vehicle with specified powertrain components over standard drive cycles.
A7: All saved vehicles are approximations of existing vehicles.
A8: The VehicleIO tab provides the main interface for the model. It allows different vehicles to be loaded, modified, saved, and run. After hitting "Run", the results can be viewed at the bottom.
A10: Worksheet organization
A11: Primary user worksheets | B11: Name | C11: Description
B12: Documentation | C12: You are here!
B13: VehicleIO | C13: Load/modify/save/run/view individual vehicle results.
B14: Powertrain Comparison | C14: Compare powertrains based on a selected vehicle with modifications to a few high level inputs.
B15: Parametric Study | C15: Similar to the Powertrain Comparison, but also varies the value of one variable.
B16: Validation | C16: Compare FASTSim results to data.
B17: Regen | C17: Adjust A and B coefficients to customize the regen curve.
A19: More advanced user worksheets (many are hidden)
B20: Cost | C20: View details on the net present cost of the vehicle over its lifetime.
B21: Veh Model | C21: Modify the vehicle model and copy over for each drive cycle by hitting "Update Model".
B22: FC Model | C22: View the fuel converter/engine model details.
B23: Motor | C23: View motor efficiency details.
A25: Automatically generated worksheets (all drive cycle worksheets)
B26: ConstSpeeds | C26: View detailed drive cycle data and equations.
B27: Accel | C27: View detailed drive cycle data and equations.
B28: HWY | C28: View detailed drive cycle data and equations.
B29: UDDS | C29: View detailed drive cycle data and equations.
A31: Automatically modified worksheets (manual changes not recommended)
B32: SavedVehs | C32: Holds saved vehicle input data (automatically modified when saving a vehicle on the VehicleIO worksheet).
B33: SavedRefs | C33: Holds saved reference data by vehicle (automatically modified when saving a vehicle on the VehicleIO worksheet).
B34: All drive cycle worksheets are updated with the equations in the "Veh Model" worksheet after hitting "Update Model" on the "Veh Model" worksheet.
B35: DriveCycles | C35: Stores drive cycle data
A37: Reference worksheets
B38: ESS Life
B39: EV PHEV ESS Wear | C39: Shows battery wear characteristics and related driving distance distribution data.
B40: Recharge Distribution | C40: Shows driving distribution data used in battery life and fuel economy calculations.
B41: ESS Chars | C41: Documents battery mass data used for scaling.
A42: Assumptions
A43: All the input assumptions are listed on the VehicleIO tab except:
B44: Fuel converter: Pull down menu draws assumptions from the "FC Model" worksheet.
B45: Motor: Pull down menu draws assumptions from the "Motor" worksheet.
B46: Distance between recharges distribution: Pull down menu draws assumptions from "Recharge Distribution" worksheet.
B47: Additional braking regeneration assumptions are located on the "regen" worksheet.
A48: Import data from web
A49: This button located above the vehicle input parameters on the VehicleIO tab assists with importing vehicle specifications from the web.
B50: It shows a hidden worksheet "SpecImport" to import data to and opens a form with directions on how to import.
B51: The form includes buttons to clear old imported data.
B52: A second tab, "Optional: Import Cost Validation Data", helps import a comparable second vehicle to help estimate advanced vehicle glider costs.
A54: Adding a new vehicle input variable
A55: Hit button "Add Vehicle Input Variable" and follow the interface.
A56: This feature is important to maintain the structure needed for saving and loading vehicles parameters when adding new variables to use on the "Veh Model" worksheet where the powertrain equations reside.
A57: Note: Deleting a variable is not supported.
A58: Note: This feature is only for the vehicle input section.
A59: Fuel economy
A60: The fuel economy is estimated based on the vehicle inputs.
A61: The vehicle is run through the city and highway drive cycles capturing component efficiencies, regenerative braking, and inertia.
A62: The two cycle approximation of the five cycle test is used to estimate the adjusted, or window sticker, fuel economy: Final Technical Support Document - Fuel Economy Labeling of Motor Vehicle Revisions to Improve Calculation of Fuel Economy Estimates, page 103, www.epa.gov/fueleconomy/420r06017.pdf.
A63: For more details about a drive cycle run, view the drive cycle tabs (HWY, UDDS, etc).
A64: Acceleration
A65: The acceleration is an approximation based on the input component powers and time to full power.
A66: This approximation best matches a continuously variable transmission (CVT).
A67: This is a useful approach for high level technical targets since these are often defined at this level.
A68: A more detailed model is necessary for looking at changing the shift strategy or gear ratios.
A69: Cost
A70: Component costs are based on the inputs in the "Current Conditions" section of the inputs on the "VehicleIO" tab.
A71: A net present value approach is included to view vehicle purchases as a competing investment of money.
A72: Battery life
A73: Battery life is based on battery manufacturer life testing data shown in a presentation titled "Batteries for Plug-In Hybrid Electric Vehicles" by Dr. Mark Duvall of EPRI, June 6th, 2005.
A75: This approximation captures cycling wear.
B76: Wear due to acceleration/braking regeneration events
B77: Wear due to recharging assuming a distribution of trip distances based on NHTS data and the vehicles efficiency
A78: For a more detailed battery life model that captures temperature, cycling, and calendar life contact Kandler Smith at Kandler.Smith@nrel.gov
A79: Energy Management
A80: Kinetic Energy Strategy
B81: The kinetic energy strategy attempts to:
C82: Reduce the state of charge (SOC) at high speed to make room for braking energy.
C83: Charge the battery at low SOC so the battery can help assist with the next acceleration event.
B84: maxSocMph: The speed that the battery should be fully charged
B85: maxSoc: The maximum state of charge (SOC)
B86: minSocMph: The speed that the battery should be empty.
B87: minSoc: The minimum state of charge (SOC)
A109: Engine Efficiency Strategy
B110: The engine efficiency strategy tries to use the battery to operate the engine more efficiently.
B111: As is, this strategy seems to be less effective than the kinetic energy strategy.
A113: Credits
A114: Development
B115: Aaron Brooker
B116: Laurie Ramroth
B117: Lijuan Wang
B118: Eric Wood
A120: Contributors
B121: John Rugh
B122: Jeremy Neubauer
B123: Kandler Smith
B124: Jeff Gonder
A126: Conceptual inspiration
B127: Terry Penney
B128: Rob Farrington
B129: Matthew Thornton
B130: Robb Barnitt
B131: Bob Rehn
B132: NREL ADVISOR Team (Keith Wipke, Aaron Brooker, Kristina Haraldsson, Terry Hendricks, Valerie Johnson, Kenneth Kelly, Bill Kramer,Tony Markel, Michael O'Keefe, Sam Sprik, Matthew Zolot Contributors: Desikan Bharathan, Steve Burch, Matthew Cuddy, Dave Rausen)
A134: Support
B135: David Anderson
B136: Lee Slezak
B137: Monterey Gardiner
A139: Copyright
A196: Automated Tutorial On | B196: TRUE

Sheet VehicleIO
A1: Future Automotive Systems Technology Simulator
A3: Inputs
A4: Vehicle
C6: 5
A9: Vehicle | C9: First save cell
A10: Fuel economy test procedure | B10: vehPtType | C10: 3
A11: Drag coefficient | B11: dragCoef | C11: 0.29 | D11: URL;http://www.carsdirect.com/build/options/vehicle-specs?makeName=Chevrolet&modelName=Volt&year=2012&acode=USC20CHC311A0
A12: Frontal area (m^2) | B12: frontalAreaM2 | C12: 2.057 | D12: URL;http://www.carsdirect.com/build/options/vehicle-specs?makeName=Chevrolet&modelName=Volt&year=2012&acode=USC20CHC311A0
A13: Vehicle glider mass (kg) | B13: gliderKg | C13: 1077.111476 | D13: Curb mass of 3781 lbs.URL;http://www.carsdirect.com/build/options/vehicle-specs?makeName=Chevrolet&modelName=Volt&year=2012&acode=USC20CHC311A0
A14: Vehicle center of gravity height (m) | B14: vehCgM | C14: 0.53
A15: Drive axle weight fraction | B15: driveAxleWeightFrac | C15: 0.59
A16: Wheel base (m) | B16: wheelBaseM | C16: 2.69 | D16: URL;http://www.carsdirect.com/build/options/vehicle-specs?makeName=Chevrolet&modelName=Volt&year=2012&acode=USC20CHC311A0
A17: Cargo mass (kg) | B17: cargoKg | C17: 136
A18: Vehicle override test mass (kg) | B18: vehOverrideKg
A20: Fuel storage
A21: Fuel storage power (kW) | B21: maxFuelStorKw | C21: 5000
A22: Fuel storage time to full power (s) | B22: fuelStorSecsToPeakPwr | C22: 1
A23: Fuel storage energy (kWh) | B23: fuelStorKwh | C23: 313 | D23: URL;http://www.carsdirect.com/build/options/vehicle-specs?makeName=Chevrolet&modelName=Volt&year=2012&acode=USC20CHC311A0
A24: Fuel and fuel storage mass (kWh/kg) | B24: fuelStorKwhPerKg | C24: =IF(OR(INDEX(fcEffOpts,fcEffType)="Atkinson",INDEX(fcEffOpts,fcEffType)="SI"),1/((11/(13.2*kWhPerGGE))+(1/gasolineKwhPerKg)),IF(INDEX(fcEffOpts,fcEffType)="diesel",1/((11/(13.2*kWhPerGalDiesel))+(1/dieselKwhPerKg)))) -> 9.89473291 | D24: tank + fuel (trend based on Corolla tank size and weight: http://www.amazon.com/Dorman-576-854-Fuel-Tank/dp/B000IZ9R4C)
A26: Fuel converter
A27: Fuel converter power (kW) | B27: maxFuelConvKw | C27: 62 | D27: URL;http://www.carsdirect.com/build/options/vehicle-specs?makeName=Chevrolet&modelName=Volt&year=2012&acode=USC20CHC311A0
A28: Fuel converter efficiency type | B28: fcEffType | C28: 1
A29: Fuel converter time to full power (s) | B29: fuelConvSecsToPeakPwr | C29: 6
A30: Fuel converter specific power (kW/kg) | B30: fuelConvKwPerKg | C30: 0.315 | D30: 1.9L Saturn sohc
A32: Motor
A33: Motor power (kW) | B33: maxMotorKw | C33: 111 | D33: http://www.chevrolet.com/volt-electric-car/features-specs/
A34: Motor peak efficiency | B34: motorPeakEff | C34: 0.93
A35: Motor time to full power (s) | B35: motorSecsToPeakPwr | C35: 5
A36: Motor controller mass (kg/kW) | B36: mcPeKgPerKw | C36: 0.833 | D36: A. Simpson, Cost Benefit Analysis of Plug-In Hybrid Electric Vehicle Technology, 2006; http://www.nrel.gov/vehiclesandfuels/vsa/pdfs/40485.pdf
A37: Motor controller base mass (kg) | B37: mcPeBaseKg | C37: 21.6 | D37: A. Simpson, Cost Benefit Analysis of Plug-In Hybrid Electric Vehicle Technology, 2006; http://www.nrel.gov/vehiclesandfuels/vsa/pdfs/40485.pdf
A39: Traction battery
A40: Battery power (kW) | B40: maxEssKw | C40: =maxMotorKw/motorPeakEff -> 119.3548387 | D40: Based on motor output
A41: Battery energy (kWh) | B41: maxEssKwh | C41: 16 | D41: http://www.chevrolet.com/volt-electric-car/features-specs/
A42: Battery mass (kg/kWh) | B42: essKgPerKwh | C42: 6.65 | D42: See ESS Chars worksheet
A43: Battery base mass (kg) | B43: essBaseKg | C43: 75 | D43: See ESS Chars worksheet
A44: Battery round trip efficiency | B44: essRountTripEff | C44: 0.951 | D44: http://www.greencarcongress.com/2008/02/nissan-tests-ne.html
A45: Battery life coefficient A (product) | B45: essLifeCoefA | C45: 86 | D45: VARTA: http://www.ocean.udel.edu/cms/wkempton/Kempton-V2G-pdfFiles/PDF%20format/Duvall-V2G-batteries-June05.pdf
A46: Battery life coefficient B (power) | B46: essLifeCoefB | C46: -0.6844 | D46: VARTA: http://www.ocean.udel.edu/cms/wkempton/Kempton-V2G-pdfFiles/PDF%20format/Duvall-V2G-batteries-June05.pdf
A48: Wheel
A49: Wheel inertia (one wheel) (kg*m^2) | B49: wheelInteriaKgM2 | C49: 0.815
A50: Number of wheels | B50: numWheels | C50: 4
A51: Rolling resistance coefficient | B51: wheelRrCoef | C51: 0.008
A52: Tire radius (m) | B52: wheelRadiusM | C52: 0.334 | D52: URL;http://www.carsdirect.com/build/options/vehicle-specs?makeName=Chevrolet&modelName=Volt&year=2012&acode=USC20CHC311A0
A53: Wheel coefficient of friction | B53: wheelCoefOfFric | C53: 0.7
A55: Energy management
A56: Strategy | B56: controlStrategy | C56: 1
A57: Minimum state of charge | B57: minSoc | C57: 0.2
A58: Maximum state of charge | B58: maxSoc | C58: 0.85
A59: Speed where the battery should be empty (mph) | B59: minSocMph | C59: 0.1
A60: Speed where the battery should be full (mph) | B60: maxSocMph | C60: 0
A61: Attempted level of electric assist | B61: assistKwPerPercOff | C61: 5
A62: Attempted level of engine charging the battery | B62: chgKwPerPercOff | C62: 0.2
A63: Percent of battery reserved for passing | B63: percUsableSocPassBuf | C63: 0.05
A64: Percent FC power done electrically | B64: percFcPwrDoneElec | C64: 0.1
A65: Percent SOC buffer for high accessory loads during cycles with long idle time | B65: percHighAccBuf | C65: 0
A66: Speed at which engine is commanded on (mph) | B66: mphFcOn | C66: 60
A67: Power demand at which engine is commanded on (kW) | B67: kwDemandFcOn | C67: 100
A69: Misc.
A70: Alternator efficiency (conv. veh only) | B70: altEff | C70: 1
A71: Charger efficiency | B71: chgEff | C71: 0.86 | D71: http://en.wikipedia.org/wiki/Tesla_Roadster#cite_note-The_21st_century_Electric_Car-107
A72: Auxiliary loads (kW) | B72: auxKw | C72: 0.3
A73: Transmission mass (kg) | B73: transKg | C73: 114
A74: Transmission efficiency | B74: transEff | C74: 0.95
A75: Max battery to fuel energy error | B75: essToFuelOkError | C75: 0.005
A76: Max regen | B76: maxRegen | C76: 1
A78: Validation data
A79: EPA city fuel economy (MPGGE) | B79: valUddsMpgge
A80: EPA highway fuel economy (MPGGE) | B80: valHwyMpgge
A81: EPA combined fuel economy (MPGGE) | B81: valCombMpgge
A82: City AC elect. consumption w/charging (kWh/mile) | B82: valUddsKwhPerMile
A83: Highway elect. consumption w/charging (kWh/mile) | B83: valHwyKwhPerMile
A84: Combined elect. consumption w/charging (kWh/mile) | B84: valCombKwhPerMile
A85: Constant 65 MPH elect. consumption (kWh/mile) | B85: valConst65MphKwhPerMile
A86: Constant 60 MPH elect. consumption (kWh/mile) | B86: valConst60MphKwhPerMile
A87: Constant 55 MPH elect. consumption (kWh/mile) | B87: valConst55MphKwhPerMile
A88: Constant 45 MPH elect. consumption (kWh/mile) | B88: valConst45MphKwhPerMile
A89: Laboratory UDDS elect. consumption (kWh/mile) | B89: valUnadjUddsKwhPerMile
A90: Laboratory highway elect. consumption (kWh/mile) | B90: valUnadjHwyKwhPerMile
A91: 0-60 MPH acceleration time (seconds) | B91: val0To60Mph | D91: 9.5, but this model allows the engine to assist, the Volt does not http://www.carsdirect.com/buying-guides/compact-cars/rankings?ranking=acceleration
A92: Battery life (miles) | B92: valEssLifeMiles | C92: =100000*1.2 -> 120000 | D92: Assumes 20% over warranty: http://www.chevrolet.com/volt-electric-car/
A93: Vehicle range (miles) | B93: valRangeMiles
A94: Vehicle glider cost (no engine, battery, etc) | B94: valVehBaseCost | C94: 15440.42 | D94: URL;http://www.carsdirect.com/build/options/vehicle-specs?makeName=Chevrolet&modelName=Cruze&year=2012&acode=USC20CHC301C0
A95: MSRP | B95: valMsrp | C95: 39145 | D95: URL;http://www.carsdirect.com/build/options/vehicle-specs?makeName=Chevrolet&modelName=Volt&year=2012&acode=USC20CHC311A0
C96: Last save cell
A100: Current conditions
A101: Average vehicle miles traveled per year | B101: VMT | C101: 12375 | D101: http://www.fhwa.dot.gov/policy/ohim/hs05/htm/vm1.htm
A102: Reduction in vehicle travel per year | B102: vmtReductPerYear | C102: 546 | D102: 546: Average based on ORNL, Transportation Energy Data Book: Edition 29, 2010, Table 3.7
A103: Constant trip distance (miles) (select "constant" below) | B103: constTripDistMiles | D103: ***NOTE: Must be a even number
A104: Distance between recharges distribution
A105: Vehicle life (years) | B105: vehLifeYears | C105: 15 | D105: http://www.bts.gov/publications/national_transportation_statistics/2002/html/table_01_11.html
A106: Target number of battery replacements | B106: desiredEssReplacements | C106: 2
A107: Gasoline price ($/gallon) | B107: gasolineDolPerGal | C107: 4 | D107: http://www.eia.gov/oog/info/gdu/gasdiesel.asp
A108: Diesel price ($/gallon) | B108: dieselDolPerGal | C108: 3.75 | D108: http://www.eia.gov/oog/info/gdu/gasdiesel.asp
A109: Electricity price ($/kWh) | B109: dolPerKwh | C109: 0.1 | D109: http://www.eia.gov/cneaf/electricity/epm/epmxlfile5_3.xls
A110: Sales tax | B110: tax | C110: 0.078 | D110: http://www.consumerreports.org/cro/cars/new-cars/high-cost-of-hybrid-vehicles-406/ownership-cost-comparison/0609_ownership-cost-comparison_ov.htm
A111: Discount rate | B111: discRate | C111: 0.041 | D111: http://www.nytimes.com/interactive/2011/01/02/business/20110102-metrics-graphic.htmlhttp://www.inflationdata.com/Inflation/Inflation_Rate/CurrentInflation.asp
A112: Battery cost coefficient A ($/kW) | B112: essDolPerKw | C112: 22.2 | D112: A. Simpson, Cost Benefit Analysis of Plug-In Hybrid Electric Vehicle Technology, 2006; http://www.nrel.gov/vehiclesandfuels/vsa/pdfs/40485.pdf
A113: Battery cost coefficient B ($/kWh) | B113: essDolPerKwh | C113: 500 | D113: 500 Matches validation
A114: Battery base packaging cost | B114: essPackageCost | C114: 680 | D114: A. Simpson, Cost Benefit Analysis of Plug-In Hybrid Electric Vehicle Technology, 2006; http://www.nrel.gov/vehiclesandfuels/vsa/pdfs/40485.pdf
A115: Battery cost reduction per year | B115: essCostRedPerYear | C115: 0
A116: Battery salvage value (percent) | B116: essSalvageVal | C116: 0
A117: Power electronics and motor cost ($/kW) | B117: peAndMcDolPerKw | C117: 21.7 | D117: A. Simpson, Cost Benefit Analysis of Plug-In Hybrid Electric Vehicle Technology, 2006; http://www.nrel.gov/vehiclesandfuels/vsa/pdfs/40485.pdf
A118: Power electronics and motor base cost | B118: peAndMcBaseCost | C118: 425 | D118: A. Simpson, Cost Benefit Analysis of Plug-In Hybrid Electric Vehicle Technology, 2006; http://www.nrel.gov/vehiclesandfuels/vsa/pdfs/40485.pdf
A119: Engine cost ($/kW) | B119: iceDolPerKw | C119: 14.5 | D119: A. Simpson, Cost Benefit Analysis of Plug-In Hybrid Electric Vehicle Technology, 2006; http://www.nrel.gov/vehiclesandfuels/vsa/pdfs/40485.pdf
A120: Engine base cost | B120: iceBaseCost | C120: 531 | D120: A. Simpson, Cost Benefit Analysis of Plug-In Hybrid Electric Vehicle Technology, 2006; http://www.nrel.gov/vehiclesandfuels/vsa/pdfs/40485.pdf
A121: Fuel tank cost ($/kWh) | B121: fuelStorDolPerKwh | C121: 0.07
A122: Plug cost (PHEVs and EVs) | B122: plugCost | C122: 500
A123: Markup | B123: markup | C123: 1.5 | D123: 1.05-1.45: http://dx.doi.org/10.1016/j.ijpe.2009.11.031
A124: Base vehicle price (without ICE, MC, PE) | B124: vehGliderPrice | C124: 17014.25
A128: Additional drive cycles
A131: 8
A132: 1
A144: Results need run update: | C144: FALSE
A146: Run time (seconds): | C146: 5.15625
A148: Results
A150: Error checking parameters | C150: resStartCell
A151: Maximum trace miss (mph) | B151: netMaxTraceMissMph | C151: =MAX(INDIRECT("UDDS!maxTraceMissMph"),INDIRECT("HWY!maxTraceMissMph")) -> 2.79727
A152: Battery/fuel energy ratio | B152: netEss2Fuel | C152: =MAX(ABS(INDIRECT("UDDS!ess2fuelKwh")),ABS(INDIRECT("HWY!ess2fuelKwh"))) -> 4.886782015e-14
A154: Laboratory fuel economy
A156: Charge depleting city range (miles) | B156: cdUddsMiles | C156: =IF(vehPtType=3,MAX(IF(ISNUMBER(phevLabUddsUf),phevUddsMiles)),IF(vehPtType=4,(1/INDIRECT("UDDS!kwhPerMile"))*(maxSoc-minSoc)*maxEssKwh,"")) -> 52.1615398
A157: Charge depleting highway range (miles) | B157: cdHwyMiles | C157: =IF(vehPtType=3,MAX(IF(ISNUMBER(phevLabHwyUf),phevHwyMiles)),IF(vehPtType=4,(1/INDIRECT("HWY!kwhPerMile"))*(maxSoc-minSoc)*maxEssKwh,"")) -> 51.29520877
A159: Charge depleting city (MPG) | B159: cdUddsMpg | C159: =IF(vehPtType=3,1/(SUM(IF(ISNUMBER(phevLabUddsUf),phevUddsLabUfGpm))/MAX(phevLabUddsUf)),"") -> 883.8207947
A160: Charge depleting highway (MPG) | B160: cdHwyMpg | C160: =IF(vehPtType=3,1/(SUM(IF(ISNUMBER(phevLabHwyUf),phevHwyLabUfGpm))/MAX(phevLabHwyUf)),"") -> 1891.507073
A162: Charge sustaining city (MPG) | B162: csUddsMpg | C162: =IF(vehPtType=3,SUM(IF(ISNUMBER(phevUddsLabMpg),IF(phevLabUddsUf="",phevUddsLabMpg))),"") -> 52.65675887
A163: Charge sustaining highway (MPG) | B163: csHwyMpg | C163: =IF(vehPtType=3,SUM(IF(ISNUMBER(phevHwyLabMpg),IF(phevLabHwyUf="",phevHwyLabMpg))),"") -> 57.3745288
A165: City UF (percent driving electric) | B165: labUddsUf | C165: =IF(vehPtType=3,MAX(phevLabUddsUf),"") -> 0.6989700169
A166: Highway UF (percent driving electric) | B166: labHwyUf | C166: =IF(vehPtType=3,MAX(phevLabHwyUf),"") -> 0.6989700169
A168: City (mpgge) | B168: labUddsMpgge | C168: =IF(INDEX(vehPtOptions,vehPtType)="PHEV",1/((IFERROR(1/cdUddsMpg,0)*labUddsUf)+((1/csUddsMpg)*(1-labUddsUf))),INDIRECT("UDDS!mpgge")) -> 153.6644745
A169: Highway (mpgge) | B169: labHwyMpgge | C169: =IF(INDEX(vehPtOptions,vehPtType)="PHEV",1/((IFERROR(1/cdHwyMpg,0)*labHwyUf)+((1/csHwyMpg)*(1-labHwyUf))),INDIRECT("HWY!mpgge")) -> 178.0536809
A170: Combined | B170: labCombMpgge | C170: =1/((0.55/labUddsMpgge)+(0.45/labHwyMpgge)) -> 163.7584673
A172: Charge depleting city (kWh/mile) | B172: labUddsKwhPerMile | C172: =IF(INDEX(vehPtOptions,vehPtType)="PHEV",SUM(IF(ISNUMBER(phevLabUddsUf),phevUddsLabUfKwhPerMile))/MAX(phevLabUddsUf),INDIRECT("UDDS!kwhPerMile")) -> 0.2106318837
A173: Charge depleting highway (kWh/mile) | B173: labHwyKwhPerMile | C173: =IF(INDEX(vehPtOptions,vehPtType)="PHEV",SUM(IF(ISNUMBER(phevLabHwyUf),phevHwyLabUfKwhPerMile))/MAX(phevLabHwyUf),INDIRECT("HWY!kwhPerMile")) -> 0.2077158752
A174: Combined | B174: labCombKwhPerMile | C174: =(0.55*labUddsKwhPerMile)+(0.45*labHwyKwhPerMile) -> 0.2093196799
A176: Adjusted fuel economy
C177: Results | D177: Validation
A178: Charge depleting city range (miles) | B178: adjCdUddsMiles | C178: =IF(INDEX(vehPtOptions,vehPtType)="PHEV",MAX(phevUddsAdjCdMiles),"") -> 36.51307786
A179: Charge depleting highway range (miles) | B179: adjCdHwyMiles | C179: =IF(INDEX(vehPtOptions,vehPtType)="PHEV",MAX(phevHwyAdjCdMiles),"") -> 35.90664614
A181: Charge depleting city (mpgge) | B181: adjCdUddsMpgge | C181: =IF(vehPtType=3,1/(SUM(IF(ISNUMBER(phevUddsAdjCdMiles),phevUddsAdjUfGpm))/MAX(phevUddsUf)),"") -> 693.2254376
A182: Charge depleting highway (mpgge) | B182: adjCdHwyMpgge | C182: =IF(vehPtType=3,1/(SUM(IF(ISNUMBER(phevHwyAdjCdMiles),phevHwyAdjUfGpm))/MAX(phevHwyUf)),"") -> 875.623615
A183: Charge depleting combined (mpgge) | B183: adjCdCombMpgge | C183: =IF(vehPtType=3,1/((0.55*IFERROR(1/adjCdUddsMpgge,0))+(0.45*IFERROR(1/adjCdHwyMpgge,0))),"") -> 764.9282596
A185: Charge sustaining city (mpgge) | B185: adjCsUddsMpgge | C185: =IF(vehPtType=3,1/(SUM(IF(phevUddsUf="",IF(ISNUMBER(phevUddsAdjUfGpm),phevUddsAdjUfGpm,0)))/(1-MAX(phevUddsUf))),"") -> 38.94418507
A186: Charge sustaining highway (mpgge) | B186: adjCsHwyMpgge | C186: =IF(vehPtType=3,1/(SUM(IF(phevHwyUf="",IF(ISNUMBER(phevHwyAdjUfGpm),phevHwyAdjUfGpm,0)))/(1-MAX(phevHwyUf))),"") -> 40.24736795
A187: Charge sustaining combined (mpgge) | B187: adjCsCombMpgge | C187: =IF(vehPtType=3,1/((0.55/adjCsUddsMpgge)+(0.45/adjCsHwyMpgge)),"") -> 39.52001939
A189: City UF (percent driving electric) | B189: adjUddsUf | C189: =IF(vehPtType=3,MAX(phevUddsUf),"") -> 0.5777076878
A190: Highway UF (percent driving electric) | B190: adjHwyUf | C190: =IF(vehPtType=3,MAX(phevHwyUf),"") -> 0.5777076878
E191: =IF(INDEX(fcEffOpts,fcEffType)="Diesel","Diesel MPG","") -> 
A192: City (mpgge) | B192: adjUddsMpgge | C192: =IF(INDEX(vehPtOptions,vehPtType)="PHEV",1/((IFERROR(1/adjCdUddsMpgge,0)*adjUddsUf)+((1/adjCsUddsMpgge)*(1-adjUddsUf))),IF(INDEX(vehPtOptions,vehPtType)="EV","",1/(0.003259+(1.1805/labUddsMpgge)))) -> 85.63925102 | D192: =IF(ISNUMBER(valUddsMpgge),valUddsMpgge,"") ->  | E192: =IF(INDEX(fcEffOpts,fcEffType)="Diesel",1/((1/adjUddsMpgge)*kWhPerGGE*(1/kWhPerGalDiesel)),"") -> 
A193: Highway (mpgge) | B193: adjHwyMpgge | C193: =IF(INDEX(vehPtOptions,vehPtType)="PHEV",1/((IFERROR(1/adjCdHwyMpgge,0)*adjHwyUf)+((1/adjCsHwyMpgge)*(1-adjHwyUf))),IF(INDEX(vehPtOptions,vehPtType)="EV","",1/(0.001376+(1.3466/labHwyMpgge)))) -> 89.6685049 | D193: =IF(ISNUMBER(valHwyMpgge),valHwyMpgge,"") ->  | E193: =IF(INDEX(fcEffOpts,fcEffType)="Diesel",1/((1/adjHwyMpgge)*kWhPerGGE*(1/kWhPerGalDiesel)),"") -> 
A194: Combined (mpgge) | B194: adjCombMpgge | C194: =IF(INDEX(vehPtOptions,vehPtType)="EV","",1/((0.55/adjUddsMpgge)+(0.45/adjHwyMpgge))) -> 87.40667947 | D194: =IF(ISNUMBER(valCombMpgge),valCombMpgge,"") ->  | E194: =IF(INDEX(fcEffOpts,fcEffType)="Diesel",1/((1/adjCombMpgge)*kWhPerGGE*(1/kWhPerGalDiesel)),"") -> 
A196: Charge depleting city (kWh/mile) -includes charging efficiency | B196: adjUddsKwhPerMile | C196: =IF(INDEX(vehPtOptions,vehPtType)="EV",((1/(MAX((1/(0.003259+(1.1805/((1/labUddsKwhPerMile)*kWhPerGGE)))),(1/labUddsKwhPerMile)*kWhPerGGE*(1-maxEpaAdj))))*kWhPerGGE)/chgEff,IF(INDEX(vehPtOptions,vehPtType)="PHEV",(SUM(IF(ISNUMBER(phevUddsAdjUfKwhPerMile),phevUddsAdjUfKwhPerMile))/MAX(phevUddsUf))/chgEff,"")) -> 0.3518830319 | D196: =IF(ISNUMBER(valUddsKwhPerMile),valUddsKwhPerMile,"") -> 
A197: Charge depleting highway (kWh/mile) -includes charging efficiency | B197: adjHwyKwhPerMile | C197: =IF(INDEX(vehPtOptions,vehPtType)="EV",((1/(MAX((1/(0.001376+(1.3466/((1/labHwyKwhPerMile)*kWhPerGGE)))),(1/labHwyKwhPerMile)*kWhPerGGE*(1-maxEpaAdj))))*kWhPerGGE)/chgEff,IF(INDEX(vehPtOptions,vehPtType)="PHEV",(SUM(IF(ISNUMBER(phevHwyAdjUfKwhPerMile),phevHwyAdjUfKwhPerMile))/MAX(phevHwyUf))/chgEff,"")) -> 0.3395011477 | D197: =IF(ISNUMBER(valHwyKwhPerMile),valHwyKwhPerMile,"") -> 
A198: Charge depleting combined (kWh/mile) -includes charging efficiency | B198: adjCombKwhPerMile | C198: =IF(OR(INDEX(vehPtOptions,vehPtType)="EV",INDEX(vehPtOptions,vehPtType)="PHEV"),(0.55*adjUddsKwhPerMile)+(0.45*adjHwyKwhPerMile),"") -> 0.346311184 | D198: =IF(ISNUMBER(valCombKwhPerMile),valCombKwhPerMile,"") -> 
A200: Utility factor (percent driving electric) | B200: UF | C200: =IF(INDEX(vehPtOptions,vehPtType)="PHEV",LOOKUP((adjCdUddsMiles*0.55)+(adjCdHwyMiles*0.45),rechgFreqMiles,ufArray),"") -> 0.5777076878
A201: Average PHEV elect. consumption (kWh/mile) (incl. charge eff) | B201: ufCombKwhPerMile | C201: =IF(INDEX(vehPtOptions,vehPtType)="PHEV",UF*adjCombKwhPerMile,"") -> 0.2000666334
A203: Performance
C204: Results | D204: Validation
A205: 0-60 mph (s) | B205: netAccel | C205: =IF(ISERR(interp1(INDIRECT("Accel!mphAch"),INDIRECT("Accel!cycSecs"),60)),1000,interp1(INDIRECT("Accel!mphAch"),INDIRECT("Accel!cycSecs"),60)) -> 6.950945058 | D205: =IF(ISNUMBER(val0To60Mph),val0To60Mph,"") -> 
A206: Charge depleting range for PHEVs (miles) | B206: netPhevCDMiles | C206: =IF(INDEX(vehPtOptions,vehPtType)="PHEV",(0.55*adjCdUddsMiles)+(0.45*adjCdHwyMiles),"") -> 36.24018359
A207: Range (miles) | B207: netRangeMiles | C207: =IF(INDEX(vehPtOptions,vehTypeSelection)="EV",((1/adjCombKwhPerMile)*maxEssKwh*(maxSoc-minSoc))/chgEff,IF(INDEX(vehPtOptions,vehTypeSelection)="PHEV",(((fuelStorKwh*(1/kWhPerGGE))-((1/adjCdCombMpgge)*netPhevCDMiles))*adjCsCombMpgge)+netPhevCDMiles,adjCombMpgge*(1/kWhPerGGE)*fuelStorKwh)) -> 401.4232074 | D207: =IF(ISNUMBER(valRangeMiles),valRangeMiles,"") -> 
A209: Charge depleting city battery life (miles) | B209: phevUddsCdEssLifeMiles | C209: 43562.96763
A210: Charge depleting highway battery life (miles) | B210: phevHwyCdEssLifeMiles | C210: 56281.59426
A211: Charge sustaining city battery life (miles) | B211: phevUddsCsEssLifeMiles | C211: 2892564.917
A212: Charge sustaining highway battery life (miles) | B212: phevHwyCsEssLifeMiles | C212: 8383304.297
A213: City PHEV battery life (miles) | B213: phevUddsEssLifeMiles | C213: =1/(((1/phevUddsCdEssLifeMiles)*adjUddsUf)+((1/phevUddsCsEssLifeMiles)*(1-adjUddsUf))) -> 74585.49586
A214: Highway PHEV battery life (miles) | B214: phevHwyEssLifeMiles | C214: =1/(((1/phevHwyCdEssLifeMiles)*adjHwyUf)+((1/phevHwyCsEssLifeMiles)*(1-adjHwyUf))) -> 96946.50938
A216: Battery life (miles) | B216: netEssLifeMiles | C216: =IF(INDEX(vehPtOptions,vehTypeSelection)="EV",1/cdWearPerMile,IF(INDEX(vehPtOptions,vehTypeSelection)="PHEV",1/(((1/phevUddsEssLifeMiles)*0.55)+((1/phevHwyEssLifeMiles)*0.45)),1/((0.55*(1/INDIRECT("UDDS!essLifeMiles")))+(0.45*(1/INDIRECT("HWY!essLifeMiles")))))) -> 83223.59742 | D216: =IF(ISNUMBER(valEssLifeMiles),valEssLifeMiles,"") -> 120000
A218: Cost (to consumer pre tax)
C219: Results | D219: Validation
A220: Glider | C220: =vehGliderPrice -> 17014.25 | D220: =IF(ISNUMBER(valVehBaseCost),valVehBaseCost,"") -> 15440.42
A221: Fuel storage (liquid/gas) | B221: fuelStorPrice | C221: =IF(maxFuelStorKw=0,0,fuelStorDolPerKwh*fuelStorKwh)*markup -> 32.865
A222: Fuel converter | B222: fcPrice | C222: =IF(maxFuelConvKw=0,0,(iceDolPerKw*maxFuelConvKw)+iceBaseCost)*markup -> 2145
A223: Motor and power electronics | B223: mcPrice | C223: =IF(maxMotorKw=0,0,peAndMcBaseCost+(peAndMcDolPerKw*maxMotorKw))*markup -> 4250.55
A224: Traction battery | B224: essPrice | C224: =IF(maxEssKwh=0,0,essPackageCost+(essDolPerKwh*maxEssKwh)+(essDolPerKw*maxEssKw))*markup -> 16994.51613
A225: Plug | B225: plugPrice | C225: =IF(OR(vehPtType=3,vehPtType=4),plugCost*markup,0) -> 750
A226: Purchase tax ($) | B226: purchaseTaxCost | C226: =SUM(C220:C225)*(tax) -> 3212.600128
A228: Present battery replacement w/tax (minus salvage) | B228: presEssRepMinusSalvCost | C228: =essRepPC+essSalvagePV -> 25374.92098
A229: Present liquid/gas fuel | B229: presLiqFuelCost | C229: =gasolinePC -> 6538.715161
A230: Present electric fuel | B230: presElecCost | C230: =elecPC -> 2858.58897
A232: Present total fuel cost | B232: presNetFuelCost | C232: =SUM(presLiqFuelCost,presElecCost) -> 9397.304131
A233: Present vehicle, fuel, and ESS replacement & salvage cost w/tax | B233: presVehFuelEssReplCost | C233: =Cost!S1 -> 79172.00637
A235: MSRP | B235: MSRP | C235: =SUM(C220:C225) -> 41187.18113 | D235: =IF(ISNUMBER(valMsrp),valMsrp,"") -> 39145
A237: Additional cycle results
A238: Drive cycle name | B238: otherCycleNames | C238: =TRANSPOSE(driveCycleExtraSelects) -> 0 | D238: 0 | E238: 0 | F238: 0 | G238: 0 | H238: 0 | I238: 0 | J238: 0 | K238: 0 | L238: 0 | M238: 0 | N238: 0 | O238: 0 | P238: 0 | Q238: 0 | R238: 0 | S238: 0 | T238: 0 | U238: 0 | V238: 0 | W238: 0 | X238: 0
A239: Max trace miss (mph) | B239: maxTraceMissMph | C239: =INDIRECT(C$238 & "!" & $B239) ->  | D239: =INDIRECT(D$238 & "!" & $B239) -> 
A240: Battery/Fuel energy ratio | B240: ess2fuelKwh | C240: =INDIRECT(C$238 & "!" & $B240) -> 
A241: Fuel economy (mpgge) | B241: mpgge
A242: Electric efficiency (kWh/mile) | B242: kwhPerMile
A243: Distance (miles) | B243: distance
A244: Motor average output efficiency | B244: mcAvgOutEff
A245: Fuel converter average efficiency | B245: fcAvgEff
A247: Simulation Mass (kg)
A248: Mass (kg) | B248: netMassKg | C248: =INDIRECT("UDDS!vehKg") -> 1851.032864
C249: resEndCell
A250: PHEV details | C250: FALSE
C252: UDDS simulated lab data | I252: HWY simulated lab data | O252: UDDS lab results | U252: HWY lab results | AA252: UDDS adjusted results | AH252: HWY adjusted results
A253: Cycle repetition | C253: Miles | D253: SOC | E253: Gasoline (kWh) | F253: Electricity (kWh) | G253: Avg MC Out Eff | I253: =C253 -> Miles | J253: =D253 -> SOC | K253: =E253 -> Gasoline (kWh) | L253: =F253 -> Electricity (kWh) | M253: =G253 -> Avg MC Out Eff | O253: MPG | P253: kWh/mi | Q253: UF | R253: UF GPM | S253: UF kWh/mi | U253: MPG | V253: kWh/mi | W253: UF | X253: UF GPM | Y253: UF kWh/mi | AA253: Adj MPG | AB253: Adj kWh/mi | AC253: Adj CD miles | AD253: UF | AE253: UF Adj GPM | AF253: UF Adj kWh/mi | AH253: Adj MPG | AI253: Adj kWh/mi | AJ253: Adj CD miles | AK253: UF | AL253: UF Adj GPM | AM253: UF Adj kWh/mi
A254: 0 | C254: 0 | D254: 0.85 | I254: 0 | J254: 0.85 | O254: =0 -> 0 | P254: 0 | Q254: 0 | R254: 0 | S254: 0 | U254: 0 | V254: 0 | W254: 0 | X254: 0 | Y254: 0 | AD254: 0 | AK254: 0
A255: 1 | C255: 7.452102665 | D255: 0.7457030052 | E255: 0 | F255: 1.668751916 | G255: 0.8027250426 | I255: 10.25905374 | J255: 0.7126375335 | K255: 0 | L255: 2.197799465 | M255: 0.8265267643 | O255: =IF(ISNUMBER(+phevUddsMiles),(+phevUddsMiles-C254)/(+phevUddsGasKwh*(1/kWhPerGGE)),"") ->  | P255: =IF(ISNUMBER(+phevUddsMiles),(+phevUddsElecKwh)/(+phevUddsMiles-C254),"") -> 0.2239303444 | Q255: =IF(C256="","",LOOKUP(+phevUddsMiles,rechgFreqMiles,ufArray)) -> 0.1626814889 | R255: =IF(AND(ISNUMBER(+phevLabUddsUf),ISNUMBER(+phevUddsLabMpg)),(1/+phevUddsLabMpg)*(+phevLabUddsUf-Q254),IF(AND(ISNUMBER(Q254),+phevUddsUf=""),(1-Q254)*(1/+phevUddsLabMpg),"")) ->  | S255: =IF(AND(ISNUMBER(+phevLabUddsUf),ISNUMBER(+phevUddsLabKwhPerMile)),+phevUddsLabKwhPerMile*(+phevLabUddsUf-Q254),IF(AND(ISNUMBER(Q254),+phevUddsUf=""),(1-Q254)*+phevUddsLabKwhPerMile,"")) -> 0.03642932184 | U255: =IF(ISNUMBER(+phevHwyMiles),(+phevHwyMiles-I254)/(+phevHwyGasKwh*(1/kWhPerGGE)),"") ->  | V255: =IF(ISNUMBER(+phevHwyMiles),(+phevHwyElecKwh)/(+phevHwyMiles-I254),"") -> 0.2142302321 | W255: =IF(I256="","",LOOKUP(+phevHwyMiles,rechgFreqMiles,ufArray)) -> 0.2043976184 | X255: =IF(AND(ISNUMBER(+phevLabHwyUf),ISNUMBER(+phevHwyLabMpg)),(1/+phevHwyLabMpg)*(+phevLabHwyUf-W254),IF(AND(ISNUMBER(W254),+phevHwyUf=""),(1-W254)*(1/+phevHwyLabMpg),"")) ->  | Y255: =IF(AND(ISNUMBER(+phevLabHwyUf),ISNUMBER(+phevHwyLabKwhPerMile)),+phevHwyLabKwhPerMile*(+phevLabHwyUf-W254),IF(AND(ISNUMBER(W254),+phevHwyUf=""),(1-W254)*+phevHwyLabKwhPerMile,"")) -> 0.04378814924 | AA255: =IF(ISNUMBER(+phevUddsMiles),MAX(1/(0.003259+(1.1805/((+phevUddsMiles-C254)/((+phevUddsGasKwh)*(1/kWhPerGGE))))),(((+phevUddsMiles-C254)/(+phevUddsGasKwh*(1/kWhPerGGE)))*(1-maxEpaAdj))),"") ->  | AB255: =IF(ISNUMBER(+phevUddsElecKwh),(1/MAX(1/(0.003259+(1.1805/((+phevUddsMiles-C254)/((+phevUddsElecKwh)*(1/kWhPerGGE))))),(1-maxEpaAdj)*((+phevUddsMiles-C254)/(+phevUddsElecKwh*(1/kWhPerGGE)))))*kWhPerGGE,"") -> 0.319900492 | AC255: =IF(F256="","",+phevUddsElecKwh*(1/+phevUddsAdjKwhPerMile)+AC254) -> 5.216471866 | AD255: =IF(C256="","",LOOKUP(+phevUddsAdjCdMiles,rechgFreqMiles,ufArray)) -> 0.1187839828 | AE255: =IF(AND(ISNUMBER(+phevUddsUf),ISNUMBER(+phevUddsAdjMpg)),(1/+phevUddsAdjMpg)*(+phevUddsUf-AD254),IF(AND(ISNUMBER(AD254),+phevUddsUf=""),(1-AD254)*(1/+phevUddsAdjMpg),"")) ->  | AF255: =IF(AND(ISNUMBER(+phevUddsUf),ISNUMBER(+phevUddsAdjKwhPerMile)),(+phevUddsAdjKwhPerMile)*(+phevUddsUf-AD254),"") -> 0.03799905453 | AH255: =IF(ISNUMBER(+phevHwyMiles),MAX(1/(0.001376+(1.3466/((+phevHwyMiles-I254)/((+phevHwyGasKwh)*(1/kWhPerGGE))))),(((+phevHwyMiles-I254)/(+phevHwyGasKwh*(1/kWhPerGGE)))*(1-maxEpaAdj))),"") ->  | AI255: =IF(ISNUMBER(+phevHwyElecKwh),(1/MAX(1/(0.001376+(1.3466/((+phevHwyMiles-I254)/((+phevHwyElecKwh)*(1/kWhPerGGE))))),(1-maxEpaAdj)*((+phevHwyMiles-I254)/(+phevHwyElecKwh*(1/kWhPerGGE)))))*kWhPerGGE,"") -> 0.3060431888 | AJ255: =IF(L256="","",+phevHwyElecKwh*(1/+phevHwyAdjKwhPerMile)+AJ254) -> 7.181337619 | AK255: =IF(I256="","",LOOKUP(+phevHwyAdjCdMiles,rechgFreqMiles,ufArray)) -> 0.1626814889 | AL255: =IF(AND(ISNUMBER(+phevHwyUf),ISNUMBER(+phevHwyAdjMpg)),(1/+phevHwyAdjMpg)*(+phevHwyUf-AK254),IF(AND(ISNUMBER(AK254),+phevHwyUf=""),(1-AK254)*(1/+phevHwyAdjMpg),"")) ->  | AM255: =IF(AND(ISNUMBER(+phevHwyUf),ISNUMBER(+phevHwyAdjKwhPerMile)),(+phevHwyAdjKwhPerMile)*(+phevHwyUf-AK254),"") -> 0.04978756162
A256: 2 | C256: 14.90420533 | D256: 0.6414060105 | E256: 0 | F256: 1.668751916 | G256: 0.8027250426 | I256: 20.51810748 | J256: 0.5752750669 | K256: 0 | L256: 2.197799465 | M256: 0.8265267643 | P256: 0.2239303444 | Q256: 0.2815171521 | S256: 0.02661091098 | V256: 0.2142302321 | W256: 0.3819407002 | Y256: 0.03803509563 | AB256: 0.319900492 | AC256: 10.43294373 | AD256: 0.2043976184 | AF256: 0.02738784415 | AI256: 0.3060431888 | AJ256: 14.36267524 | AK256: 0.2815171521 | AM256: 0.0363688453
A257: 3 | C257: 22.356308 | D257: 0.5371090157 | E257: 0 | F257: 1.668751916 | G257: 0.8027250426 | I257: 30.77716123 | J257: 0.4379126004 | K257: 0 | L257: 2.197799465 | M257: 0.8265267643 | P257: 0.2239303444 | Q257: 0.4118814065 | S257: 0.02919251239 | V257: 0.2142302321 | W257: 0.5150602154 | Y257: 0.02851822465 | AB257: 0.319900492 | AC257: 15.6494156 | AD257: 0.3169807217 | AF257: 0.03601539013 | AI257: 0.3060431888 | AJ257: 21.54401286 | AK257: 0.4118814065 | AM257: 0.03989709213
... 26 more rows

Sheet Powertrain Comparison
A1: Powertrain Comparison
A3: Inputs
A4: Base vehicle (glider) | B4: baseVehicle | C4: 1
A6: Vehicle characteristics
A7: HEV electric motor power (kW) | B7: hevMcKw | C7: 30
A8: HEV battery energy (kWh) | B8: hevEssKwh | C8: 1.3
A9: HEV battery replacements | B9: hevEssReplacements | C9: 0
A10: PHEV electric motor power (kW) | B10: phevMcKw | C10: 30
A11: PHEV charge depleting range (miles) | B11: phevCdMiles | C11: 30
A12: PHEV battery replacements | B12: phevEssReplacements | C12: 0
A13: EV range (miles) | B13: evEssRangeMiles | C13: 73
A14: EV battery replacements | B14: evEssReplacements | C14: 2
A15: Battery mass (kg/kWh) (Li-ion: 8, NiMH: 44) | B15: essKgPerKwh | C15: 8
A16: Battery base mass (kg) (Li-ion: 75, NiMH: 0) | B16: essBaseKg | C16: 75
A18: Current conditions
A19: Battery energy cost component ($/kWh) | B19: essDolPerKwh | C19: 500
A20: Battery life coefficient (Li data: 145, adj: 86) | B20: essLifeCoef | C20: 86
A21: Gasoline price ($/gallon) | B21: dolPerGal | C21: 4
A22: Electricity price ($/kWh) | B22: dolPerKwh | C22: 0.1
A24: Control strategy
C25: HEV | D25: PHEV
A26: Strategy | C26: 1 | D26: 1
A27: Speed where the battery should be empty (mph) | C27: 30 | D27: 0.1
A28: Speed where the battery should be full (mph) | C28: 0 | D28: 0
A29: Attempted level of electric assist | C29: 0.2 | D29: 5
A30: Attempted level of engine charging the battery | C30: 0.2 | D30: 0.2
A31: Percent of battery reserved for passing | C31: 0.05 | D31: 0.05
A32: Percent FC power done electrically | C32: 0.1 | D32: 0.1
A33: Percent SOC buffer for high accessory loads during cycles with long idle time | C33: 0 | D33: 0
A34: Speed at which engine is commanded on (mph) | C34: 1 | D34: 60
A35: Power demand at which engine is commanded on (kW) | C35: 100 | D35: 100
A39: Run Time (mins) | C39: 2.6
A40: Results | C40: =IF(OR(ABS(C82-netAccel)>0.3,ABS(C69-netAccel)>0.3,ABS(C101-netAccel)>0.3,ABS(C122-netAccel)>0.3,ABS(C102-phevCdMiles)>3,ABS(C123-evEssRangeMiles)>5),"Not all constraints are met. See red cells below.","") -> 
A61: Settings
A62: Acceleration target (0-60 MPH secs) | B62: netAccel | C62: 6.950945058
A63: Engine efficiency type | B63: fcEffType | C63: 1
A65: Conv
A66: Fuel economy (MPGGE) | B66: adjCombMpgge | C66: 23.9674983
A67: Present vehicle, fuel, and ESS replacement & salvage cost | B67: presVehFuelEssReplCost | C67: 47770.65
A68: Engine power (kW) | B68: maxFuelConvKw | C68: 200
A69: Acceleration (secs 0-60 MPH) | B69: netAccel | C69: 6.934192477
A70: MSRP | B70: MSRP | C70: 22193.62
A71: Purchase tax cost | B71: purchaseTaxCost | C71: 1731.1
A72: Fuel converter price | B72: fcPrice | C72: 5146.5
A73: Present liquid/gas fuel cost | B73: presLiqFuelCost | C73: 23845.93
A75: HEV
A76: Fuel economy (MPGGE) | B76: adjCombMpgge | C76: 36.75337468
A77: Present vehicle, fuel, and ESS replacement & salvage cost | B77: presVehFuelEssReplCost | C77: 43820.14
A78: Engine power (kW) | B78: maxFuelConvKw | C78: 170
A79: Motor Power (kW) | B79: maxMotorKw | C79: 30
A80: Battery power (kW) | B80: maxEssKw | C80: 32.25806452
A81: Battery energy (kWh) | B81: maxEssKwh | C81: 1.3
A82: Acceleration (secs 0-60 MPH) | B82: netAccel | C82: 6.941510992
A83: Battery price | B83: essPrice | C83: 3069.19
A84: Present battery replacement (minus salvage) cost | B84: presEssRepMinusSalvCost | C84: 0
A85: Fuel converter price | B85: fcPrice | C85: 4494
A86: Motor and power electronics price | B86: mcPrice | C86: 1614
A87: MSRP | B87: MSRP | C87: 26224.31
A88: Purchase tax cost | B88: purchaseTaxCost | C88: 2045.5
A89: Present liquid/gas fuel cost | B89: presLiqFuelCost | C89: 15550.34
A90: Maximum SOC | B90: maxSoc | C90: 0.159765625
A91: Minimum SOC | B91: minSoc | C91: 0.05
A92: Battery life (miles) | B92: evEssLifeMiles | C92: 195069.1182
A94: PHEV
A95: Fuel economy (MPGGE) | B95: adjCombMpgge | C95: 76.03697795
A96: Present vehicle, fuel, and ESS replacement & salvage cost | B96: presVehFuelEssReplCost | C96: 54940.44
A97: Engine power (kW) | B97: maxFuelConvKw | C97: 180
A98: Motor power (kW) | B98: maxMotorKw | C98: 30
A99: Battery power (kW) | B99: maxEssKw | C99: 32.25806452
A100: Battery energy (kWh) | B100: maxEssKwh | C100: 20.89553786
A101: Acceleration (secs 0-60 MPH) | B101: netAccel | C101: 7.107366185
A102: Charge depleting range (miles) | B102: netPhevCDMiles | C102: 30.14076487
A103: Battery price | B103: essPrice | C103: 17765.85
A104: Present battery replacement (minus salvage) cost | B104: presEssRepMinusSalvCost | C104: 0
A105: Fuel converter price | B105: fcPrice | C105: 4711.5
A106: Motor and power electronics price | B106: mcPrice | C106: 1614
A107: Plug price | B107: plugPrice | C107: 750
A108: MSRP | B108: MSRP | C108: 41888.46
A109: Purchase tax ($) | B109: purchaseTaxCost | C109: 3267.3
A110: Present liquid/gas fuel cost | B110: presLiqFuelCost | C110: 7516.44
A111: Present electric fuel cost | B111: presElecCost | C111: 2268.24
A112: Maximum SOC | B112: maxSoc | C112: 0.4170381593
A113: Minimum SOC | B113: minSoc | C113: 0.05
A114: Battery life (miles) | B114: evEssLifeMiles | C114: 194604.3421
A116: EV
A117: Charge depleting combined (kWh/mile) -includes charging efficiency | B117: adjCombKwhPerMile | C117: 0.3928264934
A118: Present vehicle, fuel, and ESS replacement & salvage cost | B118: presVehFuelEssReplCost | C118: 104271.14
A119: Motor power (kW) | B119: maxMotorKw | C119: 165.3125
A120: Battery power (kW) | B120: maxEssKw | C120: 177.7553763
A121: Battery energy (kWh) | B121: maxEssKwh | C121: 27.04038203
A122: Acceleration (secs 0-60 MPH) | B122: netAccel | C122: 6.821667301
A123: Range (miles) | B123: netRangeMiles | C123: 72.03708176
A124: Battery price | B124: essPrice | C124: 27219.54
A125: Present battery replacement (minus salvage) cost | B125: presEssRepMinusSalvCost | C125: 43677.98
A126: Motor and power electronics price | B126: mcPrice | C126: 6018.42
A127: Plug price | B127: plugPrice | C127: 750
A128: MSRP | B128: MSRP | C128: 51002.21
A129: Purchase tax ($) | B129: purchaseTaxCost | C129: 3978.17
A130: Present electric fuel cost | B130: presElecCost | C130: 5612.78
A131: Maximum SOC | B131: maxSoc | C131: 0.95
A132: Minimum SOC | B132: minSoc | C132: 0.05
A133: Battery life (miles) | B133: evEssLifeMiles | C133: 68720.63891
A136: Summary | C136: Glider (& fuel storage) | D136: Fuel Converter | E136: Motor & Power Electronics | F136: Plug | G136: Battery | H136: Purchase Tax | I136: Battery Replacement | J136: Petroleum | K136: Electricity | L136: Fuel Use (gallons/year)
A137: Conv. | C137: =C67-C73-C71-C72 -> 17047.12 | D137: =C72 -> 5146.5 | E137: =0 -> 0 | F137: =0 -> 0 | G137: =0 -> 0 | H137: =C71 -> 1731.1 | I137: =C84 -> 0 | J137: =C73 -> 23845.93 | K137: 0 | L137: =(1/C66)*IF(fcEffType=3,kWhPerGGE/kWhPerGalDiesel,1)*VMT -> 516.3242256
A138: HEV | C138: =C77-C83-C84-C89-C85-C86-C88 -> 17047.11 | D138: =C85 -> 4494 | E138: =C86 -> 1614 | F138: =0 -> 0 | G138: =C83 -> 3069.19 | H138: =C88 -> 2045.5 | I138: =C84 -> 0 | J138: =C89 -> 15550.34 | K138: 0 | L138: =(1/C76)*IF(fcEffType=3,kWhPerGGE/kWhPerGalDiesel,1)*VMT -> 336.703775
A139: PHEV | C139: =C96-C103-C104-C110-C111-C105-C106-C107-C109 -> 17047.11 | D139: =C105 -> 4711.5 | E139: =C106 -> 1614 | F139: =C107 -> 750 | G139: =C103 -> 17765.85 | H139: =C109 -> 3267.3 | I139: =C104 -> 0 | J139: =C110 -> 7516.44 | K139: =C111 -> 2268.24 | L139: =(1/C95)*IF(fcEffType=3,kWhPerGGE/kWhPerGalDiesel,1)*VMT -> 162.7497611
A140: EV | C140: =C118-C124-C125-C130-C126-C127-C129 -> 17014.25 | D140: =0 -> 0 | E140: =C126 -> 6018.42 | F140: =C127 -> 750 | G140: =C124 -> 27219.54 | H140: =C129 -> 3978.17 | I140: =C125 -> 43677.98 | J140: =0 -> 0 | K140: =C130 -> 5612.78 | L140: 0

Sheet Parametric Study
A1: Parametric Study
A3: Inputs
A4: Base vehicle (glider) | B4: baseVehicle | C4: 1
A5: Variable to sweep | B5: varIndToSweep | C5: 1
A6: Current value (for reference) | B6: curVehVal | C6: =IF(AND(INDEX(sweepVarOpts,varIndToSweep)="vehOverrideKg",vehOverrideKg=0),netMassKg,INDIRECT("VehicleIO!" & INDEX(sweepVarOpts,varIndToSweep))) -> 1077.111476
A7: Low value | B7: lowValue | C7: 500
A8: High value | B8: highValue | C8: 1500
A10: Vehicle characteristics
A11: HEV electric motor power (kW) | B11: hevMcKw | C11: 30
A12: HEV battery energy (kWh) | B12: hevEssKwh | C12: 1.3
A13: HEV target battery replacements | B13: hevEssReplacements | C13: 0
A14: PHEV electric motor power (kW) | B14: phevMcKw | C14: 30
A15: PHEV charge depleting range (miles) | B15: phevCdMiles | C15: 30
A16: PHEV target battery replacements | B16: phevEssReplacements | C16: 1
A17: EV range (miles) | B17: evEssRangeMiles | C17: 73
A18: EV target battery replacements | B18: evEssReplacements | C18: 2
A19: Battery mass (kg/kWh) (Li-ion: 8, NiMH: 44) | B19: essKgPerKwh | C19: 8
A20: Battery base mass (kg) (Li-ion: 75, NiMH: 0) | B20: essBaseKg | C20: 75
A22: Current conditions
A23: Battery energy cost component ($/kWh) | B23: essDolPerKwh | C23: 500
A24: Battery life coefficient (Li data: 145, adj: 86) | B24: essLifeCoef | C24: 86
A25: Gasoline price ($/gallon) | B25: dolPerGal | C25: 4
A26: Electricity price ($/kWh) | B26: dolPerKwh | C26: 0.1
A28: Control strategy
C29: HEV | D29: PHEV
A30: Strategy | C30: 1 | D30: 1
A31: Speed where the battery should be empty (mph) | C31: 30 | D31: 0.1
A32: Speed where the battery should be full (mph) | C32: 0 | D32: 0
A33: Attempted level of electric assist | C33: 0.2 | D33: 5
A34: Attempted level of engine charging the battery | C34: 0.2 | D34: 0.2
A35: Percent of battery reserved for passing | C35: 0.05 | D35: 0.05
A36: Percent FC power done electrically | C36: 0.1 | D36: 0.1
A37: Percent SOC buffer for high accessory loads during cycles with long idle time | C37: 0 | D37: 0
A38: Speed at which engine is commanded on (mph) | C38: 1 | D38: 60
A39: Power demand at which engine is commanded on (kW) | C39: 100 | D39: 100
A42: Run Time (mins) | C42: 17.1
A44: Results | C44: =IF(OR(ABS(C78:L78-netAccel)>0.3,ABS(C90:L90-netAccel)>0.3,ABS(C107:L107-netAccel)>0.3,ABS(C128:L128-netAccel)>0.3,ABS(C108:L108-phevCdMiles)>3,ABS(C129:L129-evEssRangeMiles)>5),"Not all constraints are met. See red filled cells below.","") -> Not all constraints are met. See red filled cells below.
A65: Details
A66: Variable name | C66: Glider Mass (kg)
A67: Variable value: | B67: =INDEX(sweepVarOpts,varIndToSweep) -> gliderKg | C67: =lowValue -> 500 | D67: =(($L$67-$C$67)/9)+C67 -> 611.1111111 | E67: 722.2222222 | F67: 833.3333333 | G67: 944.4444444 | H67: 1055.555556 | I67: 1166.666667 | J67: 1277.777778 | K67: 1388.888889 | L67: =highValue -> 1500
A68: Percent of current value | C68: =C67/curVehVal -> 0.4642045053 | D68: 0.567361062 | E68: 0.6705176188 | F68: 0.7736741755 | G68: 0.8768307322 | H68: 0.979987289 | I68: 1.083143846 | J68: 1.186300402 | K68: 1.289456959 | L68: 1.392613516
A70: Settings
A71: Acceleration target (0-60 MPH secs) | B71: netAccel | C71: 6.950945058
A72: Engine efficiency type | B72: fcEffType | C72: 1
A74: Conv
A75: Fuel economy (MPG) | B75: adjCombMpgge | C75: 35.0050648 | D75: 31.67154946 | E75: 29.81214049 | F75: 28.15668005 | G75: 25.95570214 | H75: 24.07308796 | I75: 23.53853881 | J75: 23.02808226 | K75: 22.54041364 | L75: 22.07325611
A76: Present vehicle, fuel, and ESS replacement & salvage cost | B76: presVehFuelEssReplCost | C76: 38375.99 | D76: 40563.38 | E76: 41923.35 | F76: 43284.97 | G76: 45475.13 | H76: 47666.06 | I76: 48205.21 | J76: 48743.43 | K76: 49280.39 | L76: 49817.02
A77: Engine power (kW) | B77: maxFuelConvKw | C77: 120 | D77: 140 | E77: 150 | F77: 160 | G77: 180 | H77: 200 | I77: 200 | J77: 200 | K77: 200 | L77: 200
A78: Acceleration (secs 0-60 MPH) | B78: netAccel | C78: 6.919635992 | D78: 6.834192477 | E78: 6.943283386 | F78: 7.057135992 | G78: 6.958434901 | H78: 6.900859144 | I78: 7.123495217 | J78: 7.350945058 | K78: 7.576839715 | L78: 7.804753768
A79: MSRP | B79: MSRP | C79: 20453.62 | D79: 20888.62 | E79: 21106.12 | F79: 21323.62 | G79: 21758.62 | H79: 22193.62 | I79: 22193.62 | J79: 22193.62 | K79: 22193.62 | L79: 22193.62
A80: Present liquid/gas fuel cost | B80: presLiqFuelCost | C80: 16326.99 | D80: 18045.45 | E80: 19170.96 | F80: 20298.11 | G80: 22019.34 | H80: 23741.34 | I80: 24280.5 | J80: 24818.71 | K80: 25355.67 | L80: 25892.3
A83: HEV
A84: Fuel economy (MPG) | B84: adjCombMpgge | C84: 53.49565775 | D84: 49.97605391 | E84: 45.78983858 | F84: 42.05037601 | G84: 39.64188473 | H84: 37.47775766 | I84: 35.00812327 | J84: 32.85040567 | K84: 31.95081702 | L84: 31.09549279
A85: Present vehicle, fuel, and ESS replacement & salvage cost | B85: presVehFuelEssReplCost | C85: 37077.71 | D85: 38064.57 | E85: 39579.01 | F85: 41157.9 | G85: 42218.14 | H85: 43285.11 | I85: 44829.83 | J85: 46371.08 | K85: 46860.92 | L85: 47352.95
A86: Engine power (kW) | B86: maxFuelConvKw | C86: 90 | D86: 100 | E86: 120 | F86: 140 | G86: 150 | H86: 160 | I86: 180 | J86: 200 | K86: 200 | L86: 200
A87: Motor Power (kW) | B87: maxMotorKw | C87: 30 | D87: 30 | E87: 30 | F87: 30 | G87: 30 | H87: 30 | I87: 30 | J87: 30 | K87: 30 | L87: 30
A88: Battery power (kW) | B88: maxEssKw | C88: 32.25806452 | D88: 32.25806452 | E88: 32.25806452 | F88: 32.25806452 | G88: 32.25806452 | H88: 32.25806452 | I88: 32.25806452 | J88: 32.25806452 | K88: 32.25806452 | L88: 32.25806452
A89: Battery energy (kWh) | B89: maxEssKwh | C89: 1.3 | D89: 1.3 | E89: 1.3 | F89: 1.3 | G89: 1.3 | H89: 1.3 | I89: 1.3 | J89: 1.3 | K89: 1.3 | L89: 1.3
A90: Acceleration (secs 0-60 MPH) | B90: netAccel | C90: 6.920269411 | D90: 7.042850056 | E90: 6.950885992 | F90: 6.864495507 | G90: 6.969635992 | H90: 7.033172637 | I90: 6.975885992 | J90: 6.929010992 | K90: 7.120269411 | L90: 7.307611725
A91: Battery price | B91: essPrice | C91: 3069.19 | D91: 3069.19 | E91: 3069.19 | F91: 3069.19 | G91: 3069.19 | H91: 3069.19 | I91: 3069.19 | J91: 3069.19 | K91: 3069.19 | L91: 3069.19
A92: Present battery replacement (minus salvage) cost | B92: presEssRepMinusSalvCost | C92: 0 | D92: 0 | E92: 0 | F92: 0 | G92: 0 | H92: 0 | I92: 0 | J92: 0 | K92: 0 | L92: 0
A93: MSRP | B93: MSRP | C93: 24484.31 | D93: 24701.81 | E93: 25136.81 | F93: 25571.81 | G93: 25789.31 | H93: 26006.81 | I93: 26441.81 | J93: 26876.81 | K93: 26876.81 | L93: 26876.81
A94: Present liquid/gas fuel cost | B94: presLiqFuelCost | C94: 10683.62 | D94: 11436.02 | E94: 12481.53 | F94: 13591.49 | G94: 14417.26 | H94: 15249.78 | I94: 16325.56 | J94: 17397.88 | K94: 17887.72 | L94: 18379.75
A95: Maximum SOC | B95: maxSoc | C95: 0.4453125 | D95: 0.1830078125 | E95: 0.173046875 | F95: 0.1680664063 | G95: 0.159765625 | H95: 0.159765625 | I95: 0.159765625 | J95: 0.159765625 | K95: 0.159765625 | L95: 0.159765625
A96: Minimum SOC | B96: minSoc | C96: 0.05 | D96: 0.05 | E96: 0.05 | F96: 0.05 | G96: 0.05 | H96: 0.05 | I96: 0.05 | J96: 0.05 | K96: 0.05 | L96: 0.05
A97: Battery life (miles) | B97: evEssLifeMiles | C97: 187912.8562 | D97: 189305.6081 | E97: 191195.9058 | F97: 187935.4312 | G97: 190025.6894 | H97: 186130.9822 | I97: 186703.9603 | J97: 187730.5835 | K97: 188269.9847 | L97: 188408.8145
A100: =CONCATENATE("PHEV",phevCdMiles) -> PHEV30
A101: Fuel economy (MPG) | B101: adjCombMpgge | C101: 102.0390141 | D101: 94.46965161 | E101: 90.52252348 | F101: 87.36001161 | G101: 79.16531232 | H101: 75.04049624 | I101: 70.27150227 | J101: 67.86083471 | K101: 65.02439767 | L101: 62.98981547
A102: Present vehicle, fuel, and ESS replacement & salvage cost | B102: presVehFuelEssReplCost | C102: 49499.12 | D102: 51370.63 | E102: 52840.18 | F102: 54335.59 | G102: 55574.05 | H102: 57756.84 | I102: 59848.22 | J102: 60292.42 | K102: 61533.39 | L102: 61981.22
A103: Engine power (kW) | B103: maxFuelConvKw | C103: 100 | D103: 120 | E103: 130 | F103: 140 | G103: 160 | H103: 180 | I103: 200 | J103: 200 | K103: 200 | L103: 200
A104: Motor power (kW) | B104: maxMotorKw | C104: 30 | D104: 30 | E104: 30 | F104: 30 | G104: 30 | H104: 30 | I104: 30 | J104: 30 | K104: 30 | L104: 30
A105: Battery power (kW) | B105: maxEssKw | C105: 32.25806452 | D105: 32.25806452 | E105: 32.25806452 | F105: 32.25806452 | G105: 32.25806452 | H105: 32.25806452 | I105: 32.25806452 | J105: 32.25806452 | K105: 32.25806452 | L105: 32.25806452
A106: Battery energy (kWh) | B106: maxEssKwh | C106: 9.868144931 | D106: 10.44250668 | E106: 11.05029837 | F106: 11.69346572 | G106: 11.69346572 | H106: 12.54421826 | I106: 13.27433716 | J106: 13.27433716 | K106: 13.94480364 | L106: 13.94480364
A107: Acceleration (secs 0-60 MPH) | B107: netAccel | C107: 6.913817798 | D107: 6.835260992 | E107: 6.969635992 | F107: 7.065430701 | G107: 6.985260992 | H107: 6.941510992 | I107: 6.900859144 | J107: 7.091237153 | K107: 7.287611725 | L107: 7.45615006
A108: Charge depleting range (miles) | B108: netPhevCDMiles | C108: 30.14076487 | D108: 30.14076487 | E108: 30.14076487 | F108: 30.14076487 | G108: 30.14076487 | H108: 30.14076487 | I108: 30.14076487 | J108: 30.14076487 | K108: 30.14076487 | L108: 30.14076487
A109: Battery price | B109: essPrice | C109: 9495.3 | D109: 9926.07 | E109: 10381.92 | F109: 10864.29 | G109: 10864.29 | H109: 11502.36 | I109: 12049.95 | J109: 12049.95 | K109: 12552.8 | L109: 12552.8
A110: Present battery replacement (minus salvage) cost | B110: presEssRepMinusSalvCost | C110: 7791.53 | D110: 8172.84 | E110: 8548.16 | F110: 8945.34 | G110: 9006.57 | H110: 9503.06 | I110: 9921.57 | J110: 10023.61 | K110: 10300.41 | L110: 10406.35
A111: MSRP | B111: MSRP | C111: 31877.92 | D111: 32743.69 | E111: 33417.03 | F111: 34116.91 | G111: 34551.91 | H111: 35624.97 | I111: 36607.56 | J111: 36607.56 | K111: 37110.41 | L111: 37110.41
A112: Present liquid/gas fuel cost | B112: presLiqFuelCost | C112: 5601.07 | D112: 6049.85 | E112: 6313.65 | F112: 6542.21 | G112: 7219.42 | H112: 7616.25 | I112: 8133.13 | J112: 8422.05 | K112: 8789.43 | L112: 9073.33
A113: Present electric fuel cost | B113: presElecCost | C113: 1742.12 | D113: 1850.25 | E113: 1954.81 | F113: 2070.02 | G113: 2101.11 | H113: 2233.81 | I113: 2330.57 | J113: 2383.8 | K113: 2438.52 | L113: 2496.52
A114: Electricity consumption (kWh/mile) (inc. chg eff) | B114: ufCombKwhPerMile | C114: 0.1219275533 | D114: 0.129494956 | E114: 0.136813186 | F114: 0.1448762722 | G114: 0.1470523433 | H114: 0.1563397302 | I114: 0.1631117959 | J114: 0.1668373895 | K114: 0.1706672147 | L114: 0.1747260643
A115: Charger efficiency | B115: chgEff | C115: 0.86 | D115: 0.86 | E115: 0.86 | F115: 0.86 | G115: 0.86 | H115: 0.86 | I115: 0.86 | J115: 0.86 | K115: 0.86 | L115: 0.86
A116: Maximum SOC | B116: maxSoc | C116: 0.6406059249 | D116: 0.6448443793 | E116: 0.6475585993 | F116: 0.6526537207 | G116: 0.6540979874 | H116: 0.6534277859 | I116: 0.6453261461 | J116: 0.6585588148 | K116: 0.6425244641 | L116: 0.6575714932
A117: Minimum SOC | B117: minSoc | C117: 0.05 | D117: 0.05 | E117: 0.05 | F117: 0.05 | G117: 0.05 | H117: 0.05 | I117: 0.05 | J117: 0.05 | K117: 0.05 | L117: 0.05
A118: Battery life (miles) | B118: evEssLifeMiles | C118: 97262.92513 | D118: 96345.67583 | E118: 96314.6915 | F118: 96015.23046 | G118: 93511.71454 | H118: 94561.49133 | I118: 96315.91437 | J118: 93066.10136 | K118: 96636.81289 | L118: 93291.92472
A122: ="EV" & evEssRangeMiles -> EV73
A123: Charge depleting combined (kWh/mile) -includes charging efficiency | B123: adjCombKwhPerMile | C123: 0.2900427995 | D123: 0.3093117804 | E123: 0.3286969238 | F123: 0.3439155349 | G123: 0.3632115592 | H123: 0.3826782189 | I123: 0.4019770956 | J123: 0.4211138378 | K123: 0.440552522 | L123: 0.4601035085
A124: Present vehicle, fuel, and ESS replacement & salvage cost | B124: presVehFuelEssReplCost | C124: 80621.88 | D124: 84927.71 | E124: 89452.23 | F124: 92601.76 | G124: 97029.46 | H124: 101610.47 | I124: 106058.04 | J124: 110550.51 | K124: 115057.93 | L124: 119596.16
A125: Motor power (kW) | B125: maxMotorKw | C125: 101.71875 | D125: 113.28125 | E125: 124.84375 | F125: 130.625 | G125: 142.1875 | H125: 153.75 | I125: 165.3125 | J125: 176.875 | K125: 188.4375 | L125: 200
A126: Battery power (kW) | B126: maxEssKw | C126: 109.375 | D126: 121.8077957 | E126: 134.2405914 | F126: 140.4569892 | G126: 152.8897849 | H126: 165.3225806 | I126: 177.7553763 | J126: 190.188172 | K126: 202.6209677 | L126: 215.0537634
A127: Battery energy (kWh) | B127: maxEssKwh | C127: 20.23898182 | D127: 21.43633832 | E127: 22.76832857 | F127: 23.8772088 | G127: 25.18885122 | H127: 26.54371006 | I127: 27.89705167 | J127: 29.24204765 | K127: 30.59233118 | L127: 31.95714608
A128: Acceleration (secs 0-60 MPH) | B128: netAccel | C128: 6.922441133 | D128: 6.915298276 | E128: 6.911726848 | F128: 7.097346361 | G128: 7.076012562 | H128: 7.072441133 | I128: 7.065298276 | J128: 7.058155419 | K128: 7.054583991 | L128: 7.043869705
A129: Range (miles) | B129: netRangeMiles | C129: 73.0248427 | D129: 72.52674723 | E129: 72.49024519 | F129: 72.65672561 | G129: 72.57595478 | H129: 72.58918814 | I129: 72.62749363 | J129: 72.66952575 | K129: 72.67063222 | L129: 72.68695924
A130: Battery price | B130: essPrice | C130: 19841.42 | D130: 21153.45 | E130: 22566.46 | F130: 23605.12 | G130: 25002.87 | H130: 26433.02 | I130: 27862.04 | J130: 29284.8 | K130: 30711.53 | L130: 32149.15
A131: Present battery replacement (minus salvage) cost | B131: presEssRepMinusSalvCost | C131: 31682.36 | D131: 33892.78 | E131: 36211.39 | F131: 37820.94 | G131: 40060.45 | H131: 42415.89 | I131: 44641.51 | J131: 46921.11 | K131: 49207.05 | L131: 51510.46
A132: MSRP | B132: MSRP | C132: 41554.12 | D132: 43242.51 | E132: 45031.87 | F132: 46258.72 | G132: 48032.82 | H132: 49839.34 | I132: 51644.71 | J132: 53443.83 | K132: 55246.92 | L132: 57060.9
A133: Present electric fuel cost | B133: presElecCost | C133: 4144.19 | D133: 4419.5 | E133: 4696.48 | F133: 4913.93 | G133: 5189.63 | H133: 5467.78 | I133: 5743.52 | J133: 6016.95 | K133: 6294.7 | L133: 6574.04
A134: Maximum SOC | B134: maxSoc | C134: 0.95 | D134: 0.95 | E134: 0.95 | F134: 0.95 | G134: 0.95 | H134: 0.95 | I134: 0.95 | J134: 0.95 | K134: 0.95 | L134: 0.95
A135: Minimum SOC | B135: minSoc | C135: 0.05 | D135: 0.05 | E135: 0.05 | F135: 0.05 | G135: 0.05 | H135: 0.05 | I135: 0.05 | J135: 0.05 | K135: 0.05 | L135: 0.05
A136: Battery life (miles) | B136: evEssLifeMiles | C136: 69977.29703 | D136: 69386.43794 | E136: 69323.76 | F136: 69484.21513 | G136: 69348.67343 | H136: 69339.89523 | I136: 69356.54593 | J136: 69412.65026 | K136: 69396.82486 | L136: 69396.85319
A139: Additional Results (Calculated)
A140: Conv. fuel economy (MPG) - adjusts for diesel | C140: =IF(fcEffType=3,1/((1/'Parametric Study'!C75)*(kWhPerGGE/kWhPerGalDiesel)),'Parametric Study'!C75) -> 35.0050648 | D140: =IF(fcEffType=3,1/((1/'Parametric Study'!D75)*(kWhPerGGE/kWhPerGalDiesel)),'Parametric Study'!D75) -> 31.67154946 | E140: =IF(fcEffType=3,1/((1/'Parametric Study'!E75)*(kWhPerGGE/kWhPerGalDiesel)),'Parametric Study'!E75) -> 29.81214049 | F140: =IF(fcEffType=3,1/((1/'Parametric Study'!F75)*(kWhPerGGE/kWhPerGalDiesel)),'Parametric Study'!F75) -> 28.15668005 | G140: =IF(fcEffType=3,1/((1/'Parametric Study'!G75)*(kWhPerGGE/kWhPerGalDiesel)),'Parametric Study'!G75) -> 25.95570214 | H140: =IF(fcEffType=3,1/((1/'Parametric Study'!H75)*(kWhPerGGE/kWhPerGalDiesel)),'Parametric Study'!H75) -> 24.07308796 | I140: =IF(fcEffType=3,1/((1/'Parametric Study'!I75)*(kWhPerGGE/kWhPerGalDiesel)),'Parametric Study'!I75) -> 23.53853881 | J140: =IF(fcEffType=3,1/((1/'Parametric Study'!J75)*(kWhPerGGE/kWhPerGalDiesel)),'Parametric Study'!J75) -> 23.02808226 | K140: =IF(fcEffType=3,1/((1/'Parametric Study'!K75)*(kWhPerGGE/kWhPerGalDiesel)),'Parametric Study'!K75) -> 22.54041364 | L140: =IF(fcEffType=3,1/((1/'Parametric Study'!L75)*(kWhPerGGE/kWhPerGalDiesel)),'Parametric Study'!L75) -> 22.07325611
A141: HEV fuel economy (MPG) | C141: =IF(fcEffType=3,1/((1/'Parametric Study'!C84)*(kWhPerGGE/kWhPerGalDiesel)),'Parametric Study'!C84) -> 53.49565775 | D141: =IF(fcEffType=3,1/((1/'Parametric Study'!D84)*(kWhPerGGE/kWhPerGalDiesel)),'Parametric Study'!D84) -> 49.97605391 | E141: =IF(fcEffType=3,1/((1/'Parametric Study'!E84)*(kWhPerGGE/kWhPerGalDiesel)),'Parametric Study'!E84) -> 45.78983858 | F141: =IF(fcEffType=3,1/((1/'Parametric Study'!F84)*(kWhPerGGE/kWhPerGalDiesel)),'Parametric Study'!F84) -> 42.05037601 | G141: =IF(fcEffType=3,1/((1/'Parametric Study'!G84)*(kWhPerGGE/kWhPerGalDiesel)),'Parametric Study'!G84) -> 39.64188473 | H141: =IF(fcEffType=3,1/((1/'Parametric Study'!H84)*(kWhPerGGE/kWhPerGalDiesel)),'Parametric Study'!H84) -> 37.47775766 | I141: =IF(fcEffType=3,1/((1/'Parametric Study'!I84)*(kWhPerGGE/kWhPerGalDiesel)),'Parametric Study'!I84) -> 35.00812327 | J141: =IF(fcEffType=3,1/((1/'Parametric Study'!J84)*(kWhPerGGE/kWhPerGalDiesel)),'Parametric Study'!J84) -> 32.85040567 | K141: =IF(fcEffType=3,1/((1/'Parametric Study'!K84)*(kWhPerGGE/kWhPerGalDiesel)),'Parametric Study'!K84) -> 31.95081702 | L141: =IF(fcEffType=3,1/((1/'Parametric Study'!L84)*(kWhPerGGE/kWhPerGalDiesel)),'Parametric Study'!L84) -> 31.09549279
A142: PHEV fuel economy (MPG) | C142: =IF(fcEffType=3,1/((1/'Parametric Study'!C101)*(kWhPerGGE/kWhPerGalDiesel)),'Parametric Study'!C101) -> 102.0390141 | D142: =IF(fcEffType=3,1/((1/'Parametric Study'!D101)*(kWhPerGGE/kWhPerGalDiesel)),'Parametric Study'!D101) -> 94.46965161 | E142: =IF(fcEffType=3,1/((1/'Parametric Study'!E101)*(kWhPerGGE/kWhPerGalDiesel)),'Parametric Study'!E101) -> 90.52252348 | F142: =IF(fcEffType=3,1/((1/'Parametric Study'!F101)*(kWhPerGGE/kWhPerGalDiesel)),'Parametric Study'!F101) -> 87.36001161 | G142: =IF(fcEffType=3,1/((1/'Parametric Study'!G101)*(kWhPerGGE/kWhPerGalDiesel)),'Parametric Study'!G101) -> 79.16531232 | H142: =IF(fcEffType=3,1/((1/'Parametric Study'!H101)*(kWhPerGGE/kWhPerGalDiesel)),'Parametric Study'!H101) -> 75.04049624 | I142: =IF(fcEffType=3,1/((1/'Parametric Study'!I101)*(kWhPerGGE/kWhPerGalDiesel)),'Parametric Study'!I101) -> 70.27150227 | J142: =IF(fcEffType=3,1/((1/'Parametric Study'!J101)*(kWhPerGGE/kWhPerGalDiesel)),'Parametric Study'!J101) -> 67.86083471 | K142: =IF(fcEffType=3,1/((1/'Parametric Study'!K101)*(kWhPerGGE/kWhPerGalDiesel)),'Parametric Study'!K101) -> 65.02439767 | L142: =IF(fcEffType=3,1/((1/'Parametric Study'!L101)*(kWhPerGGE/kWhPerGalDiesel)),'Parametric Study'!L101) -> 62.98981547
A143: PHEV elect. consumption (no chg eff) | C143: =C114*C115 -> 0.1048576959 | D143: =D114*D115 -> 0.1113656622 | E143: 0.11765934 | F143: 0.1245935941 | G143: 0.1264650152 | H143: 0.1344521679 | I143: 0.1402761445 | J143: 0.1434801549 | K143: 0.1467738046 | L143: 0.1502644153
A144: EV elect. consumption (no chg eff) | C144: =C123*C115 -> 0.2494368076 | D144: =D123*D115 -> 0.2660081312 | E144: 0.2826793545 | F144: 0.29576736 | G144: 0.3123619409 | H144: 0.3291032682 | I144: 0.3457003023 | J144: 0.3621579005 | K144: 0.3788751689 | L144: 0.3956890173
A145: Conv. fuel consumption (L/100 km) | C145: =(1/C140)*(1/metersPerMile)*1000*100*litersPerGal -> 6.720859984 | D145: 7.428248482 | E145: 7.891554761 | F145: 8.355535482 | G145: 9.064063762 | H145: 9.772910711 | I145: 9.994848922 | J145: 10.21640172 | K145: 10.43743664 | L145: 10.65833414
A146: HEV fuel consumption (L/100 km) | C146: =(1/C141)*(1/metersPerMile)*1000*100*litersPerGal -> 4.397817488 | D146: 4.707537327 | E146: 5.137911522 | F146: 5.59481654 | G146: 5.934736474 | H146: 6.277433708 | I146: 6.720272817 | J146: 7.161681399 | K146: 7.363321542 | L146: 7.565859811
A147: ="PHEV" & phevCdMiles & " fuel consumption (L/100 km)" -> PHEV30 fuel consumption (L/100 km) | C147: =(1/C142)*(1/metersPerMile)*1000*100*litersPerGal -> 2.305629285 | D147: 2.490367385 | E147: 2.598956924 | F147: 2.693041529 | G147: 2.971808389 | H147: 3.135162359 | I147: 3.347930976 | J147: 3.466861854 | K147: 3.61809025 | L147: 3.734955206
A148: ="EV" & evEssRangeMiles & " fuel economy (MPGe)" -> EV73 fuel economy (MPGe) | C148: =(1/C123)*kWhPerGGE -> 116.1897487 | D148: 108.9515568 | E148: 102.5260584 | F148: 97.98917634 | G148: 92.78339069 | H148: 88.06354357 | I148: 83.83562239 | J148: 80.02586705 | K148: 76.49485207 | L148: 73.24438822
A149: ="EV" & evEssRangeMiles & " fuel consumption (Le/100 km)" -> EV73 fuel consumption (Le/100 km) | C149: =(1/C148)*(1/metersPerMile)*1000*100*litersPerGal -> 2.02482699 | D149: 2.159346284 | E149: 2.294676524 | F149: 2.400919653 | G149: 2.53562774 | H149: 2.671527055 | I149: 2.806255056 | J149: 2.939851174 | K149: 3.075555189 | L149: 3.212043201
A152: Sweep options list
A153: Variable | C153: Description | D153: =INDEX(sweepVarDesc,varIndToSweep) -> Glider Mass (kg)
A154: gliderKg | C154: Glider Mass (kg)
A155: auxKw | C155: Aux. Load (kW)
A156: dragCoef | C156: Drag Coef
A157: frontalAreaM2 | C157: Frontal Area (m2)
A158: wheelRrCoef | C158: Rolling Resistance Coef
A161: Chart Y-Axis Options | C161: 1
A162: Present Vehicle and Lifetime Fuel Cost | C162: =INDEX(plotOptions,C161) -> Present Vehicle and Lifetime Fuel Cost
A163: Fuel Consumption (L/100 km)
A164: Fuel & Elect. Cost ($/mile)
A165: Electricity Consumption (kWh/mile)
A166: Fuel Economy (MPG)
A167: MSRP
A168: Present Lifetime Fuel Cost
A169: Total Present Lifetime Battery Cost
A171: Chart Data
A172: Conv. | C172: =CHOOSE(chartYOpt,C76,C145,(1/C140)*IF(fcEffType=3,dieselDolPerGal,gasolineDolPerGal),#N/A,C140,C79,C80,#N/A) -> 38375.99 | D172: 40563.38 | E172: 41923.35 | F172: 43284.97 | G172: 45475.13 | H172: 47666.06 | I172: 48205.21 | J172: 48743.43 | K172: 49280.39 | L172: 49817.02
A173: HEV | C173: =CHOOSE(chartYOpt,C85,C146,(1/C141)*IF(fcEffType=3,dieselDolPerGal,gasolineDolPerGal),#N/A,'Parametric Study'!C141,'Parametric Study'!C93,'Parametric Study'!C94,'Parametric Study'!C91+'Parametric Study'!C92) -> 37077.71 | D173: =CHOOSE(chartYOpt,D85,D146,(1/D141)*IF(fcEffType=3,dieselDolPerGal,gasolineDolPerGal),#N/A,'Parametric Study'!D141,'Parametric Study'!D93,'Parametric Study'!D94,'Parametric Study'!D91+'Parametric Study'!D92) -> 38064.57 | E173: =CHOOSE(chartYOpt,E85,E146,(1/E141)*IF(fcEffType=3,dieselDolPerGal,gasolineDolPerGal),#N/A,'Parametric Study'!E141,'Parametric Study'!E93,'Parametric Study'!E94,'Parametric Study'!E91+'Parametric Study'!E92) -> 39579.01 | F173: =CHOOSE(chartYOpt,F85,F146,(1/F141)*IF(fcEffType=3,dieselDolPerGal,gasolineDolPerGal),#N/A,'Parametric Study'!F141,'Parametric Study'!F93,'Parametric Study'!F94,'Parametric Study'!F91+'Parametric Study'!F92) -> 41157.9 | G173: =CHOOSE(chartYOpt,G85,G146,(1/G141)*IF(fcEffType=3,dieselDolPerGal,gasolineDolPerGal),#N/A,'Parametric Study'!G141,'Parametric Study'!G93,'Parametric Study'!G94,'Parametric Study'!G91+'Parametric Study'!G92) -> 42218.14 | H173: =CHOOSE(chartYOpt,H85,H146,(1/H141)*IF(fcEffType=3,dieselDolPerGal,gasolineDolPerGal),#N/A,'Parametric Study'!H141,'Parametric Study'!H93,'Parametric Study'!H94,'Parametric Study'!H91+'Parametric Study'!H92) -> 43285.11 | I173: =CHOOSE(chartYOpt,I85,I146,(1/I141)*IF(fcEffType=3,dieselDolPerGal,gasolineDolPerGal),#N/A,'Parametric Study'!I141,'Parametric Study'!I93,'Parametric Study'!I94,'Parametric Study'!I91+'Parametric Study'!I92) -> 44829.83 | J173: =CHOOSE(chartYOpt,J85,J146,(1/J141)*IF(fcEffType=3,dieselDolPerGal,gasolineDolPerGal),#N/A,'Parametric Study'!J141,'Parametric Study'!J93,'Parametric Study'!J94,'Parametric Study'!J91+'Parametric Study'!J92) -> 46371.08 | K173: =CHOOSE(chartYOpt,K85,K146,(1/K141)*IF(fcEffType=3,dieselDolPerGal,gasolineDolPerGal),#N/A,'Parametric Study'!K141,'Parametric Study'!K93,'Parametric Study'!K94,'Parametric Study'!K91+'Parametric Study'!K92) -> 46860.92 | L173: =CHOOSE(chartYOpt,L85,L146,(1/L141)*IF(fcEffType=3,dieselDolPerGal,gasolineDolPerGal),#N/A,'Parametric Study'!L141,'Parametric Study'!L93,'Parametric Study'!L94,'Parametric Study'!L91+'Parametric Study'!L92) -> 47352.95
A174: PHEV | C174: =CHOOSE(chartYOpt,C102,C147,((1/C142)*IF(fcEffType=3,dieselDolPerGal,gasolineDolPerGal))+(C114*dolPerKwh),C114,C142,C111,C112+C113,C110+C109) -> 49499.12 | D174: 51370.63 | E174: 52840.18 | F174: 54335.59 | G174: 55574.05 | H174: 57756.84 | I174: 59848.22 | J174: 60292.42 | K174: 61533.39 | L174: 61981.22
A175: EV | C175: =CHOOSE(chartYOpt,C124,#N/A,C123*dolPerKwh,C123,#N/A,C132,C133,C130+C131) -> 80621.88 | D175: 84927.71 | E175: 89452.23 | F175: 92601.76 | G175: 97029.46 | H175: 101610.47 | I175: 106058.04 | J175: 110550.51 | K175: 115057.93 | L175: 119596.16

Sheet DOE (hidden)
A1: Design of Experiments
A7: Example Setup
A8: Design Variables (cell name or address: A1): | B8: dragCoef | C8: auxKw | E8: adjCombMpgge | F8: adjCombKwhPerMile
A9: Low values | B9: 0.26 | C9: 0.3
A10: High values | B10: 0.33 | C10: 0.7
A11: Levels (number of steps to take) | B11: 3 | C11: 2

Sheet EPA Adj Ref (hidden)
A1: Markup cap | B1: 0.3
A3: MPG | B3: kWh/mi equiv | C3: UDDS Adj MPG | D3: Adj. kWh/mi equiv | E3: kWh markup | F3: Adj w/Cap MPG | G3: Adj. kWh/mi w/cap
A4: 10 | B4: =(1/A4)*kWhPerGGE -> 3.37 | C4: =1/(0.003259+(1.1805/A4)) -> 8.243411453 | D4: =(1/C4)*kWhPerGGE -> 4.0881133 | E4: =D4/B4 -> 1.21309 | F4: =MAX(1/(0.003259+(1.1805/A4)),(1-$B$1)*A4) -> 8.243411453 | G4: =(1/F4)*kWhPerGGE -> 4.0881133
A5: 15 | B5: 2.246666667 | C5: =1/(0.003259+(1.1805/A5)) -> 12.20122256 | D5: 2.7620183 | E5: =D5/B5 -> 1.229385 | F5: =MAX(1/(0.003259+(1.1805/A5)),(1-$B$1)*A5) -> 12.20122256 | G5: 2.7620183
A6: 20 | B6: 1.685 | C6: 16.05548777 | D6: 2.0989708 | E6: 1.24568 | F6: 16.05548777 | G6: 2.0989708
A7: 25 | B7: 1.348 | C7: 19.81021811 | D7: 1.7011423 | E7: 1.261975 | F7: 19.81021811 | G7: 1.7011423
A8: 30 | B8: 1.123333333 | C8: 23.46922012 | D8: 1.4359233 | E8: 1.27827 | F8: 23.46922012 | G8: 1.4359233
A9: 35 | B9: 0.9628571429 | C9: 27.03610865 | D9: 1.246481157 | E9: 1.294565 | F9: 27.03610865 | G9: 1.246481157
A10: 40 | B10: 0.8425 | C10: 30.51431884 | D10: 1.10439955 | E10: 1.31086 | F10: 30.51431884 | G10: 1.10439955
A11: 45 | B11: 0.7488888889 | C11: 33.9071171 | D11: 0.9938916333 | E11: 1.327155 | F11: 33.9071171 | G11: 0.9938916333
A12: 50 | B12: 0.674 | C12: 37.21761137 | D12: 0.9054853 | E12: 1.34345 | F12: 37.21761137 | G12: 0.9054853
A13: 55 | B13: 0.6127272727 | C13: 40.44876061 | D13: 0.8331528455 | E13: 1.359745 | F13: 40.44876061 | G13: 0.8331528455
A14: 60 | B14: 0.5616666667 | C14: 43.60338362 | D14: 0.7728758 | E14: 1.37604 | F14: 43.60338362 | G14: 0.7728758
A15: 65 | B15: 0.5184615385 | C15: 46.68416724 | D15: 0.7218721462 | E15: 1.392335 | F15: 46.68416724 | G15: 0.7218721462
A16: 70 | B16: 0.4814285714 | C16: 49.693674 | D16: 0.6781547286 | E16: 1.40863 | F16: 49.693674 | G16: 0.6781547286
A17: 75 | B17: 0.4493333333 | C17: 52.63434918 | D17: 0.6402663 | E17: 1.424925 | F17: 52.63434918 | G17: 0.6402663
A18: 80 | B18: 0.42125 | C18: 55.5085275 | D18: 0.607113925 | E18: 1.44122 | F18: 56 | G18: 0.6017857143
A19: 85 | B19: 0.3964705882 | C19: 58.31843926 | D19: 0.5778618294 | E19: 1.457515 | F19: 59.5 | G19: 0.5663865546
A20: 90 | B20: 0.3744444444 | C20: 61.06621613 | D20: 0.5518599667 | E20: 1.47381 | F20: 63 | G20: 0.5349206349
A21: 95 | B21: 0.3547368421 | C21: 63.75389654 | D21: 0.5285951421 | E21: 1.490105 | F21: 66.5 | G21: 0.5067669173
A22: 100 | B22: 0.337 | C22: 66.3834307 | D22: 0.5076568 | E22: 1.5064 | F22: 70 | G22: 0.4814285714
A23: 105 | B23: 0.320952381 | C23: 68.95668535 | D23: 0.4887125857 | E23: 1.522695 | F23: 73.5 | G23: 0.4585034014
A24: 110 | B24: 0.3063636364 | C24: 71.47544818 | D24: 0.4714905727 | E24: 1.53899 | F24: 77 | G24: 0.4376623377
A25: 115 | B25: 0.2930434783 | C25: 73.94143196 | D25: 0.4557661261 | E25: 1.555285 | F25: 80.5 | G25: 0.4186335404
A26: 120 | B26: 0.2808333333 | C26: 76.35627839 | D26: 0.44135205 | E26: 1.57158 | F26: 84 | G26: 0.4011904762
A27: 125 | B27: 0.2696 | C27: 78.72156184 | D27: 0.4280911 | E27: 1.587875 | F27: 87.5 | G27: 0.3851428571
A28: 130 | B28: 0.2592307692 | C28: 81.03879265 | D28: 0.4158502231 | E28: 1.60417 | F28: 91 | G28: 0.3703296703
A29: 135 | B29: 0.2496296296 | C29: 83.30942044 | D29: 0.4045160778 | E29: 1.620465 | F29: 94.5 | G29: 0.3566137566
A30: 140 | B30: 0.2407142857 | C30: 85.53483712 | D30: 0.3939915143 | E30: 1.63676 | F30: 98 | G30: 0.343877551
A31: 145 | B31: 0.2324137931 | C31: 87.71637967 | D31: 0.3841927828 | E31: 1.653055 | F31: 101.5 | G31: 0.3320197044
A32: 150 | B32: 0.2246666667 | C32: 89.85533291 | D32: 0.3750473 | E32: 1.66935 | F32: 105 | G32: 0.320952381
A33: 2000 | B33: 0.01685 | C33: =1/(0.003259+(1.1805/A33)) -> 259.7908684 | D33: 0.129719725 | E33: 7.6985 | F33: 1400 | G33: 0.02407142857

Sheet SpecImport (hidden)

Sheet SavedVehs (hidden)
A2: Selection | B2: Scenario name | C2: vehPtType | D2: dragCoef | E2: frontalAreaM2 | F2: gliderKg | G2: vehCgM | H2: driveAxleWeightFrac | I2: wheelBaseM | J2: cargoKg | K2: vehOverrideKg | N2: maxFuelStorKw | O2: fuelStorSecsToPeakPwr | P2: fuelStorKwh | Q2: fuelStorKwhPerKg | T2: maxFuelConvKw | U2: fcEffType | V2: fuelConvSecsToPeakPwr | W2: fuelConvKwPerKg | Z2: maxMotorKw | AA2: motorPeakEff | AB2: motorSecsToPeakPwr | AC2: mcPeKgPerKw | AD2: mcPeBaseKg | AG2: maxEssKw | AH2: maxEssKwh | AI2: essKgPerKwh | AJ2: essBaseKg | AK2: essRountTripEff | AL2: essLifeCoefA | AM2: essLifeCoefB | AP2: wheelInteriaKgM2 | AQ2: numWheels | AR2: wheelRrCoef | AS2: wheelRadiusM | AT2: wheelCoefOfFric | AW2: controlStrategy | AX2: minSoc | AY2: maxSoc | AZ2: minSocMph | BA2: maxSocMph | BB2: assistKwPerPercOff | BC2: chgKwPerPercOff | BD2: percUsableSocPassBuf | BE2: percFcPwrDoneElec | BF2: percHighAccBuf | BG2: mphFcOn | BH2: kwDemandFcOn | BK2: altEff | BL2: chgEff | BM2: auxKw | BN2: transKg | BO2: transEff | BP2: essToFuelOkError | BQ2: maxRegen | BT2: valUddsMpgge | BU2: valHwyMpgge | BV2: valCombMpgge | BW2: valUddsKwhPerMile | BX2: valHwyKwhPerMile | BY2: valCombKwhPerMile | BZ2: valConst65MphKwhPerMile | CA2: valConst60MphKwhPerMile | CB2: valConst55MphKwhPerMile | CC2: valConst45MphKwhPerMile | CD2: valUnadjUddsKwhPerMile | CE2: valUnadjHwyKwhPerMile | CF2: val0To60Mph | CG2: valEssLifeMiles | CH2: valRangeMiles | CI2: valVehBaseCost | CJ2: valMsrp
A3: 1 | B3: 2012 Leaf | C3: 4 | D3: 0.29 | E3: 2.194 | F3: 1057.552018 | G3: 0.53 | H3: 0.59 | I3: 2.69 | J3: 136 | N3: 0 | O3: 1 | P3: 0 | Q3: =IF(OR(INDEX(fcEffOpts,fcEffType)="Atkinson",INDEX(fcEffOpts,fcEffType)="SI"),1/((11/(13.2*kWhPerGGE))+(1/gasolineKwhPerKg)),IF(INDEX(fcEffOpts,fcEffType)="diesel",1/((11/(13.2*kWhPerGalDiesel))+(1/dieselKwhPerKg)))) -> 9.89473291 | T3: 0 | U3: 2 | V3: 6 | W3: 0.315 | Z3: 80 | AA3: 0.89 | AB3: 5 | AC3: 0.833 | AD3: 21.6 | AG3: 90 | AH3: 24 | AI3: 8 | AJ3: 75 | AK3: 0.951 | AL3: 86 | AM3: -0.6844 | AP3: =3.26/4 -> 0.815 | AQ3: 4 | AR3: 0.008 | AS3: 0.316 | AT3: 0.7 | AW3: 1 | AX3: 0.05 | AY3: 0.94 | AZ3: 30 | BA3: 0 | BB3: 0.2 | BC3: 0.2 | BD3: 0.05 | BE3: 0.1 | BF3: 0 | BG3: 1 | BH3: 100 | BK3: 1 | BL3: 0.86 | BM3: 0.3 | BN3: 114 | BO3: 0.97 | BP3: 0.005 | BQ3: 1 | BW3: =(1/106)*33.7 -> 0.3179245283 | BX3: =(1/92)*33.7 -> 0.3663043478 | BY3: 0.34 | CF3: 10.2 | CG3: =5*12375 -> 61875 | CH3: 73 | CI3: =15714.25+1300 -> 17014.25 | CJ3: 35200
A4: 2 | B4: Tesla Roadster | C4: 4 | D4: 0.35 | E4: 1.63 | F4: 469.1371052 | G4: 0.53 | H4: 0.59 | I4: 2.36 | J4: 136 | N4: 0 | O4: 1 | P4: 0 | Q4: =IF(OR(INDEX(fcEffOpts,fcEffType)="Atkinson",INDEX(fcEffOpts,fcEffType)="SI"),1/((11/(13.2*kWhPerGGE))+(1/gasolineKwhPerKg)),IF(INDEX(fcEffOpts,fcEffType)="diesel",1/((11/(13.2*kWhPerGalDiesel))+(1/dieselKwhPerKg)))) -> 9.89473291 | T4: 0 | U4: 2 | V4: 6 | W4: 0.315 | Z4: 215 | AA4: 0.93 | AB4: 3 | AC4: 0.833 | AD4: 21.6 | AG4: 200 | AH4: 53 | AI4: 7.1 | AJ4: 75 | AK4: 0.951 | AL4: 86 | AM4: -0.6844 | AP4: =3.26/4 -> 0.815 | AQ4: 4 | AR4: 0.008 | AS4: 0.299 | AT4: 0.8 | AW4: 1 | AX4: 0.05 | AY4: 0.95 | AZ4: 30 | BA4: 0 | BB4: 0.2 | BC4: 0.2 | BD4: 0.05 | BE4: 0.1 | BF4: 0 | BG4: 1 | BH4: 100 | BK4: 1 | BL4: 0.86 | BM4: 0.3 | BN4: 114 | BO4: 0.97 | BP4: 0.005 | BQ4: 1 | BZ4: 0.275 | CA4: 0.25 | CB4: 0.23 | CC4: 0.195 | CF4: 4 | CG4: 100000 | CI4: 47337.875 | CJ4: 109000
A5: 3 | B5: 2011 Smart Fortwo Electric | C5: 4 | D5: 0.29 | E5: 1.924 | F5: 528.5439192 | G5: 0.53 | H5: 0.59 | I5: 1.88 | J5: 136 | N5: 0 | O5: 1 | P5: 0 | Q5: =IF(OR(INDEX(fcEffOpts,fcEffType)="Atkinson",INDEX(fcEffOpts,fcEffType)="SI"),1/((11/(13.2*kWhPerGGE))+(1/gasolineKwhPerKg)),IF(INDEX(fcEffOpts,fcEffType)="diesel",1/((11/(13.2*kWhPerGalDiesel))+(1/dieselKwhPerKg)))) -> 9.89473291 | T5: 0 | U5: 1 | V5: 6 | W5: 0.315 | Z5: 30 | AA5: 0.93 | AB5: 6 | AC5: 0.833 | AD5: 21.6 | AG5: =maxMotorKw/motorPeakEff -> 119.3548387 | AH5: 16.5 | AI5: 8 | AJ5: 75 | AK5: 0.951 | AL5: 86 | AM5: -0.6844 | AP5: =3.26/4 -> 0.815 | AQ5: 4 | AR5: 0.008 | AS5: 0.284 | AT5: 0.7 | AW5: 1 | AX5: 0.1 | AY5: 0.95 | AZ5: 30 | BA5: 0 | BB5: 0.2 | BC5: 0.2 | BD5: 0.05 | BE5: 0.1 | BF5: 0 | BG5: 1 | BH5: 100 | BK5: 1 | BL5: 0.57 | BM5: 0.3 | BN5: 114 | BO5: 0.97 | BP5: 0.005 | BQ5: 1 | BW5: 0.36 | BX5: 0.43 | BY5: 0.39 | CF5: 23.4 | CH5: 63 | CI5: 12758.15 | CJ5: 44837
A6: 4 | B6: MINI E | C6: 4 | D6: 0.37 | E6: =(55.4/inchesPerMeter) * (66.3/inchesPerMeter) * 0.8 -> 1.89575605 | F6: 944.053452 | G6: 0.53 | H6: 0.59 | I6: =97*(1/inchesPerMeter) -> 2.463804928 | J6: 136 | N6: 0 | O6: 1 | P6: 0 | Q6: =IF(OR(INDEX(fcEffOpts,fcEffType)="Atkinson",INDEX(fcEffOpts,fcEffType)="SI"),1/((11/(13.2*kWhPerGGE))+(1/gasolineKwhPerKg)),IF(INDEX(fcEffOpts,fcEffType)="diesel",1/((11/(13.2*kWhPerGalDiesel))+(1/dieselKwhPerKg)))) -> 9.89473291 | T6: 0 | U6: 2 | V6: 6 | W6: 0.315 | Z6: 150 | AA6: 0.93 | AB6: 5 | AC6: 0.833 | AD6: 21.6 | AG6: =150/0.93 -> 161.2903226 | AH6: 35 | AI6: 5.3 | AJ6: 75 | AK6: 0.951 | AL6: 86 | AM6: -0.6844 | AP6: =3.26/4 -> 0.815 | AQ6: 4 | AR6: 0.008 | AS6: 0.282 | AT6: 0.7 | AW6: 1 | AX6: 0.09 | AY6: 0.95 | AZ6: 30 | BA6: 0 | BB6: 0.2 | BC6: 0.2 | BD6: 0.05 | BE6: 0.1 | BF6: 0 | BG6: 1 | BH6: 100 | BK6: 1 | BL6: 0.86 | BM6: 0.3 | BN6: 114 | BO6: 0.97 | BP6: 0.005 | BQ6: 1 | BZ6: 0.2817 | CB6: 0.2338 | CD6: 0.2082 | CE6: 0.2234 | CF6: 8.5
A7: 5 | B7: 2012 Volt | C7: 3 | D7: 0.29 | E7: 2.057 | F7: 1077.111476 | G7: 0.53 | H7: 0.59 | I7: 2.69 | J7: 136 | N7: 5000 | O7: 1 | P7: 313 | Q7: =IF(OR(INDEX(fcEffOpts,fcEffType)="Atkinson",INDEX(fcEffOpts,fcEffType)="SI"),1/((11/(13.2*kWhPerGGE))+(1/gasolineKwhPerKg)),IF(INDEX(fcEffOpts,fcEffType)="diesel",1/((11/(13.2*kWhPerGalDiesel))+(1/dieselKwhPerKg)))) -> 9.89473291 | T7: 62 | U7: 1 | V7: 6 | W7: 0.315 | Z7: 111 | AA7: 0.93 | AB7: 5 | AC7: 0.833 | AD7: 21.6 | AG7: =maxMotorKw/motorPeakEff -> 119.3548387 | AH7: 16 | AI7: 6.65 | AJ7: 75 | AK7: 0.951 | AL7: 86 | AM7: -0.6844 | AP7: 0.815 | AQ7: 4 | AR7: 0.008 | AS7: 0.334 | AT7: 0.7 | AW7: 1 | AX7: 0.2 | AY7: 0.85 | AZ7: 0.1 | BA7: 0 | BB7: 5 | BC7: 0.2 | BD7: 0.05 | BE7: 0.1 | BF7: 0 | BG7: 60 | BH7: 100 | BK7: 1 | BL7: 0.86 | BM7: 0.3 | BN7: 114 | BO7: 0.95 | BP7: 0.005 | BQ7: 1 | CG7: =100000*1.2 -> 120000 | CI7: 15440.42 | CJ7: 39145
A8: 6 | B8: Plug-in Prius | C8: 3 | D8: 0.25 | E8: 2.081 | F8: 891.6886524 | G8: 0.53 | H8: 0.59 | I8: 2.69 | J8: 136 | N8: 1000 | O8: 1 | P8: 357 | Q8: =IF(OR(INDEX(fcEffOpts,fcEffType)="Atkinson",INDEX(fcEffOpts,fcEffType)="SI"),1/((11/(13.2*kWhPerGGE))+(1/gasolineKwhPerKg)),IF(INDEX(fcEffOpts,fcEffType)="diesel",1/((11/(13.2*kWhPerGalDiesel))+(1/dieselKwhPerKg)))) -> 9.89473291 | T8: 73.1 | U8: 2 | V8: 6 | W8: 0.315 | Z8: =60*0.6 -> 36 | AA8: 0.93 | AB8: 3 | AC8: 0.833 | AD8: 21.6 | AG8: 27 | AH8: 4.4 | AI8: 8 | AJ8: 75 | AK8: 0.95 | AL8: 86 | AM8: -0.6844 | AP8: =3.26/4 -> 0.815 | AQ8: 4 | AR8: 0.008 | AS8: 0.317 | AT8: 0.7 | AW8: 1 | AX8: 0.4 | AY8: 0.8 | AZ8: 0.1 | BA8: 0 | BB8: 5 | BC8: 0.2 | BD8: 0.05 | BE8: 0.1 | BF8: 0 | BG8: 60 | BH8: 100 | BK8: 1 | BL8: 0.86 | BM8: 0.3 | BN8: 114 | BO8: 0.95 | BP8: 0.005 | BQ8: 1 | CG8: =100000*1.2 -> 120000 | CI8: 18530.8 | CJ8: 32000
A9: 7 | B9: 2012 Civic HEV | C9: 2 | D9: 0.26 | E9: 2.005 | F9: 801.6631509 | G9: 0.53 | H9: 0.59 | I9: 2.67 | J9: 136 | N9: 1000 | O9: 1 | P9: 415 | Q9: 9.89473291 | T9: 69.4 | U9: 1 | V9: 6 | W9: 0.315 | Z9: 17 | AA9: 0.93 | AB9: 3 | AC9: 0.833 | AD9: 21.6 | AG9: 20 | AH9: 0.677 | AI9: 8 | AJ9: 75 | AK9: 0.951 | AL9: 86 | AM9: -0.6844 | AP9: =3.26/4 -> 0.815 | AQ9: 4 | AR9: 0.008 | AS9: 0.317 | AT9: 0.7 | AW9: 1 | AX9: 0.4 | AY9: 0.8 | AZ9: 30 | BA9: 0 | BB9: 0.2 | BC9: 0.2 | BD9: 0.05 | BE9: 0.1 | BF9: 0 | BG9: 1 | BH9: 100 | BK9: 1 | BL9: 0.86 | BM9: 0.3 | BN9: 114 | BO9: 0.95 | BP9: 0.005 | BQ9: 1 | BT9: 44 | BU9: 44 | BV9: 44 | CF9: 10 | CG9: =60000*1.2 -> 72000 | CI9: 14787.8 | CJ9: 24050
A10: 8 | B10: 2012 Camry HEV | C10: 2 | D10: 0.27 | E10: 2.143 | F10: 872.4949473 | G10: 0.53 | H10: 0.59 | I10: 2.77 | J10: 136 | N10: 1000 | O10: 1 | P10: 573 | Q10: 9.89473291 | T10: 116.3 | U10: 2 | V10: 6 | W10: 0.315 | Z10: =105*0.6 -> 63 | AA10: 0.93 | AB10: 3 | AC10: 0.833 | AD10: 21.6 | AG10: =40/0.93 -> 43.01075269 | AH10: 1.6 | AI10: 44 | AJ10: 0 | AK10: 0.834 | AL10: 86 | AM10: -0.6844 | AP10: 0.815 | AQ10: 4 | AR10: 0.008 | AS10: 0.336 | AT10: 0.7 | AW10: 1 | AX10: 0.4 | AY10: 0.8 | AZ10: 30 | BA10: 0 | BB10: 0.2 | BC10: 0.2 | BD10: 0.05 | BE10: 0.1 | BF10: 0 | BG10: 30 | BH10: 100 | BK10: 1 | BL10: 0.86 | BM10: 0.3 | BN10: 114 | BO10: 0.95 | BP10: 0.005 | BQ10: 1 | BT10: 43 | BU10: 39 | BV10: 41.1 | CF10: 8.6 | CG10: 150000 | CI10: 18817.28 | CJ10: 25900
A11: 9 | B11: 3rd Gen Prius | C11: 2 | D11: 0.25 | E11: 2.081 | F11: 884.4499769 | G11: 0.53 | H11: 0.59 | I11: 2.69 | J11: 136 | N11: 1000 | O11: 1 | P11: 401 | Q11: 9.89473291 | T11: 73.1 | U11: 2 | V11: 6 | W11: 0.315 | Z11: =60*0.6 -> 36 | AA11: 0.93 | AB11: 3 | AC11: 0.833 | AD11: 21.6 | AG11: 27 | AH11: 1.3 | AI11: 44 | AJ11: 0 | AK11: 0.834 | AL11: 86 | AM11: -0.6844 | AP11: 0.815 | AQ11: 4 | AR11: 0.008 | AS11: 0.317 | AT11: 0.7 | AW11: 1 | AX11: 0.4 | AY11: 0.8 | AZ11: 30 | BA11: 0 | BB11: 0.2 | BC11: 0.2 | BD11: 0.05 | BE11: 0.1 | BF11: 0 | BG11: 45 | BH11: 100 | BK11: 1 | BL11: 0.86 | BM11: 0.3 | BN11: 114 | BO11: 0.95 | BP11: 0.005 | BQ11: 1 | BT11: 51 | BU11: 48 | BV11: 49.6 | CG11: 150000 | CI11: 17561.35 | CJ11: 24520
A12: 10 | B12: 2012 Escape HEV | C12: 2 | D12: 0.4 | E12: 2.484 | F12: 951.1382156 | G12: 0.53 | H12: 0.59 | I12: 2.62 | J12: 136 | N12: 1000 | O12: 1 | P12: 509 | Q12: 9.89473291 | T12: 115.6 | U12: 2 | V12: 6 | W12: 0.315 | Z12: 94 | AA12: 0.93 | AB12: 3 | AC12: 0.833 | AD12: 21.6 | AG12: 22 | AH12: 1.65 | AI12: 44 | AJ12: 0 | AK12: 0.834 | AL12: 86 | AM12: -0.6844 | AP12: 0.815 | AQ12: 4 | AR12: 0.008 | AS12: 0.368 | AT12: 0.7 | AW12: 1 | AX12: 0.4 | AY12: 0.8 | AZ12: 30 | BA12: 0 | BB12: 0.2 | BC12: 0.2 | BD12: 0.05 | BE12: 0.1 | BF12: 0 | BG12: 44 | BH12: 100 | BK12: 1 | BL12: 0.86 | BM12: 0.7 | BN12: 114 | BO12: 0.95 | BP12: 0.005 | BQ12: 1 | BT12: 34 | BU12: 31 | BV12: 32.6 | CG12: =150000*1.2 -> 180000 | CI12: 21300.38 | CJ12: 30570
A13: 11 | B13: 2012 Fusion HEV | C13: 2 | D13: 0.33 | E13: 2.12 | F13: 996.3556955 | G13: 0.53 | H13: 0.59 | I13: 2.72 | J13: 136 | N13: 1000 | O13: 1 | P13: 590 | Q13: 9.89473291 | T13: 116.3 | U13: 2 | V13: 6 | W13: 0.315 | Z13: 78 | AA13: 0.93 | AB13: 3 | AC13: 0.833 | AD13: 21.6 | AG13: =26/motorPeakEff -> 27.95698925 | AH13: 1.4 | AI13: 44 | AJ13: 0 | AK13: 0.834 | AL13: 86 | AM13: -0.6844 | AP13: 0.815 | AQ13: 4 | AR13: 0.008 | AS13: 0.328 | AT13: 0.7 | AW13: 1 | AX13: 0.4 | AY13: 0.8 | AZ13: 30 | BA13: 0 | BB13: 0.2 | BC13: 0.2 | BD13: 0.05 | BE13: 0.1 | BF13: 0 | BG13: 47 | BH13: 100 | BK13: 1 | BL13: 0.86 | BM13: 0.3 | BN13: 114 | BO13: 0.95 | BP13: 0.005 | BQ13: 1 | BT13: 41 | BU13: 36 | BV13: 38.6 | CG13: =150000*1.2 -> 180000 | CI13: 21715.12 | CJ13: 28700
A14: 12 | B14: 2012 Smart Fortwo | C14: 1 | D14: 0.29 | E14: 1.924 | F14: 510.7690596 | G14: 0.53 | H14: 0.59 | I14: 1.88 | J14: 136 | N14: 1000 | O14: 1 | P14: 293 | Q14: 9.89473291 | T14: 52.2 | U14: 1 | V14: 6 | W14: 0.315 | Z14: 0 | AA14: 0.93 | AB14: 3 | AC14: 0.833 | AD14: 21.6 | AG14: 0 | AH14: 0 | AI14: 8 | AJ14: 75 | AK14: 0.951 | AL14: 86 | AM14: -0.6844 | AP14: 0.815 | AQ14: 4 | AR14: 0.008 | AS14: 0.284 | AT14: 0.7 | AW14: 1 | AX14: 0.1 | AY14: 0.95 | AZ14: 30 | BA14: 0 | BB14: 0.2 | BC14: 0.2 | BD14: 0.05 | BE14: 0.1 | BF14: 0 | BG14: 55 | BH14: 100 | BK14: 1 | BL14: 0.86 | BM14: 0.7 | BN14: 114 | BO14: 0.85 | BP14: 0.005 | BQ14: 1 | BT14: 33 | BU14: 41 | BV14: 36.2 | CF14: 9.6 | CJ14: 12490
A15: 13 | B15: 2012 Corolla | C15: 1 | D15: 0.29 | E15: 2.067 | F15: 768.7672471 | G15: 0.53 | H15: 0.59 | I15: 2.59 | J15: 136 | N15: 1000 | O15: 1 | P15: 445 | Q15: 9.89473291 | T15: 98.4 | U15: 1 | V15: 6 | W15: 0.315 | Z15: 0 | AA15: 0.93 | AB15: 3 | AC15: 0.833 | AD15: 21.6 | AG15: 0 | AH15: 0 | AI15: 8 | AJ15: 75 | AK15: 0.951 | AL15: 86 | AM15: -0.6844 | AP15: =3.26/4 -> 0.815 | AQ15: 4 | AR15: 0.008 | AS15: 0.317 | AT15: 0.7 | AW15: 1 | AX15: 0.1 | AY15: 0.95 | AZ15: 30 | BA15: 0 | BB15: 0.2 | BC15: 0.2 | BD15: 0.05 | BE15: 0.1 | BF15: 0 | BG15: 55 | BH15: 100 | BK15: 1 | BL15: 0.86 | BM15: 0.7 | BN15: 114 | BO15: 0.85 | BP15: 0.005 | BQ15: 1 | BT15: 28 | BU15: 35 | BV15: 30.8 | CF15: 9 | CJ15: 15900
A16: 14 | B16: 2012 Versa Man6spd | C16: 1 | D16: 0.31 | E16: 2.079 | F16: 773.6620222 | G16: 0.53 | H16: 0.59 | I16: 2.59 | J16: 136 | N16: 1000 | O16: 1 | P16: 445 | Q16: =IF(OR(INDEX(fcEffOpts,fcEffType)="Atkinson",INDEX(fcEffOpts,fcEffType)="SI"),1/((11/(13.2*kWhPerGGE))+(1/gasolineKwhPerKg)),IF(INDEX(fcEffOpts,fcEffType)="diesel",1/((11/(13.2*kWhPerGalDiesel))+(1/dieselKwhPerKg)))) -> 9.89473291 | T16: 91 | U16: 1 | V16: 6 | W16: 0.315 | Z16: 0 | AA16: 0.93 | AB16: 3 | AC16: 0.833 | AD16: 21.6 | AG16: 0 | AH16: 0 | AI16: 8 | AJ16: 75 | AK16: 0.951 | AL16: 86 | AM16: -0.6844 | AP16: =3.26/4 -> 0.815 | AQ16: 4 | AR16: 0.009 | AS16: 0.311 | AT16: 0.7 | AW16: 1 | AX16: 0.1 | AY16: 0.95 | AZ16: 30 | BA16: 0 | BB16: 0.2 | BC16: 0.2 | BD16: 0.05 | BE16: 0.1 | BF16: 0 | BG16: 55 | BH16: 100 | BK16: 1 | BL16: 0.86 | BM16: 0.7 | BN16: 114 | BO16: 0.85 | BP16: 0.005 | BQ16: 1 | BT16: 26 | BU16: 31 | BV16: 28 | CJ16: 14480
A17: 15 | B17: 2012 Versa CVT | C17: 1 | D17: 0.31 | E17: 2.052 | F17: 690.6254908 | G17: 0.53 | H17: 0.59 | I17: 2.59 | J17: 136 | N17: 1000 | O17: 1 | P17: 364 | Q17: =IF(OR(INDEX(fcEffOpts,fcEffType)="Atkinson",INDEX(fcEffOpts,fcEffType)="SI"),1/((11/(13.2*kWhPerGGE))+(1/gasolineKwhPerKg)),IF(INDEX(fcEffOpts,fcEffType)="diesel",1/((11/(13.2*kWhPerGalDiesel))+(1/dieselKwhPerKg)))) -> 9.89473291 | T17: 81.3 | U17: 1 | V17: 6 | W17: 0.315 | Z17: 0 | AA17: 0.93 | AB17: 3 | AC17: 0.833 | AD17: 21.6 | AG17: 0 | AH17: 0 | AI17: 8 | AJ17: 75 | AK17: 0.951 | AL17: 86 | AM17: -0.6844 | AP17: =3.26/4 -> 0.815 | AQ17: 4 | AR17: 0.009 | AS17: 0.311 | AT17: 0.7 | AW17: 1 | AX17: 0.1 | AY17: 0.95 | AZ17: 30 | BA17: 0 | BB17: 0.2 | BC17: 0.2 | BD17: 0.05 | BE17: 0.1 | BF17: 0 | BG17: 55 | BH17: 100 | BK17: 1 | BL17: 0.86 | BM17: 0.7 | BN17: 114 | BO17: 0.85 | BP17: 0.005 | BQ17: 1 | BT17: 30 | BU17: 38 | BV17: 33.1 | CJ17: 14870
A18: 16 | B18: 2012 Camry | C18: 1 | D18: 0.28 | E18: 2.143 | F18: 853.7803172 | G18: 0.53 | H18: 0.59 | I18: 2.77 | J18: 136 | N18: 1000 | O18: 1 | P18: 573 | Q18: 9.89473291 | T18: 132.7 | U18: 1 | V18: 6 | W18: 0.315 | Z18: 0 | AA18: 0.93 | AB18: 3 | AC18: 0.833 | AD18: 21.6 | AG18: 0 | AH18: 0 | AI18: 8 | AJ18: 75 | AK18: 0.951 | AL18: 86 | AM18: -0.6844 | AP18: 0.815 | AQ18: 4 | AR18: 0.009 | AS18: 0.336 | AT18: 0.7 | AW18: 1 | AX18: 0.1 | AY18: 0.95 | AZ18: 30 | BA18: 0 | BB18: 0.2 | BC18: 0.2 | BD18: 0.05 | BE18: 0.1 | BF18: 0 | BG18: 55 | BH18: 100 | BK18: 1 | BL18: 0.86 | BM18: 0.7 | BN18: 114 | BO18: 0.85 | BP18: 0.005 | BQ18: 1 | BT18: 25 | BU18: 35 | BV18: 28.7 | CF18: 8.6 | CJ18: 21955
A19: 17 | B19: 2011 Avalon | C19: 1 | D19: 0.28 | E19: 2.198 | F19: 808.9835475 | G19: 0.53 | H19: 0.59 | I19: 2.82 | J19: 136 | N19: 1000 | O19: 1 | P19: 623 | Q19: 9.89473291 | T19: 199.8 | U19: 1 | V19: 6 | W19: 0.315 | Z19: 0 | AA19: 0.93 | AB19: 3 | AC19: 0.833 | AD19: 21.6 | AG19: 0 | AH19: 0 | AI19: 8 | AJ19: 75 | AK19: 0.951 | AL19: 86 | AM19: -0.6844 | AP19: 0.815 | AQ19: 4 | AR19: 0.008 | AS19: 0.334 | AT19: 0.7 | AW19: 1 | AX19: 0.1 | AY19: 0.95 | AZ19: 30 | BA19: 0 | BB19: 0.2 | BC19: 0.2 | BD19: 0.05 | BE19: 0.1 | BF19: 0 | BG19: 55 | BH19: 100 | BK19: 1 | BL19: 0.86 | BM19: 0.7 | BN19: 114 | BO19: 0.85 | BP19: 0.005 | BQ19: 1 | BT19: 20 | BU19: 29 | BV19: 23.2 | CF19: 6.5 | CJ19: 33195
A20: 18 | B20: 2012 Quest Minivan | C20: 1 | D20: 0.32 | E20: 2.864 | F20: 1184.979776 | G20: 0.53 | H20: 0.59 | I20: 3 | J20: 136 | N20: 1000 | O20: 1 | P20: 674 | Q20: =IF(OR(INDEX(fcEffOpts,fcEffType)="Atkinson",INDEX(fcEffOpts,fcEffType)="SI"),1/((11/(13.2*kWhPerGGE))+(1/gasolineKwhPerKg)),IF(INDEX(fcEffOpts,fcEffType)="diesel",1/((11/(13.2*kWhPerGalDiesel))+(1/dieselKwhPerKg)))) -> 9.89473291 | T20: 193.9 | U20: 1 | V20: 6 | W20: 0.315 | Z20: 0 | AA20: 0.93 | AB20: 3 | AC20: 0.833 | AD20: 21.6 | AG20: 0 | AH20: 0 | AI20: 8 | AJ20: 75 | AK20: 0.951 | AL20: 86 | AM20: -0.6844 | AP20: =3.26/4 -> 0.815 | AQ20: 4 | AR20: 0.009 | AS20: 0.349 | AT20: 0.7 | AW20: 1 | AX20: 0.1 | AY20: 0.95 | AZ20: 30 | BA20: 0 | BB20: 0.2 | BC20: 0.2 | BD20: 0.05 | BE20: 0.1 | BF20: 0 | BG20: 55 | BH20: 100 | BK20: 1 | BL20: 0.86 | BM20: 0.7 | BN20: 114 | BO20: 0.85 | BP20: 0.005 | BQ20: 1 | BT20: 19 | BU20: 24 | BV20: 21 | CF20: 7.1 | CJ20: 27750
A21: 19 | B21: 2012 Juke FWD 6spd Man | C21: 1 | D21: 0.35 | E21: 2.217 | F21: 716.8082816 | G21: 0.53 | H21: 0.59 | I21: 2.54 | J21: 136 | N21: 1000 | O21: 1 | P21: 445 | Q21: =IF(OR(INDEX(fcEffOpts,fcEffType)="Atkinson",INDEX(fcEffOpts,fcEffType)="SI"),1/((11/(13.2*kWhPerGGE))+(1/gasolineKwhPerKg)),IF(INDEX(fcEffOpts,fcEffType)="diesel",1/((11/(13.2*kWhPerGalDiesel))+(1/dieselKwhPerKg)))) -> 9.89473291 | T21: 140.2 | U21: 1 | V21: 6 | W21: 0.315 | Z21: 0 | AA21: 0.93 | AB21: 3 | AC21: 0.833 | AD21: 21.6 | AG21: 0 | AH21: 0 | AI21: 8 | AJ21: 75 | AK21: 0.951 | AL21: 86 | AM21: -0.6844 | AP21: =3.26/4 -> 0.815 | AQ21: 4 | AR21: 0.009 | AS21: 0.334 | AT21: 0.7 | AW21: 1 | AX21: 0.1 | AY21: 0.95 | AZ21: 30 | BA21: 0 | BB21: 0.2 | BC21: 0.2 | BD21: 0.05 | BE21: 0.1 | BF21: 0 | BG21: 55 | BH21: 100 | BK21: 1 | BL21: 0.86 | BM21: 0.7 | BN21: 114 | BO21: 0.85 | BP21: 0.005 | BQ21: 1 | BT21: 25 | BU21: 31 | BV21: 27.4 | CJ21: 21080
A22: 20 | B22: 2012 Juke FWD CVT | C22: 1 | D22: 0.35 | E22: 2.217 | F22: 738.1271244 | G22: 0.53 | H22: 0.59 | I22: 2.54 | J22: 136 | N22: 1000 | O22: 1 | P22: 445 | Q22: =IF(OR(INDEX(fcEffOpts,fcEffType)="Atkinson",INDEX(fcEffOpts,fcEffType)="SI"),1/((11/(13.2*kWhPerGGE))+(1/gasolineKwhPerKg)),IF(INDEX(fcEffOpts,fcEffType)="diesel",1/((11/(13.2*kWhPerGalDiesel))+(1/dieselKwhPerKg)))) -> 9.89473291 | T22: 140.2 | U22: 1 | V22: 6 | W22: 0.315 | Z22: 0 | AA22: 0.93 | AB22: 3 | AC22: 0.833 | AD22: 21.6 | AG22: 0 | AH22: 0 | AI22: 8 | AJ22: 75 | AK22: 0.951 | AL22: 86 | AM22: -0.6844 | AP22: =3.26/4 -> 0.815 | AQ22: 4 | AR22: 0.009 | AS22: 0.334 | AT22: 0.7 | AW22: 1 | AX22: 0.1 | AY22: 0.95 | AZ22: 30 | BA22: 0 | BB22: 0.2 | BC22: 0.2 | BD22: 0.05 | BE22: 0.1 | BF22: 0 | BG22: 55 | BH22: 100 | BK22: 1 | BL22: 0.86 | BM22: 0.7 | BN22: 114 | BO22: 0.95 | BP22: 0.005 | BQ22: 1 | BT22: 27 | BU22: 32 | BV22: 29 | CJ22: 19770
A23: 21 | B23: 2012 Acadia | C23: 1 | D23: 0.36 | E23: 2.938 | F23: 1241.133125 | G23: 0.53 | H23: 0.59 | I23: 3.02 | J23: 136 | N23: 1000 | O23: 1 | P23: 741 | Q23: 9.89473291 | T23: 214.8 | U23: 1 | V23: 6 | W23: 0.315 | Z23: 0 | AA23: 0.93 | AB23: 3 | AC23: 0.833 | AD23: 21.6 | AG23: 0 | AH23: 0 | AI23: 8 | AJ23: 75 | AK23: 0.951 | AL23: 86 | AM23: -0.6844 | AP23: 0.815 | AQ23: 4 | AR23: 0.009 | AS23: 0.394 | AT23: 0.7 | AW23: 1 | AX23: 0.1 | AY23: 0.95 | AZ23: 30 | BA23: 0 | BB23: 0.2 | BC23: 0.2 | BD23: 0.05 | BE23: 0.1 | BF23: 0 | BG23: 55 | BH23: 100 | BK23: 1 | BL23: 0.86 | BM23: 0.7 | BN23: 114 | BO23: 0.85 | BP23: 0.005 | BQ23: 1 | BT23: 17 | BU23: 24 | BV23: 19.6 | CF23: 6.5 | CJ23: 32605
A24: 22 | B24: 2012 Tundra | C24: 1 | D24: 0.37 | E24: 3.126 | F24: 1368.602256 | G24: 0.53 | H24: 0.59 | I24: 3.71 | J24: 136 | N24: 1000 | O24: 1 | P24: 890 | Q24: 9.89473291 | T24: 231.2 | U24: 1 | V24: 6 | W24: 0.315 | Z24: 0 | AA24: 0.93 | AB24: 3 | AC24: 0.833 | AD24: 21.6 | AG24: 0 | AH24: 0 | AI24: 8 | AJ24: 75 | AK24: 0.951 | AL24: 86 | AM24: -0.6844 | AP24: 0.815 | AQ24: 4 | AR24: 0.009 | AS24: 0.407 | AT24: 0.7 | AW24: 1 | AX24: 0.1 | AY24: 0.95 | AZ24: 30 | BA24: 0 | BB24: 0.2 | BC24: 0.2 | BD24: 0.05 | BE24: 0.1 | BF24: 0 | BG24: 55 | BH24: 100 | BK24: 1 | BL24: 0.86 | BM24: 0.7 | BN24: 114 | BO24: 0.85 | BP24: 0.005 | BQ24: 1 | BT24: 15 | BU24: 20 | BV24: 16.9 | CF24: 6.6 | CJ24: 27260
A25: 23 | B25: 2011 Golf TDI | C25: 1 | D25: 0.32 | E25: 2.115 | F25: 856.934461 | G25: 0.53 | H25: 0.59 | I25: 2.59 | J25: 136 | N25: 1000 | O25: 1 | P25: 550 | Q25: 9.89473291 | T25: 104.4 | U25: 3 | V25: 6 | W25: 0.315 | Z25: 0 | AA25: 0.93 | AB25: 3 | AC25: 0.833 | AD25: 21.6 | AG25: 0 | AH25: 0 | AI25: 44 | AJ25: 0 | AK25: 0.834 | AL25: 86 | AM25: -0.6844 | AP25: 0.815 | AQ25: 4 | AR25: 0.008 | AS25: 0.317 | AT25: 0.7 | AW25: 1 | AX25: 0.4 | AY25: 0.7 | AZ25: 30 | BA25: 0 | BB25: 0.2 | BC25: 0.2 | BD25: 0.05 | BE25: 0.1 | BF25: 0 | BG25: 1 | BH25: 100 | BK25: 1 | BL25: 0.86 | BM25: 0.7 | BN25: 114 | BO25: 0.85 | BP25: 0.005 | BQ25: 1 | BT25: 26.63842098 | BU25: 37.29378937 | BV25: 30.6 | CF25: 8.7 | CJ25: 23995
A26: 24 | B26: 2012 Audi Q7 TDI | C26: 1 | D26: 0.37 | E26: 2.757 | F26: 1776.988663 | G26: 0.53 | H26: 0.59 | I26: 3 | J26: 136 | N26: 2000 | O26: 1 | P26: 1002 | Q26: 9.89473291 | T26: 167.8 | U26: 3 | V26: 6 | W26: 0.315 | Z26: 0 | AA26: 0.93 | AB26: 3 | AC26: 0.833 | AD26: 21.6 | AG26: 0 | AH26: 0 | AI26: 44 | AJ26: 0 | AK26: 0.834 | AL26: 86 | AM26: -0.6844 | AP26: 1.29 | AQ26: 4 | AR26: 0.009 | AS26: 0.374 | AT26: 0.7 | AW26: 1 | AX26: 0.4 | AY26: 0.7 | AZ26: 30 | BA26: 0 | BB26: 0.2 | BC26: 0.2 | BD26: 0.05 | BE26: 0.1 | BF26: 0 | BG26: 1 | BH26: 100 | BK26: 1 | BL26: 0.86 | BM26: 0.7 | BN26: 114 | BO26: 0.85 | BP26: 0.005 | BQ26: 1 | BT26: 15.09510522 | BU26: 22.19868415 | BV26: 17.6 | CJ26: 51450
A27: 25 | B27: 2012 Audi A3 TDI | C27: 1 | D27: 0.33 | E27: 2.009 | F27: 1003.493361 | G27: 0.53 | H27: 0.59 | I27: 2.59 | J27: 136 | N27: 2000 | O27: 1 | P27: 554 | Q27: 9.89473291 | T27: 104.4 | U27: 3 | V27: 6 | W27: 0.315 | Z27: 0 | AA27: 0.93 | AB27: 3 | AC27: 0.833 | AD27: 21.6 | AG27: 0 | AH27: 0 | AI27: 44 | AJ27: 0 | AK27: 0.834 | AL27: 86 | AM27: -0.6844 | AP27: 0.815 | AQ27: 4 | AR27: 0.009 | AS27: 0.317 | AT27: 0.7 | AW27: 1 | AX27: 0.4 | AY27: 0.7 | AZ27: 30 | BA27: 0 | BB27: 0.2 | BC27: 0.2 | BD27: 0.05 | BE27: 0.1 | BF27: 0 | BG27: 1 | BH27: 100 | BK27: 1 | BL27: 0.86 | BM27: 0.7 | BN27: 114 | BO27: 0.85 | BP27: 0.005 | BQ27: 1 | BT27: 26.63842098 | BU27: 37.29378937 | BV27: 30.6 | CJ27: 30250
A28: 26 | B28: 2011 Merc-Benz R350 BTEC | C28: 1 | D28: 0.31 | E28: 2.603 | F28: 1667.789703 | G28: 0.53 | H28: 0.59 | I28: 3.23 | J28: 136 | N28: 5000 | O28: 1 | P28: 801 | Q28: =IF(OR(INDEX(fcEffOpts,fcEffType)="Atkinson",INDEX(fcEffOpts,fcEffType)="SI"),1/((11/(13.2*kWhPerGGE))+(1/gasolineKwhPerKg)),IF(INDEX(fcEffOpts,fcEffType)="diesel",1/((11/(13.2*kWhPerGalDiesel))+(1/dieselKwhPerKg)))) -> 9.89473291 | T28: 156.6 | U28: 3 | V28: 6 | W28: 0.315 | Z28: 0 | AA28: 0.93 | AB28: 3 | AC28: 0.833 | AD28: 21.6 | AG28: 0 | AH28: 0 | AI28: 44 | AJ28: 0 | AK28: 0.834 | AL28: 86 | AM28: -0.6844 | AP28: 1.2 | AQ28: 4 | AR28: 0.009 | AS28: 0.369 | AT28: 0.7 | AW28: 1 | AX28: 0.4 | AY28: 0.7 | AZ28: 30 | BA28: 0 | BB28: 0.2 | BC28: 0.2 | BD28: 0.05 | BE28: 0.1 | BF28: 0 | BG28: 1 | BH28: 100 | BK28: 1 | BL28: 0.86 | BM28: 0.7 | BN28: 114 | BO28: 0.85 | BP28: 0.005 | BQ28: 1 | BT28: 15.98305259 | BU28: 21.31073679 | BV28: 18 | CJ28: 51740
A29: 27 | B29: 2011 BMW 335d | C29: 1 | D29: 0.3 | E29: 2.063 | F29: 931.8199125 | G29: 0.53 | H29: 0.59 | I29: 2.77 | J29: 136 | N29: 5000 | O29: 1 | P29: 611 | Q29: =IF(OR(INDEX(fcEffOpts,fcEffType)="Atkinson",INDEX(fcEffOpts,fcEffType)="SI"),1/((11/(13.2*kWhPerGGE))+(1/gasolineKwhPerKg)),IF(INDEX(fcEffOpts,fcEffType)="diesel",1/((11/(13.2*kWhPerGalDiesel))+(1/dieselKwhPerKg)))) -> 9.89473291 | T29: 197.6 | U29: 3 | V29: 6 | W29: 0.315 | Z29: 0 | AA29: 0.93 | AB29: 3 | AC29: 0.833 | AD29: 21.6 | AG29: 0 | AH29: 0 | AI29: 44 | AJ29: 0 | AK29: 0.834 | AL29: 86 | AM29: -0.6844 | AP29: 0.815 | AQ29: 4 | AR29: 0.009 | AS29: 0.317 | AT29: 0.7 | AW29: 1 | AX29: 0.4 | AY29: 0.7 | AZ29: 30 | BA29: 0 | BB29: 0.2 | BC29: 0.2 | BD29: 0.05 | BE29: 0.1 | BF29: 0 | BG29: 1 | BH29: 100 | BK29: 1 | BL29: 0.86 | BM29: 0.7 | BN29: 114 | BO29: 0.85 | BP29: 0.005 | BQ29: 1 | BT29: 20.42278942 | BU29: 31.96610518 | BV29: 24.4 | CF29: 6.7 | CJ29: 44150
A30: 28 | B30: 2012 Volkswagen Touareg TDI | C30: 1 | D30: 0.37 | E30: 2.654 | F30: 1508.00837 | G30: 0.53 | H30: 0.59 | I30: 2.9 | J30: 136 | N30: 5000 | O30: 1 | P30: 1002 | Q30: 9.89473291 | T30: 167.8 | U30: 3 | V30: 6 | W30: 0.315 | Z30: 0 | AA30: 0.93 | AB30: 3 | AC30: 0.833 | AD30: 21.6 | AG30: 0 | AH30: 0 | AI30: 44 | AJ30: 0 | AK30: 0.834 | AL30: 86 | AM30: -0.6844 | AP30: 0.815 | AQ30: 4 | AR30: 0.009 | AS30: 0.369 | AT30: 0.7 | AW30: 1 | AX30: 0.4 | AY30: 0.7 | AZ30: 30 | BA30: 0 | BB30: 0.2 | BC30: 0.2 | BD30: 0.05 | BE30: 0.1 | BF30: 0 | BG30: 1 | BH30: 100 | BK30: 1 | BL30: 0.86 | BM30: 0.7 | BN30: 114 | BO30: 0.85 | BP30: 0.005 | BQ30: 1 | BT30: 16.87099996 | BU30: 24.86252625 | BV30: 19.7 | CF30: 8.4 | CJ30: 46475

Sheet SavedRefs (hidden)
A2: Selection | B2: Scenario name
A3: 12 | B3: Leaf | D3: www.carsdirect.com | E3: www.carsdirect.com | F3: Curb mass of 3366 lbs. | I3: www.carsdirect.com | Q3: tank + fuel (trend based on Corolla tank size and weight: http://www.amazon.com/Dorman-576-854-Fuel-Tank/dp/B000IZ9R4C) | W3: 1.9L Saturn sohc | Z3: www.nissannews.com/.../NISSAN_LEAF_SpecSheet_FINAL_US_2.pdf | AA3: http://newsroom.nissan-europe.com/EU/ru-ru/Media/Media.aspx?mediaid=41193 | AC3: A. Simpson, Cost Benefit Analysis of Plug-In Hybrid Electric Vehicle Technology, 2006; http://www.nrel.gov/vehiclesandfuels/vsa/pdfs/40485.pdf | AD3: A. Simpson, Cost Benefit Analysis of Plug-In Hybrid Electric Vehicle Technology, 2006; http://www.nrel.gov/vehiclesandfuels/vsa/pdfs/40485.pdf | AG3: www.nissannews.com/.../NISSAN_LEAF_SpecSheet_FINAL_US_2.pdf | AH3: www.nissannews.com/.../NISSAN_LEAF_SpecSheet_FINAL_US_2.pdf | AI3: See ESS Chars worksheet | AJ3: See ESS Chars worksheet | AK3: http://www.greencarcongress.com/2008/02/nissan-tests-ne.html | AL3: Adjusted to match Nissan's 5 year estimate: VARTA: http://www.ocean.udel.edu/cms/wkempton/Kempton-V2G-pdfFiles/PDF%20format/Duvall-V2G-batteries-June05.pdf | AM3: VARTA: http://www.ocean.udel.edu/cms/wkempton/Kempton-V2G-pdfFiles/PDF%20format/Duvall-V2G-batteries-June05.pdf | AR3: Guess for low rolling resistance tires: http://usnews.rankingsandreviews.com/cars-trucks/Nissan_Leaf/Performance/ | AS3: www.carsdirect.com | AW3: na | AY3: Depth of discharge estimated from window sticker .34 kWh/mile, 73 miles, and assumed charge efficiency of 86% | BA3: na | BB3: na | BC3: na | BD3: na | BE3: na | BL3: http://en.wikipedia.org/wiki/Tesla_Roadster#cite_note-The_21st_century_Electric_Car-99 | BP3: na | BW3: http://www.nissannews.com/newsrelease.do;jsessionid=B88284B8B5DA5851A24B83FF1F848A0D?&mid=&id=2101 | BX3: http://www.nissannews.com/newsrelease.do;jsessionid=B88284B8B5DA5851A24B83FF1F848A0D?&mid=&id=2101 | BY3: http://www.fueleconomy.gov/feg/Find.do?action=sbs&id=30979 | CF3: http://www.carsdirect.com/buying-guides/compact-cars/rankings?ranking=acceleration | CG3: http://www.nissanusa.com/leaf-electric-car/?dcp=ppn.39666654.&dcc=0.216878497#/car/index (Nissan: "For general automotive purposes, Nissan sees a 5 year battery life.") | CH3: http://www.nissannews.com/newsrelease.do;jsessionid=B88284B8B5DA5851A24B83FF1F848A0D?&mid=&id=2101 | CI3: www.carsdirect.com ($1300 added for navigation) | CJ3: www.carsdirect.com
A4: 25 | B4: Tesla Roadster | D4: http://blogs.edmunds.com/greencaradvisor/2009/03/tesla-model-s-unveiled-a-great-concept-but-now-the-wait-begins.html | E4: Estimated based on info at: www.carsdirect.com | F4: Curb mass of 2723 lbs. | I4: www.carsdirect.com | Q4: tank + fuel (trend based on Corolla tank size and weight: http://www.amazon.com/Dorman-576-854-Fuel-Tank/dp/B000IZ9R4C) | W4: 1.9L Saturn sohc | Z4: http://www.teslamotors.com/performance/tech_specs.php | AC4: A. Simpson, Cost Benefit Analysis of Plug-In Hybrid Electric Vehicle Technology, 2006; http://www.nrel.gov/vehiclesandfuels/vsa/pdfs/40485.pdf | AD4: A. Simpson, Cost Benefit Analysis of Plug-In Hybrid Electric Vehicle Technology, 2006; http://www.nrel.gov/vehiclesandfuels/vsa/pdfs/40485.pdf | AG4: http://www.teslamotors.com/display_data/TeslaRoadsterBatterySystem.pdf | AH4: http://www.teslamotors.com/display_data/TeslaRoadsterBatterySystem.pdf | AI4: See ESS Chars worksheet | AJ4: See ESS Chars worksheet | AK4: http://www.greencarcongress.com/2008/02/nissan-tests-ne.html | AL4: VARTA adjusted to meet data: http://www.ocean.udel.edu/cms/wkempton/Kempton-V2G-pdfFiles/PDF%20format/Duvall-V2G-batteries-June05.pdf | AM4: VARTA: http://www.ocean.udel.edu/cms/wkempton/Kempton-V2G-pdfFiles/PDF%20format/Duvall-V2G-batteries-June05.pdf | AS4: www.carsdirect.com | BL4: http://en.wikipedia.org/wiki/Tesla_Roadster#cite_note-The_21st_century_Electric_Car-99 | BZ4: https://www.teslamotors.com/display_data.php?data_name=range_blog2 | CA4: https://www.teslamotors.com/display_data.php?data_name=range_blog3 | CB4: https://www.teslamotors.com/display_data.php?data_name=range_blog4 | CC4: https://www.teslamotors.com/display_data.php?data_name=range_blog5 | CG4: The battery pack in your Tesla Roadster is expected to maintain good driving performance for about 100,000 miles or five years, whichever comes first.http://www.teslamotors.com/learn_more/faqs.php | CI4: http://www.carsdirect.com/build/options?zipcode=80004&acode=USC10LOC021A0&restore=false | CJ4: www.carsdirect.com
D5: URL;http://www.carsdirect.com/build/options/vehicle-specs?makeName=smart&modelName=fortwo electric drive&year=2011&acode=USC10SMC021A0 | E5: URL;http://www.carsdirect.com/build/options/vehicle-specs?makeName=smart&modelName=fortwo electric drive&year=2011&acode=USC10SMC021A0 | F5: Curb mass of 1958 lbs.URL;http://www.carsdirect.com/build/options/vehicle-specs?makeName=smart&modelName=fortwo electric drive&year=2011&acode=USC10SMC021A0 | I5: URL;http://www.carsdirect.com/build/options/vehicle-specs?makeName=smart&modelName=fortwo electric drive&year=2011&acode=USC10SMC021A0 | Q5: tank + fuel (trend based on Corolla tank size and weight: http://www.amazon.com/Dorman-576-854-Fuel-Tank/dp/B000IZ9R4C) | T5: URL;http://www.carsdirect.com/build/options/vehicle-specs?makeName=smart&modelName=fortwo electric drive&year=2011&acode=USC10SMC021A0 | W5: 1.9L Saturn sohc | Z5: http://avt.inl.gov/pdf/uev/fact2009bmwmini.pdf | AC5: A. Simpson, Cost Benefit Analysis of Plug-In Hybrid Electric Vehicle Technology, 2006; http://www.nrel.gov/vehiclesandfuels/vsa/pdfs/40485.pdf | AD5: A. Simpson, Cost Benefit Analysis of Plug-In Hybrid Electric Vehicle Technology, 2006; http://www.nrel.gov/vehiclesandfuels/vsa/pdfs/40485.pdf | AG5: Back calculated to provide full motor power. | AH5: http://www.smartusa.com/models/electric-drive/technology.aspx | AI5: See ESS Chars | AJ5: See ESS Chars | AK5: http://www.greencarcongress.com/2008/02/nissan-tests-ne.html | AL5: http://www.nrel.gov/docs/fy10osti/47454.pdf | AM5: VARTA: http://www.ocean.udel.edu/cms/wkempton/Kempton-V2G-pdfFiles/PDF%20format/Duvall-V2G-batteries-June05.pdf | AS5: URL;http://www.carsdirect.com/build/options/vehicle-specs?makeName=smart&modelName=fortwo electric drive&year=2011&acode=USC10SMC021A0 | AX5: guess | AY5: guess | BL5: Estimated using EPA combined range (63 miles, assumed 85% DOD, and 0.390 kWh/mile combined efficiency) | BW5: http://www.fueleconomy.gov/feg/Find.do?action=sbs&id=31065 | BX5: http://www.fueleconomy.gov/feg/Find.do?action=sbs&id=31066 | BY5: http://www.fueleconomy.gov/feg/Find.do?action=sbs&id=31067 | CF5: http://www.autoblog.com/2011/08/16/2012-smart-fortwo-electric-drive-hits-75-mph-whizzes-to-60-in-1/ | CH5: http://www.smartusa.com/models/electric-drive/technology.aspx | CI5: URL;http://www.carsdirect.com/build/options/vehicle-specs?makeName=smart&modelName=fortwo&year=2012&acode=USC20SMC011B0 | CJ5: URL;http://www.carsdirect.com/build/options/vehicle-specs?makeName=smart&modelName=fortwo electric drive&year=2011&acode=USC10SMC021A0
A6: 34 | B6: MINI E | D6: www.carsdirect.com | E6: Estimated based on info at: www.carsdirect.com | F6: http://www.miniusa.com/minie-usa/pdf/MINI-E-spec-sheet.pdf | I6: http://www.carsdirect.com/research/specs?cat=6&make=MN&modelid=395&acode=USC00MNC021A0&year=2010 | Q6: tank + fuel (trend based on Corolla tank size and weight: http://www.amazon.com/Dorman-576-854-Fuel-Tank/dp/B000IZ9R4C) | W6: 1.9L Saturn sohc | Z6: http://avt.inl.gov/pdf/uev/fact2009bmwmini.pdf | AC6: A. Simpson, Cost Benefit Analysis of Plug-In Hybrid Electric Vehicle Technology, 2006; http://www.nrel.gov/vehiclesandfuels/vsa/pdfs/40485.pdf | AD6: A. Simpson, Cost Benefit Analysis of Plug-In Hybrid Electric Vehicle Technology, 2006; http://www.nrel.gov/vehiclesandfuels/vsa/pdfs/40485.pdf | AG6: Back calculated to provide full motor power. | AH6: http://www.miniusa.com/minie-usa/pdf/MINI-E-spec-sheet.pdf | AI6: See ESS Chars | AJ6: See ESS Chars | AK6: http://www.greencarcongress.com/2008/02/nissan-tests-ne.html | AL6: http://www.nrel.gov/docs/fy10osti/47454.pdf | AM6: VARTA: http://www.ocean.udel.edu/cms/wkempton/Kempton-V2G-pdfFiles/PDF%20format/Duvall-V2G-batteries-June05.pdf | AX6: http://www.miniusa.com/minie-usa/pdf/MINI-E-spec-sheet.pdf | AY6: http://www.miniusa.com/minie-usa/pdf/MINI-E-spec-sheet.pdf | BL6: http://en.wikipedia.org/wiki/Tesla_Roadster#cite_note-The_21st_century_Electric_Car-100 | BZ6: http://avt.inl.gov/fsev.shtml | CB6: http://avt.inl.gov/fsev.shtml | CD6: http://avt.inl.gov/fsev.shtml | CE6: http://avt.inl.gov/fsev.shtml | CF6: http://www.miniusa.com/minie-usa/
D7: URL;http://www.carsdirect.com/build/options/vehicle-specs?makeName=Chevrolet&modelName=Volt&year=2012&acode=USC20CHC311A0 | E7: URL;http://www.carsdirect.com/build/options/vehicle-specs?makeName=Chevrolet&modelName=Volt&year=2012&acode=USC20CHC311A0 | F7: Curb mass of 3781 lbs.URL;http://www.carsdirect.com/build/options/vehicle-specs?makeName=Chevrolet&modelName=Volt&year=2012&acode=USC20CHC311A0 | I7: URL;http://www.carsdirect.com/build/options/vehicle-specs?makeName=Chevrolet&modelName=Volt&year=2012&acode=USC20CHC311A0 | P7: URL;http://www.carsdirect.com/build/options/vehicle-specs?makeName=Chevrolet&modelName=Volt&year=2012&acode=USC20CHC311A0 | Q7: tank + fuel (trend based on Corolla tank size and weight: http://www.amazon.com/Dorman-576-854-Fuel-Tank/dp/B000IZ9R4C) | T7: URL;http://www.carsdirect.com/build/options/vehicle-specs?makeName=Chevrolet&modelName=Volt&year=2012&acode=USC20CHC311A0 | W7: 1.9L Saturn sohc | Z7: http://www.chevrolet.com/volt-electric-car/features-specs/ | AC7: A. Simpson, Cost Benefit Analysis of Plug-In Hybrid Electric Vehicle Technology, 2006; http://www.nrel.gov/vehiclesandfuels/vsa/pdfs/40485.pdf | AD7: A. Simpson, Cost Benefit Analysis of Plug-In Hybrid Electric Vehicle Technology, 2006; http://www.nrel.gov/vehiclesandfuels/vsa/pdfs/40485.pdf | AG7: Based on motor output | AH7: http://www.chevrolet.com/volt-electric-car/features-specs/ | AI7: See ESS Chars worksheet | AJ7: See ESS Chars worksheet | AK7: http://www.greencarcongress.com/2008/02/nissan-tests-ne.html | AL7: VARTA: http://www.ocean.udel.edu/cms/wkempton/Kempton-V2G-pdfFiles/PDF%20format/Duvall-V2G-batteries-June05.pdf | AM7: VARTA: http://www.ocean.udel.edu/cms/wkempton/Kempton-V2G-pdfFiles/PDF%20format/Duvall-V2G-batteries-June05.pdf | AS7: URL;http://www.carsdirect.com/build/options/vehicle-specs?makeName=Chevrolet&modelName=Volt&year=2012&acode=USC20CHC311A0 | BL7: http://en.wikipedia.org/wiki/Tesla_Roadster#cite_note-The_21st_century_Electric_Car-107 | CF7: 9.5, but this model allows the engine to assist, the Volt does not http://www.carsdirect.com/buying-guides/compact-cars/rankings?ranking=acceleration | CG7: Assumes 20% over warranty: http://www.chevrolet.com/volt-electric-car/ | CI7: URL;http://www.carsdirect.com/build/options/vehicle-specs?makeName=Chevrolet&modelName=Cruze&year=2012&acode=USC20CHC301C0 | CJ7: URL;http://www.carsdirect.com/build/options/vehicle-specs?makeName=Chevrolet&modelName=Volt&year=2012&acode=USC20CHC311A0
D8: URL;http://www.carsdirect.com/build/options/vehicle-specs?makeName=Toyota&modelName=Prius Plug-in&year=2012&acode=USC20TOC241A0 | E8: URL;http://www.carsdirect.com/build/options/vehicle-specs?makeName=Toyota&modelName=Prius Plug-in&year=2012&acode=USC20TOC241A0 | F8: Curb mass of 3165 lbs.URL;http://www.carsdirect.com/build/options/vehicle-specs?makeName=Toyota&modelName=Prius Plug-in&year=2012&acode=USC20TOC241A0 | I8: URL;http://www.carsdirect.com/build/options/vehicle-specs?makeName=Toyota&modelName=Prius Plug-in&year=2012&acode=USC20TOC241A0 | P8: URL;http://www.carsdirect.com/build/options/vehicle-specs?makeName=Toyota&modelName=Prius Plug-in&year=2012&acode=USC20TOC241A0 | Q8: tank + fuel (trend based on Corolla tank size and weight: http://www.amazon.com/Dorman-576-854-Fuel-Tank/dp/B000IZ9R4C) | T8: URL;http://www.carsdirect.com/build/options/vehicle-specs?makeName=Toyota&modelName=Prius Plug-in&year=2012&acode=USC20TOC241A0 | U8: http://www.hybridcars.com/compacts-sedans/toyota-camry-hybrid-overview.html | W8: 1.9L Saturn sohc | Z8: 60*.6 factor for Toyota ratings: http://www.toyota.com/prius-hybrid/specs.html | AC8: A. Simpson, Cost Benefit Analysis of Plug-In Hybrid Electric Vehicle Technology, 2006; http://www.nrel.gov/vehiclesandfuels/vsa/pdfs/40485.pdf | AD8: A. Simpson, Cost Benefit Analysis of Plug-In Hybrid Electric Vehicle Technology, 2006; http://www.nrel.gov/vehiclesandfuels/vsa/pdfs/40485.pdf | AG8: http://www.toyota.com/prius-hybrid/specs.html | AH8: http://www.autoblog.com/2011/09/28/2012-toyota-prius-plug-in-first-drive-review/ | AI8: See ESS Chars worksheet | AJ8: See ESS Chars worksheet | AK8: http://www.greencarcongress.com/2008/02/nissan-tests-ne.html | AL8: VARTA: http://www.ocean.udel.edu/cms/wkempton/Kempton-V2G-pdfFiles/PDF%20format/Duvall-V2G-batteries-June05.pdf | AM8: VARTA: http://www.ocean.udel.edu/cms/wkempton/Kempton-V2G-pdfFiles/PDF%20format/Duvall-V2G-batteries-June05.pdf | AS8: URL;http://www.carsdirect.com/build/options/vehicle-specs?makeName=Toyota&modelName=Prius Plug-in&year=2012&acode=USC20TOC241A0 | BL8: http://en.wikipedia.org/wiki/Tesla_Roadster#cite_note-The_21st_century_Electric_Car-104 | CG8: Assumes 20% over warranty: http://www.toyota.com/byt4/2012/prius-plug-in/en/condensed_ebro.pdf | CJ8: URL;http://www.carsdirect.com/build/options/vehicle-specs?makeName=Toyota&modelName=Prius Plug-in&year=2012&acode=USC20TOC241A0
D9: .27 reduced 4.4% (http://en.wikipedia.org/wiki/Automobile_drag_coefficient, http://www.roadandtrack.com/tests/impressions/2012-honda-civic) | E9: URL;http://www.carsdirect.com/build/options/vehicle-specs?makeName=Honda&modelName=Civic Hybrid&year=2012&acode=USC20HOC071A0 | F9: Curb mass of 2853 lbs.URL;http://www.carsdirect.com/build/options/vehicle-specs?makeName=Honda&modelName=Civic Hybrid&year=2012&acode=USC20HOC071A0 | I9: URL;http://www.carsdirect.com/build/options/vehicle-specs?makeName=Honda&modelName=Civic Hybrid&year=2012&acode=USC20HOC071A0 | P9: URL;http://www.carsdirect.com/build/options/vehicle-specs?makeName=Honda&modelName=Civic Hybrid&year=2012&acode=USC20HOC071A0 | Q9: tank + fuel (trend based on Corolla tank size and weight: http://www.amazon.com/Dorman-576-854-Fuel-Tank/dp/B000IZ9R4C) | T9: URL;http://www.carsdirect.com/build/options/vehicle-specs?makeName=Honda&modelName=Civic Hybrid&year=2012&acode=USC20HOC071A0 | U9: www.carsdirect.com | W9: 1.9L Saturn sohc | Z9: http://automobiles.honda.com/civic-hybrid/specifications.aspx | AC9: A. Simpson, Cost Benefit Analysis of Plug-In Hybrid Electric Vehicle Technology, 2006; http://www.nrel.gov/vehiclesandfuels/vsa/pdfs/40485.pdf | AD9: A. Simpson, Cost Benefit Analysis of Plug-In Hybrid Electric Vehicle Technology, 2006; http://www.nrel.gov/vehiclesandfuels/vsa/pdfs/40485.pdf | AG9: http://automobiles.honda.com/civic-hybrid/specifications.aspx | AH9: http://mobilidaman.info/honda-2/honda-use-li-ion-battery-for-the-civic-hybrid.html | AI9: See ESS Chars worksheet | AJ9: See ESS Chars worksheet | AK9: http://www.greencarcongress.com/2008/02/nissan-tests-ne.html | AL9: VARTA adjusted to match data: http://www.ocean.udel.edu/cms/wkempton/Kempton-V2G-pdfFiles/PDF%20format/Duvall-V2G-batteries-June05.pdf | AM9: VARTA: http://www.ocean.udel.edu/cms/wkempton/Kempton-V2G-pdfFiles/PDF%20format/Duvall-V2G-batteries-June05.pdf | AS9: URL;http://www.carsdirect.com/build/options/vehicle-specs?makeName=Honda&modelName=Civic Hybrid&year=2012&acode=USC20HOC071A0 | BL9: http://en.wikipedia.org/wiki/Tesla_Roadster#cite_note-The_21st_century_Electric_Car-101 | BT9: URL;http://www.carsdirect.com/build/options/vehicle-specs?makeName=Honda&modelName=Civic Hybrid&year=2012&acode=USC20HOC071A0 | BU9: URL;http://www.carsdirect.com/build/options/vehicle-specs?makeName=Honda&modelName=Civic Hybrid&year=2012&acode=USC20HOC071A0 | BV9: URL;http://www.carsdirect.com/build/options/vehicle-specs?makeName=Honda&modelName=Civic Hybrid&year=2012&acode=USC20HOC071A0 | CF9: www.carsdirect.com | CG9: Assumes 20% over warranty: http://automobiles.honda.com/civic-hybrid/warranty.aspx | CI9: URL;http://www.carsdirect.com/build/options/vehicle-specs?makeName=Honda&modelName=Civic&year=2012&acode=USC20HOC021B0 | CJ9: URL;http://www.carsdirect.com/build/options/vehicle-specs?makeName=Honda&modelName=Civic Hybrid&year=2012&acode=USC20HOC071A0
D10: URL;http://www.carsdirect.com/build/options/vehicle-specs?makeName=Toyota&modelName=Camry Hybrid&year=2012&acode=USC20TOC201A0 | E10: URL;http://www.carsdirect.com/build/options/vehicle-specs?makeName=Toyota&modelName=Camry Hybrid&year=2012&acode=USC20TOC201A0 | F10: Curb mass of 3435 lbs.URL;http://www.carsdirect.com/build/options/vehicle-specs?makeName=Toyota&modelName=Camry Hybrid&year=2012&acode=USC20TOC201A0 | I10: URL;http://www.carsdirect.com/build/options/vehicle-specs?makeName=Toyota&modelName=Camry Hybrid&year=2012&acode=USC20TOC201A0 | P10: URL;http://www.carsdirect.com/build/options/vehicle-specs?makeName=Toyota&modelName=Camry Hybrid&year=2012&acode=USC20TOC201A0 | Q10: tank + fuel (trend based on Corolla tank size and weight: http://www.amazon.com/Dorman-576-854-Fuel-Tank/dp/B000IZ9R4C) | T10: URL;http://www.carsdirect.com/build/options/vehicle-specs?makeName=Toyota&modelName=Camry Hybrid&year=2012&acode=USC20TOC201A0 | U10: http://www.hybridcars.com/compacts-sedans/toyota-camry-hybrid-overview.html | W10: 1.9L Saturn sohc | Z10: 105*.6 factor for Toyota ratings: http://pressroom.toyota.com/releases/2012+toyota+camry+hybrid+product+specs.htm | AC10: A. Simpson, Cost Benefit Analysis of Plug-In Hybrid Electric Vehicle Technology, 2006; http://www.nrel.gov/vehiclesandfuels/vsa/pdfs/40485.pdf | AD10: A. Simpson, Cost Benefit Analysis of Plug-In Hybrid Electric Vehicle Technology, 2006; http://www.nrel.gov/vehiclesandfuels/vsa/pdfs/40485.pdf | AG10: Estimated from 149 kW net, 110 kW engine: http://www.toyota.com/camry/specs.html | AH10: http://pressroom.toyota.com/releases/2012+toyota+camry+hybrid+product+specs.htm | AI10: See ESS Chars worksheet | AJ10: See ESS Chars worksheet | AK10: http://www.greencarcongress.com/2008/02/nissan-tests-ne.html | AL10: VARTA: http://www.ocean.udel.edu/cms/wkempton/Kempton-V2G-pdfFiles/PDF%20format/Duvall-V2G-batteries-June05.pdf | AM10: VARTA: http://www.ocean.udel.edu/cms/wkempton/Kempton-V2G-pdfFiles/PDF%20format/Duvall-V2G-batteries-June05.pdf | AS10: URL;http://www.carsdirect.com/build/options/vehicle-specs?makeName=Toyota&modelName=Camry Hybrid&year=2012&acode=USC20TOC201A0 | BL10: http://en.wikipedia.org/wiki/Tesla_Roadster#cite_note-The_21st_century_Electric_Car-102 | BO10: ADVISOR run multiplying the gearbox and wheel/axle efficiency | BT10: URL;http://www.carsdirect.com/build/options/vehicle-specs?makeName=Toyota&modelName=Camry Hybrid&year=2012&acode=USC20TOC201A0 | BU10: URL;http://www.carsdirect.com/build/options/vehicle-specs?makeName=Toyota&modelName=Camry Hybrid&year=2012&acode=USC20TOC201A0 | BV10: URL;http://www.carsdirect.com/build/options/vehicle-specs?makeName=Toyota&modelName=Camry Hybrid&year=2012&acode=USC20TOC201A0 | CG10: "Hybrid vehicle battery expected life is 150,000 miles based on laboratory bench testing" http://www.toyota.com/byt4/2012/camry/en/condensed_ebro.pdf | CI10: URL;http://www.carsdirect.com/build/options/vehicle-specs?makeName=Toyota&modelName=Camry&year=2012&acode=USC20TOC021B0 | CJ10: URL;http://www.carsdirect.com/build/options/vehicle-specs?makeName=Toyota&modelName=Camry Hybrid&year=2012&acode=USC20TOC201A0
D11: URL;http://www.carsdirect.com/build/options/vehicle-specs?makeName=Toyota&modelName=Prius&year=2011&acode=01C10TOC161B0 | E11: URL;http://www.carsdirect.com/build/options/vehicle-specs?makeName=Toyota&modelName=Prius&year=2011&acode=01C10TOC161B0 | F11: Curb mass of 3042 lbs.URL;http://www.carsdirect.com/build/options/vehicle-specs?makeName=Toyota&modelName=Prius&year=2011&acode=01C10TOC161B0 | I11: URL;http://www.carsdirect.com/build/options/vehicle-specs?makeName=Toyota&modelName=Prius&year=2011&acode=01C10TOC161B0 | P11: URL;http://www.carsdirect.com/build/options/vehicle-specs?makeName=Toyota&modelName=Prius&year=2011&acode=01C10TOC161B0 | Q11: tank + fuel (trend based on Corolla tank size and weight: http://www.amazon.com/Dorman-576-854-Fuel-Tank/dp/B000IZ9R4C) | T11: URL;http://www.carsdirect.com/build/options/vehicle-specs?makeName=Toyota&modelName=Prius&year=2011&acode=01C10TOC161B0 | U11: http://www.hybridcars.com/compacts-sedans/toyota-camry-hybrid-overview.html | W11: 1.9L Saturn sohc | Z11: 60*.6 factor for Toyota ratings: http://www.toyota.com/prius-hybrid/specs.html | AC11: A. Simpson, Cost Benefit Analysis of Plug-In Hybrid Electric Vehicle Technology, 2006; http://www.nrel.gov/vehiclesandfuels/vsa/pdfs/40485.pdf | AD11: A. Simpson, Cost Benefit Analysis of Plug-In Hybrid Electric Vehicle Technology, 2006; http://www.nrel.gov/vehiclesandfuels/vsa/pdfs/40485.pdf | AG11: http://www.toyota.com/prius-hybrid/specs.html | AH11: http://www.toyotapriusbattery.com/ | AI11: See ESS Chars worksheet | AJ11: See ESS Chars worksheet | AK11: http://www.greencarcongress.com/2008/02/nissan-tests-ne.html | AL11: Adjusted VARTA data: http://www.ocean.udel.edu/cms/wkempton/Kempton-V2G-pdfFiles/PDF%20format/Duvall-V2G-batteries-June05.pdf | AM11: VARTA: http://www.ocean.udel.edu/cms/wkempton/Kempton-V2G-pdfFiles/PDF%20format/Duvall-V2G-batteries-June05.pdf | AS11: URL;http://www.carsdirect.com/build/options/vehicle-specs?makeName=Toyota&modelName=Prius&year=2011&acode=01C10TOC161B0 | BL11: http://en.wikipedia.org/wiki/Tesla_Roadster#cite_note-The_21st_century_Electric_Car-103 | BT11: URL;http://www.carsdirect.com/build/options/vehicle-specs?makeName=Toyota&modelName=Prius&year=2011&acode=01C10TOC161B0 | BU11: URL;http://www.carsdirect.com/build/options/vehicle-specs?makeName=Toyota&modelName=Prius&year=2011&acode=01C10TOC161B0 | BV11: URL;http://www.carsdirect.com/build/options/vehicle-specs?makeName=Toyota&modelName=Prius&year=2011&acode=01C10TOC161B0 | CG11: Hybrid vehicle battery expected life is 150000 miles based on laboratory bench testing http://www.toyota.com/byt4/2011/prius/en/complete_ebro.pdf | CI11: URL;http://www.carsdirect.com/build/options/vehicle-specs?makeName=Toyota&modelName=Matrix&year=2010&acode=USC00TOC171C0 | CJ11: URL;http://www.carsdirect.com/build/options/vehicle-specs?makeName=Toyota&modelName=Prius&year=2011&acode=01C10TOC161B0
D12: Based on 2005 hybrid Escape: http://en.wikipedia.org/wiki/Automobile_drag_coefficient | E12: URL;http://www.carsdirect.com/build/options/vehicle-specs?makeName=Ford&modelName=Escape Hybrid&year=2012&acode=USC20FOS141A0 | F12: Curb mass of 3651 lbs.URL;http://www.carsdirect.com/build/options/vehicle-specs?makeName=Ford&modelName=Escape Hybrid&year=2012&acode=USC20FOS141A0 | I12: URL;http://www.carsdirect.com/build/options/vehicle-specs?makeName=Ford&modelName=Escape Hybrid&year=2012&acode=USC20FOS141A0 | P12: URL;http://www.carsdirect.com/build/options/vehicle-specs?makeName=Ford&modelName=Escape Hybrid&year=2012&acode=USC20FOS141A0 | Q12: tank + fuel (trend based on Corolla tank size and weight: http://www.amazon.com/Dorman-576-854-Fuel-Tank/dp/B000IZ9R4C) | T12: URL;http://www.carsdirect.com/build/options/vehicle-specs?makeName=Ford&modelName=Escape Hybrid&year=2012&acode=USC20FOS141A0 | U12: http://www.ford.com/suvs/escape/trim/?trim=hybrid | W12: 1.9L Saturn sohc | Z12: http://www.ford.com/suvs/escape/specifications/engine/ | AC12: A. Simpson, Cost Benefit Analysis of Plug-In Hybrid Electric Vehicle Technology, 2006; http://www.nrel.gov/vehiclesandfuels/vsa/pdfs/40485.pdf | AD12: A. Simpson, Cost Benefit Analysis of Plug-In Hybrid Electric Vehicle Technology, 2006; http://www.nrel.gov/vehiclesandfuels/vsa/pdfs/40485.pdf | AG12: http://www.ford.com/suvs/escape/specifications/engine/ | AH12: avt.inl.gov/pdf/hev/batteryescape5881.pdf | AI12: See ESS Chars worksheet | AJ12: See ESS Chars worksheet | AK12: http://www.greencarcongress.com/2008/02/nissan-tests-ne.html | AL12: Adjusted VARTA to match data: http://www.ocean.udel.edu/cms/wkempton/Kempton-V2G-pdfFiles/PDF%20format/Duvall-V2G-batteries-June05.pdf | AM12: VARTA: http://www.ocean.udel.edu/cms/wkempton/Kempton-V2G-pdfFiles/PDF%20format/Duvall-V2G-batteries-June05.pdf | AS12: URL;http://www.carsdirect.com/build/options/vehicle-specs?makeName=Ford&modelName=Escape Hybrid&year=2012&acode=USC20FOS141A0 | BG12: http://www.ford.com/suvs/escape/features/ | BL12: http://en.wikipedia.org/wiki/Tesla_Roadster#cite_note-The_21st_century_Electric_Car-105 | BT12: URL;http://www.carsdirect.com/build/options/vehicle-specs?makeName=Ford&modelName=Escape Hybrid&year=2012&acode=USC20FOS141A0 | BU12: URL;http://www.carsdirect.com/build/options/vehicle-specs?makeName=Ford&modelName=Escape Hybrid&year=2012&acode=USC20FOS141A0 | BV12: URL;http://www.carsdirect.com/build/options/vehicle-specs?makeName=Ford&modelName=Escape Hybrid&year=2012&acode=USC20FOS141A0 | CG12: Assumes 20% over warranty: http://www.ford.com/suvs/escape/features/ | CI12: URL;http://www.carsdirect.com/build/options/vehicle-specs?makeName=Ford&modelName=Escape&year=2012&acode=USC20FOS131B0 | CJ12: URL;http://www.carsdirect.com/build/options/vehicle-specs?makeName=Ford&modelName=Escape Hybrid&year=2012&acode=USC20FOS141A0
D13: URL;http://www.carsdirect.com/build/options/vehicle-specs?makeName=Ford&modelName=Fusion Hybrid&year=2012&acode=USC20FOC271A0 | E13: URL;http://www.carsdirect.com/build/options/vehicle-specs?makeName=Ford&modelName=Fusion Hybrid&year=2012&acode=USC20FOC271A0 | F13: Curb mass of 3720 lbs.URL;http://www.carsdirect.com/build/options/vehicle-specs?makeName=Ford&modelName=Fusion Hybrid&year=2012&acode=USC20FOC271A0 | I13: URL;http://www.carsdirect.com/build/options/vehicle-specs?makeName=Ford&modelName=Fusion Hybrid&year=2012&acode=USC20FOC271A0 | P13: URL;http://www.carsdirect.com/build/options/vehicle-specs?makeName=Ford&modelName=Fusion Hybrid&year=2012&acode=USC20FOC271A0 | Q13: tank + fuel (trend based on Corolla tank size and weight: http://www.amazon.com/Dorman-576-854-Fuel-Tank/dp/B000IZ9R4C) | T13: URL;http://www.carsdirect.com/build/options/vehicle-specs?makeName=Ford&modelName=Fusion Hybrid&year=2012&acode=USC20FOC271A0 | U13: http://www.ford.com/cars/fusion/specifications/engine/ | W13: 1.9L Saturn sohc | Z13: Net power is 142 kW, so motor must be 26 kW out, not battery: http://www.ford.com/cars/fusion/specifications/engine/ | AC13: A. Simpson, Cost Benefit Analysis of Plug-In Hybrid Electric Vehicle Technology, 2006; http://www.nrel.gov/vehiclesandfuels/vsa/pdfs/40485.pdf | AD13: A. Simpson, Cost Benefit Analysis of Plug-In Hybrid Electric Vehicle Technology, 2006; http://www.nrel.gov/vehiclesandfuels/vsa/pdfs/40485.pdf | AG13: Net power is 142 kW, so motor must be 26 kW out, not battery: http://www.ford.com/cars/fusion/specifications/engine/ | AH13: http://articles.latimes.com/2008/dec/19/business/fi-neil19 | AI13: See ESS Chars worksheet | AJ13: See ESS Chars worksheet | AK13: http://www.greencarcongress.com/2008/02/nissan-tests-ne.html | AL13: VARTA: http://www.ocean.udel.edu/cms/wkempton/Kempton-V2G-pdfFiles/PDF%20format/Duvall-V2G-batteries-June05.pdf | AM13: VARTA: http://www.ocean.udel.edu/cms/wkempton/Kempton-V2G-pdfFiles/PDF%20format/Duvall-V2G-batteries-June05.pdf | AS13: URL;http://www.carsdirect.com/build/options/vehicle-specs?makeName=Ford&modelName=Fusion Hybrid&year=2012&acode=USC20FOC271A0 | BG13: http://www.ford.com/cars/fusion/trim/?trim=hybrid | BL13: http://en.wikipedia.org/wiki/Tesla_Roadster#cite_note-The_21st_century_Electric_Car-106 | BT13: URL;http://www.carsdirect.com/build/options/vehicle-specs?makeName=Ford&modelName=Fusion Hybrid&year=2012&acode=USC20FOC271A0 | BU13: URL;http://www.carsdirect.com/build/options/vehicle-specs?makeName=Ford&modelName=Fusion Hybrid&year=2012&acode=USC20FOC271A0 | BV13: URL;http://www.carsdirect.com/build/options/vehicle-specs?makeName=Ford&modelName=Fusion Hybrid&year=2012&acode=USC20FOC271A0 | CG13: Assumes 20% over warranty period: http://www.ford.com/cars/fusion/2012/warranty/ | CI13: URL;http://www.carsdirect.com/build/options/vehicle-specs?makeName=Ford&modelName=Fusion&year=2012&acode=USC20FOC201C0 | CJ13: URL;http://www.carsdirect.com/build/options/vehicle-specs?makeName=Ford&modelName=Fusion Hybrid&year=2012&acode=USC20FOC271A0
D14: URL;http://www.carsdirect.com/build/options/vehicle-specs?makeName=smart&modelName=fortwo&year=2011&acode=USC10SMC011A0 | E14: URL;http://www.carsdirect.com/build/options/vehicle-specs?makeName=smart&modelName=fortwo&year=2011&acode=USC10SMC011A0 | F14: Curb mass of 1808 lbs.URL;http://www.carsdirect.com/build/options/vehicle-specs?makeName=smart&modelName=fortwo&year=2011&acode=USC10SMC011A0 | I14: URL;http://www.carsdirect.com/build/options/vehicle-specs?makeName=smart&modelName=fortwo&year=2011&acode=USC10SMC011A0 | P14: URL;http://www.carsdirect.com/build/options/vehicle-specs?makeName=smart&modelName=fortwo&year=2011&acode=USC10SMC011A0 | Q14: tank + fuel (trend based on Corolla tank size and weight: http://www.amazon.com/Dorman-576-854-Fuel-Tank/dp/B000IZ9R4C) | T14: URL;http://www.carsdirect.com/build/options/vehicle-specs?makeName=smart&modelName=fortwo&year=2011&acode=USC10SMC011A0 | U14: www.carsdirect.com | W14: 1.9L Saturn sohc | AC14: A. Simpson, Cost Benefit Analysis of Plug-In Hybrid Electric Vehicle Technology, 2006; http://www.nrel.gov/vehiclesandfuels/vsa/pdfs/40485.pdf | AD14: A. Simpson, Cost Benefit Analysis of Plug-In Hybrid Electric Vehicle Technology, 2006; http://www.nrel.gov/vehiclesandfuels/vsa/pdfs/40485.pdf | AI14: See ESS Chars worksheet | AJ14: See ESS Chars worksheet | AK14: http://www.greencarcongress.com/2008/02/nissan-tests-ne.html | AL14: VARTA coefficient adjusted to match data: http://www.ocean.udel.edu/cms/wkempton/Kempton-V2G-pdfFiles/PDF%20format/Duvall-V2G-batteries-June05.pdf | AM14: VARTA: http://www.ocean.udel.edu/cms/wkempton/Kempton-V2G-pdfFiles/PDF%20format/Duvall-V2G-batteries-June05.pdf | AS14: URL;http://www.carsdirect.com/build/options/vehicle-specs?makeName=smart&modelName=fortwo&year=2011&acode=USC10SMC011A0 | BL14: http://en.wikipedia.org/wiki/Tesla_Roadster#cite_note-The_21st_century_Electric_Car-108 | BO14: ADVISOR run multiplying the gearbox and wheel/axle efficiency | BT14: URL;http://www.carsdirect.com/build/options/vehicle-specs?makeName=smart&modelName=fortwo&year=2011&acode=USC10SMC011A0 | BU14: URL;http://www.carsdirect.com/build/options/vehicle-specs?makeName=smart&modelName=fortwo&year=2011&acode=USC10SMC011A0 | BV14: URL;http://www.carsdirect.com/build/options/vehicle-specs?makeName=smart&modelName=fortwo&year=2011&acode=USC10SMC011A0 | CF14: http://www.carsdirect.com/buying-guides/compact-cars/rankings?ranking=acceleration | CJ14: URL;http://www.carsdirect.com/build/options/vehicle-specs?makeName=smart&modelName=fortwo&year=2011&acode=USC10SMC011A0
D15: URL;http://www.carsdirect.com/build/options/vehicle-specs?makeName=Toyota&modelName=Corolla&year=2011&acode=01C10TOC041A0 | E15: URL;http://www.carsdirect.com/build/options/vehicle-specs?makeName=Toyota&modelName=Corolla&year=2011&acode=01C10TOC041A0 | F15: Curb mass of 2734 lbs.URL;http://www.carsdirect.com/build/options/vehicle-specs?makeName=Toyota&modelName=Corolla&year=2011&acode=01C10TOC041A0 | I15: URL;http://www.carsdirect.com/build/options/vehicle-specs?makeName=Toyota&modelName=Corolla&year=2011&acode=01C10TOC041A0 | P15: URL;http://www.carsdirect.com/build/options/vehicle-specs?makeName=Toyota&modelName=Corolla&year=2011&acode=01C10TOC041A0 | Q15: tank + fuel (trend based on Corolla tank size and weight: http://www.amazon.com/Dorman-576-854-Fuel-Tank/dp/B000IZ9R4C) | T15: URL;http://www.carsdirect.com/build/options/vehicle-specs?makeName=Toyota&modelName=Corolla&year=2011&acode=01C10TOC041A0 | U15: www.carsdirect.com | W15: 1.9L Saturn sohc | AC15: A. Simpson, Cost Benefit Analysis of Plug-In Hybrid Electric Vehicle Technology, 2006; http://www.nrel.gov/vehiclesandfuels/vsa/pdfs/40485.pdf | AD15: A. Simpson, Cost Benefit Analysis of Plug-In Hybrid Electric Vehicle Technology, 2006; http://www.nrel.gov/vehiclesandfuels/vsa/pdfs/40485.pdf | AI15: See ESS Chars worksheet | AJ15: See ESS Chars worksheet | AK15: http://www.greencarcongress.com/2008/02/nissan-tests-ne.html | AL15: VARTA coefficient adjusted to match data: http://www.ocean.udel.edu/cms/wkempton/Kempton-V2G-pdfFiles/PDF%20format/Duvall-V2G-batteries-June05.pdf | AM15: VARTA: http://www.ocean.udel.edu/cms/wkempton/Kempton-V2G-pdfFiles/PDF%20format/Duvall-V2G-batteries-June05.pdf | AS15: URL;http://www.carsdirect.com/build/options/vehicle-specs?makeName=Toyota&modelName=Corolla&year=2011&acode=01C10TOC041A0 | BL15: http://en.wikipedia.org/wiki/Tesla_Roadster#cite_note-The_21st_century_Electric_Car-108 | BO15: ADVISOR run multiplying the gearbox and wheel/axle efficiency | BT15: URL;http://www.carsdirect.com/build/options/vehicle-specs?makeName=Toyota&modelName=Corolla&year=2011&acode=01C10TOC041A0 | BU15: URL;http://www.carsdirect.com/build/options/vehicle-specs?makeName=Toyota&modelName=Corolla&year=2011&acode=01C10TOC041A0 | BV15: URL;http://www.carsdirect.com/build/options/vehicle-specs?makeName=Toyota&modelName=Corolla&year=2011&acode=01C10TOC041A0 | CF15: http://www.carsdirect.com/buying-guides/compact-cars/rankings?ranking=acceleration | CJ15: URL;http://www.carsdirect.com/build/options/vehicle-specs?makeName=Toyota&modelName=Corolla&year=2011&acode=01C10TOC041A0
D16: URL;http://www.carsdirect.com/build/options/vehicle-specs?makeName=Nissan&modelName=Versa&year=2012&acode=USC20NIC102A0 | E16: URL;http://www.carsdirect.com/build/options/vehicle-specs?makeName=Nissan&modelName=Versa&year=2012&acode=USC20NIC102A0 | F16: Curb mass of 2693 lbs.URL;http://www.carsdirect.com/build/options/vehicle-specs?makeName=Nissan&modelName=Versa&year=2012&acode=USC20NIC102A0 | I16: URL;http://www.carsdirect.com/build/options/vehicle-specs?makeName=Nissan&modelName=Versa&year=2012&acode=USC20NIC102A0 | P16: URL;http://www.carsdirect.com/build/options/vehicle-specs?makeName=Nissan&modelName=Versa&year=2012&acode=USC20NIC102A0 | Q16: tank + fuel (trend based on Corolla tank size and weight: http://www.amazon.com/Dorman-576-854-Fuel-Tank/dp/B000IZ9R4C) | T16: URL;http://www.carsdirect.com/build/options/vehicle-specs?makeName=Nissan&modelName=Versa&year=2012&acode=USC20NIC102A0 | U16: www.carsdirect.com | W16: 1.9L Saturn sohc | AC16: A. Simpson, Cost Benefit Analysis of Plug-In Hybrid Electric Vehicle Technology, 2006; http://www.nrel.gov/vehiclesandfuels/vsa/pdfs/40485.pdf | AD16: A. Simpson, Cost Benefit Analysis of Plug-In Hybrid Electric Vehicle Technology, 2006; http://www.nrel.gov/vehiclesandfuels/vsa/pdfs/40485.pdf | AI16: See ESS Chars worksheet | AJ16: See ESS Chars worksheet | AK16: http://www.greencarcongress.com/2008/02/nissan-tests-ne.html | AL16: VARTA: http://www.ocean.udel.edu/cms/wkempton/Kempton-V2G-pdfFiles/PDF%20format/Duvall-V2G-batteries-June05.pdf | AM16: VARTA: http://www.ocean.udel.edu/cms/wkempton/Kempton-V2G-pdfFiles/PDF%20format/Duvall-V2G-batteries-June05.pdf | AS16: URL;http://www.carsdirect.com/build/options/vehicle-specs?makeName=Nissan&modelName=Versa&year=2012&acode=USC20NIC102A0 | BL16: http://en.wikipedia.org/wiki/Tesla_Roadster#cite_note-The_21st_century_Electric_Car-109 | BO16: ADVISOR run multiplying the gearbox and wheel/axle efficiency | BT16: URL;http://www.carsdirect.com/build/options/vehicle-specs?makeName=Nissan&modelName=Versa&year=2012&acode=USC20NIC102A0 | BU16: URL;http://www.carsdirect.com/build/options/vehicle-specs?makeName=Nissan&modelName=Versa&year=2012&acode=USC20NIC102A0 | BV16: URL;http://www.carsdirect.com/build/options/vehicle-specs?makeName=Nissan&modelName=Versa&year=2012&acode=USC20NIC102A0 | CJ16: URL;http://www.carsdirect.com/build/options/vehicle-specs?makeName=Nissan&modelName=Versa&year=2012&acode=USC20NIC102A0
D17: URL;http://www.carsdirect.com/build/options/vehicle-specs?makeName=Nissan&modelName=Versa&year=2012&acode=USC20NIC101B0 | E17: URL;http://www.carsdirect.com/build/options/vehicle-specs?makeName=Nissan&modelName=Versa&year=2012&acode=USC20NIC101B0 | F17: Curb mass of 2424 lbs.URL;http://www.carsdirect.com/build/options/vehicle-specs?makeName=Nissan&modelName=Versa&year=2012&acode=USC20NIC101B0 | I17: URL;http://www.carsdirect.com/build/options/vehicle-specs?makeName=Nissan&modelName=Versa&year=2012&acode=USC20NIC101B0 | P17: URL;http://www.carsdirect.com/build/options/vehicle-specs?makeName=Nissan&modelName=Versa&year=2012&acode=USC20NIC101B0 | Q17: tank + fuel (trend based on Corolla tank size and weight: http://www.amazon.com/Dorman-576-854-Fuel-Tank/dp/B000IZ9R4C) | T17: URL;http://www.carsdirect.com/build/options/vehicle-specs?makeName=Nissan&modelName=Versa&year=2012&acode=USC20NIC101B0 | U17: www.carsdirect.com | W17: 1.9L Saturn sohc | AC17: A. Simpson, Cost Benefit Analysis of Plug-In Hybrid Electric Vehicle Technology, 2006; http://www.nrel.gov/vehiclesandfuels/vsa/pdfs/40485.pdf | AD17: A. Simpson, Cost Benefit Analysis of Plug-In Hybrid Electric Vehicle Technology, 2006; http://www.nrel.gov/vehiclesandfuels/vsa/pdfs/40485.pdf | AI17: See ESS Chars worksheet | AJ17: See ESS Chars worksheet | AK17: http://www.greencarcongress.com/2008/02/nissan-tests-ne.html | AL17: VARTA: http://www.ocean.udel.edu/cms/wkempton/Kempton-V2G-pdfFiles/PDF%20format/Duvall-V2G-batteries-June05.pdf | AM17: VARTA: http://www.ocean.udel.edu/cms/wkempton/Kempton-V2G-pdfFiles/PDF%20format/Duvall-V2G-batteries-June05.pdf | AS17: URL;http://www.carsdirect.com/build/options/vehicle-specs?makeName=Nissan&modelName=Versa&year=2012&acode=USC20NIC101B0 | BL17: http://en.wikipedia.org/wiki/Tesla_Roadster#cite_note-The_21st_century_Electric_Car-109 | BO17: ADVISOR run multiplying the gearbox and wheel/axle efficiency | BT17: URL;http://www.carsdirect.com/build/options/vehicle-specs?makeName=Nissan&modelName=Versa&year=2012&acode=USC20NIC101B0 | BU17: URL;http://www.carsdirect.com/build/options/vehicle-specs?makeName=Nissan&modelName=Versa&year=2012&acode=USC20NIC101B0 | BV17: URL;http://www.carsdirect.com/build/options/vehicle-specs?makeName=Nissan&modelName=Versa&year=2012&acode=USC20NIC101B0 | CJ17: URL;http://www.carsdirect.com/build/options/vehicle-specs?makeName=Nissan&modelName=Versa&year=2012&acode=USC20NIC101B0
D18: URL;http://www.carsdirect.com/build/options/vehicle-specs?makeName=Toyota&modelName=Camry&year=2012&acode=USC20TOC021A0 | E18: URL;http://www.carsdirect.com/build/options/vehicle-specs?makeName=Toyota&modelName=Camry&year=2012&acode=USC20TOC021A0 | F18: Curb mass of 3190 lbs.URL;http://www.carsdirect.com/build/options/vehicle-specs?makeName=Toyota&modelName=Camry&year=2012&acode=USC20TOC021A0 | I18: URL;http://www.carsdirect.com/build/options/vehicle-specs?makeName=Toyota&modelName=Camry&year=2012&acode=USC20TOC021A0 | P18: URL;http://www.carsdirect.com/build/options/vehicle-specs?makeName=Toyota&modelName=Camry&year=2012&acode=USC20TOC021A0 | Q18: tank + fuel (trend based on Corolla tank size and weight: http://www.amazon.com/Dorman-576-854-Fuel-Tank/dp/B000IZ9R4C) | T18: URL;http://www.carsdirect.com/build/options/vehicle-specs?makeName=Toyota&modelName=Camry&year=2012&acode=USC20TOC021A0 | U18: www.carsdirect.com | W18: 1.9L Saturn sohc | AC18: A. Simpson, Cost Benefit Analysis of Plug-In Hybrid Electric Vehicle Technology, 2006; http://www.nrel.gov/vehiclesandfuels/vsa/pdfs/40485.pdf | AD18: A. Simpson, Cost Benefit Analysis of Plug-In Hybrid Electric Vehicle Technology, 2006; http://www.nrel.gov/vehiclesandfuels/vsa/pdfs/40485.pdf | AI18: See ESS Chars worksheet | AJ18: See ESS Chars worksheet | AK18: http://www.greencarcongress.com/2008/02/nissan-tests-ne.html | AL18: VARTA: http://www.ocean.udel.edu/cms/wkempton/Kempton-V2G-pdfFiles/PDF%20format/Duvall-V2G-batteries-June05.pdf | AM18: VARTA: http://www.ocean.udel.edu/cms/wkempton/Kempton-V2G-pdfFiles/PDF%20format/Duvall-V2G-batteries-June05.pdf | AS18: URL;http://www.carsdirect.com/build/options/vehicle-specs?makeName=Toyota&modelName=Camry&year=2012&acode=USC20TOC021A0 | BL18: http://en.wikipedia.org/wiki/Tesla_Roadster#cite_note-The_21st_century_Electric_Car-109 | BO18: ADVISOR run multiplying the gearbox and wheel/axle efficiency | BT18: URL;http://www.carsdirect.com/build/options/vehicle-specs?makeName=Toyota&modelName=Camry&year=2012&acode=USC20TOC021A0 | BU18: URL;http://www.carsdirect.com/build/options/vehicle-specs?makeName=Toyota&modelName=Camry&year=2012&acode=USC20TOC021A0 | BV18: URL;http://www.carsdirect.com/build/options/vehicle-specs?makeName=Toyota&modelName=Camry&year=2012&acode=USC20TOC021A0 | CF18: www.carsdirect.com | CJ18: URL;http://www.carsdirect.com/build/options/vehicle-specs?makeName=Toyota&modelName=Camry&year=2012&acode=USC20TOC021A0
D19: URL;http://www.carsdirect.com/build/options/vehicle-specs?makeName=Toyota&modelName=Avalon&year=2011&acode=USC10TOC011A0 | E19: URL;http://www.carsdirect.com/build/options/vehicle-specs?makeName=Toyota&modelName=Avalon&year=2011&acode=USC10TOC011A0 | F19: Curb mass of 3572 lbs.URL;http://www.carsdirect.com/build/options/vehicle-specs?makeName=Toyota&modelName=Avalon&year=2011&acode=USC10TOC011A0 | I19: URL;http://www.carsdirect.com/build/options/vehicle-specs?makeName=Toyota&modelName=Avalon&year=2011&acode=USC10TOC011A0 | P19: URL;http://www.carsdirect.com/build/options/vehicle-specs?makeName=Toyota&modelName=Avalon&year=2011&acode=USC10TOC011A0 | Q19: tank + fuel (trend based on Corolla tank size and weight: http://www.amazon.com/Dorman-576-854-Fuel-Tank/dp/B000IZ9R4C) | T19: URL;http://www.carsdirect.com/build/options/vehicle-specs?makeName=Toyota&modelName=Avalon&year=2011&acode=USC10TOC011A0 | U19: www.carsdirect.com | W19: 1.9L Saturn sohc | AC19: A. Simpson, Cost Benefit Analysis of Plug-In Hybrid Electric Vehicle Technology, 2006; http://www.nrel.gov/vehiclesandfuels/vsa/pdfs/40485.pdf | AD19: A. Simpson, Cost Benefit Analysis of Plug-In Hybrid Electric Vehicle Technology, 2006; http://www.nrel.gov/vehiclesandfuels/vsa/pdfs/40485.pdf | AI19: See ESS Chars worksheet | AJ19: See ESS Chars worksheet | AK19: http://www.greencarcongress.com/2008/02/nissan-tests-ne.html | AL19: VARTA: http://www.ocean.udel.edu/cms/wkempton/Kempton-V2G-pdfFiles/PDF%20format/Duvall-V2G-batteries-June05.pdf | AM19: VARTA: http://www.ocean.udel.edu/cms/wkempton/Kempton-V2G-pdfFiles/PDF%20format/Duvall-V2G-batteries-June05.pdf | AS19: URL;http://www.carsdirect.com/build/options/vehicle-specs?makeName=Toyota&modelName=Avalon&year=2011&acode=USC10TOC011A0 | BL19: http://en.wikipedia.org/wiki/Tesla_Roadster#cite_note-The_21st_century_Electric_Car-110 | BO19: ADVISOR run multiplying the gearbox and wheel/axle efficiency | BT19: URL;http://www.carsdirect.com/build/options/vehicle-specs?makeName=Toyota&modelName=Avalon&year=2011&acode=USC10TOC011A0 | BU19: URL;http://www.carsdirect.com/build/options/vehicle-specs?makeName=Toyota&modelName=Avalon&year=2011&acode=USC10TOC011A0 | BV19: URL;http://www.carsdirect.com/build/options/vehicle-specs?makeName=Toyota&modelName=Avalon&year=2011&acode=USC10TOC011A0 | CF19: www.carsdirect.com | CJ19: URL;http://www.carsdirect.com/build/options/vehicle-specs?makeName=Toyota&modelName=Avalon&year=2011&acode=USC10TOC011A0
D20: URL;http://www.carsdirect.com/build/options/vehicle-specs?makeName=Nissan&modelName=Quest&year=2012&acode=USC20NIV091A0 | E20: URL;http://www.carsdirect.com/build/options/vehicle-specs?makeName=Nissan&modelName=Quest&year=2012&acode=USC20NIV091A0 | F20: Curb mass of 4371 lbs.URL;http://www.carsdirect.com/build/options/vehicle-specs?makeName=Nissan&modelName=Quest&year=2012&acode=USC20NIV091A0 | I20: URL;http://www.carsdirect.com/build/options/vehicle-specs?makeName=Nissan&modelName=Quest&year=2012&acode=USC20NIV091A0 | P20: URL;http://www.carsdirect.com/build/options/vehicle-specs?makeName=Nissan&modelName=Quest&year=2012&acode=USC20NIV091A0 | Q20: tank + fuel (trend based on Corolla tank size and weight: http://www.amazon.com/Dorman-576-854-Fuel-Tank/dp/B000IZ9R4C) | T20: URL;http://www.carsdirect.com/build/options/vehicle-specs?makeName=Nissan&modelName=Quest&year=2012&acode=USC20NIV091A0 | U20: www.carsdirect.com | W20: 1.9L Saturn sohc | AC20: A. Simpson, Cost Benefit Analysis of Plug-In Hybrid Electric Vehicle Technology, 2006; http://www.nrel.gov/vehiclesandfuels/vsa/pdfs/40485.pdf | AD20: A. Simpson, Cost Benefit Analysis of Plug-In Hybrid Electric Vehicle Technology, 2006; http://www.nrel.gov/vehiclesandfuels/vsa/pdfs/40485.pdf | AI20: See ESS Chars worksheet | AJ20: See ESS Chars worksheet | AK20: http://www.greencarcongress.com/2008/02/nissan-tests-ne.html | AL20: VARTA: http://www.ocean.udel.edu/cms/wkempton/Kempton-V2G-pdfFiles/PDF%20format/Duvall-V2G-batteries-June05.pdf | AM20: VARTA: http://www.ocean.udel.edu/cms/wkempton/Kempton-V2G-pdfFiles/PDF%20format/Duvall-V2G-batteries-June05.pdf | AS20: URL;http://www.carsdirect.com/build/options/vehicle-specs?makeName=Nissan&modelName=Quest&year=2012&acode=USC20NIV091A0 | BL20: http://en.wikipedia.org/wiki/Tesla_Roadster#cite_note-The_21st_century_Electric_Car-111 | BO20: ADVISOR run multiplying the gearbox and wheel/axle efficiency | BT20: URL;http://www.carsdirect.com/build/options/vehicle-specs?makeName=Nissan&modelName=Quest&year=2012&acode=USC20NIV091A0 | BU20: URL;http://www.carsdirect.com/build/options/vehicle-specs?makeName=Nissan&modelName=Quest&year=2012&acode=USC20NIV091A0 | BV20: URL;http://www.carsdirect.com/build/options/vehicle-specs?makeName=Nissan&modelName=Quest&year=2012&acode=USC20NIV091A0 | CF20: www.carsdirect.com | CJ20: URL;http://www.carsdirect.com/build/options/vehicle-specs?makeName=Nissan&modelName=Quest&year=2012&acode=USC20NIV091A0
D21: URL;http://www.carsdirect.com/build/options/vehicle-specs?makeName=Nissan&modelName=Juke&year=2012&acode=USC20NIS121B0 | E21: URL;http://www.carsdirect.com/build/options/vehicle-specs?makeName=Nissan&modelName=Juke&year=2012&acode=USC20NIS121B0 | F21: Curb mass of 2912 lbs.URL;http://www.carsdirect.com/build/options/vehicle-specs?makeName=Nissan&modelName=Juke&year=2012&acode=USC20NIS121B0 | I21: URL;http://www.carsdirect.com/build/options/vehicle-specs?makeName=Nissan&modelName=Juke&year=2012&acode=USC20NIS121B0 | P21: URL;http://www.carsdirect.com/build/options/vehicle-specs?makeName=Nissan&modelName=Juke&year=2012&acode=USC20NIS121B0 | Q21: tank + fuel (trend based on Corolla tank size and weight: http://www.amazon.com/Dorman-576-854-Fuel-Tank/dp/B000IZ9R4C) | T21: URL;http://www.carsdirect.com/build/options/vehicle-specs?makeName=Nissan&modelName=Juke&year=2012&acode=USC20NIS121B0 | U21: www.carsdirect.com | W21: 1.9L Saturn sohc | AC21: A. Simpson, Cost Benefit Analysis of Plug-In Hybrid Electric Vehicle Technology, 2006; http://www.nrel.gov/vehiclesandfuels/vsa/pdfs/40485.pdf | AD21: A. Simpson, Cost Benefit Analysis of Plug-In Hybrid Electric Vehicle Technology, 2006; http://www.nrel.gov/vehiclesandfuels/vsa/pdfs/40485.pdf | AI21: See ESS Chars worksheet | AJ21: See ESS Chars worksheet | AK21: http://www.greencarcongress.com/2008/02/nissan-tests-ne.html | AL21: VARTA: http://www.ocean.udel.edu/cms/wkempton/Kempton-V2G-pdfFiles/PDF%20format/Duvall-V2G-batteries-June05.pdf | AM21: VARTA: http://www.ocean.udel.edu/cms/wkempton/Kempton-V2G-pdfFiles/PDF%20format/Duvall-V2G-batteries-June05.pdf | AS21: URL;http://www.carsdirect.com/build/options/vehicle-specs?makeName=Nissan&modelName=Juke&year=2012&acode=USC20NIS121B0 | BL21: http://en.wikipedia.org/wiki/Tesla_Roadster#cite_note-The_21st_century_Electric_Car-109 | BO21: ADVISOR run multiplying the gearbox and wheel/axle efficiency | BT21: URL;http://www.carsdirect.com/build/options/vehicle-specs?makeName=Nissan&modelName=Juke&year=2012&acode=USC20NIS121B0 | BU21: URL;http://www.carsdirect.com/build/options/vehicle-specs?makeName=Nissan&modelName=Juke&year=2012&acode=USC20NIS121B0 | BV21: URL;http://www.carsdirect.com/build/options/vehicle-specs?makeName=Nissan&modelName=Juke&year=2012&acode=USC20NIS121B0 | CJ21: URL;http://www.carsdirect.com/build/options/vehicle-specs?makeName=Nissan&modelName=Juke&year=2012&acode=USC20NIS121B0
D22: URL;http://www.carsdirect.com/build/options/vehicle-specs?makeName=Nissan&modelName=Juke&year=2012&acode=USC20NIS121A0 | E22: URL;http://www.carsdirect.com/build/options/vehicle-specs?makeName=Nissan&modelName=Juke&year=2012&acode=USC20NIS121A0 | F22: Curb mass of 2959 lbs.URL;http://www.carsdirect.com/build/options/vehicle-specs?makeName=Nissan&modelName=Juke&year=2012&acode=USC20NIS121A0 | I22: URL;http://www.carsdirect.com/build/options/vehicle-specs?makeName=Nissan&modelName=Juke&year=2012&acode=USC20NIS121A0 | P22: URL;http://www.carsdirect.com/build/options/vehicle-specs?makeName=Nissan&modelName=Juke&year=2012&acode=USC20NIS121A0 | Q22: tank + fuel (trend based on Corolla tank size and weight: http://www.amazon.com/Dorman-576-854-Fuel-Tank/dp/B000IZ9R4C) | T22: URL;http://www.carsdirect.com/build/options/vehicle-specs?makeName=Nissan&modelName=Juke&year=2012&acode=USC20NIS121A0 | U22: www.carsdirect.com | W22: 1.9L Saturn sohc | AC22: A. Simpson, Cost Benefit Analysis of Plug-In Hybrid Electric Vehicle Technology, 2006; http://www.nrel.gov/vehiclesandfuels/vsa/pdfs/40485.pdf | AD22: A. Simpson, Cost Benefit Analysis of Plug-In Hybrid Electric Vehicle Technology, 2006; http://www.nrel.gov/vehiclesandfuels/vsa/pdfs/40485.pdf | AI22: See ESS Chars worksheet | AJ22: See ESS Chars worksheet | AK22: http://www.greencarcongress.com/2008/02/nissan-tests-ne.html | AL22: VARTA: http://www.ocean.udel.edu/cms/wkempton/Kempton-V2G-pdfFiles/PDF%20format/Duvall-V2G-batteries-June05.pdf | AM22: VARTA: http://www.ocean.udel.edu/cms/wkempton/Kempton-V2G-pdfFiles/PDF%20format/Duvall-V2G-batteries-June05.pdf | AS22: URL;http://www.carsdirect.com/build/options/vehicle-specs?makeName=Nissan&modelName=Juke&year=2012&acode=USC20NIS121A0 | BL22: http://en.wikipedia.org/wiki/Tesla_Roadster#cite_note-The_21st_century_Electric_Car-109 | BO22: CVT efficiency based on MPG improvement of Juke | BT22: URL;http://www.carsdirect.com/build/options/vehicle-specs?makeName=Nissan&modelName=Juke&year=2012&acode=USC20NIS121A0 | BU22: URL;http://www.carsdirect.com/build/options/vehicle-specs?makeName=Nissan&modelName=Juke&year=2012&acode=USC20NIS121A0 | BV22: URL;http://www.carsdirect.com/build/options/vehicle-specs?makeName=Nissan&modelName=Juke&year=2012&acode=USC20NIS121A0 | CJ22: URL;http://www.carsdirect.com/build/options/vehicle-specs?makeName=Nissan&modelName=Juke&year=2012&acode=USC20NIS121A0
D23: URL;http://www.carsdirect.com/build/options/vehicle-specs?makeName=GMC&modelName=Acadia&year=2012&acode=USC20GMS241A0 | E23: URL;http://www.carsdirect.com/build/options/vehicle-specs?makeName=GMC&modelName=Acadia&year=2012&acode=USC20GMS241A0 | F23: Curb mass of 4656 lbs.URL;http://www.carsdirect.com/build/options/vehicle-specs?makeName=GMC&modelName=Acadia&year=2012&acode=USC20GMS241A0 | I23: URL;http://www.carsdirect.com/build/options/vehicle-specs?makeName=GMC&modelName=Acadia&year=2012&acode=USC20GMS241A0 | P23: URL;http://www.carsdirect.com/build/options/vehicle-specs?makeName=GMC&modelName=Acadia&year=2012&acode=USC20GMS241A0 | Q23: tank + fuel (trend based on Corolla tank size and weight: http://www.amazon.com/Dorman-576-854-Fuel-Tank/dp/B000IZ9R4C) | T23: URL;http://www.carsdirect.com/build/options/vehicle-specs?makeName=GMC&modelName=Acadia&year=2012&acode=USC20GMS241A0 | U23: www.carsdirect.com | W23: 1.9L Saturn sohc | AC23: A. Simpson, Cost Benefit Analysis of Plug-In Hybrid Electric Vehicle Technology, 2006; http://www.nrel.gov/vehiclesandfuels/vsa/pdfs/40485.pdf | AD23: A. Simpson, Cost Benefit Analysis of Plug-In Hybrid Electric Vehicle Technology, 2006; http://www.nrel.gov/vehiclesandfuels/vsa/pdfs/40485.pdf | AI23: See ESS Chars worksheet | AJ23: See ESS Chars worksheet | AK23: http://www.greencarcongress.com/2008/02/nissan-tests-ne.html | AL23: VARTA: http://www.ocean.udel.edu/cms/wkempton/Kempton-V2G-pdfFiles/PDF%20format/Duvall-V2G-batteries-June05.pdf | AM23: VARTA: http://www.ocean.udel.edu/cms/wkempton/Kempton-V2G-pdfFiles/PDF%20format/Duvall-V2G-batteries-June05.pdf | AS23: URL;http://www.carsdirect.com/build/options/vehicle-specs?makeName=GMC&modelName=Acadia&year=2012&acode=USC20GMS241A0 | BL23: http://en.wikipedia.org/wiki/Tesla_Roadster#cite_note-The_21st_century_Electric_Car-112 | BO23: ADVISOR run multiplying the gearbox and wheel/axle efficiency | BT23: URL;http://www.carsdirect.com/build/options/vehicle-specs?makeName=GMC&modelName=Acadia&year=2012&acode=USC20GMS241A0 | BU23: URL;http://www.carsdirect.com/build/options/vehicle-specs?makeName=GMC&modelName=Acadia&year=2012&acode=USC20GMS241A0 | BV23: URL;http://www.carsdirect.com/build/options/vehicle-specs?makeName=GMC&modelName=Acadia&year=2012&acode=USC20GMS241A0 | CF23: www.carsdirect.com | CJ23: URL;http://www.carsdirect.com/build/options/vehicle-specs?makeName=GMC&modelName=Acadia&year=2012&acode=USC20GMS241A0
D24: URL;http://www.carsdirect.com/build/options/vehicle-specs?makeName=Toyota&modelName=Tundra&year=2012&acode=USC20TOT105B0 | E24: URL;http://www.carsdirect.com/build/options/vehicle-specs?makeName=Toyota&modelName=Tundra&year=2012&acode=USC20TOT105B0 | F24: Curb mass of 5085 lbs.URL;http://www.carsdirect.com/build/options/vehicle-specs?makeName=Toyota&modelName=Tundra&year=2012&acode=USC20TOT105B0 | I24: URL;http://www.carsdirect.com/build/options/vehicle-specs?makeName=Toyota&modelName=Tundra&year=2012&acode=USC20TOT105B0 | P24: URL;http://www.carsdirect.com/build/options/vehicle-specs?makeName=Toyota&modelName=Tundra&year=2012&acode=USC20TOT105B0 | Q24: tank + fuel (trend based on Corolla tank size and weight: http://www.amazon.com/Dorman-576-854-Fuel-Tank/dp/B000IZ9R4C) | T24: URL;http://www.carsdirect.com/build/options/vehicle-specs?makeName=Toyota&modelName=Tundra&year=2012&acode=USC20TOT105B0 | U24: www.carsdirect.com | W24: 1.9L Saturn sohc | AC24: A. Simpson, Cost Benefit Analysis of Plug-In Hybrid Electric Vehicle Technology, 2006; http://www.nrel.gov/vehiclesandfuels/vsa/pdfs/40485.pdf | AD24: A. Simpson, Cost Benefit Analysis of Plug-In Hybrid Electric Vehicle Technology, 2006; http://www.nrel.gov/vehiclesandfuels/vsa/pdfs/40485.pdf | AI24: See ESS Chars worksheet | AJ24: See ESS Chars worksheet | AK24: http://www.greencarcongress.com/2008/02/nissan-tests-ne.html | AL24: VARTA: http://www.ocean.udel.edu/cms/wkempton/Kempton-V2G-pdfFiles/PDF%20format/Duvall-V2G-batteries-June05.pdf | AM24: VARTA: http://www.ocean.udel.edu/cms/wkempton/Kempton-V2G-pdfFiles/PDF%20format/Duvall-V2G-batteries-June05.pdf | AS24: URL;http://www.carsdirect.com/build/options/vehicle-specs?makeName=Toyota&modelName=Tundra&year=2012&acode=USC20TOT105B0 | BL24: http://en.wikipedia.org/wiki/Tesla_Roadster#cite_note-The_21st_century_Electric_Car-113 | BO24: ADVISOR run multiplying the gearbox and wheel/axle efficiency | BT24: URL;http://www.carsdirect.com/build/options/vehicle-specs?makeName=Toyota&modelName=Tundra&year=2012&acode=USC20TOT105B0 | BU24: URL;http://www.carsdirect.com/build/options/vehicle-specs?makeName=Toyota&modelName=Tundra&year=2012&acode=USC20TOT105B0 | BV24: URL;http://www.carsdirect.com/build/options/vehicle-specs?makeName=Toyota&modelName=Tundra&year=2012&acode=USC20TOT105B0 | CF24: www.carsdirect.com | CJ24: URL;http://www.carsdirect.com/build/options/vehicle-specs?makeName=Toyota&modelName=Tundra&year=2012&acode=USC20TOT105B0
D25: URL;http://www.carsdirect.com/build/options/vehicle-specs?makeName=Volkswagen&modelName=Golf&year=2012&acode=USC20VWC021B0 | E25: URL;http://www.carsdirect.com/build/options/vehicle-specs?makeName=Volkswagen&modelName=Golf&year=2012&acode=USC20VWC021B0 | F25: Curb mass of 2994 lbs.URL;http://www.carsdirect.com/build/options/vehicle-specs?makeName=Volkswagen&modelName=Golf&year=2012&acode=USC20VWC021B0 | I25: URL;http://www.carsdirect.com/build/options/vehicle-specs?makeName=Volkswagen&modelName=Golf&year=2012&acode=USC20VWC021B0 | P25: URL;http://www.carsdirect.com/build/options/vehicle-specs?makeName=Volkswagen&modelName=Golf&year=2012&acode=USC20VWC021B0 | Q25: tank + fuel (trend based on Corolla tank size and weight: http://www.amazon.com/Dorman-576-854-Fuel-Tank/dp/B000IZ9R4C) | T25: URL;http://www.carsdirect.com/build/options/vehicle-specs?makeName=Volkswagen&modelName=Golf&year=2012&acode=USC20VWC021B0 | U25: http://www.carsdirect.com/2011/volkswagen/golf/specs | W25: 1.9L Saturn sohc | AC25: A. Simpson, Cost Benefit Analysis of Plug-In Hybrid Electric Vehicle Technology, 2006; http://www.nrel.gov/vehiclesandfuels/vsa/pdfs/40485.pdf | AD25: A. Simpson, Cost Benefit Analysis of Plug-In Hybrid Electric Vehicle Technology, 2006; http://www.nrel.gov/vehiclesandfuels/vsa/pdfs/40485.pdf | AI25: See ESS Chars worksheet | AJ25: See ESS Chars worksheet | AK25: http://www.greencarcongress.com/2008/02/nissan-tests-ne.html | AL25: VARTA: http://www.ocean.udel.edu/cms/wkempton/Kempton-V2G-pdfFiles/PDF%20format/Duvall-V2G-batteries-June05.pdf | AM25: VARTA: http://www.ocean.udel.edu/cms/wkempton/Kempton-V2G-pdfFiles/PDF%20format/Duvall-V2G-batteries-June05.pdf | AS25: URL;http://www.carsdirect.com/build/options/vehicle-specs?makeName=Volkswagen&modelName=Golf&year=2012&acode=USC20VWC021B0 | BL25: http://en.wikipedia.org/wiki/Tesla_Roadster#cite_note-The_21st_century_Electric_Car-114 | BT25: 30 MPG converted to MPGGE: www.carsdirect.com | BU25: 42 MPG converted to MPGGE: URL;http://www.carsdirect.com/build/options/vehicle-specs?makeName=Volkswagen&modelName=Golf&year=2012&acode=USC20VWC021B0 | BV25: 34.4 MPG converted to MPGGE: URL;http://www.carsdirect.com/build/options/vehicle-specs?makeName=Volkswagen&modelName=Golf&year=2012&acode=USC20VWC021B0 | CF25: http://blogs.insideline.com/straightline/2010/05/il-track-tested-2010-volkswagen-golf-tdi-vs-2010-volkswagen-gti.html | CJ25: URL;http://www.carsdirect.com/build/options/vehicle-specs?makeName=Volkswagen&modelName=Golf&year=2012&acode=USC20VWC021B0
D26: http://www.carsdirect.com/audi/q7/specs | E26: URL;http://www.carsdirect.com/build/options/vehicle-specs?makeName=Audi&modelName=Q7&year=2012&acode=USC20AUS011A0 | F26: Curb mass of 5567 lbs.URL;http://www.carsdirect.com/build/options/vehicle-specs?makeName=Audi&modelName=Q7&year=2012&acode=USC20AUS011A0 | I26: URL;http://www.carsdirect.com/build/options/vehicle-specs?makeName=Audi&modelName=Q7&year=2012&acode=USC20AUS011A0 | P26: URL;http://www.carsdirect.com/build/options/vehicle-specs?makeName=Audi&modelName=Q7&year=2012&acode=USC20AUS011A0 | Q26: tank + fuel (trend based on Corolla tank size and weight: http://www.amazon.com/Dorman-576-854-Fuel-Tank/dp/B000IZ9R4C) | T26: URL;http://www.carsdirect.com/build/options/vehicle-specs?makeName=Audi&modelName=Q7&year=2012&acode=USC20AUS011A0 | U26: http://www.carsdirect.com/audi/q7/specs | W26: 1.9L Saturn sohc | AC26: A. Simpson, Cost Benefit Analysis of Plug-In Hybrid Electric Vehicle Technology, 2006; http://www.nrel.gov/vehiclesandfuels/vsa/pdfs/40485.pdf | AD26: A. Simpson, Cost Benefit Analysis of Plug-In Hybrid Electric Vehicle Technology, 2006; http://www.nrel.gov/vehiclesandfuels/vsa/pdfs/40485.pdf | AI26: See ESS Chars worksheet | AJ26: See ESS Chars worksheet | AK26: http://www.greencarcongress.com/2008/02/nissan-tests-ne.html | AL26: VARTA: http://www.ocean.udel.edu/cms/wkempton/Kempton-V2G-pdfFiles/PDF%20format/Duvall-V2G-batteries-June05.pdf | AM26: VARTA: http://www.ocean.udel.edu/cms/wkempton/Kempton-V2G-pdfFiles/PDF%20format/Duvall-V2G-batteries-June05.pdf | AS26: URL;http://www.carsdirect.com/build/options/vehicle-specs?makeName=Audi&modelName=Q7&year=2012&acode=USC20AUS011A0 | BL26: http://en.wikipedia.org/wiki/Tesla_Roadster#cite_note-The_21st_century_Electric_Car-115 | BT26: 17 MPG converted to MPGGE: www.carsdirect.com | BU26: 25 MPG converted to MPGGE: URL;http://www.carsdirect.com/build/options/vehicle-specs?makeName=Audi&modelName=Q7&year=2012&acode=USC20AUS011A0 | BV26: 19.9 MPG converted to MPGGE: URL;http://www.carsdirect.com/build/options/vehicle-specs?makeName=Audi&modelName=Q7&year=2012&acode=USC20AUS011A0 | CJ26: URL;http://www.carsdirect.com/build/options/vehicle-specs?makeName=Audi&modelName=Q7&year=2012&acode=USC20AUS011A0
D27: URL;http://www.carsdirect.com/build/options/vehicle-specs?makeName=Audi&modelName=A3&year=2012&acode=USC20AUC151B0 | E27: URL;http://www.carsdirect.com/build/options/vehicle-specs?makeName=Audi&modelName=A3&year=2012&acode=USC20AUC151B0 | F27: Curb mass of 3318 lbs.URL;http://www.carsdirect.com/build/options/vehicle-specs?makeName=Audi&modelName=A3&year=2012&acode=USC20AUC151B0 | I27: URL;http://www.carsdirect.com/build/options/vehicle-specs?makeName=Audi&modelName=A3&year=2012&acode=USC20AUC151B0 | P27: URL;http://www.carsdirect.com/build/options/vehicle-specs?makeName=Audi&modelName=A3&year=2012&acode=USC20AUC151B0 | Q27: tank + fuel (trend based on Corolla tank size and weight: http://www.amazon.com/Dorman-576-854-Fuel-Tank/dp/B000IZ9R4C) | T27: URL;http://www.carsdirect.com/build/options/vehicle-specs?makeName=Audi&modelName=A3&year=2012&acode=USC20AUC151B0 | U27: http://www.carsdirect.com/audi/q7/specs | W27: 1.9L Saturn sohc | AC27: A. Simpson, Cost Benefit Analysis of Plug-In Hybrid Electric Vehicle Technology, 2006; http://www.nrel.gov/vehiclesandfuels/vsa/pdfs/40485.pdf | AD27: A. Simpson, Cost Benefit Analysis of Plug-In Hybrid Electric Vehicle Technology, 2006; http://www.nrel.gov/vehiclesandfuels/vsa/pdfs/40485.pdf | AI27: See ESS Chars worksheet | AJ27: See ESS Chars worksheet | AK27: http://www.greencarcongress.com/2008/02/nissan-tests-ne.html | AL27: VARTA: http://www.ocean.udel.edu/cms/wkempton/Kempton-V2G-pdfFiles/PDF%20format/Duvall-V2G-batteries-June05.pdf | AM27: VARTA: http://www.ocean.udel.edu/cms/wkempton/Kempton-V2G-pdfFiles/PDF%20format/Duvall-V2G-batteries-June05.pdf | AS27: URL;http://www.carsdirect.com/build/options/vehicle-specs?makeName=Audi&modelName=A3&year=2012&acode=USC20AUC151B0 | BL27: http://en.wikipedia.org/wiki/Tesla_Roadster#cite_note-The_21st_century_Electric_Car-116 | BT27: 30 MPG converted to MPGGE: www.carsdirect.com | BU27: 42 MPG converted to MPGGE: URL;http://www.carsdirect.com/build/options/vehicle-specs?makeName=Audi&modelName=A3&year=2012&acode=USC20AUC151B0 | BV27: 34.4 MPG converted to MPGGE: URL;http://www.carsdirect.com/build/options/vehicle-specs?makeName=Audi&modelName=A3&year=2012&acode=USC20AUC151B0 | CJ27: URL;http://www.carsdirect.com/build/options/vehicle-specs?makeName=Audi&modelName=A3&year=2012&acode=USC20AUC151B0
D28: URL;http://www.carsdirect.com/build/options/vehicle-specs?makeName=Mercedes-Benz&modelName=R350 BlueTEC&year=2011&acode=00C10MBS251A0 | E28: URL;http://www.carsdirect.com/build/options/vehicle-specs?makeName=Mercedes-Benz&modelName=R350 BlueTEC&year=2011&acode=00C10MBS251A0 | F28: Curb mass of 5203 lbs.URL;http://www.carsdirect.com/build/options/vehicle-specs?makeName=Mercedes-Benz&modelName=R350 BlueTEC&year=2011&acode=00C10MBS251A0 | I28: URL;http://www.carsdirect.com/build/options/vehicle-specs?makeName=Mercedes-Benz&modelName=R350 BlueTEC&year=2011&acode=00C10MBS251A0 | P28: URL;http://www.carsdirect.com/build/options/vehicle-specs?makeName=Mercedes-Benz&modelName=R350 BlueTEC&year=2011&acode=00C10MBS251A0 | Q28: tank + fuel (trend based on Corolla tank size and weight: http://www.amazon.com/Dorman-576-854-Fuel-Tank/dp/B000IZ9R4C) | T28: URL;http://www.carsdirect.com/build/options/vehicle-specs?makeName=Mercedes-Benz&modelName=R350 BlueTEC&year=2011&acode=00C10MBS251A0 | U28: http://www.carsdirect.com/audi/q7/specs | W28: 1.9L Saturn sohc | AC28: A. Simpson, Cost Benefit Analysis of Plug-In Hybrid Electric Vehicle Technology, 2006; http://www.nrel.gov/vehiclesandfuels/vsa/pdfs/40485.pdf | AD28: A. Simpson, Cost Benefit Analysis of Plug-In Hybrid Electric Vehicle Technology, 2006; http://www.nrel.gov/vehiclesandfuels/vsa/pdfs/40485.pdf | AI28: See ESS Chars worksheet | AJ28: See ESS Chars worksheet | AK28: http://www.greencarcongress.com/2008/02/nissan-tests-ne.html | AL28: VARTA: http://www.ocean.udel.edu/cms/wkempton/Kempton-V2G-pdfFiles/PDF%20format/Duvall-V2G-batteries-June05.pdf | AM28: VARTA: http://www.ocean.udel.edu/cms/wkempton/Kempton-V2G-pdfFiles/PDF%20format/Duvall-V2G-batteries-June05.pdf | AS28: URL;http://www.carsdirect.com/build/options/vehicle-specs?makeName=Mercedes-Benz&modelName=R350 BlueTEC&year=2011&acode=00C10MBS251A0 | BL28: http://en.wikipedia.org/wiki/Tesla_Roadster#cite_note-The_21st_century_Electric_Car-117 | BT28: 18 MPG converted to MPGGE: www.carsdirect.com | BU28: 24 MPG converted to MPGGE: URL;http://www.carsdirect.com/build/options/vehicle-specs?makeName=Mercedes-Benz&modelName=R350 BlueTEC&year=2011&acode=00C10MBS251A0 | BV28: 20.3 MPG converted to MPGGE: URL;http://www.carsdirect.com/build/options/vehicle-specs?makeName=Mercedes-Benz&modelName=R350 BlueTEC&year=2011&acode=00C10MBS251A0 | CJ28: URL;http://www.carsdirect.com/build/options/vehicle-specs?makeName=Mercedes-Benz&modelName=R350 BlueTEC&year=2011&acode=00C10MBS251A0
D29: URL;http://www.carsdirect.com/build/options/vehicle-specs?makeName=BMW&modelName=335d&year=2011&acode=USC10BMC411A0 | E29: URL;http://www.carsdirect.com/build/options/vehicle-specs?makeName=BMW&modelName=335d&year=2011&acode=USC10BMC411A0 | F29: Curb mass of 3825 lbs.URL;http://www.carsdirect.com/build/options/vehicle-specs?makeName=BMW&modelName=335d&year=2011&acode=USC10BMC411A0 | I29: URL;http://www.carsdirect.com/build/options/vehicle-specs?makeName=BMW&modelName=335d&year=2011&acode=USC10BMC411A0 | P29: URL;http://www.carsdirect.com/build/options/vehicle-specs?makeName=BMW&modelName=335d&year=2011&acode=USC10BMC411A0 | Q29: tank + fuel (trend based on Corolla tank size and weight: http://www.amazon.com/Dorman-576-854-Fuel-Tank/dp/B000IZ9R4C) | T29: URL;http://www.carsdirect.com/build/options/vehicle-specs?makeName=BMW&modelName=335d&year=2011&acode=USC10BMC411A0 | U29: www.carsdirect.com | W29: 1.9L Saturn sohc | AC29: A. Simpson, Cost Benefit Analysis of Plug-In Hybrid Electric Vehicle Technology, 2006; http://www.nrel.gov/vehiclesandfuels/vsa/pdfs/40485.pdf | AD29: A. Simpson, Cost Benefit Analysis of Plug-In Hybrid Electric Vehicle Technology, 2006; http://www.nrel.gov/vehiclesandfuels/vsa/pdfs/40485.pdf | AI29: See ESS Chars worksheet | AJ29: See ESS Chars worksheet | AK29: http://www.greencarcongress.com/2008/02/nissan-tests-ne.html | AL29: VARTA: http://www.ocean.udel.edu/cms/wkempton/Kempton-V2G-pdfFiles/PDF%20format/Duvall-V2G-batteries-June05.pdf | AM29: VARTA: http://www.ocean.udel.edu/cms/wkempton/Kempton-V2G-pdfFiles/PDF%20format/Duvall-V2G-batteries-June05.pdf | AS29: URL;http://www.carsdirect.com/build/options/vehicle-specs?makeName=BMW&modelName=335d&year=2011&acode=USC10BMC411A0 | BL29: http://en.wikipedia.org/wiki/Tesla_Roadster#cite_note-The_21st_century_Electric_Car-118 | BT29: 23 MPG converted to MPGGE: www.carsdirect.com | BU29: 36 MPG converted to MPGGE: URL;http://www.carsdirect.com/build/options/vehicle-specs?makeName=BMW&modelName=335d&year=2011&acode=USC10BMC411A0 | BV29: 27.5 MPG converted to MPGGE: URL;http://www.carsdirect.com/build/options/vehicle-specs?makeName=BMW&modelName=335d&year=2011&acode=USC10BMC411A0 | CF29: http://www.consumerreports.org/cro/bmw/3-series/ratings-and-specs.htm | CJ29: URL;http://www.carsdirect.com/build/options/vehicle-specs?makeName=BMW&modelName=335d&year=2011&acode=USC10BMC411A0
D30: URL;http://www.carsdirect.com/build/options/vehicle-specs?makeName=Volkswagen&modelName=Touareg&year=2012&acode=USC20VWS011D0 | E30: URL;http://www.carsdirect.com/build/options/vehicle-specs?makeName=Volkswagen&modelName=Touareg&year=2012&acode=USC20VWS011D0 | F30: Curb mass of 4974 lbs.URL;http://www.carsdirect.com/build/options/vehicle-specs?makeName=Volkswagen&modelName=Touareg&year=2012&acode=USC20VWS011D0 | I30: URL;http://www.carsdirect.com/build/options/vehicle-specs?makeName=Volkswagen&modelName=Touareg&year=2012&acode=USC20VWS011D0 | P30: URL;http://www.carsdirect.com/build/options/vehicle-specs?makeName=Volkswagen&modelName=Touareg&year=2012&acode=USC20VWS011D0 | Q30: tank + fuel (trend based on Corolla tank size and weight: http://www.amazon.com/Dorman-576-854-Fuel-Tank/dp/B000IZ9R4C) | T30: URL;http://www.carsdirect.com/build/options/vehicle-specs?makeName=Volkswagen&modelName=Touareg&year=2012&acode=USC20VWS011D0 | U30: www.carsdirect.com | W30: 1.9L Saturn sohc | AC30: A. Simpson, Cost Benefit Analysis of Plug-In Hybrid Electric Vehicle Technology, 2006; http://www.nrel.gov/vehiclesandfuels/vsa/pdfs/40485.pdf | AD30: A. Simpson, Cost Benefit Analysis of Plug-In Hybrid Electric Vehicle Technology, 2006; http://www.nrel.gov/vehiclesandfuels/vsa/pdfs/40485.pdf | AI30: See ESS Chars worksheet | AJ30: See ESS Chars worksheet | AK30: http://www.greencarcongress.com/2008/02/nissan-tests-ne.html | AL30: VARTA: http://www.ocean.udel.edu/cms/wkempton/Kempton-V2G-pdfFiles/PDF%20format/Duvall-V2G-batteries-June05.pdf | AM30: VARTA: http://www.ocean.udel.edu/cms/wkempton/Kempton-V2G-pdfFiles/PDF%20format/Duvall-V2G-batteries-June05.pdf | AS30: URL;http://www.carsdirect.com/build/options/vehicle-specs?makeName=Volkswagen&modelName=Touareg&year=2012&acode=USC20VWS011D0 | BL30: http://en.wikipedia.org/wiki/Tesla_Roadster#cite_note-The_21st_century_Electric_Car-119 | BT30: 19 MPG converted to MPGGE: www.carsdirect.com | BU30: 28 MPG converted to MPGGE: URL;http://www.carsdirect.com/build/options/vehicle-specs?makeName=Volkswagen&modelName=Touareg&year=2012&acode=USC20VWS011D0 | BV30: 22.2 MPG converted to MPGGE: URL;http://www.carsdirect.com/build/options/vehicle-specs?makeName=Volkswagen&modelName=Touareg&year=2012&acode=USC20VWS011D0 | CF30: http://www.consumerreports.org/cro/volkswagen/touareg/ratings-and-specs.htm | CJ30: URL;http://www.carsdirect.com/build/options/vehicle-specs?makeName=Volkswagen&modelName=Touareg&year=2012&acode=USC20VWS011D0

Sheet DriveCycles (hidden)
B1: Drive cycles to run | E1: UDDS | F1: =AVERAGE(F3:F1372) -> 8.752141014 | I1: HWY | J1: =AVERAGE(J3:J768) -> 21.54937007 | M1: Accel | Q1: OrgCnty | U1: ConstSpeeds | Y1: SmallStepTest | AC1: QuickTest | AG1: HD_UDDS | AK1: US06_EPA | AO1: NYCC | AS1: LA92_Unified | AW1: LA92_Short | BA1: Japan10Mode | BE1: Japan15Mode
A2: driveCycleExtraOpts | B2: driveCyclesList | C2: ***Note: manually delete removed drive cycles | E2: cycSecs | F2: cycMps | G2: cycGrade | I2: cycSecs | J2: cycMps | K2: cycGrade | M2: cycSecs | N2: cycMps | O2: cycGrade | Q2: cycSecs | R2: cycMps | S2: cycGrade | U2: cycSecs | V2: cycMps | W2: cycGrade | Y2: cycSecs | Z2: cycMps | AA2: cycGrade | AC2: cycSecs | AD2: cycMps | AE2: cycGrade
A3: OrgCnty | B3: UDDS | D3: driveCycles | E3: 0 | F3: 0 | G3: 0 | I3: 0 | J3: 0 | K3: 0 | M3: 0 | N3: 0 | O3: 0 | Q3: 0 | R3: 0 | S3: 0 | U3: 0 | V3: 0 | W3: 0 | Y3: 0 | Z3: 0 | AA3: 0 | AC3: 0 | AD3: 0 | AE3: 0 | AG3: 0 | AH3: 0 | AI3: 0 | AK3: 0 | AL3: 0 | AM3: 0 | AO3: 0 | AP3: 0 | AQ3: 0 | AS3: 0 | AT3: 0 | AU3: 0 | AW3: 0 | AX3: 0 | AY3: 0 | BA3: 0 | BB3: 0 | BC3: 0 | BE3: 0 | BF3: 0 | BG3: 0
A4: LA92_Unified | B4: HWY | D4: UDDS | E4: 1 | F4: 0 | G4: 0 | I4: 1 | J4: 0 | K4: 0 | M4: 0.1 | N4: 40 | O4: 0 | Q4: 1 | R4: 0 | S4: 0 | U4: 1 | V4: 2 | W4: 0 | Y4: 0.1 | Z4: 0.1 | AA4: 0 | AC4: 1 | AD4: 2 | AE4: 0 | AG4: 1 | AH4: 0 | AI4: 0 | AK4: 1 | AL4: 0 | AM4: 0 | AO4: 1 | AP4: 0 | AQ4: 0 | AS4: 1 | AT4: 0 | AU4: 0 | AW4: 1 | AX4: 0 | AY4: 0 | BA4: 1 | BB4: 0 | BC4: 0 | BE4: 1 | BF4: 0 | BG4: 0
A5: Japan10Mode | B5: ConstSpeeds | D5: HWY | E5: 2 | F5: 0 | G5: 0 | I5: 2 | J5: 0 | K5: 0 | M5: 0.2 | N5: 40 | O5: 0 | Q5: 2 | R5: 0 | S5: 0 | U5: 2 | V5: 4 | W5: 0 | Y5: 0.2 | Z5: 0.2 | AA5: 0 | AC5: 2 | AD5: 4 | AE5: 0 | AG5: 2 | AH5: 0 | AI5: 0 | AK5: 2 | AL5: 0 | AM5: 0 | AO5: 2 | AP5: 0 | AQ5: 0 | AS5: 2 | AT5: 0 | AU5: 0 | AW5: 2 | AX5: 0 | AY5: 0 | BA5: 2 | BB5: 0 | BC5: 0 | BE5: 2 | BF5: 0 | BG5: 0
A6: HD_UDDS | B6: Accel | D6: Accel | E6: 3 | F6: 0 | G6: 0 | I6: 3 | J6: 0.8940945058 | K6: 0 | M6: 0.3 | N6: 40 | O6: 0 | Q6: 3 | R6: 0 | S6: 0 | U6: 3 | V6: 6 | W6: 0 | Y6: 0.3 | Z6: 0.3 | AA6: 0 | AC6: 3 | AD6: 6 | AE6: 0 | AG6: 3 | AH6: 0 | AI6: 0 | AK6: 3 | AL6: 0 | AM6: 0 | AO6: 3 | AP6: 0 | AQ6: 0 | AS6: 3 | AT6: 0 | AU6: 0 | AW6: 3 | AX6: 0 | AY6: 0 | BA6: 3 | BB6: 0 | BC6: 0 | BE6: 3 | BF6: 0 | BG6: 0
A7: Japan15Mode | B7: OrgCnty | D7: ConstSpeeds | E7: 4 | F7: 0 | G7: 0 | I7: 4 | J7: 2.190531539 | K7: 0 | M7: 0.4 | N7: 40 | O7: 0 | Q7: 4 | R7: 0 | S7: 0 | U7: 4 | V7: 8 | W7: 0 | Y7: 0.4 | Z7: 0.5 | AA7: 0 | AC7: 4 | AD7: 6 | AE7: 0 | AG7: 4 | AH7: 0 | AI7: 0 | AK7: 4 | AL7: 0 | AM7: 0 | AO7: 4 | AP7: 0 | AQ7: 0 | AS7: 4 | AT7: 0 | AU7: 0 | AW7: 4 | AX7: 0 | AY7: 0 | BA7: 4 | BB7: 0 | BC7: 0 | BE7: 4 | BF7: 0 | BG7: 0
A8: NYCC | B8: NYCC3X | E8: 5 | F8: 0 | G8: 0 | I8: 5 | J8: 3.621082748 | K8: 0 | M8: 0.5 | N8: 40 | O8: 0 | Q8: 5 | R8: 0 | S8: 0 | U8: 5 | V8: 10 | W8: 0 | Y8: 0.5 | Z8: 0.7 | AA8: 0 | AC8: 5 | AD8: 3 | AE8: 0 | AG8: 5 | AH8: 0 | AI8: 0 | AK8: 5 | AL8: 0 | AM8: 0 | AO8: 5 | AP8: 0 | AQ8: 0 | AS8: 5 | AT8: 0 | AU8: 0 | AW8: 5 | AX8: 0 | AY8: 0 | BA8: 5 | BB8: 0 | BC8: 0 | BE8: 5 | BF8: 0 | BG8: 0
A9: LA92_Short | B9: HTUF4woEngOff | E9: 6 | F9: 0 | G9: 0 | I9: 6 | J9: 5.051633958 | K9: 0 | M9: 0.6 | N9: 40 | O9: 0 | Q9: 6 | R9: 0 | S9: 0 | U9: 6 | V9: 12 | W9: 0 | Y9: 0.6 | Z9: 1 | AA9: 0 | AC9: 6 | AD9: 6 | AE9: 0 | AG9: 6 | AH9: 0 | AI9: 0 | AK9: 6 | AL9: 0.089408 | AM9: 0 | AO9: 6 | AP9: 0 | AQ9: 0 | AS9: 6 | AT9: 0 | AU9: 0 | AW9: 6 | AX9: 0 | AY9: 0 | BA9: 6 | BB9: 0 | BC9: 0 | BE9: 6 | BF9: 0 | BG9: 0
A10: US06_EPA | B10: HTUF4mod | E10: 7 | F10: 0 | G10: 0 | I10: 7 | J10: 6.482185167 | K10: 0 | M10: 0.7 | N10: 40 | O10: 0 | Q10: 7 | R10: 0 | S10: 0 | U10: 7 | V10: 14 | W10: 0 | Y10: 0.7 | Z10: 1.3 | AA10: 0 | AC10: 7 | AD10: 7 | AE10: 0 | AG10: 7 | AH10: 0 | AI10: 0 | AK10: 7 | AL10: 0.312928 | AM10: 0 | AO10: 7 | AP10: 0.134112 | AQ10: 0 | AS10: 7 | AT10: 0 | AU10: 0 | AW10: 7 | AX10: 0 | AY10: 0 | BA10: 7 | BB10: 0 | BC10: 0 | BE10: 7 | BF10: 0 | BG10: 0
B11: cx_baker_grade | E11: 8 | F11: 0 | G11: 0 | I11: 8 | J11: 7.733917475 | K11: 0 | M11: 0.8 | N11: 40 | O11: 0 | Q11: 8 | R11: 0 | S11: 0 | U11: 8 | V11: 16 | W11: 0 | Y11: 0.8 | Z11: 1.6 | AA11: 0 | AC11: 8 | AD11: 2 | AE11: 0 | AG11: 8 | AH11: 0 | AI11: 0 | AK11: 8 | AL11: 0.491744 | AM11: 0 | AO11: 8 | AP11: 0 | AQ11: 0 | AS11: 8 | AT11: 0 | AU11: 0 | AW11: 8 | AX11: 0 | AY11: 0 | BA11: 8 | BB11: 0 | BC11: 0 | BE11: 8 | BF11: 0 | BG11: 0
E12: 9 | F12: 0 | G12: 0 | I12: 9 | J12: 8.762126157 | K12: 0 | M12: 0.9 | N12: 40 | O12: 0 | Q12: 9 | R12: 0 | S12: 0 | U12: 9 | V12: 18 | W12: 0 | Y12: 0.9 | Z12: 2 | AA12: 0 | AC12: 9 | AD12: 2 | AE12: 0 | AG12: 9 | AH12: 0 | AI12: 0 | AK12: 9 | AL12: 0.759968 | AM12: 0 | AO12: 9 | AP12: 0.089408 | AQ12: 0 | AS12: 9 | AT12: 0 | AU12: 0 | AW12: 9 | AX12: 0 | AY12: 0 | BA12: 9 | BB12: 0 | BC12: 0 | BE12: 9 | BF12: 0 | BG12: 0
E13: 10 | F13: 0 | G13: 0 | I13: 10 | J13: 9.745630113 | K13: 0 | M13: 1 | N13: 40 | O13: 0 | Q13: 10 | R13: 0 | S13: 0 | U13: 10 | V13: 20 | W13: 0 | Y13: 1 | Z13: 1.9 | AA13: 0 | AC13: 10 | AD13: 0 | AE13: 0 | AG13: 10 | AH13: 0 | AI13: 0 | AK13: 10 | AL13: 2.68224 | AM13: 0 | AO13: 10 | AP13: 0.134112 | AQ13: 0 | AS13: 10 | AT13: 0 | AU13: 0 | AW13: 10 | AX13: 0 | AY13: 0 | BA13: 10 | BB13: 0 | BC13: 0 | BE13: 10 | BF13: 0 | BG13: 0
E14: 11 | F14: 0 | G14: 0 | I14: 11 | J14: 10.72913407 | K14: 0 | M14: 1.1 | N14: 40 | O14: 0 | Q14: 11 | R14: 0 | S14: 0 | U14: 11 | V14: 20.1168 | W14: 0 | Y14: 1.1 | Z14: 1.5 | AA14: 0 | AG14: 11 | AH14: 0 | AI14: 0 | AK14: 11 | AL14: 6.213856 | AM14: 0 | AO14: 11 | AP14: 0 | AQ14: 0 | AS14: 11 | AT14: 0 | AU14: 0 | AW14: 11 | AX14: 0 | AY14: 0 | BA14: 11 | BB14: 0 | BC14: 0 | BE14: 11 | BF14: 0 | BG14: 0
E15: 12 | F15: 0 | G15: 0 | I15: 12 | J15: 11.53381912 | K15: 0 | M15: 1.2 | N15: 40 | O15: 0 | Q15: 12 | R15: 0 | S15: 0 | U15: 12 | V15: 20.1168 | W15: 0 | Y15: 1.2 | Z15: 0.5 | AA15: 0 | AG15: 12 | AH15: 0 | AI15: 0 | AK15: 12 | AL15: 9.16432 | AM15: 0 | AO15: 12 | AP15: 0 | AQ15: 0 | AS15: 12 | AT15: 0 | AU15: 0 | AW15: 12 | AX15: 0 | AY15: 0 | BA15: 12 | BB15: 0 | BC15: 0 | BE15: 12 | BF15: 0 | BG15: 0
E16: 13 | F16: 0 | G16: 0 | I16: 13 | J16: 12.11498055 | K16: 0 | M16: 1.3 | N16: 40 | O16: 0 | Q16: 13 | R16: 0 | S16: 0 | U16: 13 | V16: 20.1168 | W16: 0 | Y16: 1.3 | Z16: 0.9 | AA16: 0 | AG16: 13 | AH16: 0 | AI16: 0 | AK16: 13 | AL16: 11.488928 | AM16: 0 | AO16: 13 | AP16: 0 | AQ16: 0 | AS16: 13 | AT16: 0 | AU16: 0 | AW16: 13 | AX16: 0 | AY16: 0 | BA16: 13 | BB16: 0 | BC16: 0 | BE16: 13 | BF16: 0 | BG16: 0
E17: 14 | F17: 0 | G17: 0 | I17: 14 | J17: 12.51732308 | K17: 0 | M17: 1.4 | N17: 40 | O17: 0 | Q17: 14 | R17: 0 | S17: 0 | U17: 14 | V17: 20.1168 | W17: 0 | Y17: 1.4 | Z17: 1.1 | AA17: 0 | AG17: 14 | AH17: 0 | AI17: 0 | AK17: 14 | AL17: 11.176 | AM17: 0 | AO17: 14 | AP17: 0 | AQ17: 0 | AS17: 14 | AT17: 0 | AU17: 0 | AW17: 14 | AX17: 0 | AY17: 0 | BA17: 14 | BB17: 0 | BC17: 0 | BE17: 14 | BF17: 0 | BG17: 0
E18: 15 | F18: 0 | G18: 0 | I18: 15 | J18: 12.96437033 | K18: 0 | M18: 1.5 | N18: 40 | O18: 0 | Q18: 15 | R18: 0 | S18: 0 | U18: 15 | V18: 20.1168 | W18: 0 | Y18: 1.5 | Z18: 1.3 | AA18: 0 | AG18: 15 | AH18: 0 | AI18: 0 | AK18: 15 | AL18: 12.695936 | AM18: 0 | AO18: 15 | AP18: 0 | AQ18: 0 | AS18: 15 | AT18: 0 | AU18: 0 | AW18: 15 | AX18: 0 | AY18: 0 | BA18: 15 | BB18: 0 | BC18: 0 | BE18: 15 | BF18: 0 | BG18: 0
E19: 16 | F19: 0 | G19: 0 | I19: 16 | J19: 13.41141759 | K19: 0 | M19: 1.6 | N19: 40 | O19: 0 | Q19: 16 | R19: 0 | S19: 0 | U19: 16 | V19: 20.1168 | W19: 0 | Y19: 1.6 | Z19: 1.4 | AA19: 0 | AG19: 16 | AH19: 0 | AI19: 0 | AK19: 16 | AL19: 14.439392 | AM19: 0 | AO19: 16 | AP19: 0 | AQ19: 0 | AS19: 16 | AT19: 0 | AU19: 0 | AW19: 16 | AX19: 0 | AY19: 0 | BA19: 16 | BB19: 0 | BC19: 0 | BE19: 16 | BF19: 0 | BG19: 0
E20: 17 | F20: 0 | G20: 0 | I20: 17 | J20: 13.72435066 | K20: 0 | M20: 1.7 | N20: 40 | O20: 0 | Q20: 17 | R20: 0 | S20: 0 | U20: 17 | V20: 20.1168 | W20: 0 | Y20: 1.7 | Z20: 1.4 | AA20: 0 | AG20: 17 | AH20: 0 | AI20: 0 | AK20: 17 | AL20: 15.467584 | AM20: 0 | AO20: 17 | AP20: 0 | AQ20: 0 | AS20: 17 | AT20: 0 | AU20: 0 | AW20: 17 | AX20: 0 | AY20: 0 | BA20: 17 | BB20: 0 | BC20: 0 | BE20: 17 | BF20: 0 | BG20: 0
E21: 18 | F21: 0 | G21: 0 | I21: 18 | J21: 14.08198847 | K21: 0 | M21: 1.8 | N21: 40 | O21: 0 | Q21: 18 | R21: 0 | S21: 0 | U21: 18 | V21: 20.1168 | W21: 0 | Y21: 1.8 | Z21: 1.4 | AA21: 0 | AG21: 18 | AH21: 0 | AI21: 0 | AK21: 18 | AL21: 16.31696 | AM21: 0 | AO21: 18 | AP21: 0 | AQ21: 0 | AS21: 18 | AT21: 0 | AU21: 0 | AW21: 18 | AX21: 0 | AY21: 0 | BA21: 18 | BB21: 0 | BC21: 0 | BE21: 18 | BF21: 0 | BG21: 0
E22: 19 | F22: 0 | G22: 0 | I22: 19 | J22: 14.39492154 | K22: 0 | M22: 1.9 | N22: 40 | O22: 0 | Q22: 19 | R22: 0 | S22: 0 | U22: 19 | V22: 20.1168 | W22: 0 | Y22: 1.9 | Z22: 1.1 | AA22: 0 | AG22: 19 | AH22: 0 | AI22: 0 | AK22: 19 | AL22: 17.166336 | AM22: 0 | AO22: 19 | AP22: 0 | AQ22: 0 | AS22: 19 | AT22: 0 | AU22: 0 | AW22: 19 | AX22: 0 | AY22: 0 | BA22: 19 | BB22: 0 | BC22: 0 | BE22: 19 | BF22: 0 | BG22: 0
E23: 20 | F23: 0 | G23: 0 | I23: 20 | J23: 14.70785462 | K23: 0 | M23: 2 | N23: 40 | O23: 0 | Q23: 20 | R23: 0 | S23: 0 | U23: 20 | V23: 22 | W23: 0 | Y23: 2 | Z23: 1.5 | AA23: 0 | AG23: 20 | AH23: 0 | AI23: 0 | AK23: 20 | AL23: 17.836896 | AM23: 0 | AO23: 20 | AP23: 0 | AQ23: 0 | AS23: 20 | AT23: 0 | AU23: 0 | AW23: 20 | AX23: 0 | AY23: 0 | BA23: 20 | BB23: 0 | BC23: 0 | BE23: 20 | BF23: 0 | BG23: 0
E24: 21 | F24: 1.341141759 | G24: 0 | I24: 21 | J24: 14.97608297 | K24: 0 | M24: 2.1 | N24: 40 | O24: 0 | Q24: 21 | R24: 0.1072896 | S24: 0 | U24: 21 | V24: 24 | W24: 0 | Y24: 2.1 | Z24: 1.8 | AA24: 0 | AG24: 21 | AH24: 0 | AI24: 0 | AK24: 21 | AL24: 18.865088 | AM24: 0 | AO24: 21 | AP24: 0 | AQ24: 0 | AS24: 21 | AT24: 0 | AU24: 0 | AW24: 21 | AX24: 0 | AY24: 0 | BA24: 21 | BB24: 0.80555562 | BC24: 0 | BE24: 21 | BF24: 0 | BG24: 0
E25: 22 | F25: 2.637578792 | G25: 0 | I25: 22 | J25: 15.24431132 | K25: 0 | M25: 2.2 | N25: 40 | O25: 0 | Q25: 22 | R25: 0.5588 | S25: 0 | U25: 22 | V25: 24.5872 | W25: 0 | Y25: 2.2 | Z25: 2.2 | AA25: 0 | AG25: 22 | AH25: 0 | AI25: 0 | AK25: 22 | AL25: 19.580352 | AM25: 0 | AO25: 22 | AP25: 0 | AQ25: 0 | AS25: 22 | AT25: 0 | AU25: 0 | AW25: 22 | AX25: 0 | AY25: 0 | BA25: 22 | BB25: 1.58333346 | BC25: 0 | BE25: 22 | BF25: 0 | BG25: 0
E26: 23 | F26: 3.844606375 | G26: 0 | I26: 23 | J26: 15.46783495 | K26: 0 | M26: 2.3 | N26: 40 | O26: 0 | Q26: 23 | R26: 1.5914624 | S26: 0 | U26: 23 | V26: 24.5872 | W26: 0 | Y26: 2.3 | Z26: 2.3 | AA26: 0 | AG26: 23 | AH26: 0 | AI26: 0 | AK26: 23 | AL26: 19.759168 | AM26: 0 | AO26: 23 | AP26: 0 | AQ26: 0 | AS26: 23 | AT26: 0 | AU26: 0 | AW26: 23 | AX26: 0 | AY26: 0 | BA26: 23 | BB26: 2.38888908 | BC26: 0 | BE26: 23 | BF26: 0 | BG26: 0
E27: 24 | F27: 5.141043408 | G27: 0 | I27: 24 | J27: 15.60194913 | K27: 0 | M27: 2.4 | N27: 40 | O27: 0 | Q27: 24 | R27: 2.771648 | S27: 0 | U27: 24 | V27: 24.5872 | W27: 0 | Y27: 2.4 | Z27: 2.4 | AA27: 0 | AG27: 24 | AH27: 0 | AI27: 0 | AK27: 24 | AL27: 19.401536 | AM27: 0 | AO27: 24 | AP27: 0 | AQ27: 0 | AS27: 24 | AT27: 0 | AU27: 0 | AW27: 24 | AX27: 0 | AY27: 0 | BA27: 24 | BB27: 3.16666692 | BC27: 0 | BE27: 24 | BF27: 0 | BG27: 0
E28: 25 | F28: 6.392775716 | G28: 0 | I28: 25 | J28: 15.69135858 | K28: 0 | M28: 2.5 | N28: 40 | O28: 0 | Q28: 25 | R28: 3.9384224 | S28: 0 | U28: 25 | V28: 24.5872 | W28: 0 | Y28: 2.5 | Z28: 2.5 | AA28: 0 | AG28: 25 | AH28: 0.08493897805 | AI28: 0 | AK28: 25 | AL28: 19.043904 | AM28: 0 | AO28: 25 | AP28: 0 | AQ28: 0 | AS28: 25 | AT28: 0 | AU28: 0 | AW28: 25 | AX28: 0 | AY28: 0 | BA28: 25 | BB28: 3.97222254 | BC28: 0 | BE28: 25 | BF28: 0 | BG28: 0
E29: 26 | F29: 7.555098574 | G29: 0 | I29: 26 | J29: 15.95958693 | K29: 0 | M29: 2.6 | N29: 40 | O29: 0 | Q29: 26 | R29: 5.096256 | S29: 0 | U29: 26 | V29: 24.5872 | W29: 0 | Y29: 2.6 | Z29: 2.6 | AA29: 0 | AG29: 26 | AH29: 0.4470472529 | AI29: 0 | AK29: 26 | AL29: 18.015712 | AM29: 0 | AO29: 26 | AP29: 0 | AQ29: 0 | AS29: 26 | AT29: 0 | AU29: 0 | AW29: 26 | AX29: 0 | AY29: 0 | BA29: 26 | BB29: 4.75000038 | BC29: 0 | BE29: 26 | BF29: 0 | BG29: 0
E30: 27 | F30: 7.733917475 | G30: 0 | I30: 27 | J30: 16.04899638 | K30: 0 | M30: 2.7 | N30: 40 | O30: 0 | Q30: 27 | R30: 6.1423296 | S30: 0 | U30: 27 | V30: 24.5872 | W30: 0 | Y30: 2.7 | Z30: 2.7 | AA30: 0 | AG30: 27 | AH30: 0.6750413519 | AI30: 0 | AK30: 27 | AL30: 17.523968 | AM30: 0 | AO30: 27 | AP30: 0.044704 | AQ30: 0 | AS30: 27 | AT30: 0 | AU30: 0 | AW30: 27 | AX30: 0 | AY30: 0 | BA30: 27 | BB30: 5.555556 | BC30: 0 | BE30: 27 | BF30: 0 | BG30: 0
E31: 28 | F31: 8.091555277 | G31: 0 | I31: 28 | J31: 16.00429165 | K31: 0 | M31: 2.8 | N31: 40 | O31: 0 | Q31: 28 | R31: 7.1034656 | S31: 0 | U31: 28 | V31: 24.5872 | W31: 0 | Y31: 2.8 | Z31: 2.8 | AA31: 0 | AG31: 28 | AH31: 1.189145693 | AI31: 0 | AK31: 28 | AL31: 17.166336 | AM31: 0 | AO31: 28 | AP31: 0.089408 | AQ31: 0 | AS31: 28 | AT31: 0 | AU31: 0 | AW31: 28 | AX31: 0 | AY31: 0 | BA31: 28 | BB31: 5.555556 | BC31: 0 | BE31: 28 | BF31: 0 | BG31: 0
E32: 29 | F32: 9.253878135 | G32: 0 | I32: 29 | J32: 15.78076803 | K32: 0 | M32: 2.9 | N32: 40 | O32: 0 | Q32: 29 | R32: 7.7159104 | S32: 0 | U32: 29 | V32: 24.5872 | W32: 0 | Y32: 2.9 | Z32: 2.9 | AA32: 0 | AG32: 29 | AH32: 2.074299253 | AI32: 0 | AK32: 29 | AL32: 17.166336 | AM32: 0 | AO32: 29 | AP32: 0 | AQ32: 0 | AS32: 29 | AT32: 0 | AU32: 0 | AW32: 29 | AX32: 0 | AY32: 0 | BA32: 29 | BB32: 5.555556 | BC32: 0 | BE32: 29 | BF32: 0 | BG32: 0
E33: 30 | F33: 9.700925388 | G33: 0 | I33: 30 | J33: 15.60194913 | K33: 0 | M33: 3 | N33: 40 | O33: 0 | Q33: 30 | R33: 8.113776 | S33: 0 | U33: 30 | V33: 24.5872 | W33: 0 | Y33: 3 | Z33: 3 | AA33: 0 | AG33: 30 | AH33: 3.11144888 | AI33: 0 | AK33: 30 | AL33: 17.523968 | AM33: 0 | AO33: 30 | AP33: 0 | AQ33: 0 | AS33: 30 | AT33: 0.536448 | AU33: 0 | AW33: 30 | AX33: 0.536448 | AY33: 0 | BA33: 30 | BB33: 5.555556 | BC33: 0 | BE33: 30 | BF33: 0 | BG33: 0
E34: 31 | F34: 10.01385846 | G34: 0 | I34: 31 | J34: 15.42313022 | K34: 0 | M34: 3.1 | N34: 40 | O34: 0 | Q34: 31 | R34: 8.5205824 | S34: 0 | U34: 31 | V34: 25 | W34: 0 | Y34: 3.1 | Z34: 3.1 | AA34: 0 | AG34: 31 | AH34: 3.960838661 | AI34: 0 | AK34: 31 | AL34: 17.345152 | AM34: 0 | AO34: 31 | AP34: 0 | AQ34: 0 | AS34: 31 | AT34: 1.877568 | AU34: 0 | AW34: 31 | AX34: 1.877568 | AY34: 0 | BA34: 31 | BB34: 5.555556 | BC34: 0 | BE34: 31 | BF34: 0 | BG34: 0
E35: 32 | F35: 10.05856319 | G35: 0 | I35: 32 | J35: 15.46783495 | K35: 0 | M35: 3.2 | N35: 40 | O35: 0 | Q35: 32 | R35: 8.9139776 | S35: 0 | U35: 32 | V35: 26 | W35: 0 | Y35: 3.2 | Z35: 3.2 | AA35: 0 | AG35: 32 | AH35: 3.44673432 | AI35: 0 | AK35: 32 | AL35: 17.345152 | AM35: 0 | AO35: 32 | AP35: 0 | AQ35: 0 | AS35: 32 | AT35: 3.263392 | AU35: 0 | AW35: 32 | AX35: 3.263392 | AY35: 0 | BA35: 32 | BB35: 5.555556 | BC35: 0 | BE35: 32 | BF35: 0 | BG35: 0
E36: 33 | F36: 9.879744289 | G36: 0 | I36: 33 | J36: 15.5572444 | K36: 0 | M36: 3.3 | N36: 40 | O36: 0 | Q36: 33 | R36: 9.2045536 | S36: 0 | U36: 33 | V36: 26.8224 | W36: 0 | Y36: 3.3 | Z36: 3.3 | AA36: 0 | AG36: 33 | AH36: 3.330502034 | AI36: 0 | AK36: 33 | AL36: 16.31696 | AM36: 0 | AO36: 33 | AP36: 0 | AQ36: 0 | AS36: 33 | AT36: 3.933952 | AU36: 0 | AW36: 33 | AX36: 3.933952 | AY36: 0 | BA36: 33 | BB36: 5.555556 | BC36: 0 | BE36: 33 | BF36: 0 | BG36: 0
E37: 34 | F37: 9.611515937 | G37: 0 | I37: 34 | J37: 15.69135858 | K37: 0 | M37: 3.4 | N37: 40 | O37: 0 | Q37: 34 | R37: 9.2045536 | S37: 0 | U37: 34 | V37: 26.8224 | W37: 0 | Y37: 3.4 | Z37: 3.2 | AA37: 0 | AG37: 34 | AH37: 4.121775672 | AI37: 0 | AK37: 34 | AL37: 14.439392 | AM37: 0 | AO37: 34 | AP37: 0 | AQ37: 0 | AS37: 34 | AT37: 4.828032 | AU37: 0 | AW37: 34 | AX37: 4.828032 | AY37: 0 | BA37: 34 | BB37: 5.555556 | BC37: 0 | BE37: 34 | BF37: 0 | BG37: 0
E38: 35 | F38: 9.343287585 | G38: 0 | I38: 35 | J38: 15.95958693 | K38: 0 | M38: 3.5 | N38: 40 | O38: 0 | Q38: 35 | R38: 8.9765632 | S38: 0 | U38: 35 | V38: 26.8224 | W38: 0 | Y38: 3.5 | Z38: 3.1 | AA38: 0 | AG38: 35 | AH38: 4.470472529 | AI38: 0 | AK38: 35 | AL38: 12.338304 | AM38: 0 | AO38: 35 | AP38: 0 | AQ38: 0 | AS38: 35 | AT38: 5.498592 | AU38: 0 | AW38: 35 | AX38: 5.498592 | AY38: 0 | BA38: 35 | BB38: 5.555556 | BC38: 0 | BE38: 35 | BF38: 0 | BG38: 0
E39: 36 | F39: 9.119763959 | G39: 0 | I39: 36 | J39: 16.13840583 | K39: 0 | M39: 3.6 | N39: 40 | O39: 0 | Q39: 36 | R39: 8.6904576 | S39: 0 | U39: 36 | V39: 26.8224 | W39: 0 | Y39: 3.6 | Z39: 3 | AA39: 0 | AG39: 36 | AH39: 4.059189056 | AI39: 0 | AK39: 36 | AL39: 9.968992 | AM39: 0 | AO39: 36 | AP39: 0 | AQ39: 0 | AS39: 36 | AT39: 5.856224 | AU39: 0 | AW39: 36 | AX39: 5.856224 | AY39: 0 | BA39: 36 | BB39: 5.555556 | BC39: 0 | BE39: 36 | BF39: 0 | BG39: 0
E40: 37 | F40: 8.851535607 | G40: 0 | I40: 37 | J40: 16.18311055 | K40: 0 | M40: 3.7 | N40: 40 | O40: 0 | Q40: 37 | R40: 8.359648 | S40: 0 | U40: 37 | V40: 26.8224 | W40: 0 | Y40: 3.7 | Z40: 2.9 | AA40: 0 | AG40: 37 | AH40: 4.506236309 | AI40: 0 | AK40: 37 | AL40: 7.733792 | AM40: 0 | AO40: 37 | AP40: 0 | AQ40: 0 | AS40: 37 | AT40: 5.498592 | AU40: 0 | AW40: 37 | AX40: 5.498592 | AY40: 0 | BA40: 37 | BB40: 5.555556 | BC40: 0 | BE40: 37 | BF40: 0 | BG40: 0
E41: 38 | F41: 7.599803299 | G41: 0 | I41: 38 | J41: 16.31722473 | K41: 0 | M41: 3.8 | N41: 40 | O41: 0 | Q41: 38 | R41: 7.9662528 | S41: 0 | U41: 38 | V41: 26.8224 | W41: 0 | Y41: 3.8 | Z41: 2.8 | AA41: 0 | AG41: 38 | AH41: 5.024811123 | AI41: 0 | AK41: 38 | AL41: 5.14096 | AM41: 0 | AO41: 38 | AP41: 0 | AQ41: 0 | AS41: 38 | AT41: 5.498592 | AU41: 0 | AW41: 38 | AX41: 5.498592 | AY41: 0 | BA41: 38 | BB41: 5.555556 | BC41: 0 | BE41: 38 | BF41: 0 | BG41: 0
E42: 39 | F42: 6.661004068 | G42: 0 | I42: 39 | J42: 16.40663418 | K42: 0 | M42: 3.9 | N42: 40 | O42: 0 | Q42: 39 | R42: 7.5639168 | S42: 0 | U42: 39 | V42: 26.8224 | W42: 0 | Y42: 3.9 | Z42: 2.7 | AA42: 0 | AG42: 39 | AH42: 5.717734365 | AI42: 0 | AK42: 39 | AL42: 2.592832 | AM42: 0 | AO42: 39 | AP42: 0 | AQ42: 0 | AS42: 39 | AT42: 5.14096 | AU42: 0 | AW42: 39 | AX42: 5.14096 | AY42: 0 | BA42: 39 | BB42: 5.555556 | BC42: 0 | BE42: 39 | BF42: 0 | BG42: 0
E43: 40 | F43: 6.661004068 | G43: 0 | I43: 40 | J43: 16.49604363 | K43: 0 | M43: 4 | N43: 40 | O43: 0 | Q43: 40 | R43: 7.1481696 | S43: 0 | U43: 40 | V43: 26.8224 | W43: 0 | Y43: 4 | Z43: 2.6 | AA43: 0 | AG43: 40 | AH43: 6.258661541 | AI43: 0 | AK43: 40 | AL43: 0.536448 | AM43: 0 | AO43: 40 | AP43: 0 | AQ43: 0 | AS43: 40 | AT43: 5.14096 | AU43: 0 | AW43: 40 | AX43: 5.14096 | AY43: 0 | BA43: 40 | BB43: 5.555556 | BC43: 0 | BE43: 40 | BF43: 0 | BG43: 0
E44: 41 | F44: 6.795118244 | G44: 0 | I44: 41 | J44: 16.54074836 | K44: 0 | M44: 4.1 | N44: 40 | O44: 0 | Q44: 41 | R44: 6.772656 | S44: 0 | U44: 41 | V44: 28 | W44: 0 | Y44: 4.1 | Z44: 2.5 | AA44: 0 | AG44: 41 | AH44: 5.623854441 | AI44: 0 | AK44: 41 | AL44: 0 | AM44: 0 | AO44: 41 | AP44: 0 | AQ44: 0 | AS44: 41 | AT44: 4.962144 | AU44: 0 | AW44: 41 | AX44: 4.962144 | AY44: 0 | BA44: 41 | BB44: 5.555556 | BC44: 0 | BE44: 41 | BF44: 0 | BG44: 0
E45: 42 | F45: 6.92923242 | G45: 0 | I45: 42 | J45: 16.54074836 | K45: 0 | M45: 4.2 | N45: 40 | O45: 0 | Q45: 42 | R45: 6.3792608 | S45: 0 | U45: 42 | V45: 29 | W45: 0 | Y45: 4.2 | Z45: 2.4 | AA45: 0 | AG45: 42 | AH45: 5.753498145 | AI45: 0 | AK45: 42 | AL45: 0 | AM45: 0 | AO45: 42 | AP45: 0 | AQ45: 0 | AS45: 42 | AT45: 4.962144 | AU45: 0 | AW45: 42 | AX45: 4.962144 | AY45: 0 | BA45: 42 | BB45: 5.555556 | BC45: 0 | BE45: 42 | BF45: 0 | BG45: 0
E46: 43 | F46: 7.152756046 | G46: 0 | I46: 43 | J46: 16.54074836 | K46: 0 | M46: 4.3 | N46: 40 | O46: 0 | Q46: 43 | R46: 5.9858656 | S46: 0 | U46: 43 | V46: 29.0576 | W46: 0 | Y46: 4.3 | Z46: 2.3 | AA46: 0 | AG46: 43 | AH46: 5.811614288 | AI46: 0 | AK46: 43 | AL46: 0 | AM46: 0 | AO46: 43 | AP46: 0 | AQ46: 0 | AS46: 43 | AT46: 4.962144 | AU46: 0 | AW46: 43 | AX46: 4.962144 | AY46: 0 | BA46: 43 | BB46: 4.75000038 | BC46: 0 | BE46: 43 | BF46: 0 | BG46: 0
E47: 44 | F47: 7.644508024 | G47: 0 | I47: 44 | J47: 16.54074836 | K47: 0 | M47: 4.4 | N47: 40 | O47: 0 | Q47: 44 | R47: 5.5701184 | S47: 0 | U47: 44 | V47: 29.0576 | W47: 0 | Y47: 4.4 | Z47: 2.2 | AA47: 0 | AG47: 44 | AH47: 5.811614288 | AI47: 0 | AK47: 44 | AL47: 0 | AM47: 0 | AO47: 44 | AP47: 0 | AQ47: 0 | AS47: 44 | AT47: 5.856224 | AU47: 0 | AW47: 44 | AX47: 5.856224 | AY47: 0 | BA47: 44 | BB47: 3.97222254 | BC47: 0 | BE47: 44 | BF47: 0 | BG47: 0
E48: 45 | F48: 8.53860253 | G48: 0 | I48: 45 | J48: 16.54074836 | K48: 0 | M48: 4.5 | N48: 40 | O48: 0 | Q48: 45 | R48: 5.1767232 | S48: 0 | U48: 45 | V48: 29.0576 | W48: 0 | Y48: 4.5 | Z48: 2.1 | AA48: 0 | AG48: 45 | AH48: 6.11560642 | AI48: 0 | AK48: 45 | AL48: 0 | AM48: 0 | AO48: 45 | AP48: 0 | AQ48: 0 | AS48: 45 | AT48: 6.7056 | AU48: 0 | AW48: 45 | AX48: 6.7056 | AY48: 0 | BA48: 45 | BB48: 3.16666692 | BC48: 0 | BE48: 45 | BF48: 0 | BG48: 0
E49: 46 | F49: 9.432697036 | G49: 0 | I49: 46 | J49: 16.54074836 | K49: 0 | M49: 4.6 | N49: 40 | O49: 0 | Q49: 46 | R49: 4.7922688 | S49: 0 | U49: 46 | V49: 29.0576 | W49: 0 | Y49: 4.6 | Z49: 2 | AA49: 0 | AG49: 46 | AH49: 6.705708793 | AI49: 0 | AK49: 46 | AL49: 0 | AM49: 0 | AO49: 46 | AP49: 0 | AQ49: 0 | AS49: 46 | AT49: 7.554976 | AU49: 0 | AW49: 46 | AX49: 7.554976 | AY49: 0 | BA49: 46 | BB49: 2.38888908 | BC49: 0 | BE49: 46 | BF49: 0 | BG49: 0
E50: 47 | F50: 10.14797264 | G50: 0 | I50: 47 | J50: 16.58545308 | K50: 0 | M50: 4.7 | N50: 40 | O50: 0 | Q50: 47 | R50: 4.4122848 | S50: 0 | U50: 47 | V50: 29.0576 | W50: 0 | Y50: 4.7 | Z50: 1.9 | AA50: 0 | AG50: 47 | AH50: 6.705708793 | AI50: 0 | AK50: 47 | AL50: 0 | AM50: 0 | AO50: 47 | AP50: 0.178816 | AQ50: 0 | AS50: 47 | AT50: 7.554976 | AU50: 0 | AW50: 47 | AX50: 7.554976 | AY50: 0 | BA50: 47 | BB50: 1.58333346 | BC50: 0 | BE50: 47 | BF50: 0 | BG50: 0
E51: 48 | F51: 10.23738209 | G51: 0 | I51: 48 | J51: 16.67486253 | K51: 0 | M51: 4.8 | N51: 40 | O51: 0 | Q51: 48 | R51: 3.8579552 | S51: 0 | U51: 48 | V51: 29.0576 | W51: 0 | Y51: 4.8 | Z51: 1.8 | AA51: 0 | AG51: 48 | AH51: 5.977021771 | AI51: 0 | AK51: 48 | AL51: 0 | AM51: 0 | AO51: 48 | AP51: 1.251712 | AQ51: 0 | AS51: 48 | AT51: 7.197344 | AU51: 0 | AW51: 48 | AX51: 7.197344 | AY51: 0 | BA51: 48 | BB51: 0.80555562 | BC51: 0 | BE51: 48 | BF51: 0 | BG51: 0
E52: 49 | F52: 10.14797264 | G52: 0 | I52: 49 | J52: 16.89838616 | K52: 0 | M52: 4.9 | N52: 40 | O52: 0 | Q52: 49 | R52: 2.68224 | S52: 0 | U52: 49 | V52: 29.0576 | W52: 0 | Y52: 4.9 | Z52: 2 | AA52: 0 | AG52: 49 | AH52: 5.400330815 | AI52: 0 | AK52: 49 | AL52: 0.357632 | AM52: 0 | AO52: 49 | AP52: 2.503424 | AQ52: 0 | AS52: 49 | AT52: 7.018528 | AU52: 0 | AW52: 49 | AX52: 7.018528 | AY52: 0 | BA52: 49 | BB52: 0 | BC52: 0 | BE52: 49 | BF52: 0 | BG52: 0
E53: 50 | F53: 10.10326792 | G53: 0 | I53: 50 | J53: 17.25602396 | K53: 0 | M53: 5 | N53: 40 | O53: 0 | Q53: 50 | R53: 1.4260576 | S53: 0 | U53: 50 | V53: 29.0576 | W53: 0 | Y53: 5 | Z53: 2.2 | AA53: 0 | AG53: 50 | AH53: 5.48079932 | AI53: 0 | AK53: 50 | AL53: 4.112768 | AM53: 0 | AO53: 50 | AP53: 3.12928 | AQ53: 0 | AS53: 50 | AT53: 6.884416 | AU53: 0 | AW53: 50 | AX53: 6.884416 | AY53: 0 | BA53: 50 | BB53: 0 | BC53: 0 | BE53: 50 | BF53: 0 | BG53: 0
E54: 51 | F54: 9.522106487 | G54: 0 | I54: 51 | J54: 17.56895704 | K54: 0 | M54: 5.1 | N54: 40 | O54: 0 | Q54: 51 | R54: 1.3008864 | S54: 0 | U54: 51 | V54: 25 | W54: 0 | Y54: 5.1 | Z54: 2.4 | AA54: 0 | AG54: 51 | AH54: 6.388305244 | AI54: 0 | AK54: 51 | AL54: 6.660896 | AM54: 0 | AO54: 51 | AP54: 3.397504 | AQ54: 0 | AS54: 51 | AT54: 6.7056 | AU54: 0 | AW54: 51 | AX54: 6.7056 | AY54: 0 | BA54: 51 | BB54: 0 | BC54: 0 | BE54: 51 | BF54: 0 | BG54: 0
E55: 52 | F55: 8.493897805 | G55: 0 | I55: 52 | J55: 17.88189012 | K55: 0 | M55: 5.2 | N55: 40 | O55: 0 | Q55: 52 | R55: 1.89992 | S55: 0 | U55: 52 | V55: 20 | W55: 0 | Y55: 5.2 | Z55: 2.6 | AA55: 0 | AG55: 52 | AH55: 6.509008002 | AI55: 0 | AK55: 52 | AL55: 8.136128 | AM55: 0 | AO55: 52 | AP55: 3.397504 | AQ55: 0 | AS55: 52 | AT55: 6.169152 | AU55: 0 | AW55: 52 | AX55: 6.169152 | AY55: 0 | BA55: 52 | BB55: 0 | BC55: 0 | BE55: 52 | BF55: 0 | BG55: 0
E56: 53 | F56: 7.644508024 | G56: 0 | I56: 53 | J56: 18.19482319 | K56: 0 | M56: 5.3 | N56: 40 | O56: 0 | Q56: 53 | R56: 2.6643584 | S56: 0 | U56: 53 | V56: 15 | W56: 0 | Y56: 5.3 | Z56: 2.8 | AA56: 0 | AG56: 53 | AH56: 6.795118244 | AI56: 0 | AK56: 53 | AL56: 9.924288 | AM56: 0 | AO56: 53 | AP56: 2.771648 | AQ56: 0 | AS56: 53 | AT56: 4.828032 | AU56: 0 | AW56: 53 | AX56: 4.828032 | AY56: 0 | BA56: 53 | BB56: 0 | BC56: 0 | BE56: 53 | BF56: 0 | BG56: 0
E57: 54 | F57: 7.063346596 | G57: 0 | I57: 54 | J57: 18.50775627 | K57: 0 | M57: 5.4 | N57: 40 | O57: 0 | Q57: 54 | R57: 3.5405568 | S57: 0 | U57: 54 | V57: 10 | W57: 0 | Y57: 5.4 | Z57: 3 | AA57: 0 | AG57: 54 | AH57: 7.492511959 | AI57: 0 | AK57: 54 | AL57: 12.159488 | AM57: 0 | AO57: 54 | AP57: 2.861056 | AQ57: 0 | AS57: 54 | AT57: 3.755136 | AU57: 0 | AW57: 54 | AX57: 3.755136 | AY57: 0 | BA57: 54 | BB57: 0 | BC57: 0 | BE57: 54 | BF57: 0 | BG57: 0
E58: 55 | F58: 7.063346596 | G58: 0 | I58: 55 | J58: 18.86539407 | K58: 0 | M58: 5.5 | N58: 40 | O58: 0 | Q58: 55 | R58: 4.4972224 | S58: 0 | U58: 55 | V58: 5 | W58: 0 | Y58: 5.5 | Z58: 3.2 | AA58: 0 | AG58: 55 | AH58: 7.599803299 | AI58: 0 | AK58: 55 | AL58: 14.037056 | AM58: 0 | AO58: 55 | AP58: 3.397504 | AQ58: 0 | AS58: 55 | AT58: 2.726944 | AU58: 0 | AW58: 55 | AX58: 2.726944 | AY58: 0 | BA58: 55 | BB58: 0 | BC58: 0 | BE58: 55 | BF58: 0 | BG58: 0
E59: 56 | F59: 7.912736376 | G59: 0 | I59: 56 | J59: 19.17832715 | K59: 0 | M59: 5.6 | N59: 40 | O59: 0 | Q59: 56 | R59: 5.5075328 | S59: 0 | U59: 56 | V59: 0 | W59: 0 | Y59: 5.6 | Z59: 3.4 | AA59: 0 | AG59: 56 | AH59: 7.599803299 | AI59: 0 | AK59: 56 | AL59: 15.109952 | AM59: 0 | AO59: 56 | AP59: 4.24688 | AQ59: 0 | AS59: 56 | AT59: 1.877568 | AU59: 0 | AW59: 56 | AX59: 1.877568 | AY59: 0 | BA59: 56 | BB59: 0 | BC59: 0 | BE59: 56 | BF59: 0 | BG59: 0
E60: 57 | F60: 8.851535607 | G60: 0 | I60: 57 | J60: 19.4465555 | K60: 0 | M60: 5.7 | N60: 40 | O60: 0 | Q60: 57 | R60: 6.549136 | S60: 0 | Y60: 5.7 | Z60: 3.6 | AA60: 0 | AG60: 57 | AH60: 7.702624167 | AI60: 0 | AK60: 57 | AL60: 16.629888 | AM60: 0 | AO60: 57 | AP60: 3.978656 | AQ60: 0 | AS60: 57 | AT60: 1.56464 | AU60: 0 | AW60: 57 | AX60: 1.56464 | AY60: 0 | BA60: 57 | BB60: 0 | BC60: 0 | BE60: 57 | BF60: 0 | BG60: 0
E61: 58 | F61: 9.656220663 | G61: 0 | I61: 58 | J61: 19.67007913 | K61: 0 | M61: 5.8 | N61: 40 | O61: 0 | Q61: 58 | R61: 6.9470016 | S61: 0 | Y61: 5.8 | Z61: 3.8 | AA61: 0 | AG61: 58 | AH61: 8.391076937 | AI61: 0 | AK61: 58 | AL61: 18.239232 | AM61: 0 | AO61: 58 | AP61: 3.844544 | AQ61: 0 | AS61: 58 | AT61: 1.56464 | AU61: 0 | AW61: 58 | AX61: 1.56464 | AY61: 0 | BA61: 58 | BB61: 0 | BC61: 0 | BE61: 58 | BF61: 0 | BG61: 0
E62: 59 | F62: 10.37149627 | G62: 0 | I62: 59 | J62: 19.8041933 | K62: 0 | M62: 5.9 | N62: 40 | O62: 0 | Q62: 59 | R62: 6.5089024 | S62: 0 | Y62: 5.9 | Z62: 4 | AA62: 0 | AG62: 59 | AH62: 9.182350574 | AI62: 0 | AK62: 59 | AL62: 19.66976 | AM62: 0 | AO62: 59 | AP62: 4.291584 | AQ62: 0 | AS62: 59 | AT62: 0.67056 | AU62: 0 | AW62: 59 | AX62: 0.67056 | AY62: 0 | BA62: 59 | BB62: 0 | BC62: 0 | BE62: 59 | BF62: 0 | BG62: 0
E63: 60 | F63: 10.81854352 | G63: 0 | I63: 60 | J63: 19.89360275 | K63: 0 | M63: 6 | N63: 40 | O63: 0 | Q63: 60 | R63: 5.900928 | S63: 0 | Y63: 6 | Z63: 4.2 | AA63: 0 | AG63: 60 | AH63: 8.762126157 | AI63: 0 | AK63: 60 | AL63: 20.697952 | AM63: 0 | AO63: 60 | AP63: 5.543296 | AQ63: 0 | AS63: 60 | AT63: 0 | AU63: 0 | AW63: 60 | AX63: 0 | AY63: 0 | BA63: 60 | BB63: 0 | BC63: 0 | BE63: 60 | BF63: 0 | BG63: 0
E64: 61 | F64: 10.99736242 | G64: 0 | I64: 61 | J64: 20.02771693 | K64: 0 | M64: 6.1 | N64: 40 | O64: 0 | Q64: 61 | R64: 5.3555392 | S64: 0 | Y64: 6.1 | Z64: 4.4 | AA64: 0 | AG64: 61 | AH64: 8.109437168 | AI64: 0 | AK64: 61 | AL64: 21.279104 | AM64: 0 | AO64: 61 | AP64: 6.7056 | AQ64: 0 | AS64: 61 | AT64: 0 | AU64: 0 | AW64: 61 | AX64: 0 | AY64: 0 | BA64: 61 | BB64: 0 | BC64: 0 | BE64: 61 | BF64: 0 | BG64: 0
E65: 62 | F65: 11.1314766 | G65: 0 | I65: 62 | J65: 20.07242165 | K65: 0 | M65: 6.2 | N65: 40 | O65: 0 | Q65: 62 | R65: 4.291584 | S65: 0 | Y65: 6.2 | Z65: 4.6 | AA65: 0 | AG65: 62 | AH65: 8.037909607 | AI65: 0 | AK65: 62 | AL65: 22.12848 | AM65: 0 | AO65: 62 | AP65: 7.957312 | AQ65: 0 | AS65: 62 | AT65: 0 | AU65: 0 | AW65: 62 | AX65: 0 | AY65: 0 | BA65: 62 | BB65: 0 | BC65: 0 | BE65: 62 | BF65: 0 | BG65: 0
E66: 63 | F66: 11.17618132 | G66: 0 | I66: 63 | J66: 20.11712638 | K66: 0 | M66: 6.3 | N66: 40 | O66: 0 | Q66: 63 | R66: 3.173984 | S66: 0 | Y66: 6.3 | Z66: 4.8 | AA66: 0 | AG66: 63 | AH66: 7.599803299 | AI66: 0 | AK66: 63 | AL66: 22.888448 | AM66: 0 | AO66: 63 | AP66: 9.38784 | AQ66: 0 | AS66: 63 | AT66: 0 | AU66: 0 | AW66: 63 | AX66: 0 | AY66: 0 | BA66: 63 | BB66: 0 | BC66: 0 | BE66: 63 | BF66: 0 | BG66: 0
E67: 64 | F67: 10.99736242 | G67: 0 | I67: 64 | J67: 20.16183111 | K67: 0 | M67: 6.4 | N67: 40 | O67: 0 | Q67: 64 | R67: 2.0742656 | S67: 0 | Y67: 6.4 | Z67: 5 | AA67: 0 | AG67: 64 | AH67: 7.304752112 | AI67: 0 | AK67: 64 | AL67: 23.69312 | AM67: 0 | AO67: 64 | AP67: 10.237216 | AQ67: 0 | AS67: 64 | AT67: 0 | AU67: 0 | AW67: 64 | AX67: 0 | AY67: 0 | BA67: 64 | BB67: 0 | BC67: 0 | BE67: 64 | BF67: 0 | BG67: 0
E68: 65 | F68: 10.9526577 | G68: 0 | I68: 65 | J68: 20.29594528 | K68: 0 | M68: 6.5 | N68: 40 | O68: 0 | Q68: 65 | R68: 0.7912608 | S68: 0 | Y68: 6.5 | Z68: 5.2 | AA68: 0 | AG68: 65 | AH68: 6.705708793 | AI68: 0 | AK68: 65 | AL68: 24.318976 | AM68: 0 | AO68: 65 | AP68: 9.700768 | AQ68: 0 | AS68: 65 | AT68: 0 | AU68: 0 | AW68: 65 | AX68: 0 | AY68: 0 | BA68: 65 | BB68: 0 | BC68: 0 | BE68: 65 | BF68: 0 | BG68: 0
E69: 66 | F69: 11.04206715 | G69: 0 | I69: 66 | J69: 20.43005946 | K69: 0 | M69: 6.6 | N69: 40 | O69: 0 | Q69: 66 | R69: 0.2056384 | S69: 0 | Y69: 6.6 | Z69: 5.4 | AA69: 0 | AG69: 66 | AH69: 6.705708793 | AI69: 0 | AK69: 66 | AL69: 24.855424 | AM69: 0 | AO69: 66 | AP69: 8.136128 | AQ69: 0 | AS69: 66 | AT69: 0 | AU69: 0 | AW69: 66 | AX69: 0 | AY69: 0 | BA69: 66 | BB69: 0.80555562 | BC69: 0 | BE69: 66 | BF69: 0.77777784 | BG69: 0
E70: 67 | F70: 11.08677187 | G70: 0 | I70: 67 | J70: 20.56417363 | K70: 0 | M70: 6.7 | N70: 40 | O70: 0 | Q70: 67 | R70: 0.0536448 | S70: 0 | Y70: 6.7 | Z70: 5.6 | AA70: 0 | AG70: 67 | AH70: 6.705708793 | AI70: 0 | AK70: 67 | AL70: 25.213056 | AM70: 0 | AO70: 67 | AP70: 6.48208 | AQ70: 0 | AS70: 67 | AT70: 0 | AU70: 0 | AW70: 67 | AX70: 0 | AY70: 0 | BA70: 67 | BB70: 1.58333346 | BC70: 0 | BE70: 67 | BF70: 1.55555568 | BG70: 0
E71: 68 | F71: 11.04206715 | G71: 0 | I71: 68 | J71: 20.69828781 | K71: 0 | M71: 6.8 | N71: 40 | O71: 0 | Q71: 68 | R71: 0 | S71: 0 | Y71: 6.8 | Z71: 5.8 | AA71: 0 | AG71: 68 | AH71: 7.134874156 | AI71: 0 | AK71: 68 | AL71: 25.078944 | AM71: 0 | AO71: 68 | AP71: 4.559808 | AQ71: 0 | AS71: 68 | AT71: 0 | AU71: 0 | AW71: 68 | AX71: 0 | AY71: 0 | BA71: 68 | BB71: 2.38888908 | BC71: 0 | BE71: 68 | BF71: 2.30555574 | BG71: 0
E72: 69 | F72: 10.99736242 | G72: 0 | I72: 69 | J72: 20.78769726 | K72: 0 | M72: 6.9 | N72: 40 | O72: 0 | Q72: 69 | R72: 0 | S72: 0 | Y72: 6.9 | Z72: 5.8 | AA72: 0 | AG72: 69 | AH72: 5.521033573 | AI72: 0 | AK72: 69 | AL72: 25.123648 | AM72: 0 | AO72: 69 | AP72: 2.503424 | AQ72: 0 | AS72: 69 | AT72: 0 | AU72: 0 | AW72: 69 | AX72: 0 | AY72: 0 | BA72: 69 | BB72: 3.16666692 | BC72: 0 | BE72: 69 | BF72: 3.08333358 | BG72: 0
E73: 70 | F73: 10.99736242 | G73: 0 | I73: 70 | J73: 20.92181144 | K73: 0 | M73: 7 | N73: 40 | O73: 0 | Q73: 70 | R73: 0 | S73: 0 | Y73: 7 | Z73: 5.8 | AA73: 0 | AG73: 70 | AH73: 6.830882024 | AI73: 0 | AK73: 70 | AL73: 24.944832 | AM73: 0 | AO73: 70 | AP73: 1.1176 | AQ73: 0 | AS73: 70 | AT73: 0 | AU73: 0 | AW73: 70 | AX73: 0 | AY73: 0 | BA73: 70 | BB73: 3.97222254 | BC73: 0 | BE73: 70 | BF73: 3.86111142 | BG73: 0
E74: 71 | F74: 11.22088605 | G74: 0 | I74: 71 | J74: 20.96651616 | K74: 0 | M74: 7.1 | N74: 40 | O74: 0 | Q74: 71 | R74: 0 | S74: 0 | Y74: 7.1 | Z74: 5.8 | AA74: 0 | AG74: 71 | AH74: 6.379364299 | AI74: 0 | AK74: 71 | AL74: 24.631904 | AM74: 0 | AO74: 71 | AP74: 0.938784 | AQ74: 0 | AS74: 71 | AT74: 0 | AU74: 0 | AW74: 71 | AX74: 0 | AY74: 0 | BA74: 71 | BB74: 4.75000038 | BC74: 0 | BE74: 71 | BF74: 4.63888926 | BG74: 0
E75: 72 | F75: 11.44440967 | G75: 0 | I75: 72 | J75: 21.01122089 | K75: 0 | M75: 7.2 | N75: 40 | O75: 0 | Q75: 72 | R75: 0 | S75: 0 | Y75: 7.2 | Z75: 5.8 | AA75: 0 | AG75: 72 | AH75: 5.628324914 | AI75: 0 | AK75: 72 | AL75: 24.318976 | AM75: 0 | AO75: 72 | AP75: 1.385824 | AQ75: 0 | AS75: 72 | AT75: 0.536448 | AU75: 0 | AW75: 72 | AX75: 0.536448 | AY75: 0 | BA75: 72 | BB75: 5.555556 | BC75: 0 | BE75: 72 | BF75: 5.38888932 | BG75: 0
E76: 73 | F76: 11.4891144 | G76: 0 | I76: 73 | J76: 21.05592561 | K76: 0 | M76: 7.3 | N76: 40 | O76: 0 | Q76: 73 | R76: 0 | S76: 0 | Y76: 7.3 | Z76: 5.8 | AA76: 0 | AG76: 73 | AH76: 5.476328848 | AI76: 0 | AK76: 73 | AL76: 24.229568 | AM76: 0 | AO76: 73 | AP76: 2.548128 | AQ76: 0 | AS76: 73 | AT76: 1.56464 | AU76: 0 | AW76: 73 | AX76: 1.56464 | AY76: 0 | BA76: 73 | BB76: 6.36111162 | BC76: 0 | BE76: 73 | BF76: 6.16666716 | BG76: 0
E77: 74 | F77: 11.35500022 | G77: 0 | I77: 74 | J77: 21.10063034 | K77: 0 | M77: 7.4 | N77: 40 | O77: 0 | Q77: 74 | R77: 0 | S77: 0 | Y77: 7.4 | Z77: 5.8 | AA77: 0 | AG77: 74 | AH77: 4.148598507 | AI77: 0 | AK77: 74 | AL77: 24.318976 | AM77: 0 | AO77: 74 | AP77: 4.02336 | AQ77: 0 | AS77: 74 | AT77: 3.442208 | AU77: 0 | AW77: 74 | AX77: 3.442208 | AY77: 0 | BA77: 74 | BB77: 7.13888946 | BC77: 0 | BE77: 74 | BF77: 6.944445 | BG77: 0
E78: 75 | F78: 11.1314766 | G78: 0 | I78: 75 | J78: 21.14533506 | K78: 0 | M78: 7.5 | N78: 40 | O78: 0 | Q78: 75 | R78: 0 | S78: 0 | Y78: 7.5 | Z78: 5.8 | AA78: 0 | AG78: 75 | AH78: 3.576378023 | AI78: 0 | AK78: 75 | AL78: 24.229568 | AM78: 0 | AO78: 75 | AP78: 4.828032 | AQ78: 0 | AS78: 75 | AT78: 4.962144 | AU78: 0 | AW78: 75 | AX78: 4.962144 | AY78: 0 | BA78: 75 | BB78: 7.94444508 | BC78: 0 | BE78: 75 | BF78: 7.72222284 | BG78: 0
E79: 76 | F79: 11.17618132 | G79: 0 | I79: 76 | J79: 21.10063034 | K79: 0 | M79: 7.6 | N79: 40 | O79: 0 | Q79: 76 | R79: 0 | S79: 0 | Y79: 7.6 | Z79: 5.8 | AA79: 0 | AG79: 76 | AH79: 3.576378023 | AI79: 0 | AK79: 76 | AL79: 23.91664 | AM79: 0 | AO79: 76 | AP79: 4.828032 | AQ79: 0 | AS79: 76 | AT79: 6.169152 | AU79: 0 | AW79: 76 | AX79: 6.169152 | AY79: 0 | BA79: 76 | BB79: 8.72222292 | BC79: 0 | BE79: 76 | BF79: 8.50000068 | BG79: 0
E80: 77 | F80: 11.35500022 | G80: 0 | I80: 77 | J80: 21.05592561 | K80: 0 | M80: 7.7 | N80: 40 | O80: 0 | Q80: 77 | R80: 0 | S80: 0 | Y80: 7.7 | Z80: 5.8 | AA80: 0 | AG80: 77 | AH80: 3.746255979 | AI80: 0 | AK80: 77 | AL80: 23.380192 | AM80: 0 | AO80: 77 | AP80: 4.24688 | AQ80: 0 | AS80: 77 | AT80: 7.37616 | AU80: 0 | AW80: 77 | AX80: 7.37616 | AY80: 0 | BA80: 77 | BB80: 9.52777854 | BC80: 0 | BE80: 77 | BF80: 9.25000074 | BG80: 0
E81: 78 | F81: 11.62322858 | G81: 0 | I81: 78 | J81: 21.01122089 | K81: 0 | M81: 7.8 | N81: 40 | O81: 0 | Q81: 78 | R81: 0 | S81: 0 | Y81: 7.8 | Z81: 5.8 | AA81: 0 | AG81: 78 | AH81: 4.26036032 | AI81: 0 | AK81: 78 | AL81: 23.24608 | AM81: 0 | AO81: 78 | AP81: 2.90576 | AQ81: 0 | AS81: 78 | AT81: 8.225536 | AU81: 0 | AW81: 78 | AX81: 8.225536 | AY81: 0 | BA81: 78 | BB81: 10.30555638 | BC81: 0 | BE81: 78 | BF81: 10.02777858 | BG81: 0
E82: 79 | F82: 11.62322858 | G82: 0 | I82: 79 | J82: 20.96651616 | K82: 0 | M82: 7.9 | N82: 40 | O82: 0 | Q82: 79 | R82: 0 | S82: 0 | Y82: 7.9 | Z82: 5.8 | AA82: 0 | AG82: 79 | AH82: 4.778935133 | AI82: 0 | AK82: 79 | AL82: 23.201376 | AM82: 0 | AO82: 79 | AP82: 1.743456 | AQ82: 0 | AS82: 79 | AT82: 9.119616 | AU82: 0 | AW82: 79 | AX82: 9.119616 | AY82: 0 | BA82: 79 | BB82: 11.111112 | BC82: 0 | BE82: 79 | BF82: 10.80555642 | BG82: 0
E83: 80 | F83: 11.4891144 | G83: 0 | I83: 80 | J83: 20.96651616 | K83: 0 | M83: 8 | N83: 40 | O83: 0 | Q83: 80 | R83: 0 | S83: 0 | Y83: 8 | Z83: 5.8 | AA83: 0 | AG83: 80 | AH83: 4.917519782 | AI83: 0 | AK83: 80 | AL83: 23.156672 | AM83: 0 | AO83: 80 | AP83: 1.162304 | AQ83: 0 | AS83: 80 | AT83: 9.253728 | AU83: 0 | AW83: 80 | AX83: 9.253728 | AY83: 0 | BA83: 80 | BB83: 11.111112 | BC83: 0 | BE83: 80 | BF83: 11.58333426 | BG83: 0
E84: 81 | F84: 11.6679333 | G84: 0 | I84: 81 | J84: 20.96651616 | K84: 0 | M84: 8.1 | N84: 40 | O84: 0 | Q84: 81 | R84: 0.2637536 | S84: 0 | Y84: 8.1 | Z84: 5.4 | AA84: 0 | AG84: 81 | AH84: 4.023425276 | AI84: 0 | AK84: 81 | AL84: 23.201376 | AM84: 0 | AO84: 81 | AP84: 0.44704 | AQ84: 0 | AS84: 81 | AT84: 8.761984 | AU84: 0 | AW84: 81 | AX84: 8.761984 | AY84: 0 | BA84: 81 | BB84: 11.111112 | BC84: 0 | BE84: 81 | BF84: 12.33333432 | BG84: 0
E85: 82 | F85: 11.93616165 | G85: 0 | I85: 82 | J85: 21.01122089 | K85: 0 | M85: 8.2 | N85: 40 | O85: 0 | Q85: 82 | R85: 1.0594848 | S85: 0 | Y85: 8.2 | Z85: 5 | AA85: 0 | AG85: 82 | AH85: 4.023425276 | AI85: 0 | AK85: 82 | AL85: 23.24608 | AM85: 0 | AO85: 82 | AP85: 0.357632 | AQ85: 0 | AS85: 82 | AT85: 7.733792 | AU85: 0 | AW85: 82 | AX85: 7.733792 | AY85: 0 | BA85: 82 | BB85: 11.111112 | BC85: 0 | BE85: 82 | BF85: 13.11111216 | BG85: 0
E86: 83 | F86: 12.29379945 | G86: 0 | I86: 83 | J86: 21.05592561 | K86: 0 | M86: 8.3 | N86: 40 | O86: 0 | Q86: 83 | R86: 2.168144 | S86: 0 | Y86: 8.3 | Z86: 4.6 | AA86: 0 | AG86: 83 | AH86: 4.166480397 | AI86: 0 | AK86: 83 | AL86: 23.4696 | AM86: 0 | AO86: 83 | AP86: 0.044704 | AQ86: 0 | AS86: 83 | AT86: 5.498592 | AU86: 0 | AW86: 83 | AX86: 5.498592 | AY86: 0 | BA86: 83 | BB86: 11.111112 | BC86: 0 | BE86: 83 | BF86: 13.88889 | BG86: 0
E87: 84 | F87: 12.78555143 | G87: 0 | I87: 84 | J87: 21.05592561 | K87: 0 | M87: 8.4 | N87: 40 | O87: 0 | Q87: 84 | R87: 3.1695136 | S87: 0 | Y87: 8.4 | Z87: 4.2 | AA87: 0 | AG87: 84 | AH87: 4.470472529 | AI87: 0 | AK87: 84 | AL87: 23.871936 | AM87: 0 | AO87: 84 | AP87: 0 | AQ87: 0 | AS87: 84 | AT87: 3.621024 | AU87: 0 | AW87: 84 | AX87: 3.621024 | AY87: 0 | BA87: 84 | BB87: 11.111112 | BC87: 0 | BE87: 84 | BF87: 13.88889 | BG87: 0
E88: 85 | F88: 13.09848451 | G88: 0 | I88: 85 | J88: 21.10063034 | K88: 0 | M88: 8.5 | N88: 40 | O88: 0 | Q88: 85 | R88: 3.9697152 | S88: 0 | Y88: 8.5 | Z88: 3.8 | AA88: 0 | AG88: 85 | AH88: 4.184362287 | AI88: 0 | AK88: 85 | AL88: 24.542496 | AM88: 0 | AO88: 85 | AP88: 0 | AQ88: 0 | AS88: 85 | AT88: 2.726944 | AU88: 0 | AW88: 85 | AX88: 2.726944 | AY88: 0 | BA88: 85 | BB88: 11.111112 | BC88: 0 | BE88: 85 | BF88: 13.88889 | BG88: 0
E89: 86 | F89: 13.32200814 | G89: 0 | I89: 86 | J89: 21.05592561 | K89: 0 | M89: 8.6 | N89: 40 | O89: 0 | Q89: 86 | R89: 4.626864 | S89: 0 | Y89: 8.6 | Z89: 3.4 | AA89: 0 | AG89: 86 | AH89: 4.023425276 | AI89: 0 | AK89: 86 | AL89: 25.391872 | AM89: 0 | AO89: 86 | AP89: 0 | AQ89: 0 | AS89: 86 | AT89: 4.291584 | AU89: 0 | AW89: 86 | AX89: 4.291584 | AY89: 0 | BA89: 86 | BB89: 11.111112 | BC89: 0 | BE89: 86 | BF89: 13.88889 | BG89: 0
E90: 87 | F90: 13.45612231 | G90: 0 | I90: 87 | J90: 21.01122089 | K90: 0 | M90: 8.7 | N90: 40 | O90: 0 | Q90: 87 | R90: 4.8146208 | S90: 0 | Y90: 8.7 | Z90: 3 | AA90: 0 | AG90: 87 | AH90: 4.448120166 | AI90: 0 | AK90: 87 | AL90: 26.285952 | AM90: 0 | AO90: 87 | AP90: 0 | AQ90: 0 | AS90: 87 | AT90: 5.677408 | AU90: 0 | AW90: 87 | AX90: 5.677408 | AY90: 0 | BA90: 87 | BB90: 11.111112 | BC90: 0 | BE90: 87 | BF90: 13.88889 | BG90: 0
E91: 88 | F91: 13.59023649 | G91: 0 | I91: 88 | J91: 20.96651616 | K91: 0 | M91: 8.8 | N91: 40 | O91: 0 | Q91: 88 | R91: 4.13512 | S91: 0 | Y91: 8.8 | Z91: 2.6 | AA91: 0 | AG91: 88 | AH91: 6.406187134 | AI91: 0 | AK91: 88 | AL91: 27.090624 | AM91: 0 | AO91: 88 | AP91: 0.134112 | AQ91: 0 | AS91: 88 | AT91: 7.018528 | AU91: 0 | AW91: 88 | AX91: 7.018528 | AY91: 0 | BA91: 88 | BB91: 11.111112 | BC91: 0 | BE91: 88 | BF91: 13.88889 | BG91: 0
E92: 89 | F92: 13.72435066 | G92: 0 | I92: 89 | J92: 20.78769726 | K92: 0 | M92: 8.9 | N92: 40 | O92: 0 | Q92: 89 | R92: 2.7448256 | S92: 0 | Y92: 8.9 | Z92: 2.2 | AA92: 0 | AG92: 89 | AH92: 7.836738343 | AI92: 0 | AK92: 89 | AL92: 27.850592 | AM92: 0 | AO92: 89 | AP92: 0.089408 | AQ92: 0 | AS92: 89 | AT92: 8.04672 | AU92: 0 | AW92: 89 | AX92: 8.04672 | AY92: 0 | BA92: 89 | BB92: 11.111112 | BC92: 0 | BE92: 89 | BF92: 13.88889 | BG92: 0
E93: 90 | F93: 13.72435066 | G93: 0 | I93: 90 | J93: 20.69828781 | K93: 0 | M93: 9 | N93: 40 | O93: 0 | Q93: 90 | R93: 1.6719296 | S93: 0 | Y93: 9 | Z93: 1.8 | AA93: 0 | AG93: 90 | AH93: 8.681657651 | AI93: 0 | AK93: 90 | AL93: 28.699968 | AM93: 0 | AO93: 90 | AP93: 0 | AQ93: 0 | AS93: 90 | AT93: 9.119616 | AU93: 0 | AW93: 90 | AX93: 9.119616 | AY93: 0 | BA93: 90 | BB93: 11.111112 | BC93: 0 | BE93: 90 | BF93: 13.88889 | BG93: 0
E94: 91 | F94: 13.63494121 | G94: 0 | I94: 91 | J94: 20.65358308 | K94: 0 | M94: 9.1 | N94: 40 | O94: 0 | Q94: 91 | R94: 1.0013696 | S94: 0 | Y94: 9.1 | Z94: 1.4 | AA94: 0 | AG94: 91 | AH94: 8.940945058 | AI94: 0 | AK94: 91 | AL94: 29.594048 | AM94: 0 | AO94: 91 | AP94: 0 | AQ94: 0 | AS94: 91 | AT94: 9.790176 | AU94: 0 | AW94: 91 | AX94: 9.790176 | AY94: 0 | BA94: 91 | BB94: 11.111112 | BC94: 0 | BE94: 91 | BF94: 13.88889 | BG94: 0
E95: 92 | F95: 13.59023649 | G95: 0 | I95: 92 | J95: 20.69828781 | K95: 0 | M95: 9.2 | N95: 40 | O95: 0 | Q95: 92 | R95: 0.5722112 | S95: 0 | Y95: 9.2 | Z95: 1 | AA95: 0 | AG95: 92 | AH95: 9.271760025 | AI95: 0 | AK95: 92 | AL95: 30.309312 | AM95: 0 | AO95: 92 | AP95: 0 | AQ95: 0 | AS95: 92 | AT95: 10.460736 | AU95: 0 | AW95: 92 | AX95: 10.460736 | AY95: 0 | BA95: 92 | BB95: 11.111112 | BC95: 0 | BE95: 92 | BF95: 13.88889 | BG95: 0
E96: 93 | F96: 13.54553176 | G96: 0 | I96: 93 | J96: 20.78769726 | K96: 0 | M96: 9.3 | N96: 40 | O96: 0 | Q96: 93 | R96: 0.2369312 | S96: 0 | Y96: 9.3 | Z96: 0.6 | AA96: 0 | AG96: 93 | AH96: 9.387992311 | AI96: 0 | AK96: 93 | AL96: 31.024576 | AM96: 0 | AO96: 93 | AP96: 0 | AQ96: 0 | AS96: 93 | AT96: 10.639552 | AU96: 0 | AW96: 93 | AX96: 10.639552 | AY96: 0 | BA96: 93 | BB96: 11.111112 | BC96: 0 | BE96: 93 | BF96: 13.88889 | BG96: 0
E97: 94 | F97: 13.59023649 | G97: 0 | I97: 94 | J97: 20.96651616 | K97: 0 | M97: 9.4 | N97: 40 | O97: 0 | Q97: 94 | R97: 0.0581152 | S97: 0 | Y97: 9.4 | Z97: 0.2 | AA97: 0 | AG97: 94 | AH97: 9.437167509 | AI97: 0 | AK97: 94 | AL97: 31.471616 | AM97: 0 | AO97: 94 | AP97: 0 | AQ97: 0 | AS97: 94 | AT97: 10.997184 | AU97: 0 | AW97: 94 | AX97: 10.997184 | AY97: 0 | BA97: 94 | BB97: 11.111112 | BC97: 0 | BE97: 94 | BF97: 13.88889 | BG97: 0
E98: 95 | F98: 13.76905539 | G98: 0 | I98: 95 | J98: 21.05592561 | K98: 0 | M98: 9.5 | N98: 40 | O98: 0 | Q98: 95 | R98: 0 | S98: 0 | Y98: 9.5 | Z98: 0 | AA98: 0 | AG98: 95 | AH98: 10.65760651 | AI98: 0 | AK98: 95 | AL98: 31.561024 | AM98: 0 | AO98: 95 | AP98: 0 | AQ98: 0 | AS98: 95 | AT98: 11.176 | AU98: 0 | AW98: 95 | AX98: 11.176 | AY98: 0 | BA98: 95 | BB98: 10.5555564 | BC98: 0 | BE98: 95 | BF98: 13.88889 | BG98: 0
E99: 96 | F99: 13.59023649 | G99: 0 | I99: 96 | J99: 21.19003979 | K99: 0 | M99: 9.6 | N99: 40 | O99: 0 | Q99: 96 | R99: 0 | S99: 0 | Y99: 9.6 | Z99: 0 | AA99: 0 | AG99: 96 | AH99: 12.07027583 | AI99: 0 | AK99: 96 | AL99: 31.605728 | AM99: 0 | AO99: 96 | AP99: 1.207008 | AQ99: 0 | AS99: 96 | AT99: 11.667744 | AU99: 0 | AW99: 96 | AX99: 11.667744 | AY99: 0 | BA99: 96 | BB99: 10.0000008 | BC99: 0 | BE99: 96 | BF99: 13.1944455 | BG99: 0
E100: 97 | F100: 13.36671286 | G100: 0 | I100: 97 | J100: 21.32415396 | K100: 0 | M100: 9.7 | N100: 40 | O100: 0 | Q100: 97 | R100: 0 | S100: 0 | Y100: 9.7 | Z100: 0 | AA100: 0 | AG100: 97 | AH100: 12.07027583 | AI100: 0 | AK100: 97 | AL100: 31.426912 | AM100: 0 | AO100: 97 | AP100: 3.710432 | AQ100: 0 | AS100: 97 | AT100: 11.667744 | AU100: 0 | AW100: 97 | AX100: 11.667744 | AY100: 0 | BA100: 97 | BB100: 9.4444452 | BC100: 0 | BE100: 97 | BF100: 12.500001 | BG100: 0
E101: 98 | F101: 13.18789396 | G101: 0 | I101: 98 | J101: 21.45826814 | K101: 0 | M101: 9.8 | N101: 40 | O101: 0 | Q101: 98 | R101: 0 | S101: 0 | Y101: 9.8 | Z101: 0 | AA101: 0 | AG101: 98 | AH101: 12.9867227 | AI101: 0 | AK101: 98 | AL101: 30.488128 | AM101: 0 | AO101: 98 | AP101: 5.543296 | AQ101: 0 | AS101: 98 | AT101: 12.025376 | AU101: 0 | AW101: 98 | AX101: 12.025376 | AY101: 0 | BA101: 98 | BB101: 8.8888896 | BC101: 0 | BE101: 98 | BF101: 11.8055565 | BG101: 0
E102: 99 | F102: 13.32200814 | G102: 0 | I102: 99 | J102: 21.54767759 | K102: 0 | M102: 9.9 | N102: 40 | O102: 0 | Q102: 99 | R102: 0 | S102: 0 | Y102: 9.9 | Z102: 0 | AA102: 0 | AG102: 99 | AH102: 14.53797666 | AI102: 0 | AK102: 99 | AL102: 29.72816 | AM102: 0 | AO102: 99 | AP102: 7.018528 | AQ102: 0 | AS102: 99 | AT102: 12.025376 | AU102: 0 | AW102: 99 | AX102: 12.025376 | AY102: 0 | BA102: 99 | BB102: 8.333334 | BC102: 0 | BE102: 99 | BF102: 11.111112 | BG102: 0
E103: 100 | F103: 13.54553176 | G103: 0 | I103: 100 | J103: 21.68179177 | K103: 0 | M103: 10 | N103: 40 | O103: 0 | Q103: 100 | R103: 0 | S103: 0 | Y103: 10 | Z103: 0 | AA103: 0 | AG103: 100 | AH103: 13.86293531 | AI103: 0 | AK103: 100 | AL103: 29.012896 | AM103: 0 | AO103: 100 | AP103: 7.778496 | AQ103: 0 | AS103: 100 | AT103: 12.025376 | AU103: 0 | AW103: 100 | AX103: 12.025376 | AY103: 0 | BA103: 100 | BB103: 7.7777784 | BC103: 0 | BE103: 100 | BF103: 11.111112 | BG103: 0
E104: 101 | F104: 13.72435066 | G104: 0 | I104: 101 | J104: 21.81590594 | K104: 0 | M104: 10.1 | N104: 40 | O104: 0 | Q104: 101 | R104: 0 | S104: 0 | AG104: 101 | AH104: 13.85846484 | AI104: 0 | AK104: 101 | AL104: 28.476448 | AM104: 0 | AO104: 101 | AP104: 7.733792 | AQ104: 0 | AS104: 101 | AT104: 11.84656 | AU104: 0 | AW104: 101 | AX104: 11.84656 | AY104: 0 | BA104: 101 | BB104: 7.2222228 | BC104: 0 | BE104: 101 | BF104: 11.111112 | BG104: 0
E105: 102 | F105: 13.81376011 | G105: 0 | I105: 102 | J105: 21.95002012 | K105: 0 | M105: 10.2 | N105: 40 | O105: 0 | Q105: 102 | R105: 0 | S105: 0 | AG105: 102 | AH105: 14.13563414 | AI105: 0 | AK105: 102 | AL105: 27.94 | AM105: 0 | AO105: 102 | AP105: 7.689088 | AQ105: 0 | AS105: 102 | AT105: 11.488928 | AU105: 0 | AW105: 102 | AX105: 11.488928 | AY105: 0 | BA105: 102 | BB105: 6.6666672 | BC105: 0 | BE105: 102 | BF105: 11.111112 | BG105: 0
E106: 103 | F106: 13.85846484 | G106: 0 | I106: 103 | J106: 21.99472484 | K106: 0 | M106: 10.3 | N106: 40 | O106: 0 | Q106: 103 | R106: 0 | S106: 0 | AG106: 103 | AH106: 14.75255935 | AI106: 0 | AK106: 103 | AL106: 27.26944 | AM106: 0 | AO106: 103 | AP106: 6.750304 | AQ106: 0 | AS106: 103 | AT106: 9.790176 | AU106: 0 | AW106: 103 | AX106: 9.790176 | AY106: 0 | BA106: 103 | BB106: 6.1111116 | BC106: 0 | BE106: 103 | BF106: 11.111112 | BG106: 0
E107: 104 | F107: 13.81376011 | G107: 0 | I107: 104 | J107: 21.95002012 | K107: 0 | M107: 10.4 | N107: 40 | O107: 0 | Q107: 104 | R107: 0 | S107: 0 | AG107: 104 | AH107: 14.47091958 | AI107: 0 | AK107: 104 | AL107: 26.509472 | AM107: 0 | AO107: 104 | AP107: 5.006848 | AQ107: 0 | AS107: 104 | AT107: 7.37616 | AU107: 0 | AW107: 104 | AX107: 7.37616 | AY107: 0 | BA107: 104 | BB107: 5.555556 | BC107: 0 | BE107: 104 | BF107: 11.47222314 | BG107: 0
E108: 105 | F108: 13.59023649 | G108: 0 | I108: 105 | J108: 21.95002012 | K108: 0 | M108: 10.5 | N108: 40 | O108: 0 | Q108: 105 | R108: 0 | S108: 0 | AG108: 105 | AH108: 13.60364791 | AI108: 0 | AK108: 105 | AL108: 25.794208 | AM108: 0 | AO108: 105 | AP108: 3.844544 | AQ108: 0 | AS108: 105 | AT108: 4.4704 | AU108: 0 | AW108: 105 | AX108: 4.4704 | AY108: 0 | BA108: 105 | BB108: 5.555556 | BC108: 0 | BE108: 105 | BF108: 11.8055565 | BG108: 0
E109: 106 | F109: 13.32200814 | G109: 0 | I109: 106 | J109: 21.90531539 | K109: 0 | M109: 10.6 | N109: 40 | O109: 0 | Q109: 106 | R109: 0 | S109: 0 | AG109: 106 | AH109: 13.41141759 | AI109: 0 | AK109: 106 | AL109: 25.03424 | AM109: 0 | AO109: 106 | AP109: 2.637536 | AQ109: 0 | AS109: 106 | AT109: 2.056384 | AU109: 0 | AW109: 106 | AX109: 2.056384 | AY109: 0 | BA109: 106 | BB109: 5.555556 | BC109: 0 | BE109: 106 | BF109: 12.16666764 | BG109: 0
E110: 107 | F110: 13.36671286 | G110: 0 | I110: 107 | J110: 21.90531539 | K110: 0 | M110: 10.7 | N110: 40 | O110: 0 | Q110: 107 | R110: 0 | S110: 0 | AG110: 107 | AH110: 13.41141759 | AI110: 0 | AK110: 107 | AL110: 24.36368 | AM110: 0 | AO110: 107 | AP110: 2.414016 | AQ110: 0 | AS110: 107 | AT110: 0.67056 | AU110: 0 | AW110: 107 | AX110: 0.67056 | AY110: 0 | BA110: 107 | BB110: 6.02777826 | BC110: 0 | BE110: 107 | BF110: 12.500001 | BG110: 0
E111: 108 | F111: 13.50082704 | G111: 0 | I111: 108 | J111: 21.95002012 | K111: 0 | M111: 10.8 | N111: 40 | O111: 0 | Q111: 108 | R111: 0.134112 | S111: 0 | AG111: 108 | AH111: 13.63941169 | AI111: 0 | AK111: 108 | AL111: 23.603712 | AM111: 0 | AO111: 108 | AP111: 3.039872 | AQ111: 0 | AS111: 108 | AT111: 0.178816 | AU111: 0 | AW111: 108 | AX111: 0.178816 | AY111: 0 | BA111: 108 | BB111: 6.47222274 | BC111: 0 | BE111: 108 | BF111: 12.86111214 | BG111: 0
E112: 109 | F112: 13.72435066 | G112: 0 | I112: 109 | J112: 21.99472484 | K112: 0 | M112: 10.9 | N112: 40 | O112: 0 | Q112: 109 | R112: 0.871728 | S112: 0 | AG112: 109 | AH112: 14.48880147 | AI112: 0 | AK112: 109 | AL112: 22.888448 | AM112: 0 | AO112: 109 | AP112: 3.084576 | AQ112: 0 | AS112: 109 | AT112: 0 | AU112: 0 | AW112: 109 | AX112: 0 | AY112: 0 | BA112: 109 | BB112: 6.944445 | BC112: 0 | BE112: 109 | BF112: 13.1944455 | BG112: 0
E113: 110 | F113: 13.94787429 | G113: 0 | I113: 110 | J113: 22.03942957 | K113: 0 | M113: 11 | N113: 40 | O113: 0 | Q113: 110 | R113: 2.257552 | S113: 0 | AG113: 110 | AH113: 14.75255935 | AI113: 0 | AK113: 110 | AL113: 22.12848 | AM113: 0 | AO113: 110 | AP113: 2.145792 | AQ113: 0 | AS113: 110 | AT113: 0 | AU113: 0 | AW113: 110 | AX113: 0 | AY113: 0 | BA113: 110 | BB113: 7.41666726 | BC113: 0 | BE113: 110 | BF113: 13.55555664 | BG113: 0
E114: 111 | F114: 14.21610264 | G114: 0 | I114: 111 | J114: 22.08413429 | K114: 0 | M114: 11.1 | N114: 40 | O114: 0 | Q114: 111 | R114: 3.6076128 | S114: 0 | AG114: 111 | AH114: 14.42621485 | AI114: 0 | AK114: 111 | AL114: 21.45792 | AM114: 0 | AO114: 111 | AP114: 2.548128 | AQ114: 0 | AS114: 111 | AT114: 0 | AU114: 0 | AW114: 111 | AX114: 0 | AY114: 0 | BA114: 111 | BB114: 7.86111174 | BC114: 0 | BE114: 111 | BF114: 13.88889 | BG114: 0
E115: 112 | F115: 14.39492154 | G115: 0 | I115: 112 | J115: 22.12883902 | K115: 0 | M115: 11.2 | N115: 40 | O115: 0 | Q115: 112 | R115: 4.895088 | S115: 0 | AG115: 112 | AH115: 14.30551209 | AI115: 0 | AK115: 112 | AL115: 20.697952 | AM115: 0 | AO115: 112 | AP115: 3.173984 | AQ115: 0 | AS115: 112 | AT115: 0 | AU115: 0 | AW115: 112 | AX115: 0 | AY115: 0 | BA115: 112 | BB115: 8.333334 | BC115: 0 | BE115: 112 | BF115: 14.25000114 | BG115: 0
E116: 113 | F116: 14.48433099 | G116: 0 | I116: 113 | J116: 22.12883902 | K116: 0 | M116: 11.3 | N116: 40 | O116: 0 | Q116: 113 | R116: 6.0439808 | S116: 0 | AG116: 113 | AH116: 13.87634673 | AI116: 0 | AK116: 113 | AL116: 19.66976 | AM116: 0 | AO116: 113 | AP116: 3.039872 | AQ116: 0 | AS116: 113 | AT116: 0 | AU116: 0 | AW116: 113 | AX116: 0 | AY116: 0 | BA116: 113 | BB116: 8.80555626 | BC116: 0 | BE116: 113 | BF116: 14.5833345 | BG116: 0
E117: 114 | F117: 14.39492154 | G117: 0 | I117: 114 | J117: 22.12883902 | K117: 0 | M117: 11.4 | N117: 40 | O117: 0 | Q117: 114 | R117: 7.0677024 | S117: 0 | AG117: 114 | AH117: 14.39492154 | AI117: 0 | AK117: 114 | AL117: 18.373344 | AM117: 0 | AO117: 114 | AP117: 2.637536 | AQ117: 0 | AS117: 114 | AT117: 0 | AU117: 0 | AW117: 114 | AX117: 0 | AY117: 0 | BA117: 114 | BB117: 9.25000074 | BC117: 0 | BE117: 114 | BF117: 14.94444564 | BG117: 0
E118: 115 | F118: 14.17139792 | G118: 0 | I118: 115 | J118: 22.08413429 | K118: 0 | M118: 11.5 | N118: 40 | O118: 0 | Q118: 115 | R118: 7.9707232 | S118: 0 | AG118: 115 | AH118: 14.91349636 | AI118: 0 | AK118: 115 | AL118: 17.345152 | AM118: 0 | AO118: 115 | AP118: 2.68224 | AQ118: 0 | AS118: 115 | AT118: 0 | AU118: 0 | AW118: 115 | AX118: 0 | AY118: 0 | BA118: 115 | BB118: 9.722223 | BC118: 0 | BE118: 115 | BF118: 15.277779 | BG118: 0
E119: 116 | F119: 12.78555143 | G119: 0 | I119: 116 | J119: 21.95002012 | K119: 0 | M119: 11.6 | N119: 40 | O119: 0 | Q119: 116 | R119: 7.9751936 | S119: 0 | AG119: 116 | AH119: 15.1996066 | AI119: 0 | AK119: 116 | AL119: 16.853408 | AM119: 0 | AO119: 116 | AP119: 2.68224 | AQ119: 0 | AS119: 116 | AT119: 0 | AU119: 0 | AW119: 116 | AX119: 0 | AY119: 0 | BA119: 116 | BB119: 10.19444526 | BC119: 0 | BE119: 116 | BF119: 15.63889014 | BG119: 0
E120: 117 | F120: 11.3102955 | G120: 0 | I120: 117 | J120: 21.86061067 | K120: 0 | M120: 11.7 | N120: 40 | O120: 0 | Q120: 117 | R120: 7.0900544 | S120: 0 | AG120: 117 | AH120: 15.1996066 | AI120: 0 | AK120: 117 | AL120: 16.361664 | AM120: 0 | AO120: 117 | AP120: 2.637536 | AQ120: 0 | AS120: 117 | AT120: 0.178816 | AU120: 0 | AW120: 117 | AX120: 0.178816 | AY120: 0 | BA120: 117 | BB120: 10.63888974 | BC120: 0 | BE120: 117 | BF120: 15.9722235 | BG120: 0
E121: 118 | F121: 9.835039564 | G121: 0 | I121: 118 | J121: 21.72649649 | K121: 0 | M121: 11.8 | N121: 40 | O121: 0 | Q121: 118 | R121: 6.0037472 | S121: 0 | AG121: 118 | AH121: 15.1996066 | AI121: 0 | AK121: 118 | AL121: 15.780512 | AM121: 0 | AO121: 118 | AP121: 2.503424 | AQ121: 0 | AS121: 118 | AT121: 0.536448 | AU121: 0 | AW121: 118 | AX121: 0.536448 | AY121: 0 | BA121: 118 | BB121: 11.111112 | BC121: 0 | BE121: 118 | BF121: 16.33333464 | BG121: 0
E122: 119 | F122: 8.359783629 | G122: 0 | I122: 119 | J122: 21.63708704 | K122: 0 | M122: 11.9 | N122: 40 | O122: 0 | Q122: 119 | R122: 4.8816768 | S122: 0 | AG122: 119 | AH122: 14.75702982 | AI122: 0 | AK122: 119 | AL122: 13.4112 | AM122: 0 | AO122: 119 | AP122: 2.45872 | AQ122: 0 | AS122: 119 | AT122: 0.849376 | AU122: 0 | AW122: 119 | AX122: 0.849376 | AY122: 0 | BA122: 119 | BB122: 10.5555564 | BC122: 0 | BE122: 119 | BF122: 16.666668 | BG122: 0
E123: 120 | F123: 6.884527695 | G123: 0 | I123: 120 | J123: 21.50297286 | K123: 0 | M123: 12 | N123: 40 | O123: 0 | Q123: 120 | R123: 3.8713664 | S123: 0 | AG123: 120 | AH123: 14.24292548 | AI123: 0 | AK123: 120 | AL123: 10.907776 | AM123: 0 | AO123: 120 | AP123: 3.218688 | AQ123: 0 | AS123: 120 | AT123: 1.698752 | AU123: 0 | AW123: 120 | AX123: 1.698752 | AY123: 0 | BA123: 120 | BB123: 10.0000008 | BC123: 0 | BE123: 120 | BF123: 16.666668 | BG123: 0
E124: 121 | F124: 5.40927176 | G124: 0 | I124: 121 | J124: 21.32415396 | K124: 0 | M124: 12.1 | N124: 40 | O124: 0 | Q124: 121 | R124: 2.995168 | S124: 0 | AG124: 121 | AH124: 13.45612231 | AI124: 0 | AK124: 121 | AL124: 8.851392 | AM124: 0 | AO124: 121 | AP124: 4.425696 | AQ124: 0 | AS124: 121 | AT124: 3.442208 | AU124: 0 | AW124: 121 | AX124: 3.442208 | AY124: 0 | BA124: 121 | BB124: 9.4444452 | BC124: 0 | BE124: 121 | BF124: 16.666668 | BG124: 0
E125: 122 | F125: 3.934015825 | G125: 0 | I125: 122 | J125: 21.19003979 | K125: 0 | M125: 12.2 | N125: 40 | O125: 0 | Q125: 122 | R125: 2.0608544 | S125: 0 | AG125: 122 | AH125: 11.69922661 | AI125: 0 | AK125: 122 | AL125: 6.92912 | AM125: 0 | AO125: 122 | AP125: 4.828032 | AQ125: 0 | AS125: 122 | AT125: 5.14096 | AU125: 0 | AW125: 122 | AX125: 5.14096 | AY125: 0 | BA125: 122 | BB125: 8.8888896 | BC125: 0 | BE125: 122 | BF125: 16.666668 | BG125: 0
E126: 123 | F126: 2.458759891 | G126: 0 | I126: 123 | J126: 21.14533506 | K126: 0 | M126: 12.3 | N126: 40 | O126: 0 | Q126: 123 | R126: 1.3455904 | S126: 0 | AG126: 123 | AH126: 10.45643525 | AI126: 0 | AK126: 123 | AL126: 4.828032 | AM126: 0 | AO126: 123 | AP126: 5.096256 | AQ126: 0 | AS126: 123 | AT126: 6.526784 | AU126: 0 | AW126: 123 | AX126: 6.526784 | AY126: 0 | BA126: 123 | BB126: 8.333334 | BC126: 0 | BE126: 123 | BF126: 16.666668 | BG126: 0
E127: 124 | F127: 0.9835039564 | G127: 0 | I127: 124 | J127: 21.23474451 | K127: 0 | M127: 12.4 | N127: 40 | O127: 0 | Q127: 124 | R127: 0.9030208 | S127: 0 | AG127: 124 | AH127: 9.593634047 | AI127: 0 | AK127: 124 | AL127: 2.816352 | AM127: 0 | AO127: 124 | AP127: 5.319776 | AQ127: 0 | AS127: 124 | AT127: 8.04672 | AU127: 0 | AW127: 124 | AX127: 8.04672 | AY127: 0 | BA127: 124 | BB127: 7.7777784 | BC127: 0 | BE127: 124 | BF127: 16.666668 | BG127: 0
E128: 125 | F128: 0 | G128: 0 | I128: 125 | J128: 21.36885869 | K128: 0 | M128: 12.5 | N128: 40 | O128: 0 | Q128: 125 | R128: 0.5766816 | S128: 0 | AG128: 125 | AH128: 7.72497653 | AI128: 0 | AK128: 125 | AL128: 1.430528 | AM128: 0 | AO128: 125 | AP128: 5.409184 | AQ128: 0 | AS128: 125 | AT128: 9.61136 | AU128: 0 | AW128: 125 | AX128: 9.61136 | AY128: 0 | BA128: 125 | BB128: 7.2222228 | BC128: 0 | BE128: 125 | BF128: 16.666668 | BG128: 0
E129: 126 | F129: 0 | G129: 0 | I129: 126 | J129: 21.41356341 | K129: 0 | M129: 12.6 | N129: 40 | O129: 0 | Q129: 126 | R129: 0.2503424 | S129: 0 | AG129: 126 | AH129: 7.076758013 | AI129: 0 | AK129: 126 | AL129: 0.938784 | AM129: 0 | AO129: 126 | AP129: 5.632704 | AQ129: 0 | AS129: 126 | AT129: 11.176 | AU129: 0 | AW129: 126 | AX129: 11.176 | AY129: 0 | BA129: 126 | BB129: 6.6666672 | BC129: 0 | BE129: 126 | BF129: 16.666668 | BG129: 0
E130: 127 | F130: 0 | G130: 0 | I130: 127 | J130: 21.45826814 | K130: 0 | M130: 12.7 | N130: 40 | O130: 0 | Q130: 127 | R130: 0 | S130: 0 | AG130: 127 | AH130: 6.1513702 | AI130: 0 | AK130: 127 | AL130: 0.536448 | AM130: 0 | AO130: 127 | AP130: 5.498592 | AQ130: 0 | AS130: 127 | AT130: 12.695936 | AU130: 0 | AW130: 127 | AX130: 12.695936 | AY130: 0 | BA130: 127 | BB130: 6.1111116 | BC130: 0 | BE130: 127 | BF130: 16.666668 | BG130: 0
E131: 128 | F131: 0 | G131: 0 | I131: 128 | J131: 21.41356341 | K131: 0 | M131: 12.8 | N131: 40 | O131: 0 | Q131: 128 | R131: 0 | S131: 0 | AG131: 128 | AH131: 5.632795386 | AI131: 0 | AK131: 128 | AL131: 0 | AM131: 0 | AO131: 128 | AP131: 4.738624 | AQ131: 0 | AS131: 128 | AT131: 13.724128 | AU131: 0 | AW131: 128 | AX131: 13.724128 | AY131: 0 | BA131: 128 | BB131: 5.555556 | BC131: 0 | BE131: 128 | BF131: 16.666668 | BG131: 0
E132: 129 | F132: 0 | G132: 0 | I132: 129 | J132: 21.41356341 | K132: 0 | M132: 12.9 | N132: 40 | O132: 0 | Q132: 129 | R132: 0 | S132: 0 | AG132: 129 | AH132: 4.617998122 | AI132: 0 | AK132: 129 | AL132: 0 | AM132: 0 | AO132: 129 | AP132: 4.425696 | AQ132: 0 | AS132: 129 | AT132: 14.260576 | AU132: 0 | AW132: 129 | AX132: 14.260576 | AY132: 0 | BA132: 129 | BB132: 4.75000038 | BC132: 0 | BE132: 129 | BF132: 16.666668 | BG132: 0
E133: 130 | F133: 0 | G133: 0 | I133: 130 | J133: 21.41356341 | K133: 0 | M133: 13 | N133: 40 | O133: 0 | Q133: 130 | R133: 0 | S133: 0 | AG133: 130 | AH133: 3.701551254 | AI133: 0 | AK133: 130 | AL133: 0 | AM133: 0 | AO133: 130 | AP133: 4.202176 | AQ133: 0 | AS133: 130 | AT133: 14.439392 | AU133: 0 | AW133: 130 | AX133: 14.439392 | AY133: 0 | BA133: 130 | BB133: 3.97222254 | BC133: 0 | BE133: 130 | BF133: 16.91666802 | BG133: 0
E134: 131 | F134: 0 | G134: 0 | I134: 131 | J134: 21.45826814 | K134: 0 | M134: 13.1 | N134: 40 | O134: 0 | Q134: 131 | R134: 0 | S134: 0 | AG134: 131 | AH134: 2.405114221 | AI134: 0 | AK134: 131 | AL134: 0 | AM134: 0 | AO134: 131 | AP134: 3.978656 | AQ134: 0 | AS134: 131 | AT134: 14.439392 | AU134: 0 | AW134: 131 | AX134: 14.439392 | AY134: 0 | BA134: 131 | BB134: 3.16666692 | BC134: 0 | BE134: 131 | BF134: 17.16666804 | BG134: 0
E135: 132 | F135: 0 | G135: 0 | I135: 132 | J135: 21.45826814 | K135: 0 | M135: 13.2 | N135: 40 | O135: 0 | Q135: 132 | R135: 0 | S135: 0 | AG135: 132 | AH135: 1.300907506 | AI135: 0 | AK135: 132 | AL135: 0 | AM135: 0 | AO135: 132 | AP135: 3.397504 | AQ135: 0 | AS135: 132 | AT135: 14.260576 | AU135: 0 | AW135: 132 | AX135: 14.260576 | AY135: 0 | BA135: 132 | BB135: 2.38888908 | BC135: 0 | BE135: 132 | BF135: 17.41666806 | BG135: 0
E136: 133 | F136: 0 | G136: 0 | I136: 133 | J136: 21.45826814 | K136: 0 | M136: 13.3 | N136: 40 | O136: 0 | Q136: 133 | R136: 0 | S136: 0 | AG136: 133 | AH136: 0 | AI136: 0 | AK136: 133 | AL136: 0 | AM136: 0 | AO136: 133 | AP136: 2.726944 | AQ136: 0 | AS136: 133 | AT136: 13.545312 | AU136: 0 | AW136: 133 | AX136: 13.545312 | AY136: 0 | BA136: 133 | BB136: 1.58333346 | BC136: 0 | BE136: 133 | BF136: 17.66666808 | BG136: 0
E137: 134 | F137: 0 | G137: 0 | I137: 134 | J137: 21.41356341 | K137: 0 | M137: 13.4 | N137: 40 | O137: 0 | Q137: 134 | R137: 0 | S137: 0 | AG137: 134 | AH137: 0 | AI137: 0 | AK137: 134 | AL137: 0 | AM137: 0 | AO137: 134 | AP137: 2.2352 | AQ137: 0 | AS137: 134 | AT137: 12.51712 | AU137: 0 | AW137: 134 | AX137: 12.51712 | AY137: 0 | BA137: 134 | BB137: 0.80555562 | BC137: 0 | BE137: 134 | BF137: 17.9166681 | BG137: 0
E138: 135 | F138: 0 | G138: 0 | I138: 135 | J138: 21.14533506 | K138: 0 | M138: 13.5 | N138: 40 | O138: 0 | Q138: 135 | R138: 0 | S138: 0 | AG138: 135 | AH138: 0 | AI138: 0 | AK138: 135 | AL138: 0 | AM138: 0 | AO138: 135 | AP138: 1.654048 | AQ138: 0 | AS138: 135 | AT138: 10.818368 | AU138: 0 | AW138: 135 | AX138: 10.818368 | AY138: 0 | BA138: 135 | BB138: 0 | BC138: 0 | BE138: 135 | BF138: 18.1944459 | BG138: 0
E139: 136 | F139: 0 | G139: 0 | I139: 136 | J139: 20.56417363 | K139: 0 | M139: 13.6 | N139: 40 | O139: 0 | Q139: 136 | R139: 0 | S139: 0 | AG139: 136 | AH139: 0 | AI139: 0 | AK139: 136 | AL139: 1.207008 | AM139: 0 | AO139: 136 | AP139: 1.162304 | AQ139: 0 | AS139: 136 | AT139: 8.9408 | AU139: 0 | AW139: 136 | AX139: 8.9408 | AY139: 0 | BE139: 136 | BF139: 18.44444592 | BG139: 0
E140: 137 | F140: 0 | G140: 0 | I140: 137 | J140: 19.35714605 | K140: 0 | M140: 13.7 | N140: 40 | O140: 0 | Q140: 137 | R140: 0 | S140: 0 | AG140: 137 | AH140: 0 | AI140: 0 | AK140: 137 | AL140: 4.112768 | AM140: 0 | AO140: 137 | AP140: 0.44704 | AQ140: 0 | AS140: 137 | AT140: 7.197344 | AU140: 0 | AW140: 137 | AX140: 7.197344 | AY140: 0 | BE140: 137 | BF140: 18.69444594 | BG140: 0
E141: 138 | F141: 0 | G141: 0 | I141: 138 | J141: 18.41834682 | K141: 0 | M141: 13.8 | N141: 40 | O141: 0 | Q141: 138 | R141: 0 | S141: 0 | AG141: 138 | AH141: 0 | AI141: 0 | AK141: 138 | AL141: 7.197344 | AM141: 0 | AO141: 138 | AP141: 0.357632 | AQ141: 0 | AS141: 138 | AT141: 5.14096 | AU141: 0 | AW141: 138 | AX141: 5.14096 | AY141: 0 | BE141: 138 | BF141: 18.94444596 | BG141: 0
E142: 139 | F142: 0 | G142: 0 | I142: 139 | J142: 17.65836649 | K142: 0 | M142: 13.9 | N142: 40 | O142: 0 | Q142: 139 | R142: 0 | S142: 0 | AG142: 139 | AH142: 0 | AI142: 0 | AK142: 139 | AL142: 10.147808 | AM142: 0 | AO142: 139 | AP142: 0.044704 | AQ142: 0 | AS142: 139 | AT142: 3.621024 | AU142: 0 | AW142: 139 | AX142: 3.621024 | AY142: 0 | BE142: 139 | BF142: 19.19444598 | BG142: 0
E143: 140 | F143: 0 | G143: 0 | I143: 140 | J143: 17.52425231 | K143: 0 | M143: 14 | N143: 40 | O143: 0 | Q143: 140 | R143: 0.0849376 | S143: 0 | AG143: 140 | AH143: 0 | AI143: 0 | AK143: 140 | AL143: 13.053568 | AM143: 0 | AO143: 140 | AP143: 0.178816 | AQ143: 0 | AS143: 140 | AT143: 2.2352 | AU143: 0 | AW143: 140 | AX143: 2.2352 | AY143: 0 | BE143: 140 | BF143: 19.444446 | BG143: 0
E144: 141 | F144: 0 | G144: 0 | I144: 141 | J144: 17.43484286 | K144: 0 | M144: 14.1 | N144: 40 | O144: 0 | Q144: 141 | R144: 0.5588 | S144: 0 | AG144: 141 | AH144: 0 | AI144: 0 | AK144: 141 | AL144: 15.288768 | AM144: 0 | AO144: 141 | AP144: 0.089408 | AQ144: 0 | AS144: 141 | AT144: 1.56464 | AU144: 0 | AW144: 141 | AX144: 1.56464 | AY144: 0 | BE144: 141 | BF144: 19.444446 | BG144: 0
E145: 142 | F145: 0 | G145: 0 | I145: 142 | J145: 17.43484286 | K145: 0 | M145: 14.2 | N145: 40 | O145: 0 | Q145: 142 | R145: 1.4707616 | S145: 0 | AG145: 142 | AH145: 0 | AI145: 0 | AK145: 142 | AL145: 17.345152 | AM145: 0 | AO145: 142 | AP145: 0 | AQ145: 0 | AS145: 142 | AT145: 0.849376 | AU145: 0 | AW145: 142 | AX145: 0.849376 | AY145: 0 | BE145: 142 | BF145: 19.444446 | BG145: 0
E146: 143 | F146: 0 | G146: 0 | I146: 143 | J146: 17.47954759 | K146: 0 | M146: 14.3 | N146: 40 | O146: 0 | Q146: 143 | R146: 2.6688288 | S146: 0 | AG146: 143 | AH146: 0 | AI146: 0 | AK146: 143 | AL146: 19.22272 | AM146: 0 | AO146: 143 | AP146: 0 | AQ146: 0 | AS146: 143 | AT146: 0 | AU146: 0 | AW146: 143 | AX146: 0 | AY146: 0 | BE146: 143 | BF146: 19.444446 | BG146: 0
E147: 144 | F147: 0 | G147: 0 | I147: 144 | J147: 17.65836649 | K147: 0 | M147: 14.4 | N147: 40 | O147: 0 | Q147: 144 | R147: 3.8311328 | S147: 0 | AG147: 144 | AH147: 0 | AI147: 0 | AK147: 144 | AL147: 20.250912 | AM147: 0 | AO147: 144 | AP147: 0 | AQ147: 0 | AS147: 144 | AT147: 0 | AU147: 0 | AW147: 144 | AX147: 0 | AY147: 0 | BE147: 144 | BF147: 19.444446 | BG147: 0
E148: 145 | F148: 0 | G148: 0 | I148: 145 | J148: 17.92659484 | K148: 0 | M148: 14.5 | N148: 40 | O148: 0 | Q148: 145 | R148: 4.58216 | S148: 0 | AG148: 145 | AH148: 0 | AI148: 0 | AK148: 145 | AL148: 20.921472 | AM148: 0 | AO148: 145 | AP148: 0.581152 | AQ148: 0 | AS148: 145 | AT148: 0 | AU148: 0 | AW148: 145 | AX148: 0 | AY148: 0 | BE148: 145 | BF148: 19.444446 | BG148: 0
E149: 146 | F149: 0 | G149: 0 | I149: 146 | J149: 18.32893737 | K149: 0 | M149: 14.6 | N149: 40 | O149: 0 | Q149: 146 | R149: 5.230368 | S149: 0 | AG149: 146 | AH149: 0 | AI149: 0 | AK149: 146 | AL149: 21.45792 | AM149: 0 | AO149: 146 | AP149: 2.68224 | AQ149: 0 | AS149: 146 | AT149: 0 | AU149: 0 | AW149: 146 | AX149: 0 | AY149: 0 | BE149: 146 | BF149: 19.444446 | BG149: 0
E150: 147 | F150: 0 | G150: 0 | I150: 147 | J150: 18.77598462 | K150: 0 | M150: 14.7 | N150: 40 | O150: 0 | Q150: 147 | R150: 5.789168 | S150: 0 | AG150: 147 | AH150: 0 | AI150: 0 | AK150: 147 | AL150: 22.12848 | AM150: 0 | AO150: 147 | AP150: 4.559808 | AQ150: 0 | AS150: 147 | AT150: 0 | AU150: 0 | AW150: 147 | AX150: 0 | AY150: 0 | BE150: 147 | BF150: 19.444446 | BG150: 0
E151: 148 | F151: 0 | G151: 0 | I151: 148 | J151: 19.2677366 | K151: 0 | M151: 14.8 | N151: 40 | O151: 0 | Q151: 148 | R151: 6.280912 | S151: 0 | AG151: 148 | AH151: 0 | AI151: 0 | AK151: 148 | AL151: 22.486112 | AM151: 0 | AO151: 148 | AP151: 5.409184 | AQ151: 0 | AS151: 148 | AT151: 0 | AU151: 0 | AW151: 148 | AX151: 0 | AY151: 0 | BE151: 148 | BF151: 19.444446 | BG151: 0
E152: 149 | F152: 0 | G152: 0 | I152: 149 | J152: 19.53596495 | K152: 0 | M152: 14.9 | N152: 40 | O152: 0 | Q152: 149 | R152: 6.7234816 | S152: 0 | AG152: 149 | AH152: 0 | AI152: 0 | AK152: 149 | AL152: 23.02256 | AM152: 0 | AO152: 149 | AP152: 6.169152 | AQ152: 0 | AS152: 149 | AT152: 0 | AU152: 0 | AW152: 149 | AX152: 0 | AY152: 0 | BE152: 149 | BF152: 19.444446 | BG152: 0
E153: 150 | F153: 0 | G153: 0 | I153: 150 | J153: 19.71478385 | K153: 0 | M153: 15 | N153: 40 | O153: 0 | Q153: 150 | R153: 6.92912 | S153: 0 | AG153: 150 | AH153: 0 | AI153: 0 | AK153: 150 | AL153: 23.335488 | AM153: 0 | AO153: 150 | AP153: 6.750304 | AQ153: 0 | AS153: 150 | AT153: 0 | AU153: 0 | AW153: 150 | AX153: 0 | AY153: 0 | BE153: 150 | BF153: 19.444446 | BG153: 0
E154: 151 | F154: 0 | G154: 0 | I154: 151 | J154: 19.8041933 | K154: 0 | M154: 15.1 | N154: 40 | O154: 0 | Q154: 151 | R154: 6.951472 | S154: 0 | AG154: 151 | AH154: 0 | AI154: 0 | AK154: 151 | AL154: 23.514304 | AM154: 0 | AO154: 151 | AP154: 7.242048 | AQ154: 0 | AS154: 151 | AT154: 0 | AU154: 0 | AW154: 151 | AX154: 0 | AY154: 0 | BE154: 151 | BF154: 18.8888904 | BG154: 0
E155: 152 | F155: 0 | G155: 0 | I155: 152 | J155: 19.84889803 | K155: 0 | M155: 15.2 | N155: 40 | O155: 0 | Q155: 152 | R155: 6.9604128 | S155: 0 | AG155: 152 | AH155: 0 | AI155: 0 | AK155: 152 | AL155: 23.69312 | AM155: 0 | AO155: 152 | AP155: 7.107936 | AQ155: 0 | AS155: 152 | AT155: 0.67056 | AU155: 0 | AW155: 152 | AX155: 0.67056 | AY155: 0 | BE155: 152 | BF155: 18.3333348 | BG155: 0
E156: 153 | F156: 0 | G156: 0 | I156: 153 | J156: 19.93830748 | K156: 0 | M156: 15.3 | N156: 40 | O156: 0 | Q156: 153 | R156: 7.1436992 | S156: 0 | AG156: 153 | AH156: 0 | AI156: 0 | AK156: 153 | AL156: 24.050752 | AM156: 0 | AO156: 153 | AP156: 7.15264 | AQ156: 0 | AS156: 153 | AT156: 3.084576 | AU156: 0 | AW156: 153 | AX156: 3.084576 | AY156: 0 | BE156: 153 | BF156: 17.7777792 | BG156: 0
E157: 154 | F157: 0 | G157: 0 | I157: 154 | J157: 19.9830122 | K157: 0 | M157: 15.4 | N157: 40 | O157: 0 | Q157: 154 | R157: 7.2956928 | S157: 0 | AG157: 154 | AH157: 0 | AI157: 0 | AK157: 154 | AL157: 24.050752 | AM157: 0 | AO157: 154 | AP157: 7.510272 | AQ157: 0 | AS157: 154 | AT157: 5.677408 | AU157: 0 | AW157: 154 | AX157: 5.677408 | AY157: 0 | BE157: 154 | BF157: 17.2222236 | BG157: 0
E158: 155 | F158: 0 | G158: 0 | I158: 155 | J158: 20.07242165 | K158: 0 | M158: 15.5 | N158: 40 | O158: 0 | Q158: 155 | R158: 7.3627488 | S158: 0 | AG158: 155 | AH158: 0 | AI158: 0 | AK158: 155 | AL158: 24.050752 | AM158: 0 | AO158: 155 | AP158: 7.8232 | AQ158: 0 | AS158: 155 | AT158: 7.37616 | AU158: 0 | AW158: 155 | AX158: 7.37616 | AY158: 0 | BE158: 155 | BF158: 16.666668 | BG158: 0
E159: 156 | F159: 0 | G159: 0 | I159: 156 | J159: 20.20653583 | K159: 0 | M159: 15.6 | N159: 40 | O159: 0 | Q159: 156 | R159: 7.2554592 | S159: 0 | AG159: 156 | AH159: 0 | AI159: 0 | AK159: 156 | AL159: 24.408384 | AM159: 0 | AO159: 156 | AP159: 8.04672 | AQ159: 0 | AS159: 156 | AT159: 8.9408 | AU159: 0 | AW159: 156 | AX159: 8.9408 | AY159: 0 | BE159: 156 | BF159: 16.1111124 | BG159: 0
E160: 157 | F160: 0 | G160: 0 | I160: 157 | J160: 20.43005946 | K160: 0 | M160: 15.7 | N160: 40 | O160: 0 | Q160: 157 | R160: 7.018528 | S160: 0 | AG160: 157 | AH160: 0 | AI160: 0 | AK160: 157 | AL160: 25.168352 | AM160: 0 | AO160: 157 | AP160: 8.761984 | AQ160: 0 | AS160: 157 | AT160: 10.28192 | AU160: 0 | AW160: 157 | AX160: 10.28192 | AY160: 0 | BE160: 157 | BF160: 15.5555568 | BG160: 0
E161: 158 | F161: 0 | G161: 0 | I161: 158 | J161: 20.51946891 | K161: 0 | M161: 15.8 | N161: 40 | O161: 0 | Q161: 158 | R161: 6.5670176 | S161: 0 | AG161: 158 | AH161: 0 | AI161: 0 | AK161: 158 | AL161: 25.436576 | AM161: 0 | AO161: 158 | AP161: 9.700768 | AQ161: 0 | AS161: 158 | AT161: 11.488928 | AU161: 0 | AW161: 158 | AX161: 11.488928 | AY161: 0 | BE161: 158 | BF161: 15.0000012 | BG161: 0
E162: 159 | F162: 0 | G162: 0 | I162: 159 | J162: 20.69828781 | K162: 0 | M162: 15.9 | N162: 40 | O162: 0 | Q162: 159 | R162: 6.2093856 | S162: 0 | AG162: 159 | AH162: 0 | AI162: 0 | AK162: 159 | AL162: 25.973024 | AM162: 0 | AO162: 159 | AP162: 10.326624 | AQ162: 0 | AS162: 159 | AT162: 12.51712 | AU162: 0 | AW162: 159 | AX162: 12.51712 | AY162: 0 | BE162: 159 | BF162: 14.4444456 | BG162: 0
E163: 160 | F163: 0 | G163: 0 | I163: 160 | J163: 20.92181144 | K163: 0 | M163: 16 | N163: 40 | O163: 0 | Q163: 160 | R163: 5.8294016 | S163: 0 | AG163: 160 | AH163: 0 | AI163: 0 | AK163: 160 | AL163: 26.107136 | AM163: 0 | AO163: 160 | AP163: 10.594848 | AQ163: 0 | AS163: 160 | AT163: 13.724128 | AU163: 0 | AW163: 160 | AX163: 13.724128 | AY163: 0 | BE163: 160 | BF163: 13.88889 | BG163: 0
E164: 161 | F164: 0 | G164: 0 | I164: 161 | J164: 20.96651616 | K164: 0 | M164: 16.1 | N164: 40 | O164: 0 | Q164: 161 | R164: 4.8325024 | S164: 0 | AG164: 161 | AH164: 0 | AI164: 0 | AK164: 161 | AL164: 26.643584 | AM164: 0 | AO164: 161 | AP164: 10.773664 | AQ164: 0 | AS164: 161 | AT164: 14.573504 | AU164: 0 | AW164: 161 | AX164: 14.573504 | AY164: 0 | BE164: 161 | BF164: 13.88889 | BG164: 0
E165: 162 | F165: 0 | G165: 0 | I165: 162 | J165: 21.01122089 | K165: 0 | M165: 16.2 | N165: 40 | O165: 0 | Q165: 162 | R165: 3.3215072 | S165: 0 | AG165: 162 | AH165: 0 | AI165: 0 | AK165: 162 | AL165: 26.777696 | AM165: 0 | AO165: 162 | AP165: 10.95248 | AQ165: 0 | AS165: 162 | AT165: 15.288768 | AU165: 0 | AW165: 162 | AX165: 15.288768 | AY165: 0 | BE165: 162 | BF165: 13.88889 | BG165: 0
E166: 163 | F166: 0 | G166: 0 | I166: 163 | J166: 21.05592561 | K166: 0 | M166: 16.3 | N166: 40 | O166: 0 | Q166: 163 | R166: 1.5780512 | S166: 0 | AG166: 163 | AH166: 0 | AI166: 0 | AK166: 163 | AL166: 26.911808 | AM166: 0 | AO166: 163 | AP166: 11.176 | AQ166: 0 | AS166: 163 | AT166: 15.780512 | AU166: 0 | AW166: 163 | AX166: 15.780512 | AY166: 0 | BE166: 163 | BF166: 13.88889 | BG166: 0
E167: 164 | F167: 1.475255935 | G167: 0 | I167: 164 | J167: 21.27944924 | K167: 0 | M167: 16.4 | N167: 40 | O167: 0 | Q167: 164 | R167: 0.7107936 | S167: 0 | AG167: 164 | AH167: 0 | AI167: 0 | AK167: 164 | AL167: 27.04592 | AM167: 0 | AO167: 164 | AP167: 11.265408 | AQ167: 0 | AS167: 164 | AT167: 16.495776 | AU167: 0 | AW167: 164 | AX167: 16.495776 | AY167: 0 | BE167: 164 | BF167: 13.88889 | BG167: 0
E168: 165 | F168: 2.950511869 | G168: 0 | I168: 165 | J168: 21.41356341 | K168: 0 | M168: 16.5 | N168: 40 | O168: 0 | Q168: 165 | R168: 0.2414016 | S168: 0 | AG168: 165 | AH168: 0 | AI168: 0 | AK168: 165 | AL168: 26.688288 | AM168: 0 | AO168: 165 | AP168: 10.997184 | AQ168: 0 | AS168: 165 | AT168: 16.495776 | AU168: 0 | AW168: 165 | AX168: 16.495776 | AY168: 0 | BE168: 165 | BF168: 14.13889002 | BG168: 0
E169: 166 | F169: 4.425767804 | G169: 0 | I169: 166 | J169: 21.45826814 | K169: 0 | M169: 16.6 | N169: 40 | O169: 0 | Q169: 166 | R169: 0 | S169: 0 | AG169: 166 | AH169: 0 | AI169: 0 | AK169: 166 | AL169: 26.062432 | AM169: 0 | AO169: 166 | AP169: 10.863072 | AQ169: 0 | AS169: 166 | AT169: 16.629888 | AU169: 0 | AW169: 166 | AX169: 16.629888 | AY169: 0 | BE169: 166 | BF169: 14.38889004 | BG169: 0
E170: 167 | F170: 5.901023738 | G170: 0 | I170: 167 | J170: 21.45826814 | K170: 0 | M170: 16.7 | N170: 40 | O170: 0 | Q170: 167 | R170: 0 | S170: 0 | AG170: 167 | AH170: 0 | AI170: 0 | AK170: 167 | AL170: 25.973024 | AM170: 0 | AO170: 167 | AP170: 10.416032 | AQ170: 0 | AS170: 167 | AT170: 16.808704 | AU170: 0 | AW170: 167 | AX170: 16.808704 | AY170: 0 | BE170: 167 | BF170: 14.63889006 | BG170: 0
E171: 168 | F171: 7.376279673 | G171: 0 | I171: 168 | J171: 21.41356341 | K171: 0 | M171: 16.8 | N171: 40 | O171: 0 | Q171: 168 | R171: 0 | S171: 0 | AG171: 168 | AH171: 0 | AI171: 0 | AK171: 168 | AL171: 25.838912 | AM171: 0 | AO171: 168 | AP171: 10.147808 | AQ171: 0 | AS171: 168 | AT171: 16.808704 | AU171: 0 | AW171: 168 | AX171: 16.808704 | AY171: 0 | BE171: 168 | BF171: 14.88889008 | BG171: 0
E172: 169 | F172: 8.851535607 | G172: 0 | I172: 169 | J172: 21.36885869 | K172: 0 | M172: 16.9 | N172: 40 | O172: 0 | Q172: 169 | R172: 0 | S172: 0 | AG172: 169 | AH172: 0 | AI172: 0 | AK172: 169 | AL172: 25.615392 | AM172: 0 | AO172: 169 | AP172: 9.879584 | AQ172: 0 | AS172: 169 | AT172: 16.808704 | AU172: 0 | AW172: 169 | AX172: 16.808704 | AY172: 0 | BE172: 169 | BF172: 15.1388901 | BG172: 0
E173: 170 | F173: 9.924449014 | G173: 0 | I173: 170 | J173: 21.14533506 | K173: 0 | M173: 17 | N173: 40 | O173: 0 | Q173: 170 | R173: 0 | S173: 0 | AG173: 170 | AH173: 0 | AI173: 0 | AK173: 170 | AL173: 25.7048 | AM173: 0 | AO173: 170 | AP173: 9.656064 | AQ173: 0 | AS173: 170 | AT173: 16.629888 | AU173: 0 | AW173: 170 | AX173: 16.629888 | AY173: 0 | BE173: 170 | BF173: 15.4166679 | BG173: 0
E174: 171 | F174: 10.86324825 | G174: 0 | I174: 171 | J174: 20.87710671 | K174: 0 | M174: 17.1 | N174: 40 | O174: 0 | Q174: 171 | R174: 0 | S174: 0 | AG174: 171 | AH174: 0 | AI174: 0 | AK174: 171 | AL174: 25.302464 | AM174: 0 | AO174: 171 | AP174: 9.432544 | AQ174: 0 | AS174: 171 | AT174: 16.629888 | AU174: 0 | AW174: 171 | AX174: 16.629888 | AY174: 0 | BE174: 171 | BF174: 15.66666792 | BG174: 0
E175: 172 | F175: 11.53381912 | G175: 0 | I175: 172 | J175: 20.65358308 | K175: 0 | M175: 17.2 | N175: 40 | O175: 0 | Q175: 172 | R175: 0 | S175: 0 | AG175: 172 | AH175: 0 | AI175: 0 | AK175: 172 | AL175: 25.48128 | AM175: 0 | AO175: 172 | AP175: 9.074912 | AQ175: 0 | AS175: 172 | AT175: 16.495776 | AU175: 0 | AW175: 172 | AX175: 16.495776 | AY175: 0 | BE175: 172 | BF175: 15.91666794 | BG175: 0
E176: 173 | F176: 11.80204748 | G176: 0 | I176: 173 | J176: 20.51946891 | K176: 0 | M176: 17.3 | N176: 40 | O176: 0 | Q176: 173 | R176: 0 | S176: 0 | AG176: 173 | AH176: 0 | AI176: 0 | AK176: 173 | AL176: 25.302464 | AM176: 0 | AO176: 173 | AP176: 8.583168 | AQ176: 0 | AS176: 173 | AT176: 16.31696 | AU176: 0 | AW176: 173 | AX176: 16.31696 | AY176: 0 | BE176: 173 | BF176: 16.16666796 | BG176: 0
E177: 174 | F177: 11.4891144 | G177: 0 | I177: 174 | J177: 20.43005946 | K177: 0 | M177: 17.4 | N177: 40 | O177: 0 | Q177: 174 | R177: 0 | S177: 0 | AG177: 174 | AH177: 0.227994099 | AI177: 0 | AK177: 174 | AL177: 25.25776 | AM177: 0 | AO177: 174 | AP177: 7.59968 | AQ177: 0 | AS177: 174 | AT177: 16.31696 | AU177: 0 | AW177: 174 | AX177: 16.31696 | AY177: 0 | BE177: 174 | BF177: 16.41666798 | BG177: 0
E178: 175 | F178: 11.22088605 | G178: 0 | I178: 175 | J178: 20.34065001 | K178: 0 | M178: 17.5 | N178: 40 | O178: 0 | Q178: 175 | R178: 0 | S178: 0 | AG178: 175 | AH178: 0.1475255935 | AI178: 0 | AK178: 175 | AL178: 25.123648 | AM178: 0 | AO178: 175 | AP178: 6.213856 | AQ178: 0 | AS178: 175 | AT178: 15.601696 | AU178: 0 | AW178: 175 | AX178: 15.601696 | AY178: 0 | BE178: 175 | BF178: 16.666668 | BG178: 0
E179: 176 | F179: 11.04206715 | G179: 0 | I179: 176 | J179: 20.29594528 | K179: 0 | M179: 17.6 | N179: 40 | O179: 0 | Q179: 176 | R179: 0 | S179: 0 | AG179: 176 | AH179: 0 | AI179: 0 | AK179: 176 | AL179: 25.213056 | AM179: 0 | AO179: 176 | AP179: 6.303264 | AQ179: 0 | AS179: 176 | AT179: 14.931136 | AU179: 0 | AW179: 176 | AX179: 14.931136 | AY179: 0 | BE179: 176 | BF179: 16.91666802 | BG179: 0
E180: 177 | F180: 11.17618132 | G180: 0 | I180: 177 | J180: 20.25124056 | K180: 0 | M180: 17.7 | N180: 40 | O180: 0 | Q180: 177 | R180: 0 | S180: 0 | AG180: 177 | AH180: 0 | AI180: 0 | AK180: 177 | AL180: 25.302464 | AM180: 0 | AO180: 177 | AP180: 6.526784 | AQ180: 0 | AS180: 177 | AT180: 14.260576 | AU180: 0 | AW180: 177 | AX180: 14.260576 | AY180: 0 | BE180: 177 | BF180: 17.16666804 | BG180: 0
E181: 178 | F181: 11.26559077 | G181: 0 | I181: 178 | J181: 20.11712638 | K181: 0 | M181: 17.8 | N181: 40 | O181: 0 | Q181: 178 | R181: 0 | S181: 0 | AG181: 178 | AH181: 0 | AI181: 0 | AK181: 178 | AL181: 25.213056 | AM181: 0 | AO181: 178 | AP181: 6.526784 | AQ181: 0 | AS181: 178 | AT181: 13.053568 | AU181: 0 | AW181: 178 | AX181: 13.053568 | AY181: 0 | BE181: 178 | BF181: 17.41666806 | BG181: 0
E182: 179 | F182: 11.35500022 | G182: 0 | I182: 179 | J182: 19.67007913 | K182: 0 | M182: 17.9 | N182: 40 | O182: 0 | Q182: 179 | R182: 0.044704 | S182: 0 | AG182: 179 | AH182: 0 | AI182: 0 | AK182: 179 | AL182: 25.078944 | AM182: 0 | AO182: 179 | AP182: 6.48208 | AQ182: 0 | AS182: 179 | AT182: 11.176 | AU182: 0 | AW182: 179 | AX182: 11.176 | AY182: 0 | BE182: 179 | BF182: 17.66666808 | BG182: 0
E183: 180 | F183: 11.53381912 | G183: 0 | I183: 180 | J183: 19.2677366 | K183: 0 | M183: 18 | N183: 40 | O183: 0 | Q183: 180 | R183: 0.4336288 | S183: 0 | AG183: 180 | AH183: 0 | AI183: 0 | AK183: 180 | AL183: 25.03424 | AM183: 0 | AO183: 180 | AP183: 6.437376 | AQ183: 0 | AS183: 180 | AT183: 11.176 | AU183: 0 | AW183: 180 | AX183: 11.176 | AY183: 0 | BE183: 180 | BF183: 17.9166681 | BG183: 0
E184: 181 | F184: 12.15968528 | G184: 0 | I184: 181 | J184: 18.86539407 | K184: 0 | M184: 18.1 | N184: 40 | O184: 0 | Q184: 181 | R184: 1.832864 | S184: 0 | AG184: 181 | AH184: 0 | AI184: 0 | AK184: 181 | AL184: 24.989536 | AM184: 0 | AO184: 181 | AP184: 6.347968 | AQ184: 0 | AS184: 181 | AT184: 11.667744 | AU184: 0 | AW184: 181 | AX184: 11.667744 | AY184: 0 | BE184: 181 | BF184: 18.1944459 | BG184: 0
E185: 182 | F185: 11.8467522 | G185: 0 | I185: 182 | J185: 18.552461 | K185: 0 | M185: 18.2 | N185: 40 | O185: 0 | Q185: 182 | R185: 3.4287968 | S185: 0 | AG185: 182 | AH185: 0 | AI185: 0 | AK185: 182 | AL185: 24.497792 | AM185: 0 | AO185: 182 | AP185: 6.347968 | AQ185: 0 | AS185: 182 | AT185: 12.338304 | AU185: 0 | AW185: 182 | AX185: 12.338304 | AY185: 0 | BE185: 182 | BF185: 18.44444592 | BG185: 0
E186: 183 | F186: 10.72913407 | G186: 0 | I186: 183 | J186: 18.552461 | K186: 0 | M186: 18.3 | N186: 40 | O186: 0 | Q186: 183 | R186: 4.69392 | S186: 0 | AG186: 183 | AH186: 0 | AI186: 0 | AK186: 183 | AL186: 24.229568 | AM186: 0 | AO186: 183 | AP186: 5.900928 | AQ186: 0 | AS186: 183 | AT186: 13.053568 | AU186: 0 | AW186: 183 | AX186: 13.053568 | AY186: 0 | BE186: 183 | BF186: 18.69444594 | BG186: 0
E187: 184 | F187: 10.14797264 | G187: 0 | I187: 184 | J187: 18.82068935 | K187: 0 | M187: 18.4 | N187: 40 | O187: 0 | Q187: 184 | R187: 5.878576 | S187: 0 | AG187: 184 | AH187: 0 | AI187: 0 | AK187: 184 | AL187: 24.408384 | AM187: 0 | AO187: 184 | AP187: 5.14096 | AQ187: 0 | AS187: 184 | AT187: 13.902944 | AU187: 0 | AW187: 184 | AX187: 13.902944 | AY187: 0 | BE187: 184 | BF187: 18.94444596 | BG187: 0
E188: 185 | F188: 8.672716706 | G188: 0 | I188: 185 | J188: 19.17832715 | K188: 0 | M188: 18.5 | N188: 40 | O188: 0 | Q188: 185 | R188: 6.9604128 | S188: 0 | AG188: 185 | AH188: 0 | AI188: 0 | AK188: 185 | AL188: 23.335488 | AM188: 0 | AO188: 185 | AP188: 3.755136 | AQ188: 0 | AS188: 185 | AT188: 14.439392 | AU188: 0 | AW188: 185 | AX188: 14.439392 | AY188: 0 | BE188: 185 | BF188: 19.19444598 | BG188: 0
E189: 186 | F189: 7.912736376 | G189: 0 | I189: 186 | J189: 19.4465555 | K189: 0 | M189: 18.6 | N189: 40 | O189: 0 | Q189: 186 | R189: 7.8857856 | S189: 0 | AG189: 186 | AH189: 0 | AI189: 0 | AK189: 186 | AL189: 24.453088 | AM189: 0 | AO189: 186 | AP189: 2.45872 | AQ189: 0 | AS189: 186 | AT189: 15.288768 | AU189: 0 | AW189: 186 | AX189: 15.288768 | AY189: 0 | BE189: 186 | BF189: 19.444446 | BG189: 0
E190: 187 | F190: 7.68921275 | G190: 0 | I190: 187 | J190: 19.6253744 | K190: 0 | M190: 18.7 | N190: 40 | O190: 0 | Q190: 187 | R190: 8.6993984 | S190: 0 | AG190: 187 | AH190: 0 | AI190: 0 | AK190: 187 | AL190: 24.900128 | AM190: 0 | AO190: 187 | AP190: 1.654048 | AQ190: 0 | AS190: 187 | AT190: 15.601696 | AU190: 0 | AW190: 187 | AX190: 15.601696 | AY190: 0 | BE190: 187 | BF190: 19.444446 | BG190: 0
E191: 188 | F191: 8.091555277 | G191: 0 | I191: 188 | J191: 19.49126023 | K191: 0 | M191: 18.8 | N191: 40 | O191: 0 | Q191: 188 | R191: 9.4057216 | S191: 0 | AG191: 188 | AH191: 0 | AI191: 0 | AK191: 188 | AL191: 25.48128 | AM191: 0 | AO191: 188 | AP191: 1.296416 | AQ191: 0 | AS191: 188 | AT191: 15.959328 | AU191: 0 | AW191: 188 | AX191: 15.959328 | AY191: 0 | BE191: 188 | BF191: 19.444446 | BG191: 0
E192: 189 | F192: 8.315078904 | G192: 0 | I192: 189 | J192: 19.35714605 | K192: 0 | M192: 18.9 | N192: 40 | O192: 0 | Q192: 189 | R192: 10.036048 | S192: 0 | AG192: 189 | AH192: 0 | AI192: 0 | AK192: 189 | AL192: 25.92832 | AM192: 0 | AO192: 189 | AP192: 0.581152 | AQ192: 0 | AS192: 189 | AT192: 16.31696 | AU192: 0 | AW192: 189 | AX192: 16.31696 | AY192: 0 | BE192: 189 | BF192: 19.444446 | BG192: 0
E193: 190 | F193: 8.940945058 | G193: 0 | I193: 190 | J193: 19.22303187 | K193: 0 | M193: 19 | N193: 40 | O193: 0 | Q193: 190 | R193: 10.6484928 | S193: 0 | AG193: 190 | AH193: 0 | AI193: 0 | AK193: 190 | AL193: 25.973024 | AM193: 0 | AO193: 190 | AP193: 0.357632 | AQ193: 0 | AS193: 190 | AT193: 16.495776 | AU193: 0 | AW193: 190 | AX193: 16.495776 | AY193: 0 | BE193: 190 | BF193: 19.444446 | BG193: 0
E194: 191 | F194: 9.924449014 | G194: 0 | I194: 191 | J194: 19.2677366 | K194: 0 | M194: 19.1 | N194: 40 | O194: 0 | Q194: 191 | R194: 11.1894112 | S194: 0 | AG194: 191 | AH194: 0 | AI194: 0 | AK194: 191 | AL194: 26.554176 | AM194: 0 | AO194: 191 | AP194: 0.134112 | AQ194: 0 | AS194: 191 | AT194: 16.495776 | AU194: 0 | AW194: 191 | AX194: 16.495776 | AY194: 0 | BE194: 191 | BF194: 19.444446 | BG194: 0
E195: 192 | F195: 10.9526577 | G195: 0 | I195: 192 | J195: 19.40185078 | K195: 0 | M195: 19.2 | N195: 40 | O195: 0 | Q195: 192 | R195: 11.7258592 | S195: 0 | AG195: 192 | AH195: 0 | AI195: 0 | AK195: 192 | AL195: 26.777696 | AM195: 0 | AO195: 192 | AP195: 0.044704 | AQ195: 0 | AS195: 192 | AT195: 16.629888 | AU195: 0 | AW195: 192 | AX195: 16.629888 | AY195: 0 | BE195: 192 | BF195: 18.8888904 | BG195: 0
E196: 193 | F196: 12.20439 | G196: 0 | I196: 193 | J196: 19.6253744 | K196: 0 | M196: 19.3 | N196: 40 | O196: 0 | Q196: 193 | R196: 12.2801888 | S196: 0 | AG196: 193 | AH196: 0 | AI196: 0 | AK196: 193 | AL196: 27.26944 | AM196: 0 | AO196: 193 | AP196: 0.044704 | AQ196: 0 | AS196: 193 | AT196: 16.808704 | AU196: 0 | AW196: 193 | AX196: 16.808704 | AY196: 0 | BE196: 193 | BF196: 18.3333348 | BG196: 0
E197: 194 | F197: 13.63494121 | G197: 0 | I197: 194 | J197: 19.8041933 | K197: 0 | M197: 19.4 | N197: 40 | O197: 0 | Q197: 194 | R197: 12.7764032 | S197: 0 | AG197: 194 | AH197: 0 | AI197: 0 | AK197: 194 | AL197: 27.448256 | AM197: 0 | AO197: 194 | AP197: 0 | AQ197: 0 | AS197: 194 | AT197: 16.629888 | AU197: 0 | AW197: 194 | AX197: 16.629888 | AY197: 0 | BE197: 194 | BF197: 17.7777792 | BG197: 0
E198: 195 | F198: 14.97608297 | G198: 0 | I198: 195 | J198: 19.93830748 | K198: 0 | M198: 19.5 | N198: 40 | O198: 0 | Q198: 195 | R198: 13.2502656 | S198: 0 | AG198: 195 | AH198: 0 | AI198: 0 | AK198: 195 | AL198: 27.671776 | AM198: 0 | AO198: 195 | AP198: 0.581152 | AQ198: 0 | AS198: 195 | AT198: 16.808704 | AU198: 0 | AW198: 195 | AX198: 16.808704 | AY198: 0 | BE198: 195 | BF198: 17.2222236 | BG198: 0
E199: 196 | F199: 16.18311055 | G199: 0 | I199: 196 | J199: 20.07242165 | K199: 0 | M199: 19.6 | N199: 40 | O199: 0 | Q199: 196 | R199: 13.6838944 | S199: 0 | AG199: 196 | AH199: 0 | AI199: 0 | AK199: 196 | AL199: 27.94 | AM199: 0 | AO199: 196 | AP199: 1.743456 | AQ199: 0 | AS199: 196 | AT199: 16.98752 | AU199: 0 | AW199: 196 | AX199: 16.98752 | AY199: 0 | BE199: 196 | BF199: 16.666668 | BG199: 0
E200: 197 | F200: 16.67486253 | G200: 0 | I200: 197 | J200: 20.02771693 | K200: 0 | M200: 19.7 | N200: 40 | O200: 0 | Q200: 197 | R200: 14.1354048 | S200: 0 | AG200: 197 | AH200: 0.05811614288 | AI200: 0 | AK200: 197 | AL200: 27.94 | AM200: 0 | AO200: 197 | AP200: 4.425696 | AQ200: 0 | AS200: 197 | AT200: 17.166336 | AU200: 0 | AW200: 197 | AX200: 17.166336 | AY200: 0 | BE200: 197 | BF200: 16.1111124 | BG200: 0
... 1712 more rows

Sheet Trans Efficiency (hidden)
A3: Fuel Use (to go 25 miles) - www.fueleconomy.gov | F3: Improvement
A4: Vehicle | B4: CVT | C4: Auto | D4: Manual | F4: vs man | G4: vs auto
A5: Nissan Cube | B5: 0.89 | D5: 0.93 | F5: =(D5-B5)/D5 -> 0.04301075269
A6: Nissan Juke | B6: 0.86 | D6: 0.93 | F6: =(D6-B6)/D6 -> 0.0752688172
A7: Nissan Versa | B7: 0.83 | C7: 0.93 | D7: 0.89 | F7: =(D7-B7)/D7 -> 0.06741573034 | G7: =(C7-B7)/C7 -> 0.1075268817
F9: =AVERAGE(F5:F7) -> 0.06189843341 | G9: =AVERAGE(G5:G7) -> 0.1075268817

Sheet Cost
A1: Vehicle and Fuel Cost Calculations | J1: NPC | K1: =NPV(discRate/12,K5:K244) -> 25374.92098 | N1: =NPV(discRate/12,N5:N244) -> 6538.715161 | O1: =NPV(discRate/12,O5:O244) -> 2858.58897 | P1: =NPV(discRate/12,P5:P244) -> 0 | R1: =-NPV(discRate/12,R5:R244)-R4 -> 79172.00637 | S1: =S244 -> 79172.00637 | U1: =SUM(essRepPC,gasolinePC,elecPC,-R4,-essSalvagePV) -> 79172.00637
J2: # Replace: | K2: =SUM(IF(FREQUENCY(K4:K244,K4:K244)>0,1))-1 -> 1 | S2: Cumulative
A3: Year | B3: Months | C3: Years | D3: VMT | E3: Cum VMT | F3: Fuel price | G3: Elec price | H3: ESS Life (miles) | I3: ESS Wear | J3: Vehicle | K3: Battery Replacement | L3: MPG | M3: kWh/mile | N3: Fuel $ | O3: Elect. $ | P3: Battery Salvage | Q3: V2G | R3: Cash flow | S3: NPC
A4: =2010 -> 2010 | B4: 0 | C4: =B4/12 -> 0 | D4: 0 | E4: =SUM($D$4:D4) -> 0 | F4: =IF(INDEX(fcEffOpts,fcEffType)="Diesel",dieselDolPerGal,gasolineDolPerGal) -> 4 | G4: =dolPerKwh -> 0.1 | H4: =CHOOSE(vehPtType,10000000,netEssLifeMiles,netEssLifeMiles,netEssLifeMiles) -> 83223.59742 | I4: =$E4/H4 -> 0 | J4: =MSRP*(1+tax) -> 44399.78126 | K4: 0 | L4: =IF(vehPtType=4,0,IF(INDEX(fcEffOpts,fcEffType)="Diesel",adjCombMpgDiesel,adjCombMpgge)) -> 87.40667947 | M4: =CHOOSE(vehPtType,0,0,ufCombKwhPerMile,adjCombKwhPerMile) -> 0.2000666334 | N4: 0 | O4: 0 | P4: 0 | Q4: 0 | R4: =-J4 -> -44399.78126 | S4: =-(R4/((1+(discRate/12))^$B4)) -> 44399.78126
A5: =A$4+C5 -> 2010.083333 | B5: 1 | C5: =B5/12 -> 0.08333333333 | D5: =(((vehLifeYears/2)-years)*(vmtReductPerYear/12))+(VMT/12) -> 1368.708333 | E5: =SUM($D$4:D5) -> 1368.708333 | F5: 4 | G5: 0.1 | H5: 83223.59742 | I5: =MIN(IF($C5<=vehLifeYears,(($E5-$E4)/H5)+IF(I4=1,0,I4),0),1) -> 0.01644615681 | J5: =IF($C5<=vehLifeYears,J4,0) -> 44399.78126 | K5: =IF($C5<=vehLifeYears,IF(I5=1,((IF(maxEssKwh=0,0,essPackageCost+(essDolPerKwh*maxEssKwh)+(essDolPerKw*maxEssKw))*(1-essCostRedPerYear)^($B5/12))*markup*(1+tax)),0),0) -> 0 | L5: 87.40667947 | M5: 0.2000666334 | N5: =IF(L5=0,0,IF($C5<=vehLifeYears,(($E5-$E4)*(1/L5)*$F5),0)) -> 62.63632673 | O5: =IF($C5<=vehLifeYears,((E5-E4)*$G5*M5),0) -> 27.38328683 | P5: =IF($C5<=vehLifeYears,-IF($B5=vehLifeYears*12,(essSalvageVal*IF(maxEssKwh=0,0,essPackageCost+(essDolPerKwh*maxEssKwh)+(essDolPerKw*maxEssKw))*((1-essCostRedPerYear)^($B5/12))),0)-IF(I5=1,(essSalvageVal*markup*IF(maxEssKwh=0,0,essPackageCost+(essDolPerKwh*maxEssKwh)+(essDolPerKw*maxEssKw))*((1-essCostRedPerYear)^($B5/12))),0),0) -> 0 | Q5: 0 | R5: =IF($C5<=vehLifeYears,-SUM(K5,N5,O5,P5,Q5),0) -> -90.01961356 | S5: =-(R5/((1+(discRate/12))^$B5))+S4 -> 44489.49435
A6: =A$4+C6 -> 2010.166667 | B6: 2 | C6: 0.1666666667 | D6: 1364.916667 | E6: =SUM($D$4:D6) -> 2733.625 | F6: 4 | G6: 0.1 | H6: 83223.59742 | I6: =MIN(IF($C6<=vehLifeYears,(($E6-$E5)/H6)+IF(I5=1,0,I5),0),1) -> 0.03284675362 | J6: 44399.78126 | K6: 0 | L6: 87.40667947 | M6: 0.2000666334 | N6: 62.46280834 | O6: 27.30742823 | P6: 0 | Q6: 0 | R6: -89.77023657 | S6: 44578.65429
A7: 2010.25 | B7: 3 | C7: 0.25 | D7: 1361.125 | E7: =SUM($D$4:D7) -> 4094.75 | F7: 4 | G7: 0.1 | H7: 83223.59742 | I7: =MIN(IF($C7<=vehLifeYears,(($E7-$E6)/H7)+IF(I6=1,0,I6),0),1) -> 0.04920179044 | J7: 44399.78126 | K7: 0 | L7: 87.40667947 | M7: 0.2000666334 | N7: 62.28928994 | O7: 27.23156963 | P7: 0 | Q7: 0 | R7: -89.52085957 | S7: 44667.26379
A8: 2010.333333 | B8: 4 | C8: 0.3333333333 | D8: 1357.333333 | E8: =SUM($D$4:D8) -> 5452.083333 | F8: 4 | G8: 0.1 | H8: 83223.59742 | I8: 0.06551126727 | J8: 44399.78126 | K8: 0 | L8: 87.40667947 | M8: 0.2000666334 | N8: 62.11577155 | O8: 27.15571103 | P8: 0 | Q8: 0 | R8: -89.27148258 | S8: 44755.32558
A9: 2010.416667 | B9: 5 | C9: 0.4166666667 | D9: 1353.541667 | E9: =SUM($D$4:D9) -> 6805.625 | F9: 4 | G9: 0.1 | H9: 83223.59742 | I9: =MIN(IF($C9<=vehLifeYears,(($E9-$E8)/H9)+IF(I8=1,0,I8),0),1) -> 0.08177518409 | J9: 44399.78126 | K9: 0 | L9: 87.40667947 | M9: 0.2000666334 | N9: 61.94225315 | O9: 27.07985244 | P9: 0 | Q9: 0 | R9: -89.02210559 | S9: 44842.84236
A10: 2010.5 | B10: 6 | C10: 0.5 | D10: 1349.75 | E10: =SUM($D$4:D10) -> 8155.375 | F10: 4 | G10: 0.1 | H10: 83223.59742 | I10: 0.09799354093 | J10: 44399.78126 | K10: 0 | L10: 87.40667947 | M10: 0.2000666334 | N10: 61.76873476 | O10: 27.00399384 | P10: 0 | Q10: 0 | R10: -88.7727286 | S10: 44929.81681
A11: 2010.583333 | B11: 7 | C11: 0.5833333333 | D11: 1345.958333 | E11: =SUM($D$4:D11) -> 9501.333333 | F11: 4 | G11: 0.1 | H11: 83223.59742 | I11: 0.1141663378 | J11: 44399.78126 | K11: 0 | L11: 87.40667947 | M11: 0.2000666334 | N11: 61.59521636 | O11: 26.92813524 | P11: 0 | Q11: 0 | R11: -88.5233516 | S11: 45016.25162
A12: 2010.666667 | B12: 8 | C12: 0.6666666667 | D12: 1342.166667 | E12: =SUM($D$4:D12) -> 10843.5 | F12: 4 | G12: 0.1 | H12: 83223.59742 | I12: 0.1302935746 | J12: 44399.78126 | K12: 0 | L12: 87.40667947 | M12: 0.2000666334 | N12: 61.42169797 | O12: 26.85227664 | P12: 0 | Q12: 0 | R12: -88.27397461 | S12: 45102.14945
A13: 2010.75 | B13: 9 | C13: 0.75 | D13: 1338.375 | E13: =SUM($D$4:D13) -> 12181.875 | F13: 4 | G13: 0.1 | H13: 83223.59742 | I13: 0.1463752515 | J13: 44399.78126 | K13: 0 | L13: 87.40667947 | M13: 0.2000666334 | N13: 61.24817958 | O13: 26.77641804 | P13: 0 | Q13: 0 | R13: -88.02459762 | S13: 45187.51296
A14: 2010.833333 | B14: 10 | C14: 0.8333333333 | D14: 1334.583333 | E14: =SUM($D$4:D14) -> 13516.45833 | F14: 4 | G14: 0.1 | H14: 83223.59742 | I14: 0.1624113683 | J14: 44399.78126 | K14: 0 | L14: 87.40667947 | M14: 0.2000666334 | N14: 61.07466118 | O14: 26.70055944 | P14: 0 | Q14: 0 | R14: -87.77522062 | S14: 45272.34479
A15: 2010.916667 | B15: 11 | C15: 0.9166666667 | D15: 1330.791667 | E15: =SUM($D$4:D15) -> 14847.25 | F15: 4 | G15: 0.1 | H15: 83223.59742 | I15: 0.1784019252 | J15: 44399.78126 | K15: 0 | L15: 87.40667947 | M15: 0.2000666334 | N15: 60.90114279 | O15: 26.62470084 | P15: 0 | Q15: 0 | R15: -87.52584363 | S15: 45356.64757
A16: 2011 | B16: 12 | C16: 1 | D16: 1327 | E16: =SUM($D$4:D16) -> 16174.25 | F16: 4 | G16: 0.1 | H16: 83223.59742 | I16: 0.194346922 | J16: 44399.78126 | K16: 0 | L16: 87.40667947 | M16: 0.2000666334 | N16: 60.72762439 | O16: 26.54884225 | P16: 0 | Q16: 0 | R16: -87.27646664 | S16: 45440.42392
A17: 2011.083333 | B17: 13 | C17: 1.083333333 | D17: 1323.208333 | E17: =SUM($D$4:D17) -> 17497.45833 | F17: 4 | G17: 0.1 | H17: 83223.59742 | I17: 0.2102463589 | J17: 44399.78126 | K17: 0 | L17: 87.40667947 | M17: 0.2000666334 | N17: 60.554106 | O17: 26.47298365 | P17: 0 | Q17: 0 | R17: -87.02708965 | S17: 45523.67644
A18: 2011.166667 | B18: 14 | C18: 1.166666667 | D18: 1319.416667 | E18: =SUM($D$4:D18) -> 18816.875 | F18: 4 | G18: 0.1 | H18: 83223.59742 | I18: 0.2261002358 | J18: 44399.78126 | K18: 0 | L18: 87.40667947 | M18: 0.2000666334 | N18: 60.3805876 | O18: 26.39712505 | P18: 0 | Q18: 0 | R18: -86.77771265 | S18: 45606.40774
A19: 2011.25 | B19: 15 | C19: 1.25 | D19: 1315.625 | E19: =SUM($D$4:D19) -> 20132.5 | F19: 4 | G19: 0.1 | H19: 83223.59742 | I19: 0.2419085527 | J19: 44399.78126 | K19: 0 | L19: 87.40667947 | M19: 0.2000666334 | N19: 60.20706921 | O19: 26.32126645 | P19: 0 | Q19: 0 | R19: -86.52833566 | S19: 45688.6204
A20: 2011.333333 | B20: 16 | C20: 1.333333333 | D20: 1311.833333 | E20: =SUM($D$4:D20) -> 21444.33333 | F20: 4 | G20: 0.1 | H20: 83223.59742 | I20: 0.2576713096 | J20: 44399.78126 | K20: 0 | L20: 87.40667947 | M20: 0.2000666334 | N20: 60.03355082 | O20: 26.24540785 | P20: 0 | Q20: 0 | R20: -86.27895867 | S20: 45770.31699
A21: 2011.416667 | B21: 17 | C21: 1.416666667 | D21: 1308.041667 | E21: =SUM($D$4:D21) -> 22752.375 | F21: 4 | G21: 0.1 | H21: 83223.59742 | I21: 0.2733885065 | J21: 44399.78126 | K21: 0 | L21: 87.40667947 | M21: 0.2000666334 | N21: 59.86003242 | O21: 26.16954925 | P21: 0 | Q21: 0 | R21: -86.02958168 | S21: 45851.50008
A22: 2011.5 | B22: 18 | C22: 1.5 | D22: 1304.25 | E22: =SUM($D$4:D22) -> 24056.625 | F22: 4 | G22: 0.1 | H22: 83223.59742 | I22: 0.2890601433 | J22: 44399.78126 | K22: 0 | L22: 87.40667947 | M22: 0.2000666334 | N22: 59.68651403 | O22: 26.09369066 | P22: 0 | Q22: 0 | R22: -85.78020468 | S22: 45932.1722
A23: 2011.583333 | B23: 19 | C23: 1.583333333 | D23: 1300.458333 | E23: =SUM($D$4:D23) -> 25357.08333 | F23: 4 | G23: 0.1 | H23: 83223.59742 | I23: 0.3046862203 | J23: 44399.78126 | K23: 0 | L23: 87.40667947 | M23: 0.2000666334 | N23: 59.51299563 | O23: 26.01783206 | P23: 0 | Q23: 0 | R23: -85.53082769 | S23: 46012.3359
A24: 2011.666667 | B24: 20 | C24: 1.666666667 | D24: 1296.666667 | E24: =SUM($D$4:D24) -> 26653.75 | F24: 4 | G24: 0.1 | H24: 83223.59742 | I24: 0.3202667372 | J24: 44399.78126 | K24: 0 | L24: 87.40667947 | M24: 0.2000666334 | N24: 59.33947724 | O24: 25.94197346 | P24: 0 | Q24: 0 | R24: -85.2814507 | S24: 46091.99372
A25: 2011.75 | B25: 21 | C25: 1.75 | D25: 1292.875 | E25: =SUM($D$4:D25) -> 27946.625 | F25: 4 | G25: 0.1 | H25: 83223.59742 | I25: 0.3358016941 | J25: 44399.78126 | K25: 0 | L25: 87.40667947 | M25: 0.2000666334 | N25: 59.16595884 | O25: 25.86611486 | P25: 0 | Q25: 0 | R25: -85.0320737 | S25: 46171.14815
A26: 2011.833333 | B26: 22 | C26: 1.833333333 | D26: 1289.083333 | E26: =SUM($D$4:D26) -> 29235.70833 | F26: 4 | G26: 0.1 | H26: 83223.59742 | I26: 0.351291091 | J26: 44399.78126 | K26: 0 | L26: 87.40667947 | M26: 0.2000666334 | N26: 58.99244045 | O26: 25.79025626 | P26: 0 | Q26: 0 | R26: -84.78269671 | S26: 46249.80171
A27: 2011.916667 | B27: 23 | C27: 1.916666667 | D27: 1285.291667 | E27: =SUM($D$4:D27) -> 30521 | F27: 4 | G27: 0.1 | H27: 83223.59742 | I27: 0.3667349279 | J27: 44399.78126 | K27: 0 | L27: 87.40667947 | M27: 0.2000666334 | N27: 58.81892206 | O27: 25.71439766 | P27: 0 | Q27: 0 | R27: -84.53331972 | S27: 46327.9569
A28: 2012 | B28: 24 | C28: 2 | D28: 1281.5 | E28: =SUM($D$4:D28) -> 31802.5 | F28: 4 | G28: 0.1 | H28: 83223.59742 | I28: 0.3821332048 | J28: 44399.78126 | K28: 0 | L28: 87.40667947 | M28: 0.2000666334 | N28: 58.64540366 | O28: 25.63853906 | P28: 0 | Q28: 0 | R28: -84.28394273 | S28: 46405.61618
A29: 2012.083333 | B29: 25 | C29: 2.083333333 | D29: 1277.708333 | E29: =SUM($D$4:D29) -> 33080.20833 | F29: 4 | G29: 0.1 | H29: 83223.59742 | I29: 0.3974859218 | J29: 44399.78126 | K29: 0 | L29: 87.40667947 | M29: 0.2000666334 | N29: 58.47188527 | O29: 25.56268047 | P29: 0 | Q29: 0 | R29: -84.03456573 | S29: 46482.78204
A30: 2012.166667 | B30: 26 | C30: 2.166666667 | D30: 1273.916667 | E30: =SUM($D$4:D30) -> 34354.125 | F30: 4 | G30: 0.1 | H30: 83223.59742 | I30: 0.4127930787 | J30: 44399.78126 | K30: 0 | L30: 87.40667947 | M30: 0.2000666334 | N30: 58.29836687 | O30: 25.48682187 | P30: 0 | Q30: 0 | R30: -83.78518874 | S30: 46559.45694
A31: 2012.25 | B31: 27 | C31: 2.25 | D31: 1270.125 | E31: =SUM($D$4:D31) -> 35624.25 | F31: 4 | G31: 0.1 | H31: 83223.59742 | I31: 0.4280546757 | J31: 44399.78126 | K31: 0 | L31: 87.40667947 | M31: 0.2000666334 | N31: 58.12484848 | O31: 25.41096327 | P31: 0 | Q31: 0 | R31: -83.53581175 | S31: 46635.64331
A32: 2012.333333 | B32: 28 | C32: 2.333333333 | D32: 1266.333333 | E32: =SUM($D$4:D32) -> 36890.58333 | F32: 4 | G32: 0.1 | H32: 83223.59742 | I32: 0.4432707126 | J32: 44399.78126 | K32: 0 | L32: 87.40667947 | M32: 0.2000666334 | N32: 57.95133008 | O32: 25.33510467 | P32: 0 | Q32: 0 | R32: -83.28643476 | S32: 46711.34361
A33: 2012.416667 | B33: 29 | C33: 2.416666667 | D33: 1262.541667 | E33: =SUM($D$4:D33) -> 38153.125 | F33: 4 | G33: 0.1 | H33: 83223.59742 | I33: 0.4584411896 | J33: 44399.78126 | K33: 0 | L33: 87.40667947 | M33: 0.2000666334 | N33: 57.77781169 | O33: 25.25924607 | P33: 0 | Q33: 0 | R33: -83.03705776 | S33: 46786.56025
A34: 2012.5 | B34: 30 | C34: 2.5 | D34: 1258.75 | E34: =SUM($D$4:D34) -> 39411.875 | F34: 4 | G34: 0.1 | H34: 83223.59742 | I34: 0.4735661065 | J34: 44399.78126 | K34: 0 | L34: 87.40667947 | M34: 0.2000666334 | N34: 57.6042933 | O34: 25.18338747 | P34: 0 | Q34: 0 | R34: -82.78768077 | S34: 46861.29566
A35: 2012.583333 | B35: 31 | C35: 2.583333333 | D35: 1254.958333 | E35: =SUM($D$4:D35) -> 40666.83333 | F35: 4 | G35: 0.1 | H35: 83223.59742 | I35: 0.4886454635 | J35: 44399.78126 | K35: 0 | L35: 87.40667947 | M35: 0.2000666334 | N35: 57.4307749 | O35: 25.10752887 | P35: 0 | Q35: 0 | R35: -82.53830378 | S35: 46935.55224
A36: 2012.666667 | B36: 32 | C36: 2.666666667 | D36: 1251.166667 | E36: =SUM($D$4:D36) -> 41918 | F36: 4 | G36: 0.1 | H36: 83223.59742 | I36: 0.5036792604 | J36: 44399.78126 | K36: 0 | L36: 87.40667947 | M36: 0.2000666334 | N36: 57.25725651 | O36: 25.03167028 | P36: 0 | Q36: 0 | R36: -82.28892678 | S36: 47009.33238
A37: 2012.75 | B37: 33 | C37: 2.75 | D37: 1247.375 | E37: =SUM($D$4:D37) -> 43165.375 | F37: 4 | G37: 0.1 | H37: 83223.59742 | I37: 0.5186674974 | J37: 44399.78126 | K37: 0 | L37: 87.40667947 | M37: 0.2000666334 | N37: 57.08373811 | O37: 24.95581168 | P37: 0 | Q37: 0 | R37: -82.03954979 | S37: 47082.63846
A38: 2012.833333 | B38: 34 | C38: 2.833333333 | D38: 1243.583333 | E38: =SUM($D$4:D38) -> 44408.95833 | F38: 4 | G38: 0.1 | H38: 83223.59742 | I38: 0.5336101744 | J38: 44399.78126 | K38: 0 | L38: 87.40667947 | M38: 0.2000666334 | N38: 56.91021972 | O38: 24.87995308 | P38: 0 | Q38: 0 | R38: -81.7901728 | S38: 47155.47287
A39: 2012.916667 | B39: 35 | C39: 2.916666667 | D39: 1239.791667 | E39: =SUM($D$4:D39) -> 45648.75 | F39: 4 | G39: 0.1 | H39: 83223.59742 | I39: 0.5485072914 | J39: 44399.78126 | K39: 0 | L39: 87.40667947 | M39: 0.2000666334 | N39: 56.73670133 | O39: 24.80409448 | P39: 0 | Q39: 0 | R39: -81.54079581 | S39: 47227.83795
A40: 2013 | B40: 36 | C40: 3 | D40: 1236 | E40: =SUM($D$4:D40) -> 46884.75 | F40: 4 | G40: 0.1 | H40: 83223.59742 | I40: 0.5633588484 | J40: 44399.78126 | K40: 0 | L40: 87.40667947 | M40: 0.2000666334 | N40: 56.56318293 | O40: 24.72823588 | P40: 0 | Q40: 0 | R40: -81.29141881 | S40: 47299.73607
A41: 2013.083333 | B41: 37 | C41: 3.083333333 | D41: 1232.208333 | E41: =SUM($D$4:D41) -> 48116.95833 | F41: 4 | G41: 0.1 | H41: 83223.59742 | I41: 0.5781648454 | J41: 44399.78126 | K41: 0 | L41: 87.40667947 | M41: 0.2000666334 | N41: 56.38966454 | O41: 24.65237728 | P41: 0 | Q41: 0 | R41: -81.04204182 | S41: 47371.16956
A42: 2013.166667 | B42: 38 | C42: 3.166666667 | D42: 1228.416667 | E42: =SUM($D$4:D42) -> 49345.375 | F42: 4 | G42: 0.1 | H42: 83223.59742 | I42: 0.5929252824 | J42: 44399.78126 | K42: 0 | L42: 87.40667947 | M42: 0.2000666334 | N42: 56.21614614 | O42: 24.57651869 | P42: 0 | Q42: 0 | R42: -80.79266483 | S42: 47442.14076
A43: 2013.25 | B43: 39 | C43: 3.25 | D43: 1224.625 | E43: =SUM($D$4:D43) -> 50570 | F43: 4 | G43: 0.1 | H43: 83223.59742 | I43: 0.6076401594 | J43: 44399.78126 | K43: 0 | L43: 87.40667947 | M43: 0.2000666334 | N43: 56.04262775 | O43: 24.50066009 | P43: 0 | Q43: 0 | R43: -80.54328784 | S43: 47512.65199
A44: 2013.333333 | B44: 40 | C44: 3.333333333 | D44: 1220.833333 | E44: =SUM($D$4:D44) -> 51790.83333 | F44: 4 | G44: 0.1 | H44: 83223.59742 | I44: 0.6223094764 | J44: 44399.78126 | K44: 0 | L44: 87.40667947 | M44: 0.2000666334 | N44: 55.86910935 | O44: 24.42480149 | P44: 0 | Q44: 0 | R44: -80.29391084 | S44: 47582.70554
A45: 2013.416667 | B45: 41 | C45: 3.416666667 | D45: 1217.041667 | E45: =SUM($D$4:D45) -> 53007.875 | F45: 4 | G45: 0.1 | H45: 83223.59742 | I45: 0.6369332334 | J45: 44399.78126 | K45: 0 | L45: 87.40667947 | M45: 0.2000666334 | N45: 55.69559096 | O45: 24.34894289 | P45: 0 | Q45: 0 | R45: -80.04453385 | S45: 47652.30374
A46: 2013.5 | B46: 42 | C46: 3.5 | D46: 1213.25 | E46: =SUM($D$4:D46) -> 54221.125 | F46: 4 | G46: 0.1 | H46: 83223.59742 | I46: 0.6515114304 | J46: 44399.78126 | K46: 0 | L46: 87.40667947 | M46: 0.2000666334 | N46: 55.52207257 | O46: 24.27308429 | P46: 0 | Q46: 0 | R46: -79.79515686 | S46: 47721.44885
A47: 2013.583333 | B47: 43 | C47: 3.583333333 | D47: 1209.458333 | E47: =SUM($D$4:D47) -> 55430.58333 | F47: 4 | G47: 0.1 | H47: 83223.59742 | I47: 0.6660440675 | J47: 44399.78126 | K47: 0 | L47: 87.40667947 | M47: 0.2000666334 | N47: 55.34855417 | O47: 24.19722569 | P47: 0 | Q47: 0 | R47: -79.54577986 | S47: 47790.14317
A48: 2013.666667 | B48: 44 | C48: 3.666666667 | D48: 1205.666667 | E48: =SUM($D$4:D48) -> 56636.25 | F48: 4 | G48: 0.1 | H48: 83223.59742 | I48: 0.6805311445 | J48: 44399.78126 | K48: 0 | L48: 87.40667947 | M48: 0.2000666334 | N48: 55.17503578 | O48: 24.12136709 | P48: 0 | Q48: 0 | R48: -79.29640287 | S48: 47858.38895
A49: 2013.75 | B49: 45 | C49: 3.75 | D49: 1201.875 | E49: =SUM($D$4:D49) -> 57838.125 | F49: 4 | G49: 0.1 | H49: 83223.59742 | I49: 0.6949726615 | J49: 44399.78126 | K49: 0 | L49: 87.40667947 | M49: 0.2000666334 | N49: 55.00151738 | O49: 24.0455085 | P49: 0 | Q49: 0 | R49: -79.04702588 | S49: 47926.18846
A50: 2013.833333 | B50: 46 | C50: 3.833333333 | D50: 1198.083333 | E50: =SUM($D$4:D50) -> 59036.20833 | F50: 4 | G50: 0.1 | H50: 83223.59742 | I50: 0.7093686186 | J50: 44399.78126 | K50: 0 | L50: 87.40667947 | M50: 0.2000666334 | N50: 54.82799899 | O50: 23.9696499 | P50: 0 | Q50: 0 | R50: -78.79764889 | S50: 47993.54395
A51: 2013.916667 | B51: 47 | C51: 3.916666667 | D51: 1194.291667 | E51: =SUM($D$4:D51) -> 60230.5 | F51: 4 | G51: 0.1 | H51: 83223.59742 | I51: 0.7237190156 | J51: 44399.78126 | K51: 0 | L51: 87.40667947 | M51: 0.2000666334 | N51: 54.65448059 | O51: 23.8937913 | P51: 0 | Q51: 0 | R51: -78.54827189 | S51: 48060.45765
A52: 2014 | B52: 48 | C52: 4 | D52: 1190.5 | E52: =SUM($D$4:D52) -> 61421 | F52: 4 | G52: 0.1 | H52: 83223.59742 | I52: 0.7380238527 | J52: 44399.78126 | K52: 0 | L52: 87.40667947 | M52: 0.2000666334 | N52: 54.4809622 | O52: 23.8179327 | P52: 0 | Q52: 0 | R52: -78.2988949 | S52: 48126.93179
A53: 2014.083333 | B53: 49 | C53: 4.083333333 | D53: 1186.708333 | E53: =SUM($D$4:D53) -> 62607.70833 | F53: 4 | G53: 0.1 | H53: 83223.59742 | I53: 0.7522831297 | J53: 44399.78126 | K53: 0 | L53: 87.40667947 | M53: 0.2000666334 | N53: 54.30744381 | O53: 23.7420741 | P53: 0 | Q53: 0 | R53: -78.04951791 | S53: 48192.96859
A54: 2014.166667 | B54: 50 | C54: 4.166666667 | D54: 1182.916667 | E54: =SUM($D$4:D54) -> 63790.625 | F54: 4 | G54: 0.1 | H54: 83223.59742 | I54: 0.7664968468 | J54: 44399.78126 | K54: 0 | L54: 87.40667947 | M54: 0.2000666334 | N54: 54.13392541 | O54: 23.6662155 | P54: 0 | Q54: 0 | R54: -77.80014092 | S54: 48258.57026
A55: 2014.25 | B55: 51 | C55: 4.25 | D55: 1179.125 | E55: =SUM($D$4:D55) -> 64969.75 | F55: 4 | G55: 0.1 | H55: 83223.59742 | I55: 0.7806650039 | J55: 44399.78126 | K55: 0 | L55: 87.40667947 | M55: 0.2000666334 | N55: 53.96040702 | O55: 23.59035691 | P55: 0 | Q55: 0 | R55: -77.55076392 | S55: 48323.73899
A56: 2014.333333 | B56: 52 | C56: 4.333333333 | D56: 1175.333333 | E56: =SUM($D$4:D56) -> 66145.08333 | F56: 4 | G56: 0.1 | H56: 83223.59742 | I56: 0.7947876009 | J56: 44399.78126 | K56: 0 | L56: 87.40667947 | M56: 0.2000666334 | N56: 53.78688862 | O56: 23.51449831 | P56: 0 | Q56: 0 | R56: -77.30138693 | S56: 48388.47697
A57: 2014.416667 | B57: 53 | C57: 4.416666667 | D57: 1171.541667 | E57: =SUM($D$4:D57) -> 67316.625 | F57: 4 | G57: 0.1 | H57: 83223.59742 | I57: 0.808864638 | J57: 44399.78126 | K57: 0 | L57: 87.40667947 | M57: 0.2000666334 | N57: 53.61337023 | O57: 23.43863971 | P57: 0 | Q57: 0 | R57: -77.05200994 | S57: 48452.78638
A58: 2014.5 | B58: 54 | C58: 4.5 | D58: 1167.75 | E58: =SUM($D$4:D58) -> 68484.375 | F58: 4 | G58: 0.1 | H58: 83223.59742 | I58: 0.8228961151 | J58: 44399.78126 | K58: 0 | L58: 87.40667947 | M58: 0.2000666334 | N58: 53.43985183 | O58: 23.36278111 | P58: 0 | Q58: 0 | R58: -76.80263294 | S58: 48516.66938
A59: 2014.583333 | B59: 55 | C59: 4.583333333 | D59: 1163.958333 | E59: =SUM($D$4:D59) -> 69648.33333 | F59: 4 | G59: 0.1 | H59: 83223.59742 | I59: 0.8368820322 | J59: 44399.78126 | K59: 0 | L59: 87.40667947 | M59: 0.2000666334 | N59: 53.26633344 | O59: 23.28692251 | P59: 0 | Q59: 0 | R59: -76.55325595 | S59: 48580.12815
A60: 2014.666667 | B60: 56 | C60: 4.666666667 | D60: 1160.166667 | E60: =SUM($D$4:D60) -> 70808.5 | F60: 4 | G60: 0.1 | H60: 83223.59742 | I60: 0.8508223893 | J60: 44399.78126 | K60: 0 | L60: 87.40667947 | M60: 0.2000666334 | N60: 53.09281505 | O60: 23.21106391 | P60: 0 | Q60: 0 | R60: -76.30387896 | S60: 48643.16481
A61: 2014.75 | B61: 57 | C61: 4.75 | D61: 1156.375 | E61: =SUM($D$4:D61) -> 71964.875 | F61: 4 | G61: 0.1 | H61: 83223.59742 | I61: 0.8647171864 | J61: 44399.78126 | K61: 0 | L61: 87.40667947 | M61: 0.2000666334 | N61: 52.91929665 | O61: 23.13520531 | P61: 0 | Q61: 0 | R61: -76.05450197 | S61: 48705.78152
A62: 2014.833333 | B62: 58 | C62: 4.833333333 | D62: 1152.583333 | E62: =SUM($D$4:D62) -> 73117.45833 | F62: 4 | G62: 0.1 | H62: 83223.59742 | I62: 0.8785664235 | J62: 44399.78126 | K62: 0 | L62: 87.40667947 | M62: 0.2000666334 | N62: 52.74577826 | O62: 23.05934672 | P62: 0 | Q62: 0 | R62: -75.80512497 | S62: 48767.9804
A63: 2014.916667 | B63: 59 | C63: 4.916666667 | D63: 1148.791667 | E63: =SUM($D$4:D63) -> 74266.25 | F63: 4 | G63: 0.1 | H63: 83223.59742 | I63: 0.8923701006 | J63: 44399.78126 | K63: 0 | L63: 87.40667947 | M63: 0.2000666334 | N63: 52.57225986 | O63: 22.98348812 | P63: 0 | Q63: 0 | R63: -75.55574798 | S63: 48829.76357
A64: 2015 | B64: 60 | C64: 5 | D64: 1145 | E64: =SUM($D$4:D64) -> 75411.25 | F64: 4 | G64: 0.1 | H64: 83223.59742 | I64: 0.9061282177 | J64: 44399.78126 | K64: 0 | L64: 87.40667947 | M64: 0.2000666334 | N64: 52.39874147 | O64: 22.90762952 | P64: 0 | Q64: 0 | R64: -75.30637099 | S64: 48891.13315
A65: 2015.083333 | B65: 61 | C65: 5.083333333 | D65: 1141.208333 | E65: =SUM($D$4:D65) -> 76552.45833 | F65: 4 | G65: 0.1 | H65: 83223.59742 | I65: 0.9198407748 | J65: 44399.78126 | K65: 0 | L65: 87.40667947 | M65: 0.2000666334 | N65: 52.22522308 | O65: 22.83177092 | P65: 0 | Q65: 0 | R65: -75.056994 | S65: 48952.09122
A66: 2015.166667 | B66: 62 | C66: 5.166666667 | D66: 1137.416667 | E66: =SUM($D$4:D66) -> 77689.875 | F66: 4 | G66: 0.1 | H66: 83223.59742 | I66: 0.9335077719 | J66: 44399.78126 | K66: 0 | L66: 87.40667947 | M66: 0.2000666334 | N66: 52.05170468 | O66: 22.75591232 | P66: 0 | Q66: 0 | R66: -74.807617 | S66: 49012.63989
A67: 2015.25 | B67: 63 | C67: 5.25 | D67: 1133.625 | E67: =SUM($D$4:D67) -> 78823.5 | F67: 4 | G67: 0.1 | H67: 83223.59742 | I67: 0.9471292091 | J67: 44399.78126 | K67: 0 | L67: 87.40667947 | M67: 0.2000666334 | N67: 51.87818629 | O67: 22.68005372 | P67: 0 | Q67: 0 | R67: -74.55824001 | S67: 49072.78123
A68: 2015.333333 | B68: 64 | C68: 5.333333333 | D68: 1129.833333 | E68: =SUM($D$4:D68) -> 79953.33333 | F68: =IF(INDEX(fcEffOpts,fcEffType)="Diesel",dieselDolPerGal,gasolineDolPerGal) -> 4 | G68: =dolPerKwh -> 0.1 | H68: =CHOOSE(vehPtType,10000000,netEssLifeMiles,netEssLifeMiles,netEssLifeMiles) -> 83223.59742 | I68: 0.9607050862 | J68: 44399.78126 | K68: 0 | L68: =IF(vehPtType=4,0,IF(INDEX(fcEffOpts,fcEffType)="Diesel",adjCombMpgDiesel,adjCombMpgge)) -> 87.40667947 | M68: =CHOOSE(vehPtType,0,0,ufCombKwhPerMile,adjCombKwhPerMile) -> 0.2000666334 | N68: 51.70466789 | O68: 22.60419513 | P68: 0 | Q68: 0 | R68: -74.30886302 | S68: 49132.51731
A69: 2015.416667 | B69: 65 | C69: =B69/12 -> 5.416666667 | D69: =(((vehLifeYears/2)-years)*(vmtReductPerYear/12))+(VMT/12) -> 1126.041667 | E69: =SUM($D$4:D69) -> 81079.375 | F69: 4 | G69: 0.1 | H69: 83223.59742 | I69: =MIN(IF($C69<=vehLifeYears,(($E69-$E68)/H69)+IF(I68=1,0,I68),0),1) -> 0.9742354033 | J69: =IF($C69<=vehLifeYears,J68,0) -> 44399.78126 | K69: =IF($C69<=vehLifeYears,IF(I69=1,((IF(maxEssKwh=0,0,essPackageCost+(essDolPerKwh*maxEssKwh)+(essDolPerKw*maxEssKw))*(1-essCostRedPerYear)^($B69/12))*markup*(1+tax)),0),0) -> 0 | L69: 87.40667947 | M69: 0.2000666334 | N69: =IF(L69=0,0,IF($C69<=vehLifeYears,(($E69-$E68)*(1/L69)*$F69),0)) -> 51.5311495 | O69: =IF($C69<=vehLifeYears,((E69-E68)*$G69*M69),0) -> 22.52833653 | P69: =IF($C69<=vehLifeYears,-IF($B69=vehLifeYears*12,(essSalvageVal*IF(maxEssKwh=0,0,essPackageCost+(essDolPerKwh*maxEssKwh)+(essDolPerKw*maxEssKw))*((1-essCostRedPerYear)^($B69/12))),0)-IF(I69=1,(essSalvageVal*markup*IF(maxEssKwh=0,0,essPackageCost+(essDolPerKwh*maxEssKwh)+(essDolPerKw*maxEssKw))*((1-essCostRedPerYear)^($B69/12))),0),0) -> 0 | Q69: 0 | R69: =IF($C69<=vehLifeYears,-SUM(K69,N69,O69,P69,Q69),0) -> -74.05948602 | S69: =-(R69/((1+(discRate/12))^$B69))+S68 -> 49191.8502
A70: =A$4+C70 -> 2015.5 | B70: 66 | C70: 5.5 | D70: 1122.25 | E70: =SUM($D$4:D70) -> 82201.625 | F70: 4 | G70: 0.1 | H70: 83223.59742 | I70: 0.9877201605 | J70: 44399.78126 | K70: 0 | L70: 87.40667947 | M70: 0.2000666334 | N70: 51.3576311 | O70: 22.45247793 | P70: 0 | Q70: 0 | R70: -73.81010903 | S70: 49250.78196
A71: 2015.583333 | B71: 67 | C71: 5.583333333 | D71: 1118.458333 | E71: =SUM($D$4:D71) -> 83320.08333 | F71: 4 | G71: 0.1 | H71: 83223.59742 | I71: 1 | J71: 44399.78126 | K71: 18320.08839 | L71: 87.40667947 | M71: 0.2000666334 | N71: 51.18411271 | O71: 22.37661933 | P71: 0 | Q71: 0 | R71: -18393.64912 | S71: 63886.70456
A72: 2015.666667 | B72: 68 | C72: 5.666666667 | D72: 1114.666667 | E72: =SUM($D$4:D72) -> 84434.75 | F72: 4 | G72: 0.1 | H72: 83223.59742 | I72: 0.01339363716 | J72: 44399.78126 | K72: 0 | L72: 87.40667947 | M72: 0.2000666334 | N72: 51.01059432 | O72: 22.30076073 | P72: 0 | Q72: 0 | R72: -73.31135505 | S72: 63944.84016
A73: 2015.75 | B73: 69 | C73: 5.75 | D73: 1110.875 | E73: =SUM($D$4:D73) -> 85545.625 | F73: 4 | G73: 0.1 | H73: 83223.59742 | I73: 0.02674171432 | J73: 44399.78126 | K73: 0 | L73: 87.40667947 | M73: 0.2000666334 | N73: 50.83707592 | O73: 22.22490213 | P73: 0 | Q73: 0 | R73: -73.06197805 | S73: 64002.58072
A74: 2015.833333 | B74: 70 | C74: 5.833333333 | D74: 1107.083333 | E74: =SUM($D$4:D74) -> 86652.70833 | F74: 4 | G74: 0.1 | H74: 83223.59742 | I74: 0.04004423148 | J74: 44399.78126 | K74: 0 | L74: 87.40667947 | M74: 0.2000666334 | N74: 50.66355753 | O74: 22.14904353 | P74: 0 | Q74: 0 | R74: -72.81260106 | S74: 64059.92827
A75: 2015.916667 | B75: 71 | C75: 5.916666667 | D75: 1103.291667 | E75: =SUM($D$4:D75) -> 87756 | F75: 4 | G75: 0.1 | H75: 83223.59742 | I75: 0.05330118866 | J75: 44399.78126 | K75: 0 | L75: 87.40667947 | M75: 0.2000666334 | N75: 50.49003913 | O75: 22.07318494 | P75: 0 | Q75: 0 | R75: -72.56322407 | S75: 64116.8848
A76: 2016 | B76: 72 | C76: 6 | D76: 1099.5 | E76: =SUM($D$4:D76) -> 88855.5 | F76: 4 | G76: 0.1 | H76: 83223.59742 | I76: 0.06651258583 | J76: 44399.78126 | K76: 0 | L76: 87.40667947 | M76: 0.2000666334 | N76: 50.31652074 | O76: 21.99732634 | P76: 0 | Q76: 0 | R76: -72.31384708 | S76: 64173.45232
A77: 2016.083333 | B77: 73 | C77: 6.083333333 | D77: 1095.708333 | E77: =SUM($D$4:D77) -> 89951.20833 | F77: 4 | G77: 0.1 | H77: 83223.59742 | I77: 0.07967842301 | J77: 44399.78126 | K77: 0 | L77: 87.40667947 | M77: 0.2000666334 | N77: 50.14300234 | O77: 21.92146774 | P77: 0 | Q77: 0 | R77: -72.06447008 | S77: 64229.63281
A78: 2016.166667 | B78: 74 | C78: 6.166666667 | D78: 1091.916667 | E78: =SUM($D$4:D78) -> 91043.125 | F78: 4 | G78: 0.1 | H78: 83223.59742 | I78: 0.0927987002 | J78: 44399.78126 | K78: 0 | L78: 87.40667947 | M78: 0.2000666334 | N78: 49.96948395 | O78: 21.84560914 | P78: 0 | Q78: 0 | R78: -71.81509309 | S78: 64285.42826
A79: 2016.25 | B79: 75 | C79: 6.25 | D79: 1088.125 | E79: =SUM($D$4:D79) -> 92131.25 | F79: 4 | G79: 0.1 | H79: 83223.59742 | I79: 0.1058734174 | J79: 44399.78126 | K79: 0 | L79: 87.40667947 | M79: 0.2000666334 | N79: 49.79596556 | O79: 21.76975054 | P79: 0 | Q79: 0 | R79: -71.5657161 | S79: 64340.84063
A80: 2016.333333 | B80: 76 | C80: 6.333333333 | D80: 1084.333333 | E80: =SUM($D$4:D80) -> 93215.58333 | F80: 4 | G80: 0.1 | H80: 83223.59742 | I80: 0.1189025746 | J80: 44399.78126 | K80: 0 | L80: 87.40667947 | M80: 0.2000666334 | N80: 49.62244716 | O80: 21.69389194 | P80: 0 | Q80: 0 | R80: -71.3163391 | S80: 64395.87189
A81: 2016.416667 | B81: 77 | C81: 6.416666667 | D81: 1080.541667 | E81: =SUM($D$4:D81) -> 94296.125 | F81: 4 | G81: 0.1 | H81: 83223.59742 | I81: 0.1318861718 | J81: 44399.78126 | K81: 0 | L81: 87.40667947 | M81: 0.2000666334 | N81: 49.44892877 | O81: 21.61803334 | P81: 0 | Q81: 0 | R81: -71.06696211 | S81: 64450.52399
A82: 2016.5 | B82: 78 | C82: 6.5 | D82: 1076.75 | E82: =SUM($D$4:D82) -> 95372.875 | F82: 4 | G82: 0.1 | H82: 83223.59742 | I82: 0.144824209 | J82: 44399.78126 | K82: 0 | L82: 87.40667947 | M82: 0.2000666334 | N82: 49.27541037 | O82: 21.54217475 | P82: 0 | Q82: 0 | R82: -70.81758512 | S82: 64504.79887
A83: 2016.583333 | B83: 79 | C83: 6.583333333 | D83: 1072.958333 | E83: =SUM($D$4:D83) -> 96445.83333 | F83: 4 | G83: 0.1 | H83: 83223.59742 | I83: 0.1577166862 | J83: 44399.78126 | K83: 0 | L83: 87.40667947 | M83: 0.2000666334 | N83: 49.10189198 | O83: 21.46631615 | P83: 0 | Q83: 0 | R83: -70.56820813 | S83: 64558.69848
A84: 2016.666667 | B84: 80 | C84: 6.666666667 | D84: 1069.166667 | E84: =SUM($D$4:D84) -> 97515 | F84: 4 | G84: 0.1 | H84: 83223.59742 | I84: 0.1705636034 | J84: 44399.78126 | K84: 0 | L84: 87.40667947 | M84: 0.2000666334 | N84: 48.92837358 | O84: 21.39045755 | P84: 0 | Q84: 0 | R84: -70.31883113 | S84: 64612.22473
A85: 2016.75 | B85: 81 | C85: 6.75 | D85: 1065.375 | E85: =SUM($D$4:D85) -> 98580.375 | F85: 4 | G85: 0.1 | H85: 83223.59742 | I85: 0.1833649607 | J85: 44399.78126 | K85: 0 | L85: 87.40667947 | M85: 0.2000666334 | N85: 48.75485519 | O85: 21.31459895 | P85: 0 | Q85: 0 | R85: -70.06945414 | S85: 64665.37954
A86: 2016.833333 | B86: 82 | C86: 6.833333333 | D86: 1061.583333 | E86: =SUM($D$4:D86) -> 99641.95833 | F86: 4 | G86: 0.1 | H86: 83223.59742 | I86: 0.1961207579 | J86: 44399.78126 | K86: 0 | L86: 87.40667947 | M86: 0.2000666334 | N86: 48.5813368 | O86: 21.23874035 | P86: 0 | Q86: 0 | R86: -69.82007715 | S86: 64718.16483
A87: 2016.916667 | B87: 83 | C87: 6.916666667 | D87: 1057.791667 | E87: =SUM($D$4:D87) -> 100699.75 | F87: 4 | G87: 0.1 | H87: 83223.59742 | I87: 0.2088309951 | J87: 44399.78126 | K87: 0 | L87: 87.40667947 | M87: 0.2000666334 | N87: 48.4078184 | O87: 21.16288175 | P87: 0 | Q87: 0 | R87: -69.57070016 | S87: 64770.58248
A88: 2017 | B88: 84 | C88: 7 | D88: 1054 | E88: =SUM($D$4:D88) -> 101753.75 | F88: 4 | G88: 0.1 | H88: 83223.59742 | I88: 0.2214956724 | J88: 44399.78126 | K88: 0 | L88: 87.40667947 | M88: 0.2000666334 | N88: 48.23430001 | O88: 21.08702316 | P88: 0 | Q88: 0 | R88: -69.32132316 | S88: 64822.63441
A89: 2017.083333 | B89: 85 | C89: 7.083333333 | D89: 1050.208333 | E89: =SUM($D$4:D89) -> 102803.9583 | F89: 4 | G89: 0.1 | H89: 83223.59742 | I89: 0.2341147896 | J89: 44399.78126 | K89: 0 | L89: 87.40667947 | M89: 0.2000666334 | N89: 48.06078161 | O89: 21.01116456 | P89: 0 | Q89: 0 | R89: -69.07194617 | S89: 64874.32248
A90: 2017.166667 | B90: 86 | C90: 7.166666667 | D90: 1046.416667 | E90: =SUM($D$4:D90) -> 103850.375 | F90: 4 | G90: 0.1 | H90: 83223.59742 | I90: 0.2466883469 | J90: 44399.78126 | K90: 0 | L90: 87.40667947 | M90: 0.2000666334 | N90: 47.88726322 | O90: 20.93530596 | P90: 0 | Q90: 0 | R90: -68.82256918 | S90: 64925.64857
A91: 2017.25 | B91: 87 | C91: 7.25 | D91: 1042.625 | E91: =SUM($D$4:D91) -> 104893 | F91: 4 | G91: 0.1 | H91: 83223.59742 | I91: 0.2592163441 | J91: 44399.78126 | K91: 0 | L91: 87.40667947 | M91: 0.2000666334 | N91: 47.71374482 | O91: 20.85944736 | P91: 0 | Q91: 0 | R91: -68.57319218 | S91: 64976.61455
A92: 2017.333333 | B92: 88 | C92: 7.333333333 | D92: 1038.833333 | E92: =SUM($D$4:D92) -> 105931.8333 | F92: 4 | G92: 0.1 | H92: 83223.59742 | I92: 0.2716987814 | J92: 44399.78126 | K92: 0 | L92: 87.40667947 | M92: 0.2000666334 | N92: 47.54022643 | O92: 20.78358876 | P92: 0 | Q92: 0 | R92: -68.32381519 | S92: 65027.22227
A93: 2017.416667 | B93: 89 | C93: 7.416666667 | D93: 1035.041667 | E93: =SUM($D$4:D93) -> 106966.875 | F93: 4 | G93: 0.1 | H93: 83223.59742 | I93: 0.2841356586 | J93: 44399.78126 | K93: 0 | L93: 87.40667947 | M93: 0.2000666334 | N93: 47.36670804 | O93: 20.70773016 | P93: 0 | Q93: 0 | R93: -68.0744382 | S93: 65077.47359
A94: 2017.5 | B94: 90 | C94: 7.5 | D94: 1031.25 | E94: =SUM($D$4:D94) -> 107998.125 | F94: 4 | G94: 0.1 | H94: 83223.59742 | I94: 0.2965269759 | J94: 44399.78126 | K94: 0 | L94: 87.40667947 | M94: 0.2000666334 | N94: 47.19318964 | O94: 20.63187156 | P94: 0 | Q94: 0 | R94: -67.82506121 | S94: 65127.37034
A95: 2017.583333 | B95: 91 | C95: 7.583333333 | D95: 1027.458333 | E95: =SUM($D$4:D95) -> 109025.5833 | F95: 4 | G95: 0.1 | H95: 83223.59742 | I95: 0.3088727332 | J95: 44399.78126 | K95: 0 | L95: 87.40667947 | M95: 0.2000666334 | N95: 47.01967125 | O95: 20.55601297 | P95: 0 | Q95: 0 | R95: -67.57568421 | S95: 65176.91435
A96: 2017.666667 | B96: 92 | C96: 7.666666667 | D96: 1023.666667 | E96: =SUM($D$4:D96) -> 110049.25 | F96: 4 | G96: 0.1 | H96: 83223.59742 | I96: 0.3211729305 | J96: 44399.78126 | K96: 0 | L96: 87.40667947 | M96: 0.2000666334 | N96: 46.84615285 | O96: 20.48015437 | P96: 0 | Q96: 0 | R96: -67.32630722 | S96: 65226.10746
A97: 2017.75 | B97: 93 | C97: 7.75 | D97: 1019.875 | E97: =SUM($D$4:D97) -> 111069.125 | F97: 4 | G97: 0.1 | H97: 83223.59742 | I97: 0.3334275677 | J97: 44399.78126 | K97: 0 | L97: 87.40667947 | M97: 0.2000666334 | N97: 46.67263446 | O97: 20.40429577 | P97: 0 | Q97: 0 | R97: -67.07693023 | S97: 65274.95147
A98: 2017.833333 | B98: 94 | C98: 7.833333333 | D98: 1016.083333 | E98: =SUM($D$4:D98) -> 112085.2083 | F98: 4 | G98: 0.1 | H98: 83223.59742 | I98: 0.345636645 | J98: 44399.78126 | K98: 0 | L98: 87.40667947 | M98: 0.2000666334 | N98: 46.49911607 | O98: 20.32843717 | P98: 0 | Q98: 0 | R98: -66.82755324 | S98: 65323.44819
A99: 2017.916667 | B99: 95 | C99: 7.916666667 | D99: 1012.291667 | E99: =SUM($D$4:D99) -> 113097.5 | F99: 4 | G99: 0.1 | H99: 83223.59742 | I99: 0.3578001623 | J99: 44399.78126 | K99: 0 | L99: 87.40667947 | M99: 0.2000666334 | N99: 46.32559767 | O99: 20.25257857 | P99: 0 | Q99: 0 | R99: -66.57817624 | S99: 65371.59942
A100: 2018 | B100: 96 | C100: 8 | D100: 1008.5 | E100: =SUM($D$4:D100) -> 114106 | F100: 4 | G100: 0.1 | H100: 83223.59742 | I100: 0.3699181196 | J100: 44399.78126 | K100: 0 | L100: 87.40667947 | M100: 0.2000666334 | N100: 46.15207928 | O100: 20.17671997 | P100: 0 | Q100: 0 | R100: -66.32879925 | S100: 65419.40696
A101: 2018.083333 | B101: 97 | C101: 8.083333333 | D101: 1004.708333 | E101: =SUM($D$4:D101) -> 115110.7083 | F101: 4 | G101: 0.1 | H101: 83223.59742 | I101: 0.3819905169 | J101: 44399.78126 | K101: 0 | L101: 87.40667947 | M101: 0.2000666334 | N101: 45.97856088 | O101: 20.10086138 | P101: 0 | Q101: 0 | R101: -66.07942226 | S101: 65466.87257
A102: 2018.166667 | B102: 98 | C102: 8.166666667 | D102: 1000.916667 | E102: =SUM($D$4:D102) -> 116111.625 | F102: 4 | G102: 0.1 | H102: 83223.59742 | I102: 0.3940173543 | J102: 44399.78126 | K102: 0 | L102: 87.40667947 | M102: 0.2000666334 | N102: 45.80504249 | O102: 20.02500278 | P102: 0 | Q102: 0 | R102: -65.83004526 | S102: 65513.99805
A103: 2018.25 | B103: 99 | C103: 8.25 | D103: 997.125 | E103: =SUM($D$4:D103) -> 117108.75 | F103: 4 | G103: 0.1 | H103: 83223.59742 | I103: 0.4059986316 | J103: 44399.78126 | K103: 0 | L103: 87.40667947 | M103: 0.2000666334 | N103: 45.63152409 | O103: 19.94914418 | P103: 0 | Q103: 0 | R103: -65.58066827 | S103: 65560.78515
A104: 2018.333333 | B104: 100 | C104: 8.333333333 | D104: 993.3333333 | E104: =SUM($D$4:D104) -> 118102.0833 | F104: 4 | G104: 0.1 | H104: 83223.59742 | I104: 0.4179343489 | J104: 44399.78126 | K104: 0 | L104: 87.40667947 | M104: 0.2000666334 | N104: 45.4580057 | O104: 19.87328558 | P104: 0 | Q104: 0 | R104: -65.33129128 | S104: 65607.23563
A105: 2018.416667 | B105: 101 | C105: 8.416666667 | D105: 989.5416667 | E105: =SUM($D$4:D105) -> 119091.625 | F105: 4 | G105: 0.1 | H105: 83223.59742 | I105: 0.4298245062 | J105: 44399.78126 | K105: 0 | L105: 87.40667947 | M105: 0.2000666334 | N105: 45.28448731 | O105: 19.79742698 | P105: 0 | Q105: 0 | R105: -65.08191429 | S105: 65653.35124
A106: 2018.5 | B106: 102 | C106: 8.5 | D106: 985.75 | E106: =SUM($D$4:D106) -> 120077.375 | F106: 4 | G106: 0.1 | H106: 83223.59742 | I106: 0.4416691036 | J106: 44399.78126 | K106: 0 | L106: 87.40667947 | M106: 0.2000666334 | N106: 45.11096891 | O106: 19.72156838 | P106: 0 | Q106: 0 | R106: -64.83253729 | S106: 65699.13373
A107: 2018.583333 | B107: 103 | C107: 8.583333333 | D107: 981.9583333 | E107: =SUM($D$4:D107) -> 121059.3333 | F107: 4 | G107: 0.1 | H107: 83223.59742 | I107: 0.4534681409 | J107: 44399.78126 | K107: 0 | L107: 87.40667947 | M107: 0.2000666334 | N107: 44.93745052 | O107: 19.64570978 | P107: 0 | Q107: 0 | R107: -64.5831603 | S107: 65744.58482
A108: 2018.666667 | B108: 104 | C108: 8.666666667 | D108: 978.1666667 | E108: =SUM($D$4:D108) -> 122037.5 | F108: 4 | G108: 0.1 | H108: 83223.59742 | I108: 0.4652216182 | J108: 44399.78126 | K108: 0 | L108: 87.40667947 | M108: 0.2000666334 | N108: 44.76393212 | O108: 19.56985119 | P108: 0 | Q108: 0 | R108: -64.33378331 | S108: 65789.70624
A109: 2018.75 | B109: 105 | C109: 8.75 | D109: 974.375 | E109: =SUM($D$4:D109) -> 123011.875 | F109: 4 | G109: 0.1 | H109: 83223.59742 | I109: 0.4769295356 | J109: 44399.78126 | K109: 0 | L109: 87.40667947 | M109: 0.2000666334 | N109: 44.59041373 | O109: 19.49399259 | P109: 0 | Q109: 0 | R109: -64.08440632 | S109: 65834.49972
A110: 2018.833333 | B110: 106 | C110: 8.833333333 | D110: 970.5833333 | E110: =SUM($D$4:D110) -> 123982.4583 | F110: 4 | G110: 0.1 | H110: 83223.59742 | I110: 0.4885918929 | J110: 44399.78126 | K110: 0 | L110: 87.40667947 | M110: 0.2000666334 | N110: 44.41689533 | O110: 19.41813399 | P110: 0 | Q110: 0 | R110: -63.83502932 | S110: 65878.96696
A111: 2018.916667 | B111: 107 | C111: 8.916666667 | D111: 966.7916667 | E111: =SUM($D$4:D111) -> 124949.25 | F111: 4 | G111: 0.1 | H111: 83223.59742 | I111: 0.5002086903 | J111: 44399.78126 | K111: 0 | L111: 87.40667947 | M111: 0.2000666334 | N111: 44.24337694 | O111: 19.34227539 | P111: 0 | Q111: 0 | R111: -63.58565233 | S111: 65923.10966
A112: 2019 | B112: 108 | C112: 9 | D112: 963 | E112: =SUM($D$4:D112) -> 125912.25 | F112: 4 | G112: 0.1 | H112: 83223.59742 | I112: 0.5117799277 | J112: 44399.78126 | K112: 0 | L112: 87.40667947 | M112: 0.2000666334 | N112: 44.06985855 | O112: 19.26641679 | P112: 0 | Q112: 0 | R112: -63.33627534 | S112: 65966.92953
A113: 2019.083333 | B113: 109 | C113: 9.083333333 | D113: 959.2083333 | E113: =SUM($D$4:D113) -> 126871.4583 | F113: 4 | G113: 0.1 | H113: 83223.59742 | I113: 0.523305605 | J113: 44399.78126 | K113: 0 | L113: 87.40667947 | M113: 0.2000666334 | N113: 43.89634015 | O113: 19.19055819 | P113: 0 | Q113: 0 | R113: -63.08689835 | S113: 66010.42823
A114: 2019.166667 | B114: 110 | C114: 9.166666667 | D114: 955.4166667 | E114: =SUM($D$4:D114) -> 127826.875 | F114: 4 | G114: 0.1 | H114: 83223.59742 | I114: 0.5347857224 | J114: 44399.78126 | K114: 0 | L114: 87.40667947 | M114: 0.2000666334 | N114: 43.72282176 | O114: 19.1146996 | P114: 0 | Q114: 0 | R114: -62.83752135 | S114: 66053.60746
A115: 2019.25 | B115: 111 | C115: 9.25 | D115: 951.625 | E115: =SUM($D$4:D115) -> 128778.5 | F115: 4 | G115: 0.1 | H115: 83223.59742 | I115: 0.5462202798 | J115: 44399.78126 | K115: 0 | L115: 87.40667947 | M115: 0.2000666334 | N115: 43.54930336 | O115: 19.038841 | P115: 0 | Q115: 0 | R115: -62.58814436 | S115: 66096.46889
A116: 2019.333333 | B116: 112 | C116: 9.333333333 | D116: 947.8333333 | E116: =SUM($D$4:D116) -> 129726.3333 | F116: 4 | G116: 0.1 | H116: 83223.59742 | I116: 0.5576092772 | J116: 44399.78126 | K116: 0 | L116: 87.40667947 | M116: 0.2000666334 | N116: 43.37578497 | O116: 18.9629824 | P116: 0 | Q116: 0 | R116: -62.33876737 | S116: 66139.01418
A117: 2019.416667 | B117: 113 | C117: 9.416666667 | D117: 944.0416667 | E117: =SUM($D$4:D117) -> 130670.375 | F117: 4 | G117: 0.1 | H117: 83223.59742 | I117: 0.5689527146 | J117: 44399.78126 | K117: 0 | L117: 87.40667947 | M117: 0.2000666334 | N117: 43.20226657 | O117: 18.8871238 | P117: 0 | Q117: 0 | R117: -62.08939037 | S117: 66181.24498
A118: 2019.5 | B118: 114 | C118: 9.5 | D118: 940.25 | E118: =SUM($D$4:D118) -> 131610.625 | F118: 4 | G118: 0.1 | H118: 83223.59742 | I118: 0.5802505919 | J118: 44399.78126 | K118: 0 | L118: 87.40667947 | M118: 0.2000666334 | N118: 43.02874818 | O118: 18.8112652 | P118: 0 | Q118: 0 | R118: -61.84001338 | S118: 66223.16294
A119: 2019.583333 | B119: 115 | C119: 9.583333333 | D119: 936.4583333 | E119: =SUM($D$4:D119) -> 132547.0833 | F119: 4 | G119: 0.1 | H119: 83223.59742 | I119: 0.5915029093 | J119: 44399.78126 | K119: 0 | L119: 87.40667947 | M119: 0.2000666334 | N119: 42.85522979 | O119: 18.7354066 | P119: 0 | Q119: 0 | R119: -61.59063639 | S119: 66264.76971
A120: 2019.666667 | B120: 116 | C120: 9.666666667 | D120: 932.6666667 | E120: =SUM($D$4:D120) -> 133479.75 | F120: 4 | G120: 0.1 | H120: 83223.59742 | I120: 0.6027096668 | J120: 44399.78126 | K120: 0 | L120: 87.40667947 | M120: 0.2000666334 | N120: 42.68171139 | O120: 18.659548 | P120: 0 | Q120: 0 | R120: -61.3412594 | S120: 66306.06692
A121: 2019.75 | B121: 117 | C121: 9.75 | D121: 928.875 | E121: =SUM($D$4:D121) -> 134408.625 | F121: 4 | G121: 0.1 | H121: 83223.59742 | I121: 0.6138708642 | J121: 44399.78126 | K121: 0 | L121: 87.40667947 | M121: 0.2000666334 | N121: 42.508193 | O121: 18.58368941 | P121: 0 | Q121: 0 | R121: -61.0918824 | S121: 66347.05619
A122: 2019.833333 | B122: 118 | C122: 9.833333333 | D122: 925.0833333 | E122: =SUM($D$4:D122) -> 135333.7083 | F122: 4 | G122: 0.1 | H122: 83223.59742 | I122: 0.6249865016 | J122: 44399.78126 | K122: 0 | L122: 87.40667947 | M122: 0.2000666334 | N122: 42.3346746 | O122: 18.50783081 | P122: 0 | Q122: 0 | R122: -60.84250541 | S122: 66387.73915
A123: 2019.916667 | B123: 119 | C123: 9.916666667 | D123: 921.2916667 | E123: =SUM($D$4:D123) -> 136255 | F123: 4 | G123: 0.1 | H123: 83223.59742 | I123: 0.636056579 | J123: 44399.78126 | K123: 0 | L123: 87.40667947 | M123: 0.2000666334 | N123: 42.16115621 | O123: 18.43197221 | P123: 0 | Q123: 0 | R123: -60.59312842 | S123: 66428.11739
A124: 2020 | B124: 120 | C124: 10 | D124: 917.5 | E124: =SUM($D$4:D124) -> 137172.5 | F124: 4 | G124: 0.1 | H124: 83223.59742 | I124: 0.6470810964 | J124: 44399.78126 | K124: 0 | L124: 87.40667947 | M124: 0.2000666334 | N124: 41.98763781 | O124: 18.35611361 | P124: 0 | Q124: 0 | R124: -60.34375143 | S124: 66468.19253
A125: 2020.083333 | B125: 121 | C125: 10.08333333 | D125: 913.7083333 | E125: =SUM($D$4:D125) -> 138086.2083 | F125: 4 | G125: 0.1 | H125: 83223.59742 | I125: 0.6580600539 | J125: 44399.78126 | K125: 0 | L125: 87.40667947 | M125: 0.2000666334 | N125: 41.81411942 | O125: 18.28025501 | P125: 0 | Q125: 0 | R125: -60.09437443 | S125: 66507.96617
A126: 2020.166667 | B126: 122 | C126: 10.16666667 | D126: 909.9166667 | E126: =SUM($D$4:D126) -> 138996.125 | F126: 4 | G126: 0.1 | H126: 83223.59742 | I126: 0.6689934513 | J126: 44399.78126 | K126: 0 | L126: 87.40667947 | M126: 0.2000666334 | N126: 41.64060103 | O126: 18.20439641 | P126: 0 | Q126: 0 | R126: -59.84499744 | S126: 66547.43988
A127: 2020.25 | B127: 123 | C127: 10.25 | D127: 906.125 | E127: =SUM($D$4:D127) -> 139902.25 | F127: 4 | G127: 0.1 | H127: 83223.59742 | I127: 0.6798812887 | J127: 44399.78126 | K127: 0 | L127: 87.40667947 | M127: 0.2000666334 | N127: 41.46708263 | O127: 18.12853781 | P127: 0 | Q127: 0 | R127: -59.59562045 | S127: 66586.61526
A128: 2020.333333 | B128: 124 | C128: 10.33333333 | D128: 902.3333333 | E128: =SUM($D$4:D128) -> 140804.5833 | F128: 4 | G128: 0.1 | H128: 83223.59742 | I128: 0.6907235662 | J128: 44399.78126 | K128: 0 | L128: 87.40667947 | M128: 0.2000666334 | N128: 41.29356424 | O128: 18.05267922 | P128: 0 | Q128: 0 | R128: -59.34624345 | S128: 66625.49387
A129: 2020.416667 | B129: 125 | C129: 10.41666667 | D129: 898.5416667 | E129: =SUM($D$4:D129) -> 141703.125 | F129: 4 | G129: 0.1 | H129: 83223.59742 | I129: 0.7015202836 | J129: 44399.78126 | K129: 0 | L129: 87.40667947 | M129: 0.2000666334 | N129: 41.12004584 | O129: 17.97682062 | P129: 0 | Q129: 0 | R129: -59.09686646 | S129: 66664.07728
A130: 2020.5 | B130: 126 | C130: 10.5 | D130: 894.75 | E130: =SUM($D$4:D130) -> 142597.875 | F130: 4 | G130: 0.1 | H130: 83223.59742 | I130: 0.7122714411 | J130: 44399.78126 | K130: 0 | L130: 87.40667947 | M130: 0.2000666334 | N130: 40.94652745 | O130: 17.90096202 | P130: 0 | Q130: 0 | R130: -58.84748947 | S130: 66702.36706
A131: 2020.583333 | B131: 127 | C131: 10.58333333 | D131: 890.9583333 | E131: =SUM($D$4:D131) -> 143488.8333 | F131: 4 | G131: 0.1 | H131: 83223.59742 | I131: 0.7229770386 | J131: 44399.78126 | K131: 0 | L131: 87.40667947 | M131: 0.2000666334 | N131: 40.77300906 | O131: 17.82510342 | P131: 0 | Q131: 0 | R131: -58.59811248 | S131: 66740.36475
